Workbook

Sheet VersionNotes (hidden)
A1: FILE WORKFLOW, NOTES, and VERSION DETAILS
A2: Hide this worksheet for publication
A5: File Links
A6: Up-Date | D6: FILE LINKS | E6: Update to | F6: Location | G6: Notes
A7: 2025-04-17 | D7: XXXV - XX FRAME Budget Report | E7: Prior year file | F7: W:\Edusfb\Frame.bud\FRAME Report\xxxv-xx
A8: 2025-09-26 | D8: XXXX - XY BUDGET Data | E8: Current year file | F8: W:\Edusfb\Frame.bud\FRAME Report\xxxx-xy\SD Source Files
A9: 2025-08-15 | D9: XXXX - XY Summary Confirmed P&I | E9: Current year file | F9: W:\Edusfb\Capital\DEBENTURES\Debt Servicing Payments
A10: 2025-04-17 | D10: XXb - school division budgets | E10: Current year file | F10: W:\Edusfb\Frame.bud\FRAME Report\xxxx-xy\SD Source Files
A11: 2025-04-17 | D11: XXXX Assessment | E11: Spring Year file
A12: 2025-08-15 | D12: XX-XY TBMOD . . . . . . | E12: Current year file | G12: Total TIG, and Add Spc Nds
A13: 2025-08-15 | D13: Age and Area xxxx-xy | E13: Current year file
A14: 2025-08-15 | D14: DSFXXXX-XY-E2 | E14: Current year file
A15: 2025-08-18 | D15: Enrolment Statistics | E15: Current yearWorksheet | G15: 2025-26
A16: 2025-08-15 | D16: SplevyXX | E16: Spring Year file | F16: W:\Edusfb\Frame\SpecLevy
A17: 2025-08-18 | D17: TRAF Pension Projections XX-XY | E17: Current year file
A22: File Preparation workflow and notes
A23: DATE | B23: STEP and DETAILS | G23: NOTES
A25: 2025-04-16 | B25: 1 | C25: Copy prior year budget report and save as current year in current year folders
A27: 2025-04-16 | B27: 2 | C27: Change year in cell B5 on the 'Data' worksheet to Spring Year of budget year
A29: 2025-04-16 | B29: 3 | C29: Prepare page -1- enrolment
D30: copy cells v3 & V4 for oldest year in graph and paste as values under historical data section
D31: Copy cell range W3 to AJ4 and paste as values in cell starting in cell V3 | F31: ss
D32: Cells AJ 3 & 4 will update for current year data automatically
A33: 2025-04-16 | B33: 4 | C33: Prepare page -2- operating fund expenses for CPI data changes
D34: copy cell range G106:L119 and paste as values starting in cell G105
D35: Use webpage link in cell C129 to obtain latest CPI index forecast
D36: enter CPI forecast in cell I121
A38: 2025-09-26 | B38: 5 | C38: Update file links
A40: 2025-10-01 | B40: 6 | C40: Update PrvFunding worksheet for Budget Estimates of Expenditure
A42: 2025-10-07 | B42: 7 | C42: Update text on pages as needed and update following charts/graphs
D43: page 1 title and comment changed to auto update
D44: Page 2 changed chart Y axis bounds
D45: Page 5 chart data updated
D46: Page 11 Title changed to auto update
D47: Page 14 Title changed to auto update
D48: Page 39Title changed to auto update
D49: pages 41 & 42 - edits to notes
D50: Page 47 updated Title changed to auto update
D51: Page 50 Title changed to auto update
A52: 2025-10-08 | B52: 8 | C52: Update page viii
A54: 2026-01-05 | B54: 9 | C54: Finalize report
D55: hide worksheets
D56: break links
A59: SUBSEQUENT VERSIONS

Sheet Data (hidden)
B2: Select Language | K2: Update=> no | L2: 1129569.176 | M2: tig | N2: PR TIG Adj | O2: 0 | V2: Replace | W2: Before click replace select the range you want. | Z2: English
A3: DATE: | F3: SUPPLEMENTARY DATA FOR FRAME REPORT | M3: tig dsfm | U3: This | V3: 18b_PROV.xlsm | Z3: French
L4: 1129569.176 | M4: paid to DSFM | U4: into | V4: 19b_PROV.xlsm | Z4: 1
A5: FALL YEAR | B5: 2025 | C5: EXPENDITURES | U5: Prev. Year
A6: Spring Yr | B6: =TEXT((FAllYR+1),"0000") -> 2026 | O6: Incremental administration costs related to Waywayseecappo | T6: =_xlfn.CONCAT(TEXT(FAllYR,"0000")," TSA") -> 2025 TSA | U6: =_xlfn.CONCAT(TEXT(FAllYR-1,"0000")," TSA") -> 2024 TSA
A7: Prior Schl Yr | B7: =_xlfn.CONCAT(TEXT(FAllYR-1,"0000"),"/",TEXT(MID(B8,3,2),"00")) -> 2024/25 | N7: ADMIN. COSTS | Q7: TOTAL OTHER | R7: TOTAL | S7: Total Other | T7: Per Funded | U7: Per Funded
A8: Schl Yr | B8: =_xlfn.CONCAT(FAllYR,"/",RIGHT(B6,2)) -> 2025/26 | C8: TRANSFERS BY FUNCTION | J8: 700 | L8: TOTAL | M8: LIABILITY | N8: SELF-FUNDED | P8: TRUSTEE | Q8: DEPARTMENT OF | R8: CATEGORICAL | S8: Provincial | T8: Resident | U8: Resident
A9: CO. | B9: DIVISION/DISTRICT | C9: 100 | D9: 200 | E9: 300 | F9: 400 | G9: 500 | H9: 600 | I9: 700 | J9: RECHARGE | K9: 800 | L9: TRANSFERS | M9: INSURANCE | N9: PROGRAMS | P9: ELECTION | Q9: EDUCATION | R9: SUPPORT | S9: Departments (Entities) | T9: Pupil < 21 | U9: Pupil < 21 | V9: Control | W9: Frame | X9: tables budget | Y9: Variance
A11: BE | B11: BEAUTIFUL PLAINS | C11: 87900 | D11: 0 | E11: 0 | F11: 0 | G11: 0 | H11: 15000 | I11: 0 | J11: 0 | K11: 0 | L11: =SUM(C11:I11)-J11+K11 -> 102900 | M11: 46500 | N11: 0 | O11: 0 | P11: 0 | Q11: 4256679 | R11: 2298457 | S11: 4850000 | T11: 490984 | U11: 490984 | V11: Total expenses | W11: =+'- 3 -'!B48+'- 3 -'!B50 -> 3233127743 | X11: 3233127743 | Y11: =+W11-X11 -> 0
A12: BO | B12: BORDER LAND | C12: 570000 | D12: 0 | E12: 0 | F12: 0 | G12: 0 | H12: 0 | I12: 0 | J12: 0 | K12: 0 | L12: =SUM(C12:I12)-J12+K12 -> 570000 | M12: 38915 | N12: 0 | O12: 0 | P12: 0 | Q12: 7207140 | R12: 3040724 | S12: 7960797 | T12: 751236 | U12: 751236 | V12: Total Revenues | W12: =+'- 43 -'!I48 -> 3263721243 | X12: 3263721243 | Y12: =+W12-X12 -> 0
A13: BR | B13: BRANDON | C13: 71500 | D13: 0 | E13: 0 | F13: 0 | G13: 0 | H13: 0 | I13: 0 | J13: 0 | K13: 0 | L13: 71500 | M13: 175100 | N13: 0 | O13: 0 | P13: 0 | Q13: 12077481 | R13: 7846226 | S13: 16365331 | T13: 403375 | U13: 403375 | V13: SENIOR YEARS tech | W13: 4880.85 | X13: =+'- 7 -'!B48 -> 4880.85 | Y13: =+W13-X13 -> 0
A14: DI | B14: DSFM | C14: 775405 | D14: 0 | E14: 0 | F14: 0 | G14: 0 | H14: 0 | I14: 0 | J14: 0 | K14: 0 | L14: 775405 | M14: 0 | N14: 0 | O14: 0 | P14: 0 | Q14: 40164407 | R14: 8066073 | S14: 15248216 | T14: 621715 | U14: 621715 | V14: Total Reg. Instruct.. | W14: =+'- 7 -'!E48 -> 192484.89 | X14: 192484.89 | Y14: =+W14-X14 -> 0
A15: EV | B15: EVERGREEN | C15: 40000 | D15: 0 | E15: 0 | F15: 0 | G15: 500 | H15: 10000 | I15: 0 | J15: 0 | K15: 0 | L15: 50500 | M15: 43200 | N15: 0 | O15: 0 | P15: 0 | Q15: 4308835 | R15: 2203863 | S15: 5150000 | T15: 1080474 | U15: 1080474
A16: FL | B16: FLIN FLON | C16: 5200 | D16: 0 | E16: 0 | F16: 0 | G16: 0 | H16: 0 | I16: 0 | J16: 0 | K16: 0 | L16: 5200 | M16: 46706 | N16: 0 | O16: 0 | P16: 0 | Q16: 2226390 | R16: 1375596 | S16: 1570833 | T16: 203470 | U16: 203470
A17: FO | B17: FORT LA BOSSE | C17: 60950 | D17: 0 | E17: 0 | F17: 0 | G17: 1000 | H17: 0 | I17: 0 | J17: 0 | K17: 0 | L17: 61950 | M17: 69303 | N17: 0 | O17: 18720 | P17: 0 | Q17: 3778683 | R17: 1886643 | S17: 3163633 | T17: 1027144 | U17: 1027144
A18: FR | B18: FRONTIER | C18: 2205509 | D18: 0 | E18: 7500 | F18: 0 | G18: 58000 | H18: 22302 | I18: 68440 | J18: 0 | K18: 0 | L18: 2361751 | M18: 0 | N18: 0 | O18: 0 | P18: 0 | Q18: 11485000 | R18: 6543422 | S18: 2050000 | T18: 157198 | U18: 157198
A19: GA | B19: GARDEN VALLEY | C19: 462000 | D19: 0 | E19: 0 | F19: 27000 | G19: 0 | H19: 24000 | I19: 0 | J19: 0 | K19: 0 | L19: 513000 | M19: 74000 | N19: 0 | O19: 0 | P19: 0 | Q19: 7532928 | R19: 4624368 | S19: 9500000 | T19: 491474 | U19: 491474
A20: HA | B20: HANOVER | C20: 2907800 | D20: 0 | E20: 0 | F20: 0 | G20: 0 | H20: 0 | I20: 0 | J20: 0 | K20: 0 | L20: 2907800 | M20: 130400 | N20: 0 | O20: 0 | P20: 0 | Q20: 12105655 | R20: 8690868 | S20: 16800692 | T20: 403045 | U20: 403045
A21: IN | B21: INTERLAKE | C21: 229724 | D21: 170000 | E21: 0 | F21: 0 | G21: 12000 | H21: 26650 | I21: 0 | J21: 0 | K21: 0 | L21: 438374 | M21: 74000 | N21: 0 | O21: 0 | P21: 7500 | Q21: 5373176 | R21: 3355949 | S21: 9280000 | T21: 806479 | U21: 806479
A22: KE | B22: KELSEY | C22: 2000 | D22: 0 | E22: 0 | F22: 0 | G22: 0 | H22: 9000 | I22: 0 | J22: 0 | K22: 0 | L22: 11000 | M22: 40000 | N22: 0 | O22: 0 | P22: 0 | Q22: 3961431 | R22: 2675916 | S22: 2664130 | T22: 216298 | U22: 216298
A23: LA | B23: LAKESHORE | C23: 79000 | D23: 0 | E23: 0 | F23: 0 | G23: 0 | H23: 1700 | I23: 0 | J23: 0 | K23: 0 | L23: 80700 | M23: 45000 | N23: 0 | O23: 0 | P23: 0 | Q23: 2606977 | R23: 1908106 | S23: 2682587 | T23: 508684 | U23: 508684
A24: LO | B24: LORD SELKIRK | C24: 182000 | D24: 0 | E24: 0 | F24: 0 | G24: 0 | H24: 0 | I24: 0 | J24: 0 | K24: 0 | L24: 182000 | M24: 143700 | N24: 0 | O24: 0 | P24: 0 | Q24: 9594521 | R24: 5022892 | S24: 13440728 | T24: 807628 | U24: 807628
A25: LR | B25: LOUIS RIEL | C25: 491787 | D25: 400000 | E25: 8213 | F25: 5000 | G25: 14500 | H25: 49000 | I25: 0 | J25: 0 | K25: 0 | L25: 968500 | M25: 80000 | N25: 1410073 | O25: 0 | P25: 0 | Q25: 24965119 | R25: 16375812 | S25: 44174638 | T25: 589966 | U25: 589966
A26: MO | B26: MOUNTAIN VIEW | C26: 0 | D26: 0 | E26: 0 | F26: 0 | G26: 0 | H26: 5000 | I26: 0 | J26: 0 | K26: 0 | L26: 5000 | M26: 44000 | N26: 0 | O26: 0 | P26: 0 | Q26: 6809626 | R26: 3592818 | S26: 9330000 | T26: 553456 | U26: 553456
A27: MY | B27: MYSTERY LAKE | C27: 9200 | D27: 0 | E27: 0 | F27: 0 | G27: 0 | H27: 0 | I27: 0 | J27: 0 | K27: 0 | L27: 9200 | M27: 108100 | N27: 0 | O27: 0 | P27: 0 | Q27: 5368428 | R27: 4919811 | S27: 3103964 | T27: 167122 | U27: 167122
A28: PA | B28: PARK WEST | C28: 110000 | D28: 0 | E28: 0 | F28: 0 | G28: 0 | H28: 0 | I28: 0 | J28: 0 | K28: 0 | L28: 110000 | M28: 28500 | N28: 0 | O28: 245814 | P28: 0 | Q28: 5258845 | R28: 2294793 | S28: 4900060 | T28: 850942 | U28: 850942
A29: PE | B29: PEMBINA TRAILS | C29: 2415000 | D29: 0 | E29: 0 | F29: 0 | G29: 8000 | H29: 0 | I29: 0 | J29: 0 | K29: 0 | L29: 2423000 | M29: 172788 | N29: 1016100 | O29: 0 | P29: 0 | Q29: 27488915 | R29: 15062576 | S29: 42538700 | T29: 740934 | U29: 740934
A30: PI | B30: PINE CREEK | C30: 45000 | D30: 0 | E30: 0 | F30: 0 | G30: 0 | H30: 0 | I30: 0 | J30: 0 | K30: 0 | L30: 45000 | M30: 0 | N30: 0 | O30: 0 | P30: 0 | Q30: 2851252 | R30: 1572728 | S30: 4237521 | T30: 815659 | U30: 815659
A31: PO | B31: PORTAGE LA PRAIRIE | C31: 45000 | D31: 0 | E31: 0 | F31: 0 | G31: 0 | H31: 0 | I31: 0 | J31: 0 | K31: 0 | L31: 45000 | M31: 0 | N31: 0 | O31: 0 | P31: 0 | Q31: 7185276 | R31: 3935002 | S31: 8655266 | T31: 592605 | U31: 592605
A32: PR | B32: PRAIRIE ROSE | C32: 170000 | D32: 0 | E32: 200 | F32: 0 | G32: 0 | H32: 6000 | I32: 0 | J32: 0 | K32: 0 | L32: 176200 | M32: 60000 | N32: 0 | O32: 0 | P32: 0 | Q32: 5848218 | R32: 3049709 | S32: 9532314 | T32: 913182 | U32: 913182
A33: PS | B33: PRAIRIE SPIRIT | C33: 59000 | D33: 0 | E33: 0 | F33: 0 | G33: 0 | H33: 20500 | I33: 0 | J33: 0 | K33: 0 | L33: 79500 | M33: 51897 | N33: 0 | O33: 0 | P33: 0 | Q33: 4994762 | R33: 2976745 | S33: 7211755 | T33: 1003078 | U33: 1003078
A34: RE | B34: RED RIVER VALLEY | C34: 413035 | D34: 0 | E34: 0 | F34: 0 | G34: 0 | H34: 0 | I34: 0 | J34: 0 | K34: 0 | L34: 413035 | M34: 41992 | N34: 0 | O34: 0 | P34: 0 | Q34: 4712662 | R34: 3422689 | S34: 8550042 | T34: 961991 | U34: 961991
A35: RI | B35: RIVER EAST TRANSCONA | C35: 0 | D35: 0 | E35: 0 | F35: 0 | G35: 8300 | H35: 39500 | I35: 0 | J35: 0 | K35: 0 | L35: 47800 | M35: 55937 | N35: 0 | O35: 0 | P35: 0 | Q35: 23889193 | R35: 17971164 | S35: 47760627 | T35: 523652 | U35: 523652
A36: RO | B36: ROLLING RIVER | C36: 426130 | D36: 0 | E36: 0 | F36: 0 | G36: 0 | H36: 0 | I36: 0 | J36: 0 | K36: 0 | L36: 426130 | M36: 73000 | N36: 0 | O36: 0 | P36: 0 | Q36: 4087818 | R36: 1954124 | S36: 5935639 | T36: 835369 | U36: 835369
A37: SE | B37: SEINE RIVER | C37: 465000 | D37: 97000 | E37: 0 | F37: 0 | G37: 5000 | H37: 66500 | I37: 0 | J37: 0 | K37: 0 | L37: 633500 | M37: 115000 | N37: 0 | O37: 0 | P37: 0 | Q37: 10336823 | R37: 6030506 | S37: 12498329 | T37: 506414 | U37: 506414
A38: SO | B38: SEVEN OAKS | C38: 820000 | D38: 190000 | E38: 0 | F38: 0 | G38: 0 | H38: 195250 | I38: 0 | J38: 0 | K38: 0 | L38: =SUM(C38:I38)-J38+K38 -> 1205250 | M38: 132000 | N38: 0 | O38: 0 | P38: 0 | Q38: 20512020 | R38: 11424791 | S38: 28144064 | T38: 476720 | U38: 476720
A39: SR | B39: SOUTHWEST HORIZON | C39: 301000 | D39: 0 | E39: 0 | F39: 0 | G39: 0 | H39: 0 | I39: 0 | J39: 0 | K39: 0 | L39: =SUM(C39:I39)-J39+K39 -> 301000 | M39: 86900 | N39: 0 | O39: 0 | P39: 0 | Q39: 3376864 | R39: 1890717 | S39: 6080005 | T39: 1073335 | U39: 1073335
A40: ST | B40: ST. JAMES-ASSINIBOIA | C40: 386000 | D40: 0 | E40: 0 | F40: 5000 | G40: 0 | H40: 0 | I40: 0 | J40: 0 | K40: 0 | L40: 391000 | M40: 135200 | N40: 347966 | O40: 0 | P40: 0 | Q40: 16456252 | R40: 8501909 | S40: 24043478 | T40: 744309 | U40: 744309
A41: SU | B41: SUNRISE | C41: 525000 | D41: 233000 | E41: 20000 | F41: 0 | G41: -13000 | H41: 0 | I41: 0 | J41: 0 | K41: 0 | L41: 765000 | M41: 136931 | N41: 0 | O41: 0 | P41: 5000 | Q41: 9276683 | R41: 6749572 | S41: 18493142 | T41: 848641 | U41: 848641
A42: SW | B42: SWAN VALLEY | C42: 157954 | D42: 0 | E42: 0 | F42: 0 | G42: 0 | H42: 0 | I42: 0 | J42: 0 | K42: 0 | L42: 157954 | M42: 70000 | N42: 0 | O42: 0 | P42: 0 | Q42: 4040393 | R42: 2249051 | S42: 4423700 | T42: 573723 | U42: 573723
A43: TM | B43: TURTLE MOUNTAIN | C43: 47450 | D43: 0 | E43: 0 | F43: 0 | G43: 0 | H43: 0 | I43: 0 | J43: 0 | K43: 0 | L43: 47450 | M43: 0 | N43: 0 | O43: 0 | P43: 0 | Q43: 1926471 | R43: 1301327 | S43: 4125700 | T43: 750280 | U43: 750280
A44: TR | B44: TURTLE RIVER | C44: 169634 | D44: 0 | E44: 0 | F44: 0 | G44: 0 | H44: 0 | I44: 0 | J44: 0 | K44: 0 | L44: 169634 | M44: 38500 | N44: 0 | O44: 0 | P44: 0 | Q44: 2218871 | R44: 1404767 | S44: 1842072 | T44: 548532 | U44: 548532
A45: WE | B45: WESTERN | C45: 114500 | D45: 0 | E45: 7000 | F45: 0 | G45: -7000 | H45: 0 | I45: 0 | J45: 0 | K45: 0 | L45: 114500 | M45: 18000 | N45: 0 | O45: 0 | P45: 0 | Q45: 3676706 | R45: 2114150 | S45: 5864564 | T45: 422710 | U45: 422710
A46: WI | B46: WINNIPEG | C46: 1500000 | D46: 399950 | E46: 0 | F46: 0 | G46: 0 | H46: 674100 | I46: 1200 | J46: 0 | K46: 0 | L46: 2575250 | M46: 304281 | N46: 55000 | O46: 0 | P46: 0 | Q46: 72883220 | R46: 29181916 | S46: 54864071 | T46: 588271 | U46: 588271
B48: PROVINCE | C48: =SUM(C11:C46) -> 16349678 | D48: 1489950 | E48: 42913 | F48: 37000 | G48: 87300 | H48: 1164502 | I48: 69640 | J48: 0 | K48: 0 | L48: 19240983 | M48: 2679850 | N48: 2829139 | O48: =SUM(O11:O46) -> 264534 | P48: =SUM(P11:P46) -> 12500 | Q48: =SUM(Q11:Q46) -> 394843720 | R48: =SUM(R11:R46) -> 207515780 | S48: =SUM(S11:S46) -> 467036598 | T48: 602109.6857 | U48: 602109.6857
A50: XW | B50: WHITESHELL | C50: 0 | D50: 0 | E50: 0 | F50: 1000 | G50: 0 | H50: 0 | I50: 36000 | J50: 0 | K50: 0 | L50: =SUM(C50:I50)-J50+K50 -> 37000 | M50: 0 | N50: 0 | O50: 0 | P50: 0 | Q50: 402020 | R50: 141378 | S50: 660000 | T50: N/A | U50: N/A
T53: ASSESSMENT POR RESIDENT PUPIL
B54: Budget Table | C54: 16349678 | D54: 1489950 | E54: 42913 | F54: 37000 | G54: 87300 | H54: 1164502 | I54: 69640 | J54: 0 | K54: 0 | L54: =SUM(C54:I54)-J54+K54 -> 19240983 | T54: W:\Edusfb\Support\YYYY-YY\Support Files Frozen\DSFYY
B55: Variance | C55: =+C48-C54 -> 0 | D55: =+D48-D54 -> 0 | E55: 0 | F55: 0 | G55: 0 | H55: 0 | I55: 0 | J55: 0 | K55: 0 | L55: 0 | T55: PAGE Scdatabase COLUMN AD
B58: Page | C58: Function's check | G58: Function
B59: 18 | C59: 0 | D59: 0 | G59: 100
B60: =+B59+1 -> 19 | C60: 0 | D60: 0 | E60: 0 | G60: 100
B61: =+B60+1 -> 20 | C61: 0 | G61: 100
B62: 21 | C62: 0 | D62: 0 | E62: 0 | G62: 200
B63: 22 | C63: 0 | D63: 0 | E63: 0 | F63: 200
B64: 23 | C64: 0 | D64: 0 | G64: 300
B65: 24 | C65: 0 | D65: 0 | E65: 0 | F65: 0 | G65: 400
B66: 25 | C66: 0 | D66: 0 | E66: 0 | G66: 500
B67: 26 | C67: 0 | G67: 500
B68: 27 | C68: 0 | D68: 0 | E68: 0 | G68: 600
B69: 28 | C69: 0 | D69: 0 | G69: 600
B70: 29 | C70: 0 | D70: 0 | E70: 0 | G70: 700
B71: 30 | C71: 0 | D71: 0 | G71: 700
B72: 31 | C72: 0 | D72: 0 | E72: 0 | G72: 800
B73: 32 | C73: 0 | D73: 0 | G73: 800
B74: 33 | C74: 0 | D74: 0 | G74: 900

Sheet PrvFunding (hidden)
B1: DRAFT - SUBJECT TO FINAL RECONCILIATION WITH FRAME REPORT | J1: in workbook links
J2: External Links
A3: PROVINCIAL CONTRIBUTION TO PUBLIC EDUCATION
G5: Tot Exp | H5: Prov Govt
G6: =C33 -> 3228786869 | H6: =D33 -> 2072057153
G7: Net Trans to Cap | H7: TIG
G8: ='- 44 -'!$B$48 -> 35114152 | H8: 107494375
G12: W:\FSP Estimates\Treasury\YY-YY
G13: Sheet: 16-5(e)
C14: 2024/2025 ($ millions)
G15: Principal | H15: 107702894.6
C16: Total Expenditure | D16: Provincial | E16: Provincial | G16: Interest | H16: 63749472.08 | J16: Prior Year
C17: on Public Education | D17: Contribution | E17: Contribution as % | H17: =SUM(H15:H16) -> 171452366.7 | J17: Total Pub Exp | K17: Prv Cont | L17: Change
A19: 1 | B19: FRAME Operating Fund | C19: =C33/1000000 -> 3228.786869 | D19: =D33/1000000 -> 2072.057153 | E19: =D19/C19 -> 0.6417447906 | J19: 3009.606582 | K19: 1684.968798 | L19: =D19-K19 -> 387.088355 | N19: =L19 -> 387.088355 | O19: Ops Funding
A20: 2 | B20: School division capital (net transfers to capital fund) | C20: =G8/1000000 -> 35.114152 | D20: 0 | E20: 0 | G20: =D69*1000 -> 513350000 | H20: ='- 41 -'!F47 -> 389679999 | J20: 24.28901 | K20: 0 | L20: 0 | N20: =L21 -> 13.98102439 | O20: Cap Funding
A21: 3 | B21: Provincial Capital Grant Funding and Other | C21: =H17/1000000 -> 171.4523667 | D21: =C21 -> 171.4523667 | E21: =D21/C21 -> 1 | G21: (Total HATC | H21: (HATC from | J21: 157.4713423 | K21: 157.4713423 | L21: 13.98102439 | N21: =SUM(N19:N20) -> 401.0693794 | O21: Net grants funding
A22: 4 | B22: Manitoba Homeowners Affordability Tax Credit (1) | C22: n/a | D22: =((G20-H20)/1000000) -> 123.670001 | E22: 1 | G22: from Estimates) | H22: FRAME) | J22: n/a | K22: 160.914073 | L22: =D22-K22 -> -37.244072
A23: 5 | B23: Farmland School Tax Rebate | C23: n/a | D23: =G28/1000 -> 22.831 | E23: 1 | J23: n/a | K23: 22.831 | L23: 0 | N23: =L22+L23+L24+L26 -> -346.669072 | O23: Tax Cr & Rebates
A24: 6 | B24: School Tax Assistance | C24: n/a | D24: =G29/1000 -> 0.025 | E24: 1 | J24: n/a | K24: 0.15 | L24: -0.125 | N24: =L25 -> -6.799 | O24: TRAF
A25: 7 | B25: Teachers' Retirement Allowances Fund | C25: =D25 -> 218.252 | D25: =G30/1000 -> 218.252 | E25: =D25/C25 -> 1 | J25: 225.051 | K25: 225.051 | L25: -6.799
A26: 8 | B26: Education Property Tax Rebate | C26: n/a | D26: =D49 -> 63.5 | E26: 1 | J26: n/a | K26: 372.8 | L26: -309.3
B27: Adjusted Total | C27: =SUM(C19:C26) -> 3653.605388 | D27: =SUM(D19:D26) -> 2671.787521 | E27: =D27/C27 -> 0.7312742448 | G27: =G20 -> 513350000 | H27: EPTC | J27: =SUM(J19:J26) -> 3416.417934 | K27: =SUM(K19:K26) -> 2624.186213 | L27: 47.60130739
G28: =D36 -> 22831 | H28: Farmland | K28: 0.7681104197 | L28: =ROUND(E27-K28,3) -> -0.037
G29: =D42 -> 25 | H29: School Tax Assistance for Tenants and Homeowners
G30: =D45 -> 218252 | H30: Teachers’ Retirement Allowances Fund
A33: 1 | B33: FRAME Operating Fund | C33: ='- 3 -'!$B$48+('- 3 -'!$B$50)*0 -> 3228786869 | D33: ='- 41 -'!$I$47+('- 41 -'!$I$49)*0 -> 2072057153
D35: Current Year | E35: Prior year
A36: 5 | B36: Farmland School Tax Rebate | D36: 22831 | E36: 22831
B37: p. 33 (34 of 174) : 3.2(g) Agriculture, Risk Management Credit and Income Support Prgms | D37: unchanged from prior year (2023)
A39: 4 | B39: Manitoba Education Property Tax Credit (1) | D39: =D76 -> 123670.001 | E39: =E75 -> 270000
A42: 6 | B42: School Tax Assistance (Pensioners) | D42: 25 | E42: 150
B43: N2(g)(1) p. 168 (170 of 174)
A45: 7 | B45: Teachers' Retirement Allowances Fund | D45: 218252
B46: Contact: Ivan Francia w/ OPC
B47: \\ME\edu\114eduWGP\Edusfb\Frame\REPORTS\Provincial Contribution\TRAF
A49: 8 | B49: Education Property Tax Rebate | D49: 63.5 | E49: 372.8
B50: S 1 (a) (1) p. 168 (170 of 174) S 1 (a) (1)
B52: Provincial Budgets
B53: 2025 MANITOBA ESTIMATES OF EXPENDITURE (gov.mb.ca)
D63: =YEAR -> 2025 | E63: =PriorYEAR -> 2024/25
G64: Teams call from Carlos Matias - not to include School Tax Rebate - Mar21/22
E65: 0 | G65: Component | H65: Change
D66: 106000 | E66: 91500 | G66: Renters Affordability TC | H66: =D66-E66 -> 14500
D67: 11350 | E67: 6500 | G67: HATC/EPTC | H67: =D67-E67 -> 4850
D68: 396000 | E68: 172000 | G68: HEPTR | H68: 224000
D69: =SUM(D65:D68) -> 513350 | E69: =SUM(E65:E68) -> 270000 | G69: EPTCA | H69: 243350
G72: Income tax | H72: estimated by our Branch
D73: =D69-D74 -> 123670.001 | E73: -119679.999 | G73: EPTCA (w/o XW)
D74: ='- 41 -'!F47/1000 -> 389679.999 | E74: 389679.999 | G74: p. 41 ($155,862,579 + $305,781 = $156,168,360 EPTCA)
D75: =SUM(D72:D74) -> 513350 | E75: =SUM(E72:E74) -> 270000
D76: =+D72+D73 -> 123670.001 | E76: =+E72+E73 -> -119679.999
D77: =+E27 -> 0.7312742448 | E77: 0.675
G85: EPTC = HATC
D87: 91500 | E87: 90000
D88: 6500 | E88: 10900
D89: 172000 | E89: 103000
D90: 270000 | E90: 203900
D94: -119679.999 | E94: 94814.073
D95: 389679.999 | E95: 109085.927
D96: 270000 | E96: 203900
D97: -119679.999 | E97: 94814.073
D98: 0.7493847592 | E98: 0.675

Sheet README
B3: ="FRAME Report: "&FAllYR&"/"&RIGHT(SpringYR,2)&" Budget" -> FRAME Report: 2025/26 Budget
B5: All pages of the FRAME report containing the tables of financial and statistical data are included in this file.
B7: In most cases, formulas have been left intact to show how statistics such as percentages and average costs per pupil are derived.
B10: Each worksheet tab is numbered to match the corresponding page found in the published document so for example to see page 15, click the worksheet tab - 15 - .
B13: This file is unprotected for data analysis by the user. Data can also be copied to other files or additional data copied to this one. In cases of dispute however, the published FRAME reports and the corresponding files located on the Manitoba Govenment web site remain the final authority.
B20: http://www.edu.gov.mb.ca/k12/finance/frame_report/index.html

Sheet viii
A1: =IF(Lang=1,H1,I1) -> PROVINCIAL CONTRIBUTION TO PUBLIC EDUCATION | H1: PROVINCIAL CONTRIBUTION TO PUBLIC EDUCATION | I1: CONTRIBUTION PROVINCIALE À L'ÉDUCATION PUBLIQUE
A3: ="The total cost of public education in Manitoba includes direct expenditures for the operation of schools (e.g. educator and administrator salaries, teaching supplies, pupil transportation, utilities, building maintenance)"&" and capital expenditures for school building construction and major building repairs and renovations."&" Also included are provincial expenditures for pensions for retired teachers and the provincial education tax credit programs for homeowners, tenants and farmers which results in reduced property tax bills."&" The total provincial contribution to public education accounts for "&ROUND(PrvCntPer*100,1)&"% of the total of these expenditures." -> The total cost of public education in Manitoba includes direct expenditures for the operation of schools (e.g. educator and administrator salaries, teaching supplies, pupil transportation, utilities, building maintenance) and capital expenditures for school building construction and major building repairs and renovations. Also included are provincial expenditures for pensions for retired teachers and the provincial education tax credit programs for homeowners, tenants and farmers which results in reduced property tax bills. The total provincial contribution to public education accounts for 73.1% of the total of these expenditures.
L7: .
A12: Categories | C12: =FAllYR&"/"&SpringYR&" ($ millions)" -> 2025/2026 ($ millions)
C13: Total Expenditure on Public Education | D13: Provincial Contribution | E13: Provincial Contribution as %
A16: 1 | B16: FRAME Operating Fund | C16: =PrvFunding!C19 -> 3228.786869 | D16: =PrvFunding!D19 -> 2072.057153 | E16: =D16/C16 -> 0.6417447906
A17: 2 | B17: School division capital (net transfers to capital fund) | C17: =PrvFunding!C20 -> 35.114152 | D17: 0 | E17: 0
A18: 3 | B18: Provincial Capital Grant Funding and Other | C18: =PrvFunding!C21 -> 171.4523667 | D18: =PrvFunding!D21 -> 171.4523667 | E18: =D18/C18 -> 1
A19: 4 | B19: Manitoba Homeowners Affordability Tax Credit (1) | C19: n/a | D19: =PrvFunding!D22 -> 123.670001 | E19: n/a | P19: =IF('- 3 -'!$I$48=0,"","check updated file with W drive") -> 
A20: 5 | B20: Farmland School Tax Rebate | C20: n/a | D20: =PrvFunding!D23 -> 22.831 | E20: n/a | P20: =IF('- 43 -'!$I$63298=0,"","check updated file with W drive") -> 
A21: 6 | B21: School Tax Assistance for Tenants and Homeowners (55+) | C21: n/a | D21: =PrvFunding!D24 -> 0.025 | E21: n/a
A22: 7 | B22: Teachers' Retirement Allowances Fund | C22: =PrvFunding!C25 -> 218.252 | D22: =PrvFunding!D25 -> 218.252 | E22: =D22/C22 -> 1
A23: 8 | B23: Education Property Tax Rebate | C23: =PrvFunding!C26 -> n/a | D23: =PrvFunding!D26 -> 63.5 | E23: n/a
B24: Adjusted Total | C24: =SUM(C16:C23) -> 3653.605388 | D24: =SUM(D16:D23) -> 2671.787521 | E24: =D24/C24 -> 0.7312742448
A26: (1) | B26: Starting in 2025 the Education Property Tax Credit (EPTC) was replaced with the Homeowners Affordability Tax Credit (HATC). The portion of HATC delivered through the income tax system directly to homeowners and renters is presented here.
B27: ="HATC reported by school divisions of $"&ROUND('- 41 -'!F47/1000000,1)&" million is adjusted by $"&ROUND(D19,1)&" million to equal the Total HATC as per the Manitoba "&YEAR&" Estimates of Expenditure of $"&ROUND(PrvFunding!D69/1000,1)&" million. See page 41 for more information." -> HATC reported by school divisions of $389.7 million is adjusted by $123.7 million to equal the Total HATC as per the Manitoba 2025 Estimates of Expenditure of $513.4 million. See page 41 for more information.
A30: Source:
A32: 1 | B32: ="FRAME "&FAllYR&"/"&SpringYR&" Budget page 3, page 41" -> FRAME 2025/2026 Budget page 3, page 41
A33: 2 | B33: ="FRAME "&FAllYR&"/"&SpringYR&" Budget page 44" -> FRAME 2025/2026 Budget page 44
A34: 3 | B34: =FAllYR&"/"&SpringYR&" Funding Announcement February "&FAllYR -> 2025/2026 Funding Announcement February 2025
A35: 4 | B35: ="Manitoba "&FAllYR&" Estimates of Expenditure for the fiscal year ending March 31, "&SpringYR -> Manitoba 2025 Estimates of Expenditure for the fiscal year ending March 31, 2026
A36: 5 | B36: Manitoba 2024 Estimates of Expenditure for the fiscal year ending March 31, 2025
A37: 6 | B37: Manitoba 2024 Estimates of Expenditure for the fiscal year ending March 31, 2025
A38: 7 | B38: Department of Finance
A39: 8 | B39: Department of Finance
C45: `

Sheet - 1 -

Sheet - 2 -
S24: - 2 -

Sheet - 3 -
A2: =IF(Lang=1,BA2,BB2) -> RECONCILIATION OF EXPENSES | BA2: RECONCILIATION OF EXPENSES | BB2: CONCILIATION DES DÉPENSES
A3: =IF(Lang=1,BA3,BB3) -> OPERATING FUND 2025/2026 BUDGET | BA3: ="OPERATING FUND "&YEAR&"/"&YEAR+1&" BUDGET" -> OPERATING FUND 2025/2026 BUDGET | BB3: ="FONDS DE FONCTIONNEMENT – BUDGET "&YEAR&" - "&YEAR+1 -> FONDS DE FONCTIONNEMENT – BUDGET 2025 - 2026
C6: LESS OPERATING FUND TRANSFERS (2) | D6: EXPENSES NET OF TRANSFERS (3) | E6: LESS NON K-12 EDUCATION & SERVICES (4) | F6: TOTAL EXPENSES FOR PER PUPIL COSTS (5)
B8: TOTAL EXPENSES (1)
A9: DIVISION / DISTRICT
A11: BEAUTIFUL PLAINS | B11: 30539565 | C11: =-Data!L11 -> -102900 | D11: =B11+C11 -> 30436665 | E11: =-'- 15 -'!H11-'- 16 -'!B11 -> -24310 | F11: =D11+E11 -> 30412355
A12: BORDER LAND | B12: 42088284 | C12: =-Data!L12 -> -570000 | D12: =B12+C12 -> 41518284 | E12: =-'- 15 -'!H12-'- 16 -'!B12 -> -412690 | F12: =D12+E12 -> 41105594
A13: BRANDON | B13: 140489465 | C13: =-Data!L13 -> -71500 | D13: 140417965 | E13: =-'- 15 -'!H13-'- 16 -'!B13 -> -586295 | F13: 139831670
A14: DSFM | B14: 128632870 | C14: =-Data!L14 -> -775405 | D14: 127857465 | E14: =-'- 15 -'!H14-'- 16 -'!B14 -> -1033988 | F14: 126823477
A15: EVERGREEN | B15: 26325665 | C15: =-Data!L15 -> -50500 | D15: 26275165 | E15: =-'- 15 -'!H15-'- 16 -'!B15 -> 0 | F15: 26275165
A16: FLIN FLON | B16: 18598905 | C16: =-Data!L16 -> -5200 | D16: 18593705 | E16: =-'- 15 -'!H16-'- 16 -'!B16 -> -113002 | F16: 18480703
A17: FORT LA BOSSE | B17: 23588337 | C17: =-Data!L17 -> -61950 | D17: 23526387 | E17: =-'- 15 -'!H17-'- 16 -'!B17 -> -177690 | F17: 23348697
A18: FRONTIER | B18: 176765714 | C18: =-Data!L18 -> -2361751 | D18: 174403963 | E18: =-'- 15 -'!H18-'- 16 -'!B18 -> -5067749 | F18: 169336214
A19: GARDEN VALLEY | B19: 63055158 | C19: =-Data!L19 -> -513000 | D19: 62542158 | E19: =-'- 15 -'!H19-'- 16 -'!B19 -> -160229 | F19: 62381929
A20: HANOVER | B20: 120930300 | C20: =-Data!L20 -> -2907800 | D20: 118022500 | E20: =-'- 15 -'!H20-'- 16 -'!B20 -> -128200 | F20: 117894300
A21: INTERLAKE | B21: 49841000 | C21: =-Data!L21 -> -438374 | D21: 49402626 | E21: =-'- 15 -'!H21-'- 16 -'!B21 -> 0 | F21: 49402626
A22: KELSEY | B22: 24978000 | C22: =-Data!L22 -> -11000 | D22: 24967000 | E22: =-'- 15 -'!H22-'- 16 -'!B22 -> -738379 | F22: 24228621
A23: LAKESHORE | B23: 18790129 | C23: =-Data!L23 -> -80700 | D23: 18709429 | E23: =-'- 15 -'!H23-'- 16 -'!B23 -> -444574 | F23: 18264855
A24: LORD SELKIRK | B24: 74725917 | C24: =-Data!L24 -> -182000 | D24: 74543917 | E24: =-'- 15 -'!H24-'- 16 -'!B24 -> -626125 | F24: 73917792
A25: LOUIS RIEL | B25: 271124646 | C25: =-Data!L25 -> -968500 | D25: 270156146 | E25: =-'- 15 -'!H25-'- 16 -'!B25 -> -2952725 | F25: 267203421
A26: MOUNTAIN VIEW | B26: 52389824 | C26: =-Data!L26 -> -5000 | D26: 52384824 | E26: =-'- 15 -'!H26-'- 16 -'!B26 -> -121662 | F26: 52263162
A27: MYSTERY LAKE | B27: 52586135 | C27: =-Data!L27 -> -9200 | D27: 52576935 | E27: =-'- 15 -'!H27-'- 16 -'!B27 -> -41968 | F27: 52534967
A28: PARK WEST | B28: 36820945 | C28: =-Data!L28 -> -110000 | D28: 36710945 | E28: =-'- 15 -'!H28-'- 16 -'!B28 -> -322563 | F28: 36388382
A29: PEMBINA TRAILS | B29: 246578097 | C29: =-Data!L29 -> -2423000 | D29: 244155097 | E29: =-'- 15 -'!H29-'- 16 -'!B29 -> -182879 | F29: 243972218
A30: PINE CREEK | B30: 21410232 | C30: =-Data!L30 -> -45000 | D30: 21365232 | E30: =-'- 15 -'!H30-'- 16 -'!B30 -> -14790 | F30: 21350442
A31: PORTAGE LA PRAIRIE | B31: 53364191 | C31: =-Data!L31 -> -45000 | D31: 53319191 | E31: =-'- 15 -'!H31-'- 16 -'!B31 -> -51260 | F31: 53267931
A32: PRAIRIE ROSE | B32: 41755541 | C32: =-Data!L32 -> -176200 | D32: 41579341 | E32: =-'- 15 -'!H32-'- 16 -'!B32 -> -394184 | F32: 41185157
A33: PRAIRIE SPIRIT | B33: 34812686 | C33: =-Data!L33 -> -79500 | D33: 34733186 | E33: =-'- 15 -'!H33-'- 16 -'!B33 -> -34617 | F33: 34698569
A34: RED RIVER VALLEY | B34: 40741278 | C34: =-Data!L34 -> -413035 | D34: 40328243 | E34: =-'- 15 -'!H34-'- 16 -'!B34 -> -61325 | F34: 40266918
A35: RIVER EAST TRANSCONA | B35: 267421388 | C35: =-Data!L35 -> -47800 | D35: 267373588 | E35: =-'- 15 -'!H35-'- 16 -'!B35 -> -2487524 | F35: 264886064
A36: ROLLING RIVER | B36: 29514000 | C36: =-Data!L36 -> -426130 | D36: 29087870 | E36: =-'- 15 -'!H36-'- 16 -'!B36 -> -23475 | F36: 29064395
A37: SEINE RIVER | B37: 77124224 | C37: =-Data!L37 -> -633500 | D37: 76490724 | E37: =-'- 15 -'!H37-'- 16 -'!B37 -> -363460 | F37: 76127264
A38: SEVEN OAKS | B38: 194315088 | C38: =-Data!L38 -> -1205250 | D38: 193109838 | E38: =-'- 15 -'!H38-'- 16 -'!B38 -> -5495169 | F38: 187614669
A39: SOUTHWEST HORIZON | B39: 26884900 | C39: =-Data!L39 -> -301000 | D39: 26583900 | E39: =-'- 15 -'!H39-'- 16 -'!B39 -> -200100 | F39: 26383800
A40: ST. JAMES-ASSINIBOIA | B40: 141909111 | C40: =-Data!L40 -> -391000 | D40: 141518111 | E40: =-'- 15 -'!H40-'- 16 -'!B40 -> -1193128 | F40: 140324983
A41: SUNRISE | B41: 86671423 | C41: =-Data!L41 -> -765000 | D41: 85906423 | E41: =-'- 15 -'!H41-'- 16 -'!B41 -> -1215281 | F41: 84691142
A42: SWAN VALLEY | B42: 26262899 | C42: =-Data!L42 -> -157954 | D42: 26104945 | E42: =-'- 15 -'!H42-'- 16 -'!B42 -> -43741 | F42: 26061204
A43: TURTLE MOUNTAIN | B43: 17730452 | C43: =-Data!L43 -> -47450 | D43: 17683002 | E43: =-'- 15 -'!H43-'- 16 -'!B43 -> -233288 | F43: 17449714
A44: TURTLE RIVER | B44: 13341847 | C44: =-Data!L44 -> -169634 | D44: 13172213 | E44: =-'- 15 -'!H44-'- 16 -'!B44 -> -35161 | F44: 13137052
A45: WESTERN | B45: 33090846 | C45: =-Data!L45 -> -114500 | D45: 32976346 | E45: =-'- 15 -'!H45-'- 16 -'!B45 -> -543356 | F45: 32432990
A46: WINNIPEG | B46: 523587807 | C46: =-Data!L46 -> -2575250 | D46: 521012557 | E46: =-'- 15 -'!H46-'- 16 -'!B46 -> -9289078 | F46: 511723479
A48: PROVINCE | B48: =SUM(B11:B46) -> 3228786869 | C48: =SUM(C11:C46) -> -19240983 | D48: =SUM(D11:D46) -> 3209545886 | E48: =SUM(E11:E46) -> -34813965 | F48: =SUM(F11:F46) -> 3174731921 | I48: 0
A50: WHITESHELL | B50: 4340874 | C50: =-Data!L50 -> -37000 | D50: =B50+C50 -> 4303874 | E50: =-'- 15 -'!H50-'- 16 -'!B50 -> -325600 | F50: =D50+E50 -> 3978274
A52: (1) Total operating expenses as reported on the Schedule of Revenues and Expenses in each school division's budget.
A53: (2) Operating fund transfers are payments to other school divisions, organizations and individuals. These are removed to provide more
A54: accurate per pupil costs.
A55: (3) As reported on pages 10 and 13 (on a provincial basis).
A56: (4) Expenses for Adult Learning Centres and Community Education and Services (Functions 300 and 400).
A57: (5) As reported on page 4.

Sheet - 4 -
A2: =IF(Lang=1,BA2,BB2) -> OPERATING FUND EXPENSE PER PUPIL | BA2: OPERATING FUND EXPENSE PER PUPIL | BB2: DÉPENSES DU FONDS DE FONCTIONNEMENT PAR ÉLÈVE
A3: 2023/24 and 2024/25 BUDGET
B7: =YEAR-1&"/"&YEAR&" BUDGET" -> 2024/2025 BUDGET | D7: =YEAR&"/"&YEAR+1&" BUDGET" -> 2025/2026 BUDGET
A9: DIVISION / DISTRICT | B9: EXPENSES (1) | C9: PER PUPIL | D9: EXPENSES (1) | E9: PER PUPIL
A11: BEAUTIFUL PLAINS | B11: 28502343 | C11: 12741 | D11: ='- 3 -'!F11 -> 30412355 | E11: =ROUND(D11/'- 7 -'!E11,0) -> 13623 | F11: =IF(B11=D11,"Check","") -> 
A12: BORDER LAND | B12: 39609287 | C12: 19469 | D12: ='- 3 -'!F12 -> 41105594 | E12: =ROUND(D12/'- 7 -'!E12,0) -> 20184 | F12: =IF(B12=D12,"Check","") -> 
A13: BRANDON | B13: 131929185 | C13: 13945 | D13: ='- 3 -'!F13 -> 139831670 | E13: =ROUND(D13/'- 7 -'!E13,0) -> 14140
A14: DSFM | B14: 117584768 | C14: 19036 | D14: ='- 3 -'!F14 -> 126823477 | E14: =ROUND(D14/'- 7 -'!E14,0) -> 19578
A15: EVERGREEN | B15: 24827428 | C15: 17785 | D15: ='- 3 -'!F15 -> 26275165 | E15: =ROUND(D15/'- 7 -'!E15,0) -> 18835
A16: FLIN FLON | B16: 18028695 | C16: 22621 | D16: ='- 3 -'!F16 -> 18480703 | E16: =ROUND(D16/'- 7 -'!E16,0) -> 22929
A17: FORT LA BOSSE | B17: 22543045 | C17: 14460 | D17: ='- 3 -'!F17 -> 23348697 | E17: =ROUND(D17/'- 7 -'!E17,0) -> 15271
A18: FRONTIER | B18: 170919960 | C18: 26287 | D18: ='- 3 -'!F18 -> 169336214 | E18: =ROUND(D18/'- 7 -'!E18,0) -> 28017
A19: GARDEN VALLEY | B19: 58761592 | C19: 13830 | D19: ='- 3 -'!F19 -> 62381929 | E19: =ROUND(D19/'- 7 -'!E19,0) -> 14709
A20: HANOVER | B20: 115520800 | C20: 13560 | D20: ='- 3 -'!F20 -> 117894300 | E20: =ROUND(D20/'- 7 -'!E20,0) -> 13627
A21: INTERLAKE | B21: 44572914 | C21: 15574 | D21: ='- 3 -'!F21 -> 49402626 | E21: =ROUND(D21/'- 7 -'!E21,0) -> 17488
A22: KELSEY | B22: 23428191 | C22: 16360 | D22: ='- 3 -'!F22 -> 24228621 | E22: =ROUND(D22/'- 7 -'!E22,0) -> 16919
A23: LAKESHORE | B23: 17824311 | C23: 18281 | D23: ='- 3 -'!F23 -> 18264855 | E23: =ROUND(D23/'- 7 -'!E23,0) -> 17995
A24: LORD SELKIRK | B24: 68322167 | C24: 18137 | D24: ='- 3 -'!F24 -> 73917792 | E24: =ROUND(D24/'- 7 -'!E24,0) -> 18586
A25: LOUIS RIEL | B25: 239917294 | C25: 14107 | D25: ='- 3 -'!F25 -> 267203421 | E25: =ROUND(D25/'- 7 -'!E25,0) -> 15491
A26: MOUNTAIN VIEW | B26: 49688363 | C26: 15967 | D26: ='- 3 -'!F26 -> 52263162 | E26: =ROUND(D26/'- 7 -'!E26,0) -> 17093
A27: MYSTERY LAKE | B27: 50135306 | C27: 17776 | D27: ='- 3 -'!F27 -> 52534967 | E27: =ROUND(D27/'- 7 -'!E27,0) -> 18159
A28: PARK WEST | B28: 34319850 | C28: 15657 | D28: ='- 3 -'!F28 -> 36388382 | E28: =ROUND(D28/'- 7 -'!E28,0) -> 16351
A29: PEMBINA TRAILS | B29: 220728020 | C29: 13327 | D29: ='- 3 -'!F29 -> 243972218 | E29: =ROUND(D29/'- 7 -'!E29,0) -> 13667
A30: PINE CREEK | B30: 19612463 | C30: 18270 | D30: ='- 3 -'!F30 -> 21350442 | E30: =ROUND(D30/'- 7 -'!E30,0) -> 19954
A31: PORTAGE LA PRAIRIE | B31: 49683368 | C31: 14699 | D31: ='- 3 -'!F31 -> 53267931 | E31: =ROUND(D31/'- 7 -'!E31,0) -> 15447
A32: PRAIRIE ROSE | B32: 36516850 | C32: 15781 | D32: ='- 3 -'!F32 -> 41185157 | E32: =ROUND(D32/'- 7 -'!E32,0) -> 17791
A33: PRAIRIE SPIRIT | B33: 32961547 | C33: 15331 | D33: ='- 3 -'!F33 -> 34698569 | E33: =ROUND(D33/'- 7 -'!E33,0) -> 15913
A34: RED RIVER VALLEY | B34: 37812992 | C34: 16132 | D34: ='- 3 -'!F34 -> 40266918 | E34: =ROUND(D34/'- 7 -'!E34,0) -> 17245
A35: RIVER EAST TRANSCONA | B35: 248677419 | C35: 13696 | D35: ='- 3 -'!F35 -> 264886064 | E35: =ROUND(D35/'- 7 -'!E35,0) -> 14320
A36: ROLLING RIVER | B36: 27909385 | C36: 15925 | D36: ='- 3 -'!F36 -> 29064395 | E36: =ROUND(D36/'- 7 -'!E36,0) -> 16183
A37: SEINE RIVER | B37: 64686635 | C37: 14637 | D37: ='- 3 -'!F37 -> 76127264 | E37: =ROUND(D37/'- 7 -'!E37,0) -> 15562
A38: SEVEN OAKS | B38: 174657286 | C38: 14767 | D38: ='- 3 -'!F38 -> 187614669 | E38: =ROUND(D38/'- 7 -'!E38,0) -> 15602
A39: SOUTHWEST HORIZON | B39: 26091500 | C39: 18316 | D39: ='- 3 -'!F39 -> 26383800 | E39: =ROUND(D39/'- 7 -'!E39,0) -> 18476
A40: ST. JAMES-ASSINIBOIA | B40: 128740523 | C40: 15980 | D40: ='- 3 -'!F40 -> 140324983 | E40: =ROUND(D40/'- 7 -'!E40,0) -> 16862
A41: SUNRISE | B41: 79184337 | C41: 17164 | D41: ='- 3 -'!F41 -> 84691142 | E41: =ROUND(D41/'- 7 -'!E41,0) -> 19312
A42: SWAN VALLEY | B42: 27355292 | C42: 19737 | D42: ='- 3 -'!F42 -> 26061204 | E42: =ROUND(D42/'- 7 -'!E42,0) -> 19030
A43: TURTLE MOUNTAIN | B43: 15826990 | C43: 15030 | D43: ='- 3 -'!F43 -> 17449714 | E43: =ROUND(D43/'- 7 -'!E43,0) -> 16098
A44: TURTLE RIVER | B44: 12724215 | C44: 21049 | D44: ='- 3 -'!F44 -> 13137052 | E44: =ROUND(D44/'- 7 -'!E44,0) -> 22456
A45: WESTERN | B45: 30155386 | C45: 13284 | D45: ='- 3 -'!F45 -> 32432990 | E45: =ROUND(D45/'- 7 -'!E45,0) -> 13679
A46: WINNIPEG | B46: 465650076 | C46: 16389 | D46: ='- 3 -'!F46 -> 511723479 | E46: =ROUND(D46/'- 7 -'!E46,0) -> 17922
A48: PROVINCE | B48: 2955409783 | C48: 15645 | D48: =SUM(D11:D46) -> 3174731921 | E48: =ROUND(D48/'- 7 -'!E48,0) -> 16493
A50: WHITESHELL | B50: 3945924 | C50: 22875 | D50: ='- 3 -'!F50 -> 3978274 | E50: =ROUND(D50/'- 7 -'!E50,0) -> 20092
A52: (1) Operating fund transfers (i.e. payments to other school divisions, organizations and individuals) are excluded to provide more accurate per pupil costs. Also excluded are expenditures on educational services not provided to K-12 pupils: Function 300 (Adult Learning Centres) and Function 400 (Community Education and Services).

Sheet - 5 -
AA3: =CURYEAR&" OPERATING FUND EXPENSE PER PUPIL" -> 2025/26 OPERATING FUND EXPENSE PER PUPIL
S24: - 5 -
W33: .

Sheet - 6 -
B2: =IF(Lang=1,BA2,BB2) -> FRAME STUDENT STATISTICS | H2: PAGE 1 OF 2 | BA2: FRAME STUDENT STATISTICS | BB2: STATISTIQUES SUR LES ÉLÈVES (SYSTÈME COMPTABLE FRAME)
B3: =IF(Lang=1,BA3,BB3) -> ESTIMATE SEPTEMBER 29, 2025 | BA3: ="ESTIMATE SEPTEMBER 29, "&YEAR -> ESTIMATE SEPTEMBER 29, 2025 | BB3: ="PRÉVISIONS AU 29 SEPTEMBRE "&YEAR -> PRÉVISIONS AU 29 SEPTEMBRE 2025
B6: REGULAR INSTRUCTION
B7: SINGLE TRACK (1) | E7: DUAL TRACK (2)
B8: ENGLISH LANGUAGE | C8: FRANÇAIS | D8: FRENCH IMMERSION | E8: ENGLISH LANGUAGE | F8: FRANÇAIS | G8: FRENCH IMMERSION | H8: OTHER BILINGUAL
A9: DIVISION / DISTRICT
A11: BEAUTIFUL PLAINS | B11: 2232.5 | C11: 0 | D11: 0 | E11: 0 | F11: 0 | G11: 0 | H11: 0
A12: BORDER LAND | B12: 1270.5 | C12: 0 | D12: 0 | E12: 500 | F12: 0 | G12: 128 | H12: 0
A13: BRANDON | B13: 7922 | C13: 0 | D13: 314 | E13: 798.5 | F13: 0 | G13: 396.5 | H13: 0
A14: DSFM | B14: 0 | C14: 6441.9 | D14: 0 | E14: 0 | F14: 0 | G14: 0 | H14: 0
A15: EVERGREEN | B15: 1375 | C15: 0 | D15: 0 | E15: 0 | F15: 0 | G15: 0 | H15: 0
A16: FLIN FLON | B16: 510 | C16: 0 | D16: 0 | E16: 218 | F16: 0 | G16: 78 | H16: 0
A17: FORT LA BOSSE | B17: 1454 | C17: 0 | D17: 0 | E17: 0 | F17: 0 | G17: 0 | H17: 0
A18: FRONTIER | B18: 5836 | C18: 0 | D18: 0 | E18: 0 | F18: 0 | G18: 0 | H18: 0
A19: GARDEN VALLEY | B19: 4141 | C19: 0 | D19: 0 | E19: 0 | F19: 0 | G19: 0 | H19: 0
A20: HANOVER | B20: 8054.6 | C20: 0 | D20: 0 | E20: 0 | F20: 0 | G20: 0 | H20: 0
A21: INTERLAKE | B21: 1517 | C21: 0 | D21: 0 | E21: 886.5 | F21: 0 | G21: 421.5 | H21: 0
A22: KELSEY | B22: 813.6 | C22: 0 | D22: 0 | E22: 436 | F22: 0 | G22: 168 | H22: 0
A23: LAKESHORE | B23: 1000 | C23: 0 | D23: 0 | E23: 0 | F23: 0 | G23: 0 | H23: 0
A24: LORD SELKIRK | B24: 2781 | C24: 0 | D24: 199 | E24: 616.5 | F24: 0 | G24: 97 | H24: 78.5
A25: LOUIS RIEL | B25: 11387 | C25: 0 | D25: 5696 | E25: 0 | F25: 0 | G25: 0 | H25: 0
A26: MOUNTAIN VIEW | B26: 2295.5 | C26: 0 | D26: 125 | E26: 345 | F26: 0 | G26: 66 | H26: 62
A27: MYSTERY LAKE | B27: 2389.7 | C27: 0 | D27: 0 | E27: 177 | F27: 0 | G27: 182 | H27: 0
A28: PARK WEST | B28: 2225.5 | C28: 0 | D28: 0 | E28: 0 | F28: 0 | G28: 0 | H28: 0
A29: PEMBINA TRAILS | B29: 14311 | C29: 0 | D29: 3540 | E29: 0 | F29: 0 | G29: 0 | H29: 0
A30: PINE CREEK | B30: 993 | C30: 0 | D30: 0 | E30: 0 | F30: 0 | G30: 0 | H30: 0
A31: PORTAGE LA PRAIRIE | B31: 2919 | C31: 0 | D31: 419.5 | E31: 0 | F31: 0 | G31: 0 | H31: 0
A32: PRAIRIE ROSE | B32: 1678.5 | C32: 0 | D32: 118.5 | E32: 315.5 | F32: 0 | G32: 202.5 | H32: 0
A33: PRAIRIE SPIRIT | B33: 1708 | C33: 0 | D33: 0 | E33: 244 | F33: 137.5 | G33: 91 | H33: 0
A34: RED RIVER VALLEY | B34: 1779 | C34: 0 | D34: 332.5 | E34: 94 | F34: 110 | G34: 0 | H34: 0
A35: RIVER EAST TRANSCONA | B35: 8809 | C35: 0 | D35: 1648 | E35: 4602.5 | F35: 0 | G35: 1966.5 | H35: 548
A36: ROLLING RIVER | B36: 1791 | C36: 0 | D36: 0 | E36: 0 | F36: 0 | G36: 0 | H36: 0
A37: SEINE RIVER | B37: 2398.5 | C37: 0 | D37: 851.5 | E37: 903.5 | F37: 0 | G37: 738.5 | H37: 0
A38: SEVEN OAKS | B38: 7297 | C38: 0 | D38: 1193.3 | E38: 1771.4 | F38: 0 | G38: 1315.2 | H38: 226.2
A39: SOUTHWEST HORIZON | B39: 1428 | C39: 0 | D39: 0 | E39: 0 | F39: 0 | G39: 0 | H39: 0
A40: ST. JAMES-ASSINIBOIA | B40: 5729 | C40: 0 | D40: 1293 | E40: 627.14 | F40: 0 | G40: 416 | H40: 0
A41: SUNRISE | B41: 1552 | C41: 0 | D41: 0 | E41: 1918.5 | F41: 0 | G41: 828 | H41: 87
A42: SWAN VALLEY | B42: 960 | C42: 0 | D42: 0 | E42: 208.2 | F42: 0 | G42: 42.8 | H42: 0
A43: TURTLE MOUNTAIN | B43: 1045 | C43: 0 | D43: 0 | E43: 0 | F43: 0 | G43: 0 | H43: 0
A44: TURTLE RIVER | B44: 557.5 | C44: 0 | D44: 27.5 | E44: 0 | F44: 0 | G44: 0 | H44: 0
A45: WESTERN | B45: 438.5 | C45: 0 | D45: 0 | E45: 1445.5 | F45: 0 | G45: 459 | H45: 0
A46: WINNIPEG | B46: 17990.9 | C46: 0 | D46: 1382.4 | E46: 5010.5 | F46: 0 | G46: 2868.5 | H46: 599.7
A48: PROVINCE | B48: =SUM(B11:B46) -> 130589.8 | C48: =SUM(C11:C46) -> 6441.9 | D48: 17140.2 | E48: 21118.24 | F48: 247.5 | G48: 10465 | H48: 1601.4
A50: WHITESHELL | B50: 198 | D50: 0 | E50: 0 | F50: 0 | G50: 0 | H50: 0
A52: (1) 90% or more of Regular Instruction enrolment is in one language program.
A53: (2) No one language program comprises 90% or more of Regular Instruction enrolment.

Sheet - 7 -
B2: =+'- 6 -'!B2 -> FRAME STUDENT STATISTICS | F2: PAGE 2 OF 2
B3: =+STATDATE -> ESTIMATE SEPTEMBER 29, 2025
B6: REGULAR INSTRUCTION (1) | E6: TOTAL
B8: SENIOR YEARS TECHNOLOGY | C8: TOTAL | E8: K-12 FTE ENROLMENT
A9: DIVISION / DISTRICT
A11: BEAUTIFUL PLAINS | B11: 0 | C11: =SUM('- 6 -'!$B11:H11,B11) -> 2232.5 | E11: =C11 -> 2232.5
A12: BORDER LAND | B12: 138 | C12: =SUM('- 6 -'!$B12:H12,B12) -> 2036.5 | E12: =C12 -> 2036.5
A13: BRANDON | B13: 458 | C13: =SUM('- 6 -'!$B13:H13,B13) -> 9889 | E13: 9889
A14: DSFM | B14: 36.1 | C14: =SUM('- 6 -'!$B14:H14,B14) -> 6478 | E14: 6478
A15: EVERGREEN | B15: 20 | C15: =SUM('- 6 -'!$B15:H15,B15) -> 1395 | E15: 1395
A16: FLIN FLON | B16: 0 | C16: =SUM('- 6 -'!$B16:H16,B16) -> 806 | E16: 806
A17: FORT LA BOSSE | B17: 75 | C17: =SUM('- 6 -'!$B17:H17,B17) -> 1529 | E17: 1529
A18: FRONTIER | B18: 208 | C18: =SUM('- 6 -'!$B18:H18,B18) -> 6044 | E18: 6044
A19: GARDEN VALLEY | B19: 100 | C19: =SUM('- 6 -'!$B19:H19,B19) -> 4241 | E19: 4241
A20: HANOVER | B20: 596.9 | C20: =SUM('- 6 -'!$B20:H20,B20) -> 8651.5 | E20: 8651.5
A21: INTERLAKE | B21: 0 | C21: =SUM('- 6 -'!$B21:H21,B21) -> 2825 | E21: 2825
A22: KELSEY | B22: 14.4 | C22: =SUM('- 6 -'!$B22:H22,B22) -> 1432 | E22: 1432
A23: LAKESHORE | B23: 15 | C23: =SUM('- 6 -'!$B23:H23,B23) -> 1015 | E23: 1015
A24: LORD SELKIRK | B24: 205 | C24: =SUM('- 6 -'!$B24:H24,B24) -> 3977 | E24: 3977
A25: LOUIS RIEL | B25: 166 | C25: =SUM('- 6 -'!$B25:H25,B25) -> 17249 | E25: 17249
A26: MOUNTAIN VIEW | B26: 164 | C26: =SUM('- 6 -'!$B26:H26,B26) -> 3057.5 | E26: 3057.5
A27: MYSTERY LAKE | B27: 144.29 | C27: =SUM('- 6 -'!$B27:H27,B27) -> 2892.99 | E27: 2892.99
A28: PARK WEST | B28: 0 | C28: =SUM('- 6 -'!$B28:H28,B28) -> 2225.5 | E28: 2225.5
A29: PEMBINA TRAILS | B29: 0 | C29: =SUM('- 6 -'!$B29:H29,B29) -> 17851 | E29: 17851
A30: PINE CREEK | B30: 77 | C30: =SUM('- 6 -'!$B30:H30,B30) -> 1070 | E30: 1070
A31: PORTAGE LA PRAIRIE | B31: 110 | C31: =SUM('- 6 -'!$B31:H31,B31) -> 3448.5 | E31: 3448.5
A32: PRAIRIE ROSE | B32: 0 | C32: =SUM('- 6 -'!$B32:H32,B32) -> 2315 | E32: 2315
A33: PRAIRIE SPIRIT | B33: 0 | C33: =SUM('- 6 -'!$B33:H33,B33) -> 2180.5 | E33: 2180.5
A34: RED RIVER VALLEY | B34: 19.5 | C34: =SUM('- 6 -'!$B34:H34,B34) -> 2335 | E34: 2335
A35: RIVER EAST TRANSCONA | B35: 924 | C35: =SUM('- 6 -'!$B35:H35,B35) -> 18498 | E35: 18498
A36: ROLLING RIVER | B36: 5 | C36: =SUM('- 6 -'!$B36:H36,B36) -> 1796 | E36: 1796
A37: SEINE RIVER | B37: 0 | C37: =SUM('- 6 -'!$B37:H37,B37) -> 4892 | E37: 4892
A38: SEVEN OAKS | B38: 221.7 | C38: =SUM('- 6 -'!$B38:H38,B38) -> 12024.8 | E38: 12024.8
A39: SOUTHWEST HORIZON | B39: 0 | C39: =SUM('- 6 -'!$B39:H39,B39) -> 1428 | E39: 1428
A40: ST. JAMES-ASSINIBOIA | B40: 256.86 | C40: =SUM('- 6 -'!$B40:H40,B40) -> 8322 | E40: 8322
A41: SUNRISE | B41: 0 | C41: =SUM('- 6 -'!$B41:H41,B41) -> 4385.5 | E41: 4385.5
A42: SWAN VALLEY | B42: 158.5 | C42: =SUM('- 6 -'!$B42:H42,B42) -> 1369.5 | E42: 1369.5
A43: TURTLE MOUNTAIN | B43: 39 | C43: =SUM('- 6 -'!$B43:H43,B43) -> 1084 | E43: 1084
A44: TURTLE RIVER | B44: 0 | C44: =SUM('- 6 -'!$B44:H44,B44) -> 585 | E44: 585
A45: WESTERN | B45: 28 | C45: =SUM('- 6 -'!$B45:H45,B45) -> 2371 | E45: 2371
A46: WINNIPEG | B46: 700.6 | C46: =SUM('- 6 -'!$B46:H46,B46) -> 28552.6 | E46: 28552.6
A48: PROVINCE | B48: =SUM(B11:B46) -> 4880.85 | C48: =SUM(C11:C46) -> 192484.89 | E48: =SUM(E11:E46) -> 192484.89
A50: WHITESHELL | B50: 0 | C50: =SUM('- 6 -'!$B50:H50,B50) -> 198 | E50: =C50 -> 198
A52: (1) Special Placement students are not reported separately. They are included in Regular Instruction Enrolment. As a result, total enrolment in Regular Instruction is equal to Total K-12 FTE enrolment.

Sheet - 8 -
A2: =IF(Lang=1,BA2,BB2) -> ENROLMENTS - HEADCOUNT, FRAME AND ELIGIBLE | BA2: ENROLMENTS - HEADCOUNT, FRAME AND ELIGIBLE | BB2: INSCRIPTIONS – ÉLÈVES PRÉSENTS, SELON LE SYSTÈME COMPTABLE FRAME, ET ADMISSIBLES
BA3: ACTUAL AND ESTIMATES AS OF SEPTEMBER 29 | BB3: CHIFFRES RÉELS ET PRÉVISIONS AU 29 SEPTEMBRE
B5: HEADCOUNT (1) | E5: FRAME (2) | F5: ELIGIBLE (3) | G5: ELIGIBLE (3)
B6: ="ACTUAL SEP. 29, "&FAllYR-1 -> ACTUAL SEP. 29, 2024 | E6: ="ESTIMATE SEP. 29, "&FAllYR -> ESTIMATE SEP. 29, 2025 | F6: ="SEP. 29, "&FAllYR-1 -> SEP. 29, 2024 | G6: ="SEP. 29, "&FAllYR-2 -> SEP. 29, 2023
B8: N-12 ENROLMENT | C8: NURSERY ENROLMENT | D8: K-12 ENROLMENT | E8: K-12 FTE ENROLMENT | F8: K-12 ENROLMENT | G8: K-12 ENROLMENT
A9: DIVISION / DISTRICT
A11: BEAUTIFUL PLAINS | B11: 2295 | C11: 0 | D11: 2295 | E11: ='- 7 -'!E11 -> 2232.5 | F11: 2222.6 | G11: 2172.9
A12: BORDER LAND | B12: 2141 | C12: 0 | D12: 2141 | E12: ='- 7 -'!E12 -> 2036.5 | F12: 1979.8 | G12: 1966.6
A13: BRANDON | B13: 10003 | C13: 0 | D13: 10003 | E13: ='- 7 -'!E13 -> 9889 | F13: 9629.1 | G13: 9302.7
A14: DSFM | B14: 6361 | C14: 46 | D14: 6315 | E14: ='- 7 -'!E14 -> 6478 | F14: 6019.1 | G14: 5791.5
A15: EVERGREEN | B15: 1451 | C15: 0 | D15: 1451 | E15: ='- 7 -'!E15 -> 1395 | F15: 1398.5 | G15: 1401.1
A16: FLIN FLON | B16: 845 | C16: 0 | D16: 845 | E16: ='- 7 -'!E16 -> 806 | F16: 798.7 | G16: 812.4
A17: FORT LA BOSSE | B17: 1606 | C17: 0 | D17: 1606 | E17: ='- 7 -'!E17 -> 1529 | F17: 1458 | G17: 1429
A18: FRONTIER | B18: 6806 | C18: 380 | D18: 6426 | E18: ='- 7 -'!E18 -> 6044 | F18: 1890.7 | G18: 1895.6
A19: GARDEN VALLEY | B19: 4219 | C19: 0 | D19: 4219 | E19: ='- 7 -'!E19 -> 4241 | F19: 4075.6 | G19: 4079.3
A20: HANOVER | B20: 8934 | C20: 0 | D20: 8934 | E20: ='- 7 -'!E20 -> 8651.5 | F20: 8617.4 | G20: 8419.1
A21: INTERLAKE | B21: 3000 | C21: 0 | D21: 3000 | E21: ='- 7 -'!E21 -> 2825 | F21: 2892.5 | G21: 2889
A22: KELSEY | B22: 1485 | C22: 0 | D22: 1485 | E22: ='- 7 -'!E22 -> 1432 | F22: 1429.3 | G22: 1388.5
A23: LAKESHORE | B23: 1043 | C23: 0 | D23: 1043 | E23: ='- 7 -'!E23 -> 1015 | F23: 989 | G23: 956.5
A24: LORD SELKIRK | B24: 4025 | C24: 0 | D24: 4025 | E24: ='- 7 -'!E24 -> 3977 | F24: 3816.9 | G24: 3713.6
A25: LOUIS RIEL | B25: 17571 | C25: 0 | D25: 17571 | E25: ='- 7 -'!E25 -> 17249 | F25: 16756.5 | G25: 16234.3
A26: MOUNTAIN VIEW | B26: 3093 | C26: 0 | D26: 3093 | E26: ='- 7 -'!E26 -> 3057.5 | F26: 2873.7 | G26: 2905.8
A27: MYSTERY LAKE | B27: 2881 | C27: 0 | D27: 2881 | E27: ='- 7 -'!E27 -> 2892.99 | F27: 2726.8 | G27: 2773.5
A28: PARK WEST | B28: 2302 | C28: 37 | D28: 2265 | E28: ='- 7 -'!E28 -> 2225.5 | F28: 1669.2 | G28: 1592
A29: PEMBINA TRAILS | B29: 17459 | C29: 0 | D29: 17459 | E29: ='- 7 -'!E29 -> 17851 | F29: 16670.7 | G29: 15982.5
A30: PINE CREEK | B30: 1125 | C30: 0 | D30: 1125 | E30: ='- 7 -'!E30 -> 1070 | F30: 1035.5 | G30: 1019.7
A31: PORTAGE LA PRAIRIE | B31: 3459 | C31: 0 | D31: 3459 | E31: ='- 7 -'!E31 -> 3448.5 | F31: 3097.2 | G31: 3030.7
A32: PRAIRIE ROSE | B32: 2348 | C32: 0 | D32: 2348 | E32: ='- 7 -'!E32 -> 2315 | F32: 2269.5 | G32: 2266
A33: PRAIRIE SPIRIT | B33: 2288 | C33: 0 | D33: 2288 | E33: ='- 7 -'!E33 -> 2180.5 | F33: 2117.6 | G33: 2090
A34: RED RIVER VALLEY | B34: 2399 | C34: 0 | D34: 2399 | E34: ='- 7 -'!E34 -> 2335 | F34: 2311.6 | G34: 2269.6
A35: RIVER EAST TRANSCONA | B35: 18739 | C35: 0 | D35: 18739 | E35: ='- 7 -'!E35 -> 18498 | F35: 18015.3 | G35: 17682.6
A36: ROLLING RIVER | B36: 1800 | C36: 0 | D36: 1800 | E36: ='- 7 -'!E36 -> 1796 | F36: 1635 | G36: 1620.1
A37: SEINE RIVER | B37: 4928 | C37: 0 | D37: 4928 | E37: ='- 7 -'!E37 -> 4892 | F37: 4733.5 | G37: 4596.7
A38: SEVEN OAKS | B38: 12397 | C38: 0 | D38: 12397 | E38: ='- 7 -'!E38 -> 12024.8 | F38: 11881 | G38: 11737
A39: SOUTHWEST HORIZON | B39: 1476 | C39: 0 | D39: 1476 | E39: ='- 7 -'!E39 -> 1428 | F39: 1426.9 | G39: 1431.5
A40: ST. JAMES-ASSINIBOIA | B40: 8501 | C40: 0 | D40: 8501 | E40: ='- 7 -'!E40 -> 8322 | F40: 8069.1 | G40: 7936.5
A41: SUNRISE | B41: 4807 | C41: 0 | D41: 4807 | E41: ='- 7 -'!E41 -> 4385.5 | F41: 4588.8 | G41: 4559.5
A42: SWAN VALLEY | B42: 1445 | C42: 0 | D42: 1445 | E42: ='- 7 -'!E42 -> 1369.5 | F42: 1301.4 | G42: 1321.7
A43: TURTLE MOUNTAIN | B43: 1148 | C43: 0 | D43: 1148 | E43: ='- 7 -'!E43 -> 1084 | F43: 1101 | G43: 1057
A44: TURTLE RIVER | B44: 615 | C44: 3 | D44: 612 | E44: ='- 7 -'!E44 -> 585 | F44: 589.5 | G44: 611.5
A45: WESTERN | B45: 2332 | C45: 0 | D45: 2332 | E45: ='- 7 -'!E45 -> 2371 | F45: 2256.5 | G45: 2138.8
A46: WINNIPEG | B46: 31604 | C46: 1220 | D46: 30384 | E46: ='- 7 -'!E46 -> 28552.6 | F46: 28552.6 | G46: 27795.1
A48: PROVINCE | B48: =SUM(B11:B46) -> 198931 | C48: 1686 | D48: 197245 | E48: 192484.89 | F48: =SUM(F11:F46) -> 182896.1 | G48: 178869.9
A50: WHITESHELL | B50: 222 | C50: 13 | D50: 209 | E50: ='- 7 -'!E50 -> 198 | F50: 197 | G50: 172.5
A52: (1) Pupils taught in schools, whether or not they are counted for grant purposes.
A53: (2) The total number of pupils enrolled in schools adjusted for full time equivalence (FTE). Full time equivalent means pupils are counted on the basis of time attending school - eg. Kindergarten as 1/2. This total is the same as reported on page 7.
A55: ="(3) Provincially supported pupils (actual September 29, "&FAllYR-1&" for "&FAllYR&"/"&RIGHT(SpringYR,2)&" and actual September 29, "&FAllYR-2&" for "&FAllYR-1&"/"&RIGHT(FAllYR,2)&")." -> (3) Provincially supported pupils (actual September 29, 2024 for 2025/26 and actual September 29, 2023 for 2024/25).

Sheet - 9 -
B2: =IF(Lang=1,BA2,BB2) -> PUPIL / TEACHER RATIOS | BA2: PUPIL / TEACHER RATIOS | BB2: RAPPORTS ÉLÈVES-ENSEIGNANT
B3: =STATDATE -> ESTIMATE SEPTEMBER 29, 2025
B7: FRAME PUPIL / TEACHER RATIOS
B8: REGULAR INSTRUCTION (1) | C8: EDUCATOR (2)
A9: DIVISION / DISTRICT
A11: BEAUTIFUL PLAINS | B11: 16.30990649 | C11: 13.98984835
A12: BORDER LAND | B12: 11.75129833 | C12: 9.567770731
A13: BRANDON | B13: 16.81716919 | C13: 13.3638747
A14: DSFM | B14: 14.70401307 | C14: 11.73720829
A15: EVERGREEN | B15: 13.49782293 | C15: 11.08462455
A16: FLIN FLON | B16: 13.26748971 | C16: 10.60526316
A17: FORT LA BOSSE | B17: 14.26971535 | C17: 12.70461155
A18: FRONTIER | B18: 13.40990261 | C18: 10.6550061
A19: GARDEN VALLEY | B19: 17.10080645 | C19: 13.8912545
A20: HANOVER | B20: 18.02583602 | C20: 14.54058051
A21: INTERLAKE | B21: 16.45982637 | C21: 12.29062432
A22: KELSEY | B22: 16.25610171 | C22: 12.21426134
A23: LAKESHORE | B23: 14.71014493 | C23: 12.28070175
A24: LORD SELKIRK | B24: 14.51459854 | C24: 11.6201607
A25: LOUIS RIEL | B25: 18.09011813 | C25: 13.65809548
A26: MOUNTAIN VIEW | B26: 15.89963599 | C26: 12.89159674
A27: MYSTERY LAKE | B27: 15.83031464 | C27: 12.2714316
A28: PARK WEST | B28: 14.67978866 | C28: 12.00539447
A29: PEMBINA TRAILS | B29: 18.3440024 | C29: 14.877946
A30: PINE CREEK | B30: 11.43406711 | C30: 10.12490537
A31: PORTAGE LA PRAIRIE | B31: 15.4295302 | C31: 12.43061063
A32: PRAIRIE ROSE | B32: 14.13308913 | C32: 11.30481492
A33: PRAIRIE SPIRIT | B33: 16.23482987 | C33: 12.73284672
A34: RED RIVER VALLEY | B34: 15.66798631 | C34: 12.52615203
A35: RIVER EAST TRANSCONA | B35: 17.72212535 | C35: 13.47317819
A36: ROLLING RIVER | B36: 16.79367899 | C36: 13.658314
A37: SEINE RIVER | B37: 18.06165774 | C37: 14.60516495
A38: SEVEN OAKS | B38: 16.74926525 | C38: 13.6194568
A39: SOUTHWEST HORIZON | B39: 14.36764262 | C39: 11.75889328
A40: ST. JAMES-ASSINIBOIA | B40: 17.59705658 | C40: 13.48762581
A41: SUNRISE | B41: 15.19156159 | C41: 11.82936369
A42: SWAN VALLEY | B42: 16.3424821 | C42: 12.75020948
A43: TURTLE MOUNTAIN | B43: 15.45480468 | C43: 12.85273891
A44: TURTLE RIVER | B44: 11.32623427 | C44: 9.845169976
A45: WESTERN | B45: 17.38907224 | C45: 14.15353391
A46: WINNIPEG | B46: 16.16136117 | C46: 12.84694851
A48: PROVINCE | B48: 16.42634685 | C48: 13.03627237
A50: WHITESHELL | B50: 12.07317073 | C50: 9.620991254
A52: (1) Based on object code 330 instructional-teaching personnel and FTE students in Function 100. Included are teachers in physical education, music, EAL, etc. in addition to regular classroom teachers. School-based administrative personnel and Special Placement classroom teachers are excluded.
A55: (2) Based on total instructional-teaching (excluding Community Education and Adult Learning Centres) as well as school-based administrative staff - eg. department heads, coordinators, principals and vice-principals - and K-12 FTE enrolment. Division administrators (Function 500) are excluded.

Sheet - 10 -
F2: =IF(Lang=1,BA2,BB2) -> TOTAL EXPENSE BY FUNCTION AND OBJECT | BA2: TOTAL EXPENSE BY FUNCTION AND OBJECT | BB2: DÉPENSES PAR FONCTION ET PAR OBJET
F3: =OPYEAR -> OPERATING FUND 2025/2026 BUDGET
C5: OBJECT
C7: SALARIES | D7: EMPLOYEE BENEFITS | E7: SERVICES | F7: SUPPLIES AND MATERIALS | G7: DEBT SERVICES | H7: BAD DEBT EXPENSE | I7: TRANSFERS | K7: TOTALS
A8: FUNCTION | N8: =IF($N$22=0,"","Variance") -> 
A10: 100 | B10: REGULAR INSTRUCTION | C10: ='- 12 -'!B22 -> 1529745286 | D10: ='- 12 -'!B23 -> 105384353 | E10: ='- 12 -'!B40 -> 42796558 | F10: ='- 12 -'!B46 -> 100862686 | K10: =SUM(C10:F10) -> 1778788883 | N10: =IF($N$22=0,"",K10-'- 12 -'!$B$51) -> 
A11: 200 | B11: STUDENT SUPPORT SERVICES | C11: ='- 12 -'!D22 -> 540514267 | D11: ='- 12 -'!D23 -> 62977115 | E11: ='- 12 -'!D40 -> 12854760 | F11: ='- 12 -'!D46 -> 5886442 | K11: =SUM(C11:F11) -> 622232584 | N11: =IF($N$22=0,"",K11-'- 12 -'!$D$51) -> 
A12: 300 | B12: ADULT LEARNING CENTRES | C12: ='- 12 -'!F22 -> 10509116 | D12: ='- 12 -'!F23 -> 1022208 | E12: ='- 12 -'!F40 -> 1101980 | F12: ='- 12 -'!F46 -> 387726 | I12: ='- 12 -'!F48 -> 27000 | J12: (1) | K12: =SUM(C12:F12,I12) -> 13048030 | N12: =IF($N$22=0,"",K12-'- 12 -'!$F$51) -> 
A13: 400 | B13: COMMUNITY EDUCATION & SERVICES | C13: ='- 12 -'!H22 -> 16374499 | D13: ='- 12 -'!H23 -> 2066045 | E13: ='- 12 -'!H40 -> 1629303 | F13: ='- 12 -'!H46 -> 1696088 | K13: =SUM(C13:F13) -> 21765935 | N13: =IF($N$22=0,"",K13-'- 12 -'!$H$51) -> 
A14: 500 | B14: DIVISIONAL ADMINISTRATION | C14: ='- 12 -'!J22 -> 64375594 | D14: ='- 12 -'!J23 -> 10200606 | E14: ='- 12 -'!J40 -> 23432370 | F14: ='- 12 -'!J46 -> 2894772 | I14: ='- 12 -'!J48 -> -27000 | J14: (1) | K14: =SUM(C14:F14,I14) -> 100876342 | N14: =IF($N$22=0,"",K14-'- 12 -'!$J$51) -> 
L15: - 10 -
A16: 600 | B16: INSTRUCTIONAL AND OTHER SUPPORT SERVICES | C16: ='- 13 -'!B22 -> 71894377 | D16: ='- 13 -'!B23 -> 8272959 | E16: ='- 13 -'!B40 -> 23111024 | F16: ='- 13 -'!B46 -> 20985131 | K16: =SUM(C16:F16) -> 124263491 | N16: =IF($N$22=0,"",K16-'- 13 -'!$B$54) -> 
A17: 700 | B17: TRANSPORTATION OF PUPILS | C17: ='- 13 -'!D22 -> 61818050 | D17: ='- 13 -'!D23 -> 10354980 | E17: ='- 13 -'!D40 -> 41859514 | F17: ='- 13 -'!D46 -> 26308081 | K17: =SUM(C17:F17) -> 140340625 | N17: =IF($N$22=0,"",K17-'- 13 -'!$D$54) -> 
A18: 800 | B18: OPERATIONS AND MAINTENANCE | C18: ='- 13 -'!F22 -> 153635291 | D18: ='- 13 -'!F23 -> 28474597 | E18: ='- 13 -'!F40 -> 139114139 | F18: ='- 13 -'!F46 -> 32100799 | I18: ='- 13 -'!F52 -> 0 | K18: =SUM(C18:F18,I18) -> 353324826 | N18: =IF($N$22=0,"",K18-'- 13 -'!$F$54) -> 
A19: 900 | B19: FISCAL | G19: 3529816 | H19: 4300185 | I19: 47075169 | J19: (2) | K19: =SUM(G19:I19) -> 54905170 | N19: =IF($N$22=0,"",K19-'- 13 -'!$H$54) -> 
B22: TOTALS | C22: =SUM(C10:C19) -> 2448866480 | D22: =SUM(D10:D19) -> 228752863 | E22: =SUM(E10:E19) -> 285899648 | F22: =SUM(F10:F19) -> 191121725 | G22: =G19 -> 3529816 | H22: =H19 -> 4300185 | I22: =SUM(I10:I19) -> 47075169 | K22: =SUM(K10:K19) -> 3209545886
A25: (1) | B25: Reallocation of administration costs associated with Adult Learning Centre operations from Function 500 to Function 300.
A26: (2) | B26: Reallocation of school building costs associated with Adult Learning Centre operations to Function 300
A27: (2) | B27: Health and Post Secondary Education Tax Levy

Sheet - 11 -
AA2: =CURYEAR&" OPERATING FUND EXPENSE BY OBJECT" -> 2025/26 OPERATING FUND EXPENSE BY OBJECT
U23: - 11 -

Sheet - 12 -
F2: =IF(Lang=1,BA2,BB2) -> EXPENSE BY 2ND LEVEL OBJECT | K2: PAGE 1 OF 2 | BA2: EXPENSE BY 2ND LEVEL OBJECT | BB2: DÉPENSES PAR OBJET DE DEUXIÈME CATÉGORIE EXPRIMÉES
F3: =OPYEAR -> OPERATING FUND 2025/2026 BUDGET | BA3: AS A PERCENTAGE OF TOTAL OPERATING FUND EXPENSES | BB3: EN POURCENTAGE DU TOTAL DES DÉPENSES DU FONDS DE FONCTIONNEMENT
B7: FUNCTION
B9: REGULAR INSTRUCTION | D9: STUDENT SUPPORT SERVICES | F9: ADULT LEARNING CENTRES | H9: COMMUNITY EDUCATION | J9: DIVISIONAL ADMINISTRATION
A11: OBJECT | B11: AMOUNT | C11: % | D11: AMOUNT | E11: % | F11: AMOUNT | G11: % | H11: AMOUNT | I11: % | J11: AMOUNT | K11: %
A13: SALARIES
A14: TRUSTEES REMUNERATION | J14: 4809133
A15: EXECUTIVE MANAGERIAL, & SUPERVISORY | B15: 127244917 | C15: =B15/'- 13 -'!$J$54*100 -> 3.964576969 | D15: 8667689 | E15: =D15/'- 13 -'!$J$54*100 -> 0.2700596691 | F15: 1103065 | G15: =F15/'- 13 -'!$J$54*100 -> 0.03436825767 | H15: 811254 | I15: =H15/'- 13 -'!$J$54*100 -> 0.02527628608 | J15: 27284997 | K15: =J15/'- 13 -'!$J$54*100 -> 0.8501201718
A16: INSTRUCTIONAL - TEACHING | B16: 1297969235 | C16: =B16/'- 13 -'!$J$54*100 -> 40.44089978 | D16: 202176659 | E16: =D16/'- 13 -'!$J$54*100 -> 6.299229429 | F16: 8276703 | G16: =F16/'- 13 -'!$J$54*100 -> 0.2578776965 | H16: 7332940 | I16: =H16/'- 13 -'!$J$54*100 -> 0.2284728202 | K16: =J16/'- 13 -'!$J$54*100 -> 0
A17: INSTRUCTIONAL - OTHER | B17: 27043268 | C17: =B17/'- 13 -'!$J$54*100 -> 0.8425886079 | D17: 259991261 | E17: =D17/'- 13 -'!$J$54*100 -> 8.100562205 | F17: 443400 | G17: =F17/'- 13 -'!$J$54*100 -> 0.01381503851 | H17: 5641420 | I17: =H17/'- 13 -'!$J$54*100 -> 0.1757700373 | K17: =J17/'- 13 -'!$J$54*100 -> 0
A18: TECHNICAL, SPECIALIZED AND SERVICE | B18: 9538192 | C18: =B18/'- 13 -'!$J$54*100 -> 0.2971819796 | D18: 2486781 | E18: =D18/'- 13 -'!$J$54*100 -> 0.07748077418 | F18: 16519 | G18: =F18/'- 13 -'!$J$54*100 -> 0.0005146834034 | H18: 1378624 | I18: =H18/'- 13 -'!$J$54*100 -> 0.04295386478 | J18: 10092742 | K18: =J18/'- 13 -'!$J$54*100 -> 0.3144601248
A19: SECRETARIAL, CLERICAL AND OTHER | B19: 50206325 | C19: =B19/'- 13 -'!$J$54*100 -> 1.564281265 | D19: 2899239 | E19: =D19/'- 13 -'!$J$54*100 -> 0.09033175106 | F19: 669429 | G19: =F19/'- 13 -'!$J$54*100 -> 0.02085743665 | H19: 751624 | I19: =H19/'- 13 -'!$J$54*100 -> 0.02341839085 | J19: 19671863 | K19: =J19/'- 13 -'!$J$54*100 -> 0.6129173316
A20: CLINICIAN | D20: 64235638 | E20: =D20/'- 13 -'!$J$54*100 -> 2.001393352 | H20: 458637
A21: INFORMATION TECHNOLOGY | B21: 17743349 | C21: =B21/'- 13 -'!$J$54*100 -> 0.5528305134 | D21: 57000 | E21: =D21/'- 13 -'!$J$54*100 -> 0.001775952176 | F21: 0 | G21: =F21/'- 13 -'!$J$54*100 -> 0 | H21: 0 | I21: =H21/'- 13 -'!$J$54*100 -> 0 | J21: 2516859 | K21: =J21/'- 13 -'!$J$54*100 -> 0.0784179161
A22: TOTAL SALARIES | B22: =SUM(B14:B21) -> 1529745286 | C22: =B22/'- 13 -'!$J$54*100 -> 47.66235911 | D22: =SUM(D14:D21) -> 540514267 | E22: =D22/'- 13 -'!$J$54*100 -> 16.84083313 | F22: =SUM(F14:F21) -> 10509116 | G22: =F22/'- 13 -'!$J$54*100 -> 0.3274331128 | H22: =SUM(H14:H21) -> 16374499 | I22: =H22/'- 13 -'!$J$54*100 -> 0.5101811777 | J22: =SUM(J14:J21) -> 64375594 | K22: =J22/'- 13 -'!$J$54*100 -> 2.005753969
A23: EMPLOYEE BENEFITS AND ALLOWANCES | B23: 105384353 | C23: =B23/'- 13 -'!$J$54*100 -> 3.283466158 | D23: 62977115 | E23: =D23/'- 13 -'!$J$54*100 -> 1.962181481 | F23: 1022208 | G23: =F23/'- 13 -'!$J$54*100 -> 0.03184899161 | H23: 2066045 | I23: =H23/'- 13 -'!$J$54*100 -> 0.06437187918 | J23: 10200606 | K23: =J23/'- 13 -'!$J$54*100 -> 0.3178208495
A24: SERVICES
A25: PROFESSIONAL, TECHNICAL & SPECIALIZED | B25: 9066126 | C25: =B25/'- 13 -'!$J$54*100 -> 0.2824737929 | D25: 7931699 | E25: =D25/'- 13 -'!$J$54*100 -> 0.2471283877 | F25: 59914 | G25: =F25/'- 13 -'!$J$54*100 -> 0.001866743836 | H25: 792695 | I25: =H25/'- 13 -'!$J$54*100 -> 0.02469804228 | J25: 5940676 | K25: =J25/'- 13 -'!$J$54*100 -> 0.1850939731
A26: COMMUNICATIONS | B26: 3772428 | C26: =B26/'- 13 -'!$J$54*100 -> 0.1175377494 | D26: 293492 | E26: =D26/'- 13 -'!$J$54*100 -> 0.009144346597 | F26: 65696 | G26: =F26/'- 13 -'!$J$54*100 -> 0.002046893932 | H26: 18225 | I26: =H26/'- 13 -'!$J$54*100 -> 0.0005678373405 | J26: 1114001 | K26: =J26/'- 13 -'!$J$54*100 -> 0.03470899123 | L26: - 12 -
A27: UTILITY SERVICES | C27: =B27/'- 13 -'!$J$54*100 -> 0 | E27: =D27/'- 13 -'!$J$54*100 -> 0 | F27: 61900 | G27: =F27/'- 13 -'!$J$54*100 -> 0.001928621749 | I27: =H27/'- 13 -'!$J$54*100 -> 0 | K27: =J27/'- 13 -'!$J$54*100 -> 0
A28: TRAVEL AND MEETINGS | B28: 2850198 | C28: =B28/'- 13 -'!$J$54*100 -> 0.08880377789 | D28: 2376350 | E28: =D28/'- 13 -'!$J$54*100 -> 0.07404006936 | F28: 49317 | G28: =F28/'- 13 -'!$J$54*100 -> 0.001536572517 | H28: 74428 | I28: =H28/'- 13 -'!$J$54*100 -> 0.002318957343 | J28: 2518559 | K28: =J28/'- 13 -'!$J$54*100 -> 0.07847088309
A29: TRANSPORTATION OF PUPILS | C29: =B29/'- 13 -'!$J$54*100 -> 0 | E29: =D29/'- 13 -'!$J$54*100 -> 0 | G29: =F29/'- 13 -'!$J$54*100 -> 0 | I29: =H29/'- 13 -'!$J$54*100 -> 0 | K29: =J29/'- 13 -'!$J$54*100 -> 0
A30: TUITION | B30: 1038850 | C30: =B30/'- 13 -'!$J$54*100 -> 0.03236750733 | D30: 860411 | E30: =D30/'- 13 -'!$J$54*100 -> 0.02680787347 | F30: 0 | G30: =F30/'- 13 -'!$J$54*100 -> 0 | I30: =H30/'- 13 -'!$J$54*100 -> 0 | K30: =J30/'- 13 -'!$J$54*100 -> 0
A31: PRINTING AND BINDING | B31: 474335 | C31: =B31/'- 13 -'!$J$54*100 -> 0.01477888202 | D31: 165506 | E31: =D31/'- 13 -'!$J$54*100 -> 0.005156679664 | F31: 3329 | G31: =F31/'- 13 -'!$J$54*100 -> 0.0001037218385 | H31: 19200 | I31: =H31/'- 13 -'!$J$54*100 -> 0.0005982154698 | J31: 184483 | K31: =J31/'- 13 -'!$J$54*100 -> 0.00574794711
A32: INSURANCE AND BOND PREMIUMS | B32: 219503 | C32: =B32/'- 13 -'!$J$54*100 -> 0.006839067201 | D32: 117029 | E32: =D32/'- 13 -'!$J$54*100 -> 0.003646279074 | F32: 6290 | G32: =F32/'- 13 -'!$J$54*100 -> 0.0001959778805 | H32: 24701 | I32: =H32/'- 13 -'!$J$54*100 -> 0.0007696104333 | J32: 3136116 | K32: =J32/'- 13 -'!$J$54*100 -> 0.09771214095
A33: MAINTENANCE AND REPAIR SERVICES | B33: 2690523 | C33: =B33/'- 13 -'!$J$54*100 -> 0.08382877502 | D33: 37350 | E33: =D33/'- 13 -'!$J$54*100 -> 0.001163716031 | F33: 36535 | G33: =F33/'- 13 -'!$J$54*100 -> 0.001138323031 | H33: 4005 | I33: =H33/'- 13 -'!$J$54*100 -> 0.0001247840082 | J33: 201171 | K33: =J33/'- 13 -'!$J$54*100 -> 0.006267896056
A34: RENTALS | B34: 3153737 | C34: =B34/'- 13 -'!$J$54*100 -> 0.09826115943 | D34: 448853 | E34: =D34/'- 13 -'!$J$54*100 -> 0.01398493793 | F34: 714155 | G34: =F34/'- 13 -'!$J$54*100 -> 0.02225096713 | H34: 640854 | I34: =H34/'- 13 -'!$J$54*100 -> 0.01996712379 | J34: 643461 | K34: =J34/'- 13 -'!$J$54*100 -> 0.02004835023
A35: PROPERTY TAXES | C35: =B35/'- 13 -'!$J$54*100 -> 0 | E35: =D35/'- 13 -'!$J$54*100 -> 0 | F35: 16000 | G35: =F35/'- 13 -'!$J$54*100 -> 0.0004985128915 | I35: =H35/'- 13 -'!$J$54*100 -> 0 | K35: =J35/'- 13 -'!$J$54*100 -> 0
A36: ADVERTISING | B36: 274901 | C36: =B36/'- 13 -'!$J$54*100 -> 0.008565105774 | D36: 17130 | E36: =D36/'- 13 -'!$J$54*100 -> 0.0005337203645 | F36: 23149 | G36: =F36/'- 13 -'!$J$54*100 -> 0.0007212546828 | H36: 18260 | I36: =H36/'- 13 -'!$J$54*100 -> 0.0005689278374 | J36: 545698 | K36: =J36/'- 13 -'!$J$54*100 -> 0.01700234299
A37: DUES AND FEES | B37: 910849 | C37: =B37/'- 13 -'!$J$54*100 -> 0.02837937304 | D37: 125023 | E37: =D37/'- 13 -'!$J$54*100 -> 0.003895348577 | F37: 0 | G37: =F37/'- 13 -'!$J$54*100 -> 0 | H37: 8035 | I37: =H37/'- 13 -'!$J$54*100 -> 0.0002503469427 | J37: 3419844 | K37: =J37/'- 13 -'!$J$54*100 -> 0.1065522701
A38: PROFESSIONAL AND STAFF DEVELOPMENT | B38: 569438 | C38: =B38/'- 13 -'!$J$54*100 -> 0.01774201149 | D38: 227552 | E38: =D38/'- 13 -'!$J$54*100 -> 0.007089850343 | F38: 43104 | G38: =F38/'- 13 -'!$J$54*100 -> 0.00134299373 | H38: 22900 | I38: =H38/'- 13 -'!$J$54*100 -> 0.0007134965759 | J38: 1534215 | K38: =J38/'- 13 -'!$J$54*100 -> 0.04780162224
A39: INFORMATION TECHNOLOGY SERVICES | B39: 17775670 | C39: =B39/'- 13 -'!$J$54*100 -> 0.5538375406 | D39: 254365 | E39: =D39/'- 13 -'!$J$54*100 -> 0.007925264478 | F39: 22591 | G39: =F39/'- 13 -'!$J$54*100 -> 0.0007038690457 | H39: 6000 | I39: =H39/'- 13 -'!$J$54*100 -> 0.0001869423343 | J39: 4194146 | K39: =J39/'- 13 -'!$J$54*100 -> 0.1306772406
A40: TOTAL SERVICES | B40: =SUM(B25:B39) -> 42796558 | C40: =B40/'- 13 -'!$J$54*100 -> 1.333414742 | D40: =SUM(D25:D39) -> 12854760 | E40: =D40/'- 13 -'!$J$54*100 -> 0.4005164736 | F40: =SUM(F25:F39) -> 1101980 | G40: =F40/'- 13 -'!$J$54*100 -> 0.03433445226 | H40: =SUM(H25:H39) -> 1629303 | I40: =H40/'- 13 -'!$J$54*100 -> 0.05076428435 | J40: =SUM(J25:J39) -> 23432370 | K40: =J40/'- 13 -'!$J$54*100 -> 0.7300836577
A41: SUPPLIES AND EQUIPMENT
A42: SUPPLIES | B42: 49354873 | C42: =B42/'- 13 -'!$J$54*100 -> 1.537752528 | D42: 3760104 | E42: =D42/'- 13 -'!$J$54*100 -> 0.1171537698 | F42: 164458 | G42: =F42/'- 13 -'!$J$54*100 -> 0.005124027069 | H42: 1578774 | I42: =H42/'- 13 -'!$J$54*100 -> 0.04918994948 | J42: 1181236 | K42: =J42/'- 13 -'!$J$54*100 -> 0.03680383587
A43: CURRICULAR AND MEDIA MATERIALS | B43: 10957294 | C43: =B43/'- 13 -'!$J$54*100 -> 0.3413970197 | D43: 755738 | E43: =D43/'- 13 -'!$J$54*100 -> 0.02354657097 | F43: 82669 | G43: =F43/'- 13 -'!$J$54*100 -> 0.002575722639 | H43: 56405 | I43: =H43/'- 13 -'!$J$54*100 -> 0.001757413728 | J43: 161345 | K43: =J43/'- 13 -'!$J$54*100 -> 0.005027035155
A44: MINOR EQUIPMENT | B44: 12859066 | C44: =B44/'- 13 -'!$J$54*100 -> 0.4006506358 | D44: 618958 | E44: =D44/'- 13 -'!$J$54*100 -> 0.01928490889 | F44: 49284 | G44: =F44/'- 13 -'!$J$54*100 -> 0.001535544334 | H44: 36240 | I44: =H44/'- 13 -'!$J$54*100 -> 0.001129131699 | J44: 301831 | K44: =J44/'- 13 -'!$J$54*100 -> 0.009404165284
A45: INFORMATION TECHNOLOGY EQUIPMENT | B45: 27691453 | C45: =B45/'- 13 -'!$J$54*100 -> 0.862784144 | D45: 751642 | E45: =D45/'- 13 -'!$J$54*100 -> 0.02341895167 | F45: 91315 | G45: =F45/'- 13 -'!$J$54*100 -> 0.002845106543 | H45: 24669 | I45: =H45/'- 13 -'!$J$54*100 -> 0.0007686134075 | J45: 1250360 | K45: =J45/'- 13 -'!$J$54*100 -> 0.03895753619
A46: TOTAL SUPPLIES AND EQUIPMENT | B46: =SUM(B42:B45) -> 100862686 | C46: =B46/'- 13 -'!$J$54*100 -> 3.142584328 | D46: =SUM(D42:D45) -> 5886442 | E46: =D46/'- 13 -'!$J$54*100 -> 0.1834042014 | F46: =SUM(F42:F45) -> 387726 | G46: =F46/'- 13 -'!$J$54*100 -> 0.01208040059 | H46: =SUM(H42:H45) -> 1696088 | I46: =H46/'- 13 -'!$J$54*100 -> 0.05284510832 | J46: =SUM(J42:J45) -> 2894772 | K46: =J46/'- 13 -'!$J$54*100 -> 0.0901925725
A47: TRANSFERS
A48: RECHARGE (1) | F48: 27000 | J48: -27000 | M48: =F48+J48+'- 13 -'!F48 -> 0
A49: TOTAL TRANSFERS | F49: =F48 -> 27000 | J49: =J48 -> -27000
A51: PROVINCE | B51: =SUM(B47,B46,B40,B23,B22) -> 1778788883 | C51: =B51/'- 13 -'!$J$54*100 -> 55.42182434 | D51: =SUM(D47,D46,D40,D23,D22) -> 622232584 | E51: =D51/'- 13 -'!$J$54*100 -> 19.38693529 | F51: =SUM(F49,F46,F40,F23,F22) -> 13048030 | G51: =F51/'- 13 -'!$J$54*100 -> 0.4065381977 | H51: =SUM(H47,H46,H40,H23,H22) -> 21765935 | I51: =H51/'- 13 -'!$J$54*100 -> 0.6781624496 | J51: =SUM(J49,J46,J40,J23,J22) -> 100876342 | K51: =J51/'- 13 -'!$J$54*100 -> 3.143009808
A52: (1) Reallocation of administration costs associated with Adult Learning Centre operations from Function 500 to Function 300.

Sheet - 13 -
F2: =+'- 12 -'!F2 -> EXPENSE BY 2ND LEVEL OBJECT | K2: PAGE 2 OF 2
F3: =+'- 12 -'!F3 -> OPERATING FUND 2025/2026 BUDGET
B7: FUNCTION
B9: INSTRUCTIONAL & OTHER SUPPORT SERVICES | D9: TRANSPORTATION OF PUPILS | F9: OPERATIONS AND MAINTENANCE | H9: FISCAL | J9: TOTAL
A11: OBJECT | B11: AMOUNT | C11: % | D11: AMOUNT | E11: % | F11: AMOUNT | G11: % | H11: AMOUNT | I11: % | J11: AMOUNT | K11: %
A13: SALARIES
A14: TRUSTEES REMUNERATION | J14: =SUM(F14,D14,B14,'- 12 -'!J14,'- 12 -'!H14,'- 12 -'!F14,'- 12 -'!D14,'- 12 -'!B14) -> 4809133 | K14: =J14/$J$54*100 -> 0.1498384248
A15: EXECUTIVE MANAGERIAL, & SUPERVISORY | B15: 6311574 | C15: =B15/$J$54*100 -> 0.1966500628 | D15: 4627243 | E15: =D15/$J$54*100 -> 0.144171268 | F15: 7200905 | G15: =F15/$J$54*100 -> 0.2243589983 | J15: =SUM(F15,D15,B15,'- 12 -'!J15,'- 12 -'!H15,'- 12 -'!F15,'- 12 -'!D15,'- 12 -'!B15) -> 183251644 | K15: 5.709581683
A16: INSTRUCTIONAL - TEACHING | B16: 32186682 | C16: =B16/$J$54*100 -> 1.002842244 | E16: =D16/$J$54*100 -> 0 | G16: =F16/$J$54*100 -> 0 | J16: =SUM(F16,D16,B16,'- 12 -'!J16,'- 12 -'!H16,'- 12 -'!F16,'- 12 -'!D16,'- 12 -'!B16) -> 1547942219 | K16: 48.22932197
A17: INSTRUCTIONAL - OTHER | B17: 20727356 | C17: =B17/$J$54*100 -> 0.6458033858 | D17: 250717 | E17: =D17/$J$54*100 -> 0.007811603538 | G17: =F17/$J$54*100 -> 0 | J17: =SUM(F17,D17,B17,'- 12 -'!J17,'- 12 -'!H17,'- 12 -'!F17,'- 12 -'!D17,'- 12 -'!B17) -> 314097422 | K17: 9.786350878
A18: TECHNICAL, SPECIALIZED AND SERVICE | B18: 9511228 | C18: =B18/$J$54*100 -> 0.2963418607 | D18: 54489830 | E18: =D18/$J$54*100 -> 1.697742669 | F18: 144037542 | G18: =F18/$J$54*100 -> 4.487785722 | J18: =SUM(F18,D18,B18,'- 12 -'!J18,'- 12 -'!H18,'- 12 -'!F18,'- 12 -'!D18,'- 12 -'!B18) -> 231551458 | K18: 7.214461679
A19: SECRETARIAL, CLERICAL AND OTHER | B19: 2818136 | C19: =B19/$J$54*100 -> 0.08780482037 | D19: 2450260 | E19: =D19/$J$54*100 -> 0.07634288734 | F19: 2396844 | G19: =F19/$J$54*100 -> 0.07467860206 | J19: =SUM(F19,D19,B19,'- 12 -'!J19,'- 12 -'!H19,'- 12 -'!F19,'- 12 -'!D19,'- 12 -'!B19) -> 81863720 | K19: 2.550632485
A20: CLINICIAN | J20: =SUM(F20,D20,B20,'- 12 -'!J20,'- 12 -'!H20,'- 12 -'!F20,'- 12 -'!D20,'- 12 -'!B20) -> 64694275 | K20: 2.015683131
A21: INFORMATION TECHNOLOGY | B21: 339401 | C21: =B21/'- 13 -'!$J$54*100 -> 0.01057473587 | D21: 0 | E21: =D21/'- 13 -'!$J$54*100 -> 0 | F21: 0 | G21: =F21/'- 13 -'!$J$54*100 -> 0 | J21: =SUM(F21,D21,B21,'- 12 -'!J21,'- 12 -'!H21,'- 12 -'!F21,'- 12 -'!D21,'- 12 -'!B21) -> 20656609 | K21: 0.6435991176
A22: TOTAL SALARIES | B22: =SUM(B14:B21) -> 71894377 | C22: =B22/$J$54*100 -> 2.24001711 | D22: =SUM(D14:D21) -> 61818050 | E22: =D22/$J$54*100 -> 1.926068428 | F22: =SUM(F14:F21) -> 153635291 | G22: =F22/$J$54*100 -> 4.786823322 | J22: =SUM(F22,D22,B22,'- 12 -'!J22,'- 12 -'!H22,'- 12 -'!F22,'- 12 -'!D22,'- 12 -'!B22) -> 2448866480 | K22: 76.29946936
A23: EMPLOYEE BENEFITS AND ALLOWANCES | B23: 8272959 | C23: =B23/$J$54*100 -> 0.2577610445 | D23: 10354980 | E23: =D23/$J$54*100 -> 0.3226306888 | F23: 28474597 | G23: =F23/$J$54*100 -> 0.8871846053 | J23: =SUM(F23,D23,B23,'- 12 -'!J23,'- 12 -'!H23,'- 12 -'!F23,'- 12 -'!D23,'- 12 -'!B23) -> 228752863 | K23: 7.127265698
A24: SERVICES
A25: PROFESSIONAL, TECHNICAL & SPECIALIZED | B25: 4119300 | C25: =B25/$J$54*100 -> 0.1283452596 | D25: 421950 | E25: =D25/$J$54*100 -> 0.01314671966 | F25: 6357464 | G25: =F25/$J$54*100 -> 0.1980798601 | J25: =SUM(F25,D25,B25,'- 12 -'!J25,'- 12 -'!H25,'- 12 -'!F25,'- 12 -'!D25,'- 12 -'!B25) -> 34689824 | K25: =J25/$J$54*100 -> 1.080832779 | L25: - 13 -
A26: COMMUNICATIONS | B26: 104100 | C26: 0.0032434495 | D26: 438689 | E26: 0.01366825762 | F26: 685522 | G26: 0.02135884715 | J26: =SUM(F26,D26,B26,'- 12 -'!J26,'- 12 -'!H26,'- 12 -'!F26,'- 12 -'!D26,'- 12 -'!B26) -> 6492153 | K26: 0.2022763728
A27: UTILITY SERVICES | C27: 0 | E27: 0 | F27: 56432255 | G27: 1.758262913 | J27: =SUM(F27,D27,B27,'- 12 -'!J27,'- 12 -'!H27,'- 12 -'!F27,'- 12 -'!D27,'- 12 -'!B27) -> 56494155 | K27: 1.760191535
A28: TRAVEL AND MEETINGS | B28: 1203310 | C28: 0.03749159672 | D28: 2095123 | E28: 0.06527786405 | F28: 890506 | G28: 0.02774554506 | J28: =SUM(F28,D28,B28,'- 12 -'!J28,'- 12 -'!H28,'- 12 -'!F28,'- 12 -'!D28,'- 12 -'!B28) -> 12057791 | K28: 0.375685266
A29: TRANSPORTATION OF PUPILS | C29: 0 | D29: 29705712 | E29: 0.9255425239 | G29: 0 | J29: =SUM(F29,D29,B29,'- 12 -'!J29,'- 12 -'!H29,'- 12 -'!F29,'- 12 -'!D29,'- 12 -'!B29) -> 29705712 | K29: 0.9255425239
A30: TUITION | B30: 6600 | C30: 0.0002056365677 | E30: 0 | G30: 0 | J30: =SUM(F30,D30,B30,'- 12 -'!J30,'- 12 -'!H30,'- 12 -'!F30,'- 12 -'!D30,'- 12 -'!B30) -> 1905861 | K30: 0.05938101737
A31: PRINTING AND BINDING | B31: 24661 | C31: 0.0007683641511 | D31: 83562 | E31: 0.00260354589 | F31: 6500 | G31: 0.0002025208622 | J31: =SUM(F31,D31,B31,'- 12 -'!J31,'- 12 -'!H31,'- 12 -'!F31,'- 12 -'!D31,'- 12 -'!B31) -> 961576 | K31: 0.02995987701
A32: INSURANCE AND BOND PREMIUMS | B32: 377956 | C32: 0.01177599615 | D32: 1864190 | E32: 0.0580826717 | F32: 17609561 | G32: 0.5486620732 | J32: =SUM(F32,D32,B32,'- 12 -'!J32,'- 12 -'!H32,'- 12 -'!F32,'- 12 -'!D32,'- 12 -'!B32) -> 23355346 | K32: 0.7276838166
A33: MAINTENANCE AND REPAIR SERVICES | B33: 63670 | C33: 0.001983769738 | D33: 4531951 | E33: 0.1412022498 | F33: 43742851 | G33: 1.362898446 | J33: =SUM(F33,D33,B33,'- 12 -'!J33,'- 12 -'!H33,'- 12 -'!F33,'- 12 -'!D33,'- 12 -'!B33) -> 51308056 | K33: 1.59860796
A34: RENTALS | B34: 198732 | C34: 0.006191903997 | D34: 1454516 | E34: 0.04531843605 | F34: 6533869 | G34: 0.2035761205 | J34: =SUM(F34,D34,B34,'- 12 -'!J34,'- 12 -'!H34,'- 12 -'!F34,'- 12 -'!D34,'- 12 -'!B34) -> 13788177 | K34: 0.429598999
A35: PROPERTY TAXES | C35: 0 | E35: 0 | F35: 5806201 | G35: 0.1809041281 | J35: =SUM(F35,D35,B35,'- 12 -'!J35,'- 12 -'!H35,'- 12 -'!F35,'- 12 -'!D35,'- 12 -'!B35) -> 5822201 | K35: 0.181402641
A36: ADVERTISING | B36: 14950 | C36: =B36/J54 -> 4.65797983e-06 | D36: 33915 | E36: =D36/J54 -> 1.056691545e-05 | F36: 45660 | G36: =F36/J54 -> 1.422631164e-05 | J36: =SUM(F36,D36,B36,'- 12 -'!J36,'- 12 -'!H36,'- 12 -'!F36,'- 12 -'!D36,'- 12 -'!B36) -> 973663 | K36: 0.03033647234
A37: DUES AND FEES | B37: 193331 | C37: =B37/$J$54*100 -> 0.006023624739 | D37: 77595 | E37: =D37/$J$54*100 -> 0.002417631738 | F37: 141842 | G37: =F37/$J$54*100 -> 0.004419379097 | J37: =SUM(F37,D37,B37,'- 12 -'!J37,'- 12 -'!H37,'- 12 -'!F37,'- 12 -'!D37,'- 12 -'!B37) -> 4876519 | K37: 0.1519379742
A38: PROFESSIONAL AND STAFF DEVELOPMENT | B38: 15812348 | C38: =B38/'- 13 -'!$J$54*100 -> 0.4926662077 | D38: 291604 | E38: =D38/'- 13 -'!$J$54*100 -> 0.009085522076 | F38: 471519 | G38: =F38/'- 13 -'!$J$54*100 -> 0.01469114376 | J38: =SUM(F38,D38,B38,'- 12 -'!J38,'- 12 -'!H38,'- 12 -'!F38,'- 12 -'!D38,'- 12 -'!B38) -> 18972680 | K38: 0.5911328479
A39: INFORMATION TECHNOLOGY SERVICES | B39: 992066 | C39: =B39/$J$54*100 -> 0.03090985564 | D39: 860707 | E39: =D39/$J$54*100 -> 0.02681709596 | F39: 390389 | G39: =F39/$J$54*100 -> 0.01216337182 | J39: =SUM(F39,D39,B39,'- 12 -'!J39,'- 12 -'!H39,'- 12 -'!F39,'- 12 -'!D39,'- 12 -'!B39) -> 24495934 | K39: 0.7632211805
A40: TOTAL SERVICES | B40: =SUM(B25:B39) -> 23111024 | C40: =B40/$J$54*100 -> 0.7200714625 | D40: =SUM(D25:D39) -> 41859514 | E40: =D40/$J$54*100 -> 1.30421921 | F40: =SUM(F25:F39) -> 139114139 | G40: =F40/$J$54*100 -> 4.33438698 | J40: =SUM(F40,D40,B40,'- 12 -'!J40,'- 12 -'!H40,'- 12 -'!F40,'- 12 -'!D40,'- 12 -'!B40) -> 285899648 | K40: 8.907791263
A41: SUPPLIES AND EQUIPMENT
A42: SUPPLIES | B42: 15885171 | C42: =B42/$J$54*100 -> 0.4949351579 | D42: 25507164 | E42: =D42/$J$54*100 -> 0.79472813 | F42: 27379381 | G42: =F42/$J$54*100 -> 0.8530608993 | J42: =SUM(F42,D42,B42,'- 12 -'!J42,'- 12 -'!H42,'- 12 -'!F42,'- 12 -'!D42,'- 12 -'!B42) -> 124811161 | K42: =J42/$J$54*100 -> 3.888748298
A43: CURRICULAR AND MEDIA MATERIALS | B43: 3497941 | C43: =B43/$J$54*100 -> 0.1089855426 | D43: 29120 | E43: =D43/$J$54*100 -> 0.0009072934625 | F43: 556578 | G43: =F43/$J$54*100 -> 0.01734133176 | J43: =SUM(F43,D43,B43,'- 12 -'!J43,'- 12 -'!H43,'- 12 -'!F43,'- 12 -'!D43,'- 12 -'!B43) -> 16097090 | K43: =J43/$J$54*100 -> 0.50153793
A44: MINOR EQUIPMENT | B44: 1028895 | C44: =B44/$J$54*100 -> 0.03205733884 | D44: 490830 | E44: =D44/$J$54*100 -> 0.01529281766 | F44: 4023880 | G44: =F44/$J$54*100 -> 0.1253722534 | J44: =SUM(F44,D44,B44,'- 12 -'!J44,'- 12 -'!H44,'- 12 -'!F44,'- 12 -'!D44,'- 12 -'!B44) -> 19408984 | K44: =J44/$J$54*100 -> 0.6047267959
A45: INFORMATION TECHNOLOGY EQUIPMENT | B45: 573124 | C45: =B45/$J$54*100 -> 0.0178568564 | D45: 280967 | E45: =D45/$J$54*100 -> 0.008754104474 | F45: 140960 | G45: =F45/$J$54*100 -> 0.004391898574 | J45: =SUM(F45,D45,B45,'- 12 -'!J45,'- 12 -'!H45,'- 12 -'!F45,'- 12 -'!D45,'- 12 -'!B45) -> 30804490 | K45: =J45/$J$54*100 -> 0.9597772113
A46: TOTAL SUPPLIES AND EQUIPMENT | B46: =SUM(B42:B45) -> 20985131 | C46: =B46/$J$54*100 -> 0.6538348958 | D46: =SUM(D42:D45) -> 26308081 | E46: =D46/$J$54*100 -> 0.8196823456 | F46: =SUM(F42:F45) -> 32100799 | G46: =F46/$J$54*100 -> 1.000166383 | J46: =SUM(F46,D46,B46,'- 12 -'!J46,'- 12 -'!H46,'- 12 -'!F46,'- 12 -'!D46,'- 12 -'!B46) -> 191121725 | K46: =J46/$J$54*100 -> 5.954790235
A47: TRANSFERS
A48: RECHARGE | F48: 0 | J48: ='- 12 -'!F48+'- 12 -'!J48+'- 13 -'!F48 -> 0
A49: DEBT SERVICES | H49: ='- 10 -'!G19 -> 3529816 | I49: =H49/$J$54*100 -> 0.1099786738 | J49: =H49 -> 3529816 | K49: =J49/$J$54*100 -> 0.1099786738
A50: BAD DEBT EXPENSE | H50: ='- 10 -'!H19 -> 4300185 | J50: =H50 -> 4300185
A51: OTHER GOVERNMENT AUTHORITIES | H51: ='- 10 -'!I19 -> 47075169 | I51: =H51/$J$54*100 -> 1.466723663 | J51: =H51 -> 47075169 | K51: =J51/$J$54*100 -> 1.466723663
A52: TOTAL TRANSFERS | F52: =F48 -> 0 | H52: =SUM(H49:H51) -> 54905170 | I52: =H52/$J$54*100 -> 1.710683441 | J52: =SUM(J48:J51) -> 54905170 | K52: =J52/$J$54*100 -> 1.710683441
A54: PROVINCE | B54: =SUM(B52,B46,B40,B23,B22) -> 124263491 | C54: =B54/$J$54*100 -> 3.871684513 | D54: =SUM(D52,D46,D40,D23,D22) -> 140340625 | E54: =D54/$J$54*100 -> 4.372600673 | F54: =SUM(F52,F46,F40,F23,F22) -> 353324826 | G54: =F54/$J$54*100 -> 11.00856129 | H54: =SUM(H52,H46,H40,H23,H22) -> 54905170 | I54: =H54/$J$54*100 -> 1.710683441 | J54: =SUM(J52,J46,J40,J23,J22) -> 3209545886 | K54: =J54/$J$54*100 -> 100

Sheet - 14 -
AA1: =CURYEAR&" OPERATING FUND EXPENSE BY FUNCTION" -> 2025/26 OPERATING FUND EXPENSE BY FUNCTION
U23: - 14 -

Sheet - 15 -
B2: =IF(Lang=1,BA2,BB2) -> ANALYSIS OF EXPENSE BY FUNCTION | I2: PAGE 1 OF 3 | BA2: ANALYSIS OF EXPENSE BY FUNCTION | BB2: ANALYSE DES DÉPENSES PAR FONCTION
B3: =OPYEAR -> OPERATING FUND 2025/2026 BUDGET
B6: REGULAR INSTRUCTION | E6: STUDENT SUPPORT SERVICES | H6: ADULT LEARNING CENTRES
D8: PER PUPIL | G8: PER PUPIL
A9: DIVISION / DISTRICT | B9: AMOUNT | C9: % | E9: AMOUNT | F9: % | H9: AMOUNT | I9: %
A11: BEAUTIFUL PLAINS | B11: =SUM('- 18 -'!B11,'- 18 -'!E11,'- 19 -'!B11,'- 19 -'!E11,'- 19 -'!H11,'- 20 -'!B11) -> 19701555 | C11: =B11/'- 3 -'!D11*100 -> 64.72967718 | D11: =B11/'- 7 -'!C11 -> 8824.884658 | E11: =SUM('- 21 -'!B11,'- 21 -'!E11,'- 21 -'!H11,'- 22 -'!B11,'- 22 -'!E11,'- 22 -'!H11) -> 3862678 | F11: =E11/'- 3 -'!D11*100 -> 12.69087136 | G11: =E11/'- 7 -'!E11 -> 1730.202912 | H11: =SUM('- 23 -'!D11,'- 23 -'!B11) -> 0 | I11: =H11/'- 3 -'!D11*100 -> 0
A12: BORDER LAND | B12: =SUM('- 18 -'!B12,'- 18 -'!E12,'- 19 -'!B12,'- 19 -'!E12,'- 19 -'!H12,'- 20 -'!B12) -> 24414979 | C12: =B12/'- 3 -'!D12*100 -> 58.80536633 | D12: =B12/'- 7 -'!C12 -> 11988.6958 | E12: =SUM('- 21 -'!B12,'- 21 -'!E12,'- 21 -'!H12,'- 22 -'!B12,'- 22 -'!E12,'- 22 -'!H12) -> 6351660 | F12: =E12/'- 3 -'!D12*100 -> 15.29846465 | G12: =E12/'- 7 -'!E12 -> 3118.909894 | H12: =SUM('- 23 -'!D12,'- 23 -'!B12) -> 360000 | I12: =H12/'- 3 -'!D12*100 -> 0.8670878594
A13: BRANDON | B13: =SUM('- 18 -'!B13,'- 18 -'!E13,'- 19 -'!B13,'- 19 -'!E13,'- 19 -'!H13,'- 20 -'!B13) -> 85108414 | C13: =B13/'- 3 -'!D13*100 -> 60.61077299 | D13: =B13/'- 7 -'!C13 -> 8606.372131 | E13: =SUM('- 21 -'!B13,'- 21 -'!E13,'- 21 -'!H13,'- 22 -'!B13,'- 22 -'!E13,'- 22 -'!H13) -> 28564600 | F13: =E13/'- 3 -'!D13*100 -> 20.34255375 | G13: =E13/'- 7 -'!E13 -> 2888.522601 | H13: =SUM('- 23 -'!D13,'- 23 -'!B13) -> 0 | I13: =H13/'- 3 -'!D13*100 -> 0
A14: DSFM | B14: =SUM('- 18 -'!B14,'- 18 -'!E14,'- 19 -'!B14,'- 19 -'!E14,'- 19 -'!H14,'- 20 -'!B14) -> 69923668 | C14: =B14/'- 3 -'!D14*100 -> 54.68876456 | D14: =B14/'- 7 -'!C14 -> 10794.02099 | E14: =SUM('- 21 -'!B14,'- 21 -'!E14,'- 21 -'!H14,'- 22 -'!B14,'- 22 -'!E14,'- 22 -'!H14) -> 16933978 | F14: =E14/'- 3 -'!D14*100 -> 13.2444187 | G14: =E14/'- 7 -'!E14 -> 2614.075023 | H14: =SUM('- 23 -'!D14,'- 23 -'!B14) -> 295042 | I14: =H14/'- 3 -'!D14*100 -> 0.2307585247
A15: EVERGREEN | B15: =SUM('- 18 -'!B15,'- 18 -'!E15,'- 19 -'!B15,'- 19 -'!E15,'- 19 -'!H15,'- 20 -'!B15) -> 14153429 | C15: =B15/'- 3 -'!D15*100 -> 53.86618505 | D15: =B15/'- 7 -'!C15 -> 10145.82724 | E15: =SUM('- 21 -'!B15,'- 21 -'!E15,'- 21 -'!H15,'- 22 -'!B15,'- 22 -'!E15,'- 22 -'!H15) -> 4481782 | F15: =E15/'- 3 -'!D15*100 -> 17.05710316 | G15: =E15/'- 7 -'!E15 -> 3212.746953 | H15: =SUM('- 23 -'!D15,'- 23 -'!B15) -> 0 | I15: =H15/'- 3 -'!D15*100 -> 0
A16: FLIN FLON | B16: =SUM('- 18 -'!B16,'- 18 -'!E16,'- 19 -'!B16,'- 19 -'!E16,'- 19 -'!H16,'- 20 -'!B16) -> 10389266 | C16: =B16/'- 3 -'!D16*100 -> 55.87517926 | D16: =B16/'- 7 -'!C16 -> 12889.90819 | E16: =SUM('- 21 -'!B16,'- 21 -'!E16,'- 21 -'!H16,'- 22 -'!B16,'- 22 -'!E16,'- 22 -'!H16) -> 3595770 | F16: =E16/'- 3 -'!D16*100 -> 19.33864176 | G16: =E16/'- 7 -'!E16 -> 4461.253102 | H16: =SUM('- 23 -'!D16,'- 23 -'!B16) -> 100833 | I16: =H16/'- 3 -'!D16*100 -> 0.5422964385
A17: FORT LA BOSSE | B17: =SUM('- 18 -'!B17,'- 18 -'!E17,'- 19 -'!B17,'- 19 -'!E17,'- 19 -'!H17,'- 20 -'!B17) -> 14711940 | C17: =B17/'- 3 -'!D17*100 -> 62.53378387 | D17: =B17/'- 7 -'!C17 -> 9621.935906 | E17: =SUM('- 21 -'!B17,'- 21 -'!E17,'- 21 -'!H17,'- 22 -'!B17,'- 22 -'!E17,'- 22 -'!H17) -> 2480900 | F17: =E17/'- 3 -'!D17*100 -> 10.54518061 | G17: =E17/'- 7 -'!E17 -> 1622.563767 | H17: =SUM('- 23 -'!D17,'- 23 -'!B17) -> 0 | I17: =H17/'- 3 -'!D17*100 -> 0
A18: FRONTIER | B18: =SUM('- 18 -'!B18,'- 18 -'!E18,'- 19 -'!B18,'- 19 -'!E18,'- 19 -'!H18,'- 20 -'!B18) -> 70013095 | C18: =B18/'- 3 -'!D18*100 -> 40.14421106 | D18: =B18/'- 7 -'!C18 -> 11583.90056 | E18: =SUM('- 21 -'!B18,'- 21 -'!E18,'- 21 -'!H18,'- 22 -'!B18,'- 22 -'!E18,'- 22 -'!H18) -> 29638625 | F18: =E18/'- 3 -'!D18*100 -> 16.99423826 | G18: =E18/'- 7 -'!E18 -> 4903.809563 | H18: =SUM('- 23 -'!D18,'- 23 -'!B18) -> 2538585 | I18: =H18/'- 3 -'!D18*100 -> 1.455577589
A19: GARDEN VALLEY | B19: =SUM('- 18 -'!B19,'- 18 -'!E19,'- 19 -'!B19,'- 19 -'!E19,'- 19 -'!H19,'- 20 -'!B19) -> 36236191 | C19: =B19/'- 3 -'!D19*100 -> 57.93882424 | D19: =B19/'- 7 -'!C19 -> 8544.256307 | E19: =SUM('- 21 -'!B19,'- 21 -'!E19,'- 21 -'!H19,'- 22 -'!B19,'- 22 -'!E19,'- 22 -'!H19) -> 11369601 | F19: =E19/'- 3 -'!D19*100 -> 18.17909929 | G19: =E19/'- 7 -'!E19 -> 2680.877387 | H19: =SUM('- 23 -'!D19,'- 23 -'!B19) -> 0 | I19: =H19/'- 3 -'!D19*100 -> 0
A20: HANOVER | B20: =SUM('- 18 -'!B20,'- 18 -'!E20,'- 19 -'!B20,'- 19 -'!E20,'- 19 -'!H20,'- 20 -'!B20) -> 71601800 | C20: =B20/'- 3 -'!D20*100 -> 60.66792349 | D20: =B20/'- 7 -'!C20 -> 8276.229556 | E20: =SUM('- 21 -'!B20,'- 21 -'!E20,'- 21 -'!H20,'- 22 -'!B20,'- 22 -'!E20,'- 22 -'!H20) -> 21875500 | F20: =E20/'- 3 -'!D20*100 -> 18.5350251 | G20: =E20/'- 7 -'!E20 -> 2528.521066 | H20: =SUM('- 23 -'!D20,'- 23 -'!B20) -> 0 | I20: =H20/'- 3 -'!D20*100 -> 0
A21: INTERLAKE | B21: =SUM('- 18 -'!B21,'- 18 -'!E21,'- 19 -'!B21,'- 19 -'!E21,'- 19 -'!H21,'- 20 -'!B21) -> 27086276 | C21: =B21/'- 3 -'!D21*100 -> 54.8276037 | D21: =B21/'- 7 -'!C21 -> 9588.062301 | E21: =SUM('- 21 -'!B21,'- 21 -'!E21,'- 21 -'!H21,'- 22 -'!B21,'- 22 -'!E21,'- 22 -'!H21) -> 9952000 | F21: =E21/'- 3 -'!D21*100 -> 20.14467814 | G21: =E21/'- 7 -'!E21 -> 3522.831858 | H21: =SUM('- 23 -'!D21,'- 23 -'!B21) -> 0 | I21: =H21/'- 3 -'!D21*100 -> 0
A22: KELSEY | B22: =SUM('- 18 -'!B22,'- 18 -'!E22,'- 19 -'!B22,'- 19 -'!E22,'- 19 -'!H22,'- 20 -'!B22) -> 12565691 | C22: =B22/'- 3 -'!D22*100 -> 50.32919854 | D22: =B22/'- 7 -'!C22 -> 8774.923883 | E22: =SUM('- 21 -'!B22,'- 21 -'!E22,'- 21 -'!H22,'- 22 -'!B22,'- 22 -'!E22,'- 22 -'!H22) -> 5380732 | F22: =E22/'- 3 -'!D22*100 -> 21.55137582 | G22: =E22/'- 7 -'!E22 -> 3757.494413 | H22: =SUM('- 23 -'!D22,'- 23 -'!B22) -> 684130 | I22: =H22/'- 3 -'!D22*100 -> 2.740136981
A23: LAKESHORE | B23: =SUM('- 18 -'!B23,'- 18 -'!E23,'- 19 -'!B23,'- 19 -'!E23,'- 19 -'!H23,'- 20 -'!B23) -> 9675173 | C23: =B23/'- 3 -'!D23*100 -> 51.71281817 | D23: =B23/'- 7 -'!C23 -> 9532.190148 | E23: =SUM('- 21 -'!B23,'- 21 -'!E23,'- 21 -'!H23,'- 22 -'!B23,'- 22 -'!E23,'- 22 -'!H23) -> 3213000 | F23: =E23/'- 3 -'!D23*100 -> 17.17315905 | G23: =E23/'- 7 -'!E23 -> 3165.517241 | H23: =SUM('- 23 -'!D23,'- 23 -'!B23) -> 322587 | I23: =H23/'- 3 -'!D23*100 -> 1.72419479
A24: LORD SELKIRK | B24: =SUM('- 18 -'!B24,'- 18 -'!E24,'- 19 -'!B24,'- 19 -'!E24,'- 19 -'!H24,'- 20 -'!B24) -> 43944399 | C24: =B24/'- 3 -'!D24*100 -> 58.95101944 | D24: =B24/'- 7 -'!C24 -> 11049.63515 | E24: =SUM('- 21 -'!B24,'- 21 -'!E24,'- 21 -'!H24,'- 22 -'!B24,'- 22 -'!E24,'- 22 -'!H24) -> 12936948 | F24: =E24/'- 3 -'!D24*100 -> 17.35480039 | G24: =E24/'- 7 -'!E24 -> 3252.941413 | H24: =SUM('- 23 -'!D24,'- 23 -'!B24) -> 375124 | I24: =H24/'- 3 -'!D24*100 -> 0.5032255013
A25: LOUIS RIEL | B25: =SUM('- 18 -'!B25,'- 18 -'!E25,'- 19 -'!B25,'- 19 -'!E25,'- 19 -'!H25,'- 20 -'!B25) -> 148429721 | C25: =B25/'- 3 -'!D25*100 -> 54.94219665 | D25: =B25/'- 7 -'!C25 -> 8605.120355 | E25: =SUM('- 21 -'!B25,'- 21 -'!E25,'- 21 -'!H25,'- 22 -'!B25,'- 22 -'!E25,'- 22 -'!H25) -> 59426329 | F25: =E25/'- 3 -'!D25*100 -> 21.99703019 | G25: =E25/'- 7 -'!E25 -> 3445.204302 | H25: =SUM('- 23 -'!D25,'- 23 -'!B25) -> 375204 | I25: =H25/'- 3 -'!D25*100 -> 0.1388841252
A26: MOUNTAIN VIEW | B26: =SUM('- 18 -'!B26,'- 18 -'!E26,'- 19 -'!B26,'- 19 -'!E26,'- 19 -'!H26,'- 20 -'!B26) -> 29078403 | C26: =B26/'- 3 -'!D26*100 -> 55.50921198 | D26: =B26/'- 7 -'!C26 -> 9510.516108 | E26: =SUM('- 21 -'!B26,'- 21 -'!E26,'- 21 -'!H26,'- 22 -'!B26,'- 22 -'!E26,'- 22 -'!H26) -> 8175352 | F26: =E26/'- 3 -'!D26*100 -> 15.60633667 | G26: =E26/'- 7 -'!E26 -> 2673.868193 | H26: =SUM('- 23 -'!D26,'- 23 -'!B26) -> 0 | I26: =H26/'- 3 -'!D26*100 -> 0
A27: MYSTERY LAKE | B27: =SUM('- 18 -'!B27,'- 18 -'!E27,'- 19 -'!B27,'- 19 -'!E27,'- 19 -'!H27,'- 20 -'!B27) -> 26930281 | C27: =B27/'- 3 -'!D27*100 -> 51.22071304 | D27: =B27/'- 7 -'!C27 -> 9308.805423 | E27: =SUM('- 21 -'!B27,'- 21 -'!E27,'- 21 -'!H27,'- 22 -'!B27,'- 22 -'!E27,'- 22 -'!H27) -> 11736737 | F27: =E27/'- 3 -'!D27*100 -> 22.3229768 | G27: =E27/'- 7 -'!E27 -> 4056.957335 | H27: =SUM('- 23 -'!D27,'- 23 -'!B27) -> 0 | I27: =H27/'- 3 -'!D27*100 -> 0
A28: PARK WEST | B28: =SUM('- 18 -'!B28,'- 18 -'!E28,'- 19 -'!B28,'- 19 -'!E28,'- 19 -'!H28,'- 20 -'!B28) -> 21901709 | C28: =B28/'- 3 -'!D28*100 -> 59.6598889 | D28: =B28/'- 7 -'!C28 -> 9841.253202 | E28: =SUM('- 21 -'!B28,'- 21 -'!E28,'- 21 -'!H28,'- 22 -'!B28,'- 22 -'!E28,'- 22 -'!H28) -> 5217223 | F28: =E28/'- 3 -'!D28*100 -> 14.21162817 | G28: =E28/'- 7 -'!E28 -> 2344.292519 | H28: =SUM('- 23 -'!D28,'- 23 -'!B28) -> 193119 | I28: =H28/'- 3 -'!D28*100 -> 0.5260529251
A29: PEMBINA TRAILS | B29: =SUM('- 18 -'!B29,'- 18 -'!E29,'- 19 -'!B29,'- 19 -'!E29,'- 19 -'!H29,'- 20 -'!B29) -> 142070429 | C29: =B29/'- 3 -'!D29*100 -> 58.18859845 | D29: =B29/'- 7 -'!C29 -> 7958.681811 | E29: =SUM('- 21 -'!B29,'- 21 -'!E29,'- 21 -'!H29,'- 22 -'!B29,'- 22 -'!E29,'- 22 -'!H29) -> 49498433 | F29: =E29/'- 3 -'!D29*100 -> 20.27335641 | G29: =E29/'- 7 -'!E29 -> 2772.866114 | H29: =SUM('- 23 -'!D29,'- 23 -'!B29) -> 0 | I29: =H29/'- 3 -'!D29*100 -> 0
A30: PINE CREEK | B30: =SUM('- 18 -'!B30,'- 18 -'!E30,'- 19 -'!B30,'- 19 -'!E30,'- 19 -'!H30,'- 20 -'!B30) -> 13074157 | C30: =B30/'- 3 -'!D30*100 -> 61.19361119 | D30: =B30/'- 7 -'!C30 -> 12218.83832 | E30: =SUM('- 21 -'!B30,'- 21 -'!E30,'- 21 -'!H30,'- 22 -'!B30,'- 22 -'!E30,'- 22 -'!H30) -> 2669483 | F30: =E30/'- 3 -'!D30*100 -> 12.49451913 | G30: =E30/'- 7 -'!E30 -> 2494.843925 | H30: =SUM('- 23 -'!D30,'- 23 -'!B30) -> 0 | I30: =H30/'- 3 -'!D30*100 -> 0
A31: PORTAGE LA PRAIRIE | B31: =SUM('- 18 -'!B31,'- 18 -'!E31,'- 19 -'!B31,'- 19 -'!E31,'- 19 -'!H31,'- 20 -'!B31) -> 31203439 | C31: =B31/'- 3 -'!D31*100 -> 58.52196632 | D31: =B31/'- 7 -'!C31 -> 9048.409163 | E31: =SUM('- 21 -'!B31,'- 21 -'!E31,'- 21 -'!H31,'- 22 -'!B31,'- 22 -'!E31,'- 22 -'!H31) -> 10334970 | F31: =E31/'- 3 -'!D31*100 -> 19.38320857 | G31: =E31/'- 7 -'!E31 -> 2996.946498 | H31: =SUM('- 23 -'!D31,'- 23 -'!B31) -> 0 | I31: =H31/'- 3 -'!D31*100 -> 0
A32: PRAIRIE ROSE | B32: =SUM('- 18 -'!B32,'- 18 -'!E32,'- 19 -'!B32,'- 19 -'!E32,'- 19 -'!H32,'- 20 -'!B32) -> 23238757 | C32: =B32/'- 3 -'!D32*100 -> 55.89015228 | D32: =B32/'- 7 -'!C32 -> 10038.33996 | E32: =SUM('- 21 -'!B32,'- 21 -'!E32,'- 21 -'!H32,'- 22 -'!B32,'- 22 -'!E32,'- 22 -'!H32) -> 6989043 | F32: =E32/'- 3 -'!D32*100 -> 16.80893163 | G32: =E32/'- 7 -'!E32 -> 3019.025054 | H32: =SUM('- 23 -'!D32,'- 23 -'!B32) -> 366107 | I32: =H32/'- 3 -'!D32*100 -> 0.8805021705
A33: PRAIRIE SPIRIT | B33: =SUM('- 18 -'!B33,'- 18 -'!E33,'- 19 -'!B33,'- 19 -'!E33,'- 19 -'!H33,'- 20 -'!B33) -> 19679950 | C33: =B33/'- 3 -'!D33*100 -> 56.6603651 | D33: =B33/'- 7 -'!C33 -> 9025.429947 | E33: =SUM('- 21 -'!B33,'- 21 -'!E33,'- 21 -'!H33,'- 22 -'!B33,'- 22 -'!E33,'- 22 -'!H33) -> 5582045 | F33: =E33/'- 3 -'!D33*100 -> 16.071215 | G33: =E33/'- 7 -'!E33 -> 2559.983949 | H33: =SUM('- 23 -'!D33,'- 23 -'!B33) -> 0 | I33: =H33/'- 3 -'!D33*100 -> 0
A34: RED RIVER VALLEY | B34: =SUM('- 18 -'!B34,'- 18 -'!E34,'- 19 -'!B34,'- 19 -'!E34,'- 19 -'!H34,'- 20 -'!B34) -> 23028090 | C34: =B34/'- 3 -'!D34*100 -> 57.10164462 | D34: =B34/'- 7 -'!C34 -> 9862.137045 | E34: =SUM('- 21 -'!B34,'- 21 -'!E34,'- 21 -'!H34,'- 22 -'!B34,'- 22 -'!E34,'- 22 -'!H34) -> 6795163 | F34: =E34/'- 3 -'!D34*100 -> 16.84963811 | G34: =E34/'- 7 -'!E34 -> 2910.134047 | H34: =SUM('- 23 -'!D34,'- 23 -'!B34) -> 0 | I34: =H34/'- 3 -'!D34*100 -> 0
A35: RIVER EAST TRANSCONA | B35: =SUM('- 18 -'!B35,'- 18 -'!E35,'- 19 -'!B35,'- 19 -'!E35,'- 19 -'!H35,'- 20 -'!B35) -> 155434836 | C35: =B35/'- 3 -'!D35*100 -> 58.13395301 | D35: =B35/'- 7 -'!C35 -> 8402.791437 | E35: =SUM('- 21 -'!B35,'- 21 -'!E35,'- 21 -'!H35,'- 22 -'!B35,'- 22 -'!E35,'- 22 -'!H35) -> 55051897 | F35: =E35/'- 3 -'!D35*100 -> 20.58987853 | G35: =E35/'- 7 -'!E35 -> 2976.099957 | H35: =SUM('- 23 -'!D35,'- 23 -'!B35) -> 1887943 | I35: =H35/'- 3 -'!D35*100 -> 0.7061067677
A36: ROLLING RIVER | B36: =SUM('- 18 -'!B36,'- 18 -'!E36,'- 19 -'!B36,'- 19 -'!E36,'- 19 -'!H36,'- 20 -'!B36) -> 16619640 | C36: =B36/'- 3 -'!D36*100 -> 57.13598142 | D36: =B36/'- 7 -'!C36 -> 9253.697105 | E36: =SUM('- 21 -'!B36,'- 21 -'!E36,'- 21 -'!H36,'- 22 -'!B36,'- 22 -'!E36,'- 22 -'!H36) -> 4081330 | F36: =E36/'- 3 -'!D36*100 -> 14.03103768 | G36: =E36/'- 7 -'!E36 -> 2272.455457 | H36: =SUM('- 23 -'!D36,'- 23 -'!B36) -> 0 | I36: =H36/'- 3 -'!D36*100 -> 0
A37: SEINE RIVER | B37: =SUM('- 18 -'!B37,'- 18 -'!E37,'- 19 -'!B37,'- 19 -'!E37,'- 19 -'!H37,'- 20 -'!B37) -> 42799416 | C37: =B37/'- 3 -'!D37*100 -> 55.95373368 | D37: =B37/'- 7 -'!C37 -> 8748.858545 | E37: =SUM('- 21 -'!B37,'- 21 -'!E37,'- 21 -'!H37,'- 22 -'!B37,'- 22 -'!E37,'- 22 -'!H37) -> 15325900 | F37: =E37/'- 3 -'!D37*100 -> 20.03628571 | G37: =E37/'- 7 -'!E37 -> 3132.84955 | H37: =SUM('- 23 -'!D37,'- 23 -'!B37) -> 363460 | I37: =H37/'- 3 -'!D37*100 -> 0.4751687276
A38: SEVEN OAKS | B38: =SUM('- 18 -'!B38,'- 18 -'!E38,'- 19 -'!B38,'- 19 -'!E38,'- 19 -'!H38,'- 20 -'!B38) -> 111609972 | C38: =B38/'- 3 -'!D38*100 -> 57.79610876 | D38: =B38/'- 7 -'!C38 -> 9281.648926 | E38: =SUM('- 21 -'!B38,'- 21 -'!E38,'- 21 -'!H38,'- 22 -'!B38,'- 22 -'!E38,'- 22 -'!H38) -> 35811302 | F38: =E38/'- 3 -'!D38*100 -> 18.5445249 | G38: =E38/'- 7 -'!E38 -> 2978.120385 | H38: =SUM('- 23 -'!D38,'- 23 -'!B38) -> 2523725 | I38: =H38/'- 3 -'!D38*100 -> 1.306885773
A39: SOUTHWEST HORIZON | B39: =SUM('- 18 -'!B39,'- 18 -'!E39,'- 19 -'!B39,'- 19 -'!E39,'- 19 -'!H39,'- 20 -'!B39) -> 14459700 | C39: =B39/'- 3 -'!D39*100 -> 54.39269633 | D39: =B39/'- 7 -'!C39 -> 10125.84034 | E39: =SUM('- 21 -'!B39,'- 21 -'!E39,'- 21 -'!H39,'- 22 -'!B39,'- 22 -'!E39,'- 22 -'!H39) -> 4774150 | F39: =E39/'- 3 -'!D39*100 -> 17.95880213 | G39: =E39/'- 7 -'!E39 -> 3343.242297 | H39: =SUM('- 23 -'!D39,'- 23 -'!B39) -> 0 | I39: =H39/'- 3 -'!D39*100 -> 0
A40: ST. JAMES-ASSINIBOIA | B40: =SUM('- 18 -'!B40,'- 18 -'!E40,'- 19 -'!B40,'- 19 -'!E40,'- 19 -'!H40,'- 20 -'!B40) -> 77948104 | C40: =B40/'- 3 -'!D40*100 -> 55.07994945 | D40: =B40/'- 7 -'!C40 -> 9366.510935 | E40: =SUM('- 21 -'!B40,'- 21 -'!E40,'- 21 -'!H40,'- 22 -'!B40,'- 22 -'!E40,'- 22 -'!H40) -> 33271643 | F40: =E40/'- 3 -'!D40*100 -> 23.51051944 | G40: =E40/'- 7 -'!E40 -> 3998.034487 | H40: =SUM('- 23 -'!D40,'- 23 -'!B40) -> 0 | I40: =H40/'- 3 -'!D40*100 -> 0
A41: SUNRISE | B41: =SUM('- 18 -'!B41,'- 18 -'!E41,'- 19 -'!B41,'- 19 -'!E41,'- 19 -'!H41,'- 20 -'!B41) -> 45617421 | C41: =B41/'- 3 -'!D41*100 -> 53.10129255 | D41: =B41/'- 7 -'!C41 -> 10401.87459 | E41: =SUM('- 21 -'!B41,'- 21 -'!E41,'- 21 -'!H41,'- 22 -'!B41,'- 22 -'!E41,'- 22 -'!H41) -> 17146938 | F41: =E41/'- 3 -'!D41*100 -> 19.96001859 | G41: =E41/'- 7 -'!E41 -> 3909.916315 | H41: =SUM('- 23 -'!D41,'- 23 -'!B41) -> 1153563 | I41: =H41/'- 3 -'!D41*100 -> 1.342813447
A42: SWAN VALLEY | B42: =SUM('- 18 -'!B42,'- 18 -'!E42,'- 19 -'!B42,'- 19 -'!E42,'- 19 -'!H42,'- 20 -'!B42) -> 13483831 | C42: =B42/'- 3 -'!D42*100 -> 51.65240149 | D42: =B42/'- 7 -'!C42 -> 9845.805769 | E42: =SUM('- 21 -'!B42,'- 21 -'!E42,'- 21 -'!H42,'- 22 -'!B42,'- 22 -'!E42,'- 22 -'!H42) -> 5356841 | F42: =E42/'- 3 -'!D42*100 -> 20.52040715 | G42: =E42/'- 7 -'!E42 -> 3911.530486 | H42: =SUM('- 23 -'!D42,'- 23 -'!B42) -> 0 | I42: =H42/'- 3 -'!D42*100 -> 0
A43: TURTLE MOUNTAIN | B43: =SUM('- 18 -'!B43,'- 18 -'!E43,'- 19 -'!B43,'- 19 -'!E43,'- 19 -'!H43,'- 20 -'!B43) -> 9941092 | C43: =B43/'- 3 -'!D43*100 -> 56.21835026 | D43: =B43/'- 7 -'!C43 -> 9170.749077 | E43: =SUM('- 21 -'!B43,'- 21 -'!E43,'- 21 -'!H43,'- 22 -'!B43,'- 22 -'!E43,'- 22 -'!H43) -> 3027206 | F43: =E43/'- 3 -'!D43*100 -> 17.11929909 | G43: =E43/'- 7 -'!E43 -> 2792.625461 | H43: =SUM('- 23 -'!D43,'- 23 -'!B43) -> 216412 | I43: =H43/'- 3 -'!D43*100 -> 1.22384197
A44: TURTLE RIVER | B44: =SUM('- 18 -'!B44,'- 18 -'!E44,'- 19 -'!B44,'- 19 -'!E44,'- 19 -'!H44,'- 20 -'!B44) -> 7207495 | C44: =B44/'- 3 -'!D44*100 -> 54.71741916 | D44: =B44/'- 7 -'!C44 -> 12320.50427 | E44: =SUM('- 21 -'!B44,'- 21 -'!E44,'- 21 -'!H44,'- 22 -'!B44,'- 22 -'!E44,'- 22 -'!H44) -> 1950112 | F44: =E44/'- 3 -'!D44*100 -> 14.80474086 | G44: =E44/'- 7 -'!E44 -> 3333.524786 | H44: =SUM('- 23 -'!D44,'- 23 -'!B44) -> 0 | I44: =H44/'- 3 -'!D44*100 -> 0
A45: WESTERN | B45: =SUM('- 18 -'!B45,'- 18 -'!E45,'- 19 -'!B45,'- 19 -'!E45,'- 19 -'!H45,'- 20 -'!B45) -> 19604631 | C45: =B45/'- 3 -'!D45*100 -> 59.45058619 | D45: =B45/'- 7 -'!C45 -> 8268.507381 | E45: =SUM('- 21 -'!B45,'- 21 -'!E45,'- 21 -'!H45,'- 22 -'!B45,'- 22 -'!E45,'- 22 -'!H45) -> 5783281 | F45: =E45/'- 3 -'!D45*100 -> 17.53766472 | G45: =E45/'- 7 -'!E45 -> 2439.173766 | H45: =SUM('- 23 -'!D45,'- 23 -'!B45) -> 472563 | I45: =H45/'- 3 -'!D45*100 -> 1.433036274
A46: WINNIPEG | B46: =SUM('- 18 -'!B46,'- 18 -'!E46,'- 19 -'!B46,'- 19 -'!E46,'- 19 -'!H46,'- 20 -'!B46) -> 275901933 | C46: =B46/'- 3 -'!D46*100 -> 52.95494884 | D46: =B46/'- 7 -'!C46 -> 9662.93553 | E46: =SUM('- 21 -'!B46,'- 21 -'!E46,'- 21 -'!H46,'- 22 -'!B46,'- 22 -'!E46,'- 22 -'!H46) -> 113589432 | F46: =E46/'- 3 -'!D46*100 -> 21.80166878 | G46: =E46/'- 7 -'!E46 -> 3978.251788 | H46: =SUM('- 23 -'!D46,'- 23 -'!B46) -> 819633 | I46: =H46/'- 3 -'!D46*100 -> 0.1573154023
A48: PROVINCE | B48: =SUM(B11:B46) -> 1778788883 | C48: =B48/'- 3 -'!D48*100 -> 55.42182434 | D48: =B48/'- 7 -'!C48 -> 9241.187103 | E48: =SUM(E11:E46) -> 622232584 | F48: =E48/'- 3 -'!D48*100 -> 19.38693529 | G48: =E48/'- 7 -'!E48 -> 3232.6308 | H48: =SUM(H11:H46) -> 13048030 | I48: =H48/'- 3 -'!D48*100 -> 0.4065381977
A50: WHITESHELL | B50: =SUM('- 18 -'!B50,'- 18 -'!E50,'- 19 -'!B50,'- 19 -'!E50,'- 19 -'!H50,'- 20 -'!B50) -> 2400944 | C50: =B50/'- 3 -'!D50*100 -> 55.785648 | D50: =B50/'- 7 -'!C50 -> 12125.9798 | E50: =SUM('- 21 -'!B50,'- 21 -'!E50,'- 21 -'!H50,'- 22 -'!B50,'- 22 -'!E50,'- 22 -'!H50) -> 577718 | F50: =E50/'- 3 -'!D50*100 -> 13.42320895 | G50: =E50/'- 7 -'!E50 -> 2917.767677 | H50: =SUM('- 23 -'!D50,'- 23 -'!B50) -> 0 | I50: =H50/'- 3 -'!D50*100 -> 0

Sheet - 16 -
B2: =AEXP_BF -> ANALYSIS OF EXPENSE BY FUNCTION | I2: PAGE 2 OF 3
B3: =+'- 15 -'!B3 -> OPERATING FUND 2025/2026 BUDGET
B6: COMMUNITY EDUCATION AND SERVICES | D6: DIVISIONAL ADMINISTRATION | G6: INSTRUCTIONAL & OTHER SUPPORT SERVICES
F8: PER PUPIL | I8: PER PUPIL
A9: DIVISION / DISTRICT | B9: AMOUNT | C9: % | D9: AMOUNT | E9: % | G9: AMOUNT | H9: %
A11: BEAUTIFUL PLAINS | B11: =SUM('- 24 -'!H11,'- 24 -'!F11,'- 24 -'!D11,'- 24 -'!B11) -> 24310 | C11: =B11/'- 3 -'!D11*100 -> 0.07987077428 | D11: =SUM('- 25 -'!B11,'- 25 -'!E11,'- 25 -'!H11,'- 26 -'!B11) -> 901678 | E11: =D11/'- 3 -'!D11*100 -> 2.962473057 | F11: =D11/'- 7 -'!E11 -> 403.8871221 | G11: =SUM('- 27 -'!B11,'- 27 -'!E11,'- 27 -'!H11,'- 28 -'!B11,'- 28 -'!E11) -> 860384 | H11: =G11/'- 3 -'!D11*100 -> 2.826801162 | I11: =G11/'- 7 -'!E11 -> 385.3903695
A12: BORDER LAND | B12: =SUM('- 24 -'!H12,'- 24 -'!F12,'- 24 -'!D12,'- 24 -'!B12) -> 52690 | C12: =B12/'- 3 -'!D12*100 -> 0.1269079425 | D12: =SUM('- 25 -'!B12,'- 25 -'!E12,'- 25 -'!H12,'- 26 -'!B12) -> 1217488 | E12: =D12/'- 3 -'!D12*100 -> 2.932414066 | F12: =D12/'- 7 -'!E12 -> 597.8335379 | G12: =SUM('- 27 -'!B12,'- 27 -'!E12,'- 27 -'!H12,'- 28 -'!B12,'- 28 -'!E12) -> 856406 | H12: =G12/'- 3 -'!D12*100 -> 2.062720126 | I12: =G12/'- 7 -'!E12 -> 420.5283575
A13: BRANDON | B13: =SUM('- 24 -'!H13,'- 24 -'!F13,'- 24 -'!D13,'- 24 -'!B13) -> 586295 | C13: =B13/'- 3 -'!D13*100 -> 0.4175356052 | D13: =SUM('- 25 -'!B13,'- 25 -'!E13,'- 25 -'!H13,'- 26 -'!B13) -> 3655370 | E13: =D13/'- 3 -'!D13*100 -> 2.603206791 | F13: =D13/'- 7 -'!E13 -> 369.640004 | G13: =SUM('- 27 -'!B13,'- 27 -'!E13,'- 27 -'!H13,'- 28 -'!B13,'- 28 -'!E13) -> 4521937 | H13: =G13/'- 3 -'!D13*100 -> 3.220340788 | I13: =G13/'- 7 -'!E13 -> 457.2693902
A14: DSFM | B14: =SUM('- 24 -'!H14,'- 24 -'!F14,'- 24 -'!D14,'- 24 -'!B14) -> 738946 | C14: =B14/'- 3 -'!D14*100 -> 0.577945136 | D14: =SUM('- 25 -'!B14,'- 25 -'!E14,'- 25 -'!H14,'- 26 -'!B14) -> 4464157 | E14: =D14/'- 3 -'!D14*100 -> 3.491510644 | F14: =D14/'- 7 -'!E14 -> 689.1258104 | G14: =SUM('- 27 -'!B14,'- 27 -'!E14,'- 27 -'!H14,'- 28 -'!B14,'- 28 -'!E14) -> 4925341 | H14: =G14/'- 3 -'!D14*100 -> 3.852212305 | I14: =G14/'- 7 -'!E14 -> 760.3181538
A15: EVERGREEN | B15: =SUM('- 24 -'!H15,'- 24 -'!F15,'- 24 -'!D15,'- 24 -'!B15) -> 0 | C15: =B15/'- 3 -'!D15*100 -> 0 | D15: =SUM('- 25 -'!B15,'- 25 -'!E15,'- 25 -'!H15,'- 26 -'!B15) -> 908781 | E15: =D15/'- 3 -'!D15*100 -> 3.45870711 | F15: =D15/'- 7 -'!E15 -> 651.455914 | G15: =SUM('- 27 -'!B15,'- 27 -'!E15,'- 27 -'!H15,'- 28 -'!B15,'- 28 -'!E15) -> 694703 | H15: =G15/'- 3 -'!D15*100 -> 2.643952949 | I15: =G15/'- 7 -'!E15 -> 497.9949821
A16: FLIN FLON | B16: =SUM('- 24 -'!H16,'- 24 -'!F16,'- 24 -'!D16,'- 24 -'!B16) -> 12169 | C16: =B16/'- 3 -'!D16*100 -> 0.06544688108 | D16: =SUM('- 25 -'!B16,'- 25 -'!E16,'- 25 -'!H16,'- 26 -'!B16) -> 716390 | E16: =D16/'- 3 -'!D16*100 -> 3.852863106 | F16: =D16/'- 7 -'!E16 -> 888.82134 | G16: =SUM('- 27 -'!B16,'- 27 -'!E16,'- 27 -'!H16,'- 28 -'!B16,'- 28 -'!E16) -> 347640 | H16: =G16/'- 3 -'!D16*100 -> 1.869665029 | I16: =G16/'- 7 -'!E16 -> 431.3151365
A17: FORT LA BOSSE | B17: =SUM('- 24 -'!H17,'- 24 -'!F17,'- 24 -'!D17,'- 24 -'!B17) -> 177690 | C17: =B17/'- 3 -'!D17*100 -> 0.7552795931 | D17: =SUM('- 25 -'!B17,'- 25 -'!E17,'- 25 -'!H17,'- 26 -'!B17) -> 897332 | E17: =D17/'- 3 -'!D17*100 -> 3.814151319 | F17: =D17/'- 7 -'!E17 -> 586.8750818 | G17: =SUM('- 27 -'!B17,'- 27 -'!E17,'- 27 -'!H17,'- 28 -'!B17,'- 28 -'!E17) -> 634940 | H17: =G17/'- 3 -'!D17*100 -> 2.698841943 | I17: =G17/'- 7 -'!E17 -> 415.264879
A18: FRONTIER | B18: =SUM('- 24 -'!H18,'- 24 -'!F18,'- 24 -'!D18,'- 24 -'!B18) -> 2529164 | C18: =B18/'- 3 -'!D18*100 -> 1.450175762 | D18: =SUM('- 25 -'!B18,'- 25 -'!E18,'- 25 -'!H18,'- 26 -'!B18) -> 9391619 | E18: =D18/'- 3 -'!D18*100 -> 5.384980271 | F18: =D18/'- 7 -'!E18 -> 1553.874752 | G18: =SUM('- 27 -'!B18,'- 27 -'!E18,'- 27 -'!H18,'- 28 -'!B18,'- 28 -'!E18) -> 12798546 | H18: =G18/'- 3 -'!D18*100 -> 7.33844907 | I18: =G18/'- 7 -'!E18 -> 2117.56221
A19: GARDEN VALLEY | B19: =SUM('- 24 -'!H19,'- 24 -'!F19,'- 24 -'!D19,'- 24 -'!B19) -> 160229 | C19: =B19/'- 3 -'!D19*100 -> 0.2561935902 | D19: =SUM('- 25 -'!B19,'- 25 -'!E19,'- 25 -'!H19,'- 26 -'!B19) -> 1962711 | E19: =D19/'- 3 -'!D19*100 -> 3.138220782 | F19: =D19/'- 7 -'!E19 -> 462.7943881 | G19: =SUM('- 27 -'!B19,'- 27 -'!E19,'- 27 -'!H19,'- 28 -'!B19,'- 28 -'!E19) -> 2150678 | H19: =G19/'- 3 -'!D19*100 -> 3.438765257 | I19: =G19/'- 7 -'!E19 -> 507.1157746
A20: HANOVER | B20: =SUM('- 24 -'!H20,'- 24 -'!F20,'- 24 -'!D20,'- 24 -'!B20) -> 128200 | C20: =B20/'- 3 -'!D20*100 -> 0.1086233557 | D20: =SUM('- 25 -'!B20,'- 25 -'!E20,'- 25 -'!H20,'- 26 -'!B20) -> 2669300 | E20: =D20/'- 3 -'!D20*100 -> 2.26168739 | F20: =D20/'- 7 -'!E20 -> 308.536092 | G20: =SUM('- 27 -'!B20,'- 27 -'!E20,'- 27 -'!H20,'- 28 -'!B20,'- 28 -'!E20) -> 2610900 | H20: =G20/'- 3 -'!D20*100 -> 2.2122053 | I20: =G20/'- 7 -'!E20 -> 301.7858175
A21: INTERLAKE | B21: =SUM('- 24 -'!H21,'- 24 -'!F21,'- 24 -'!D21,'- 24 -'!B21) -> 0 | C21: =B21/'- 3 -'!D21*100 -> 0 | D21: =SUM('- 25 -'!B21,'- 25 -'!E21,'- 25 -'!H21,'- 26 -'!B21) -> 1551000 | E21: =D21/'- 3 -'!D21*100 -> 3.139509224 | F21: =D21/'- 7 -'!E21 -> 549.0265487 | G21: =SUM('- 27 -'!B21,'- 27 -'!E21,'- 27 -'!H21,'- 28 -'!B21,'- 28 -'!E21) -> 1598350 | H21: =G21/'- 3 -'!D21*100 -> 3.235354331 | I21: =G21/'- 7 -'!E21 -> 565.7876106
A22: KELSEY | B22: =SUM('- 24 -'!H22,'- 24 -'!F22,'- 24 -'!D22,'- 24 -'!B22) -> 54249 | C22: =B22/'- 3 -'!D22*100 -> 0.2172828133 | D22: =SUM('- 25 -'!B22,'- 25 -'!E22,'- 25 -'!H22,'- 26 -'!B22) -> 940657 | E22: =D22/'- 3 -'!D22*100 -> 3.767601234 | F22: =D22/'- 7 -'!E22 -> 656.8833799 | G22: =SUM('- 27 -'!B22,'- 27 -'!E22,'- 27 -'!H22,'- 28 -'!B22,'- 28 -'!E22) -> 1178537 | H22: =G22/'- 3 -'!D22*100 -> 4.7203789 | I22: =G22/'- 7 -'!E22 -> 823.0006983
A23: LAKESHORE | B23: =SUM('- 24 -'!H23,'- 24 -'!F23,'- 24 -'!D23,'- 24 -'!B23) -> 121987 | C23: =B23/'- 3 -'!D23*100 -> 0.6520081399 | D23: =SUM('- 25 -'!B23,'- 25 -'!E23,'- 25 -'!H23,'- 26 -'!B23) -> 726050 | E23: =D23/'- 3 -'!D23*100 -> 3.880663595 | F23: =D23/'- 7 -'!E23 -> 715.320197 | G23: =SUM('- 27 -'!B23,'- 27 -'!E23,'- 27 -'!H23,'- 28 -'!B23,'- 28 -'!E23) -> 476500 | H23: =G23/'- 3 -'!D23*100 -> 2.546844161 | I23: =G23/'- 7 -'!E23 -> 469.4581281
A24: LORD SELKIRK | B24: =SUM('- 24 -'!H24,'- 24 -'!F24,'- 24 -'!D24,'- 24 -'!B24) -> 251001 | C24: =B24/'- 3 -'!D24*100 -> 0.3367156035 | D24: =SUM('- 25 -'!B24,'- 25 -'!E24,'- 25 -'!H24,'- 26 -'!B24) -> 2226300 | E24: =D24/'- 3 -'!D24*100 -> 2.9865616 | F24: =D24/'- 7 -'!E24 -> 559.7938144 | G24: =SUM('- 27 -'!B24,'- 27 -'!E24,'- 27 -'!H24,'- 28 -'!B24,'- 28 -'!E24) -> 1929415 | H24: =G24/'- 3 -'!D24*100 -> 2.588293019 | I24: =G24/'- 7 -'!E24 -> 485.1433241
A25: LOUIS RIEL | B25: =SUM('- 24 -'!H25,'- 24 -'!F25,'- 24 -'!D25,'- 24 -'!B25) -> 2577521 | C25: =B25/'- 3 -'!D25*100 -> 0.954085642 | D25: =SUM('- 25 -'!B25,'- 25 -'!E25,'- 25 -'!H25,'- 26 -'!B25) -> 8856701 | E25: =D25/'- 3 -'!D25*100 -> 3.278363691 | F25: =D25/'- 7 -'!E25 -> 513.4617079 | G25: =SUM('- 27 -'!B25,'- 27 -'!E25,'- 27 -'!H25,'- 28 -'!B25,'- 28 -'!E25) -> 12448558 | H25: =G25/'- 3 -'!D25*100 -> 4.607912196 | I25: =G25/'- 7 -'!E25 -> 721.6973738
A26: MOUNTAIN VIEW | B26: =SUM('- 24 -'!H26,'- 24 -'!F26,'- 24 -'!D26,'- 24 -'!B26) -> 121662 | C26: =B26/'- 3 -'!D26*100 -> 0.2322466522 | D26: =SUM('- 25 -'!B26,'- 25 -'!E26,'- 25 -'!H26,'- 26 -'!B26) -> 1628194 | E26: =D26/'- 3 -'!D26*100 -> 3.108140632 | F26: =D26/'- 7 -'!E26 -> 532.5246116 | G26: =SUM('- 27 -'!B26,'- 27 -'!E26,'- 27 -'!H26,'- 28 -'!B26,'- 28 -'!E26) -> 2008463 | H26: =G26/'- 3 -'!D26*100 -> 3.834055069 | I26: =G26/'- 7 -'!E26 -> 656.8971382
A27: MYSTERY LAKE | B27: =SUM('- 24 -'!H27,'- 24 -'!F27,'- 24 -'!D27,'- 24 -'!B27) -> 41968 | C27: =B27/'- 3 -'!D27*100 -> 0.07982207407 | D27: =SUM('- 25 -'!B27,'- 25 -'!E27,'- 25 -'!H27,'- 26 -'!B27) -> 2110038 | E27: =D27/'- 3 -'!D27*100 -> 4.013238885 | F27: =D27/'- 7 -'!E27 -> 729.3623552 | G27: =SUM('- 27 -'!B27,'- 27 -'!E27,'- 27 -'!H27,'- 28 -'!B27,'- 28 -'!E27) -> 3122991 | H27: =G27/'- 3 -'!D27*100 -> 5.93984986 | I27: =G27/'- 7 -'!E27 -> 1079.502867
A28: PARK WEST | B28: =SUM('- 24 -'!H28,'- 24 -'!F28,'- 24 -'!D28,'- 24 -'!B28) -> 129444 | C28: =B28/'- 3 -'!D28*100 -> 0.3526032904 | D28: =SUM('- 25 -'!B28,'- 25 -'!E28,'- 25 -'!H28,'- 26 -'!B28) -> 1286711 | E28: =D28/'- 3 -'!D28*100 -> 3.504979237 | F28: =D28/'- 7 -'!E28 -> 578.1671534 | G28: =SUM('- 27 -'!B28,'- 27 -'!E28,'- 27 -'!H28,'- 28 -'!B28,'- 28 -'!E28) -> 1207871 | H28: =G28/'- 3 -'!D28*100 -> 3.290220396 | I28: =G28/'- 7 -'!E28 -> 542.7414064
A29: PEMBINA TRAILS | B29: =SUM('- 24 -'!H29,'- 24 -'!F29,'- 24 -'!D29,'- 24 -'!B29) -> 182879 | C29: =B29/'- 3 -'!D29*100 -> 0.07490279836 | D29: =SUM('- 25 -'!B29,'- 25 -'!E29,'- 25 -'!H29,'- 26 -'!B29) -> 7489182 | E29: =D29/'- 3 -'!D29*100 -> 3.067387121 | F29: =D29/'- 7 -'!E29 -> 419.5385132 | G29: =SUM('- 27 -'!B29,'- 27 -'!E29,'- 27 -'!H29,'- 28 -'!B29,'- 28 -'!E29) -> 9915774 | H29: =G29/'- 3 -'!D29*100 -> 4.06126029 | I29: =G29/'- 7 -'!E29 -> 555.4744272
A30: PINE CREEK | B30: =SUM('- 24 -'!H30,'- 24 -'!F30,'- 24 -'!D30,'- 24 -'!B30) -> 14790 | C30: =B30/'- 3 -'!D30*100 -> 0.06922461689 | D30: =SUM('- 25 -'!B30,'- 25 -'!E30,'- 25 -'!H30,'- 26 -'!B30) -> 668900 | E30: =D30/'- 3 -'!D30*100 -> 3.13078744 | F30: =D30/'- 7 -'!E30 -> 625.1401869 | G30: =SUM('- 27 -'!B30,'- 27 -'!E30,'- 27 -'!H30,'- 28 -'!B30,'- 28 -'!E30) -> 549007 | H30: =G30/'- 3 -'!D30*100 -> 2.569628076 | I30: =G30/'- 7 -'!E30 -> 513.0906542
A31: PORTAGE LA PRAIRIE | B31: =SUM('- 24 -'!H31,'- 24 -'!F31,'- 24 -'!D31,'- 24 -'!B31) -> 51260 | C31: =B31/'- 3 -'!D31*100 -> 0.09613799279 | D31: =SUM('- 25 -'!B31,'- 25 -'!E31,'- 25 -'!H31,'- 26 -'!B31) -> 1422340 | E31: =D31/'- 3 -'!D31*100 -> 2.667594863 | F31: =D31/'- 7 -'!E31 -> 412.4517906 | G31: =SUM('- 27 -'!B31,'- 27 -'!E31,'- 27 -'!H31,'- 28 -'!B31,'- 28 -'!E31) -> 2366284 | H31: =G31/'- 3 -'!D31*100 -> 4.437959308 | I31: =G31/'- 7 -'!E31 -> 686.1777584
A32: PRAIRIE ROSE | B32: =SUM('- 24 -'!H32,'- 24 -'!F32,'- 24 -'!D32,'- 24 -'!B32) -> 28077 | C32: =B32/'- 3 -'!D32*100 -> 0.06752632275 | D32: =SUM('- 25 -'!B32,'- 25 -'!E32,'- 25 -'!H32,'- 26 -'!B32) -> 1281762 | E32: =D32/'- 3 -'!D32*100 -> 3.08268955 | F32: =D32/'- 7 -'!E32 -> 553.6768898 | G32: =SUM('- 27 -'!B32,'- 27 -'!E32,'- 27 -'!H32,'- 28 -'!B32,'- 28 -'!E32) -> 1272659 | H32: =G32/'- 3 -'!D32*100 -> 3.060796466 | I32: =G32/'- 7 -'!E32 -> 549.7447084
A33: PRAIRIE SPIRIT | B33: =SUM('- 24 -'!H33,'- 24 -'!F33,'- 24 -'!D33,'- 24 -'!B33) -> 34617 | C33: =B33/'- 3 -'!D33*100 -> 0.09966548994 | D33: =SUM('- 25 -'!B33,'- 25 -'!E33,'- 25 -'!H33,'- 26 -'!B33) -> 1000870 | E33: =D33/'- 3 -'!D33*100 -> 2.881595717 | F33: =D33/'- 7 -'!E33 -> 459.0094015 | G33: =SUM('- 27 -'!B33,'- 27 -'!E33,'- 27 -'!H33,'- 28 -'!B33,'- 28 -'!E33) -> 1137821 | H33: =G33/'- 3 -'!D33*100 -> 3.275890095 | I33: =G33/'- 7 -'!E33 -> 521.8165558
A34: RED RIVER VALLEY | B34: =SUM('- 24 -'!H34,'- 24 -'!F34,'- 24 -'!D34,'- 24 -'!B34) -> 61325 | C34: =B34/'- 3 -'!D34*100 -> 0.1520646461 | D34: =SUM('- 25 -'!B34,'- 25 -'!E34,'- 25 -'!H34,'- 26 -'!B34) -> 1408022 | E34: =D34/'- 3 -'!D34*100 -> 3.491404275 | F34: =D34/'- 7 -'!E34 -> 603.0072805 | G34: =SUM('- 27 -'!B34,'- 27 -'!E34,'- 27 -'!H34,'- 28 -'!B34,'- 28 -'!E34) -> 947012 | H34: =G34/'- 3 -'!D34*100 -> 2.348260002 | I34: =G34/'- 7 -'!E34 -> 405.572591
A35: RIVER EAST TRANSCONA | B35: =SUM('- 24 -'!H35,'- 24 -'!F35,'- 24 -'!D35,'- 24 -'!B35) -> 599581 | C35: =B35/'- 3 -'!D35*100 -> 0.2242484026 | D35: =SUM('- 25 -'!B35,'- 25 -'!E35,'- 25 -'!H35,'- 26 -'!B35) -> 7245022 | E35: =D35/'- 3 -'!D35*100 -> 2.709699957 | F35: =D35/'- 7 -'!E35 -> 391.665153 | G35: =SUM('- 27 -'!B35,'- 27 -'!E35,'- 27 -'!H35,'- 28 -'!B35,'- 28 -'!E35) -> 9965064 | H35: =G35/'- 3 -'!D35*100 -> 3.727018841 | I35: =G35/'- 7 -'!E35 -> 538.7103471
A36: ROLLING RIVER | B36: =SUM('- 24 -'!H36,'- 24 -'!F36,'- 24 -'!D36,'- 24 -'!B36) -> 23475 | C36: =B36/'- 3 -'!D36*100 -> 0.08070374352 | D36: =SUM('- 25 -'!B36,'- 25 -'!E36,'- 25 -'!H36,'- 26 -'!B36) -> 1036765 | E36: =D36/'- 3 -'!D36*100 -> 3.56425204 | F36: =D36/'- 7 -'!E36 -> 577.263363 | G36: =SUM('- 27 -'!B36,'- 27 -'!E36,'- 27 -'!H36,'- 28 -'!B36,'- 28 -'!E36) -> 849055 | H36: =G36/'- 3 -'!D36*100 -> 2.9189315 | I36: =G36/'- 7 -'!E36 -> 472.7477728
A37: SEINE RIVER | B37: =SUM('- 24 -'!H37,'- 24 -'!F37,'- 24 -'!D37,'- 24 -'!B37) -> 0 | C37: =B37/'- 3 -'!D37*100 -> 0 | D37: =SUM('- 25 -'!B37,'- 25 -'!E37,'- 25 -'!H37,'- 26 -'!B37) -> 2383928 | E37: =D37/'- 3 -'!D37*100 -> 3.116623658 | F37: =D37/'- 7 -'!E37 -> 487.311529 | G37: =SUM('- 27 -'!B37,'- 27 -'!E37,'- 27 -'!H37,'- 28 -'!B37,'- 28 -'!E37) -> 2526270 | H37: =G37/'- 3 -'!D37*100 -> 3.302714196 | I37: =G37/'- 7 -'!E37 -> 516.4084219
A38: SEVEN OAKS | B38: =SUM('- 24 -'!H38,'- 24 -'!F38,'- 24 -'!D38,'- 24 -'!B38) -> 2971444 | C38: =B38/'- 3 -'!D38*100 -> 1.538732584 | D38: =SUM('- 25 -'!B38,'- 25 -'!E38,'- 25 -'!H38,'- 26 -'!B38) -> 5376530 | E38: =D38/'- 3 -'!D38*100 -> 2.784182337 | F38: =D38/'- 7 -'!E38 -> 447.1201184 | G38: =SUM('- 27 -'!B38,'- 27 -'!E38,'- 27 -'!H38,'- 28 -'!B38,'- 28 -'!E38) -> 8109118 | H38: =G38/'- 3 -'!D38*100 -> 4.199225728 | I38: =G38/'- 7 -'!E38 -> 674.3661433
A39: SOUTHWEST HORIZON | B39: =SUM('- 24 -'!H39,'- 24 -'!F39,'- 24 -'!D39,'- 24 -'!B39) -> 200100 | C39: =B39/'- 3 -'!D39*100 -> 0.7527112275 | D39: =SUM('- 25 -'!B39,'- 25 -'!E39,'- 25 -'!H39,'- 26 -'!B39) -> 973200 | E39: =D39/'- 3 -'!D39*100 -> 3.660862402 | F39: =D39/'- 7 -'!E39 -> 681.512605 | G39: =SUM('- 27 -'!B39,'- 27 -'!E39,'- 27 -'!H39,'- 28 -'!B39,'- 28 -'!E39) -> 537850 | H39: =G39/'- 3 -'!D39*100 -> 2.02321706 | I39: =G39/'- 7 -'!E39 -> 376.6456583
A40: ST. JAMES-ASSINIBOIA | B40: =SUM('- 24 -'!H40,'- 24 -'!F40,'- 24 -'!D40,'- 24 -'!B40) -> 1193128 | C40: =B40/'- 3 -'!D40*100 -> 0.8430920902 | D40: =SUM('- 25 -'!B40,'- 25 -'!E40,'- 25 -'!H40,'- 26 -'!B40) -> 4556872 | E40: =D40/'- 3 -'!D40*100 -> 3.219992104 | F40: =D40/'- 7 -'!E40 -> 547.5693343 | G40: =SUM('- 27 -'!B40,'- 27 -'!E40,'- 27 -'!H40,'- 28 -'!B40,'- 28 -'!E40) -> 5216855 | H40: =G40/'- 3 -'!D40*100 -> 3.686351495 | I40: =G40/'- 7 -'!E40 -> 626.8751502
A41: SUNRISE | B41: =SUM('- 24 -'!H41,'- 24 -'!F41,'- 24 -'!D41,'- 24 -'!B41) -> 61718 | C41: =B41/'- 3 -'!D41*100 -> 0.0718432893 | D41: =SUM('- 25 -'!B41,'- 25 -'!E41,'- 25 -'!H41,'- 26 -'!B41) -> 2642780 | E41: =D41/'- 3 -'!D41*100 -> 3.076347388 | F41: =D41/'- 7 -'!E41 -> 602.6177175 | G41: =SUM('- 27 -'!B41,'- 27 -'!E41,'- 27 -'!H41,'- 28 -'!B41,'- 28 -'!E41) -> 1845576 | H41: =G41/'- 3 -'!D41*100 -> 2.148356241 | I41: =G41/'- 7 -'!E41 -> 420.8359366
A42: SWAN VALLEY | B42: =SUM('- 24 -'!H42,'- 24 -'!F42,'- 24 -'!D42,'- 24 -'!B42) -> 43741 | C42: =B42/'- 3 -'!D42*100 -> 0.1675582921 | D42: =SUM('- 25 -'!B42,'- 25 -'!E42,'- 25 -'!H42,'- 26 -'!B42) -> 911986 | E42: =D42/'- 3 -'!D42*100 -> 3.493537336 | F42: =D42/'- 7 -'!E42 -> 665.9262505 | G42: =SUM('- 27 -'!B42,'- 27 -'!E42,'- 27 -'!H42,'- 28 -'!B42,'- 28 -'!E42) -> 686607 | H42: =G42/'- 3 -'!D42*100 -> 2.630179838 | I42: =G42/'- 7 -'!E42 -> 501.3559693
A43: TURTLE MOUNTAIN | B43: =SUM('- 24 -'!H43,'- 24 -'!F43,'- 24 -'!D43,'- 24 -'!B43) -> 16876 | C43: =B43/'- 3 -'!D43*100 -> 0.09543628395 | D43: =SUM('- 25 -'!B43,'- 25 -'!E43,'- 25 -'!H43,'- 26 -'!B43) -> 578199 | E43: =D43/'- 3 -'!D43*100 -> 3.269801134 | F43: =D43/'- 7 -'!E43 -> 533.3939114 | G43: =SUM('- 27 -'!B43,'- 27 -'!E43,'- 27 -'!H43,'- 28 -'!B43,'- 28 -'!E43) -> 673332 | H43: =G43/'- 3 -'!D43*100 -> 3.807792365 | I43: =G43/'- 7 -'!E43 -> 621.1549815
A44: TURTLE RIVER | B44: =SUM('- 24 -'!H44,'- 24 -'!F44,'- 24 -'!D44,'- 24 -'!B44) -> 35161 | C44: =B44/'- 3 -'!D44*100 -> 0.2669331266 | D44: =SUM('- 25 -'!B44,'- 25 -'!E44,'- 25 -'!H44,'- 26 -'!B44) -> 496768 | E44: =D44/'- 3 -'!D44*100 -> 3.771332881 | F44: =D44/'- 7 -'!E44 -> 849.1760684 | G44: =SUM('- 27 -'!B44,'- 27 -'!E44,'- 27 -'!H44,'- 28 -'!B44,'- 28 -'!E44) -> 244255 | H44: =G44/'- 3 -'!D44*100 -> 1.854320151 | I44: =G44/'- 7 -'!E44 -> 417.5299145
A45: WESTERN | B45: =SUM('- 24 -'!H45,'- 24 -'!F45,'- 24 -'!D45,'- 24 -'!B45) -> 70793 | C45: =B45/'- 3 -'!D45*100 -> 0.2146781211 | D45: =SUM('- 25 -'!B45,'- 25 -'!E45,'- 25 -'!H45,'- 26 -'!B45) -> 868367 | E45: =D45/'- 3 -'!D45*100 -> 2.633302671 | F45: =D45/'- 7 -'!E45 -> 366.2450443 | G45: =SUM('- 27 -'!B45,'- 27 -'!E45,'- 27 -'!H45,'- 28 -'!B45,'- 28 -'!E45) -> 859766 | H45: =G45/'- 3 -'!D45*100 -> 2.607220339 | I45: =G45/'- 7 -'!E45 -> 362.617461
A46: WINNIPEG | B46: =SUM('- 24 -'!H46,'- 24 -'!F46,'- 24 -'!D46,'- 24 -'!B46) -> 8469445 | C46: =B46/'- 3 -'!D46*100 -> 1.625574065 | D46: =SUM('- 25 -'!B46,'- 25 -'!E46,'- 25 -'!H46,'- 26 -'!B46) -> 14424372 | E46: =D46/'- 3 -'!D46*100 -> 2.768526748 | F46: =D46/'- 7 -'!E46 -> 505.1859375 | G46: =SUM('- 27 -'!B46,'- 27 -'!E46,'- 27 -'!H46,'- 28 -'!B46,'- 28 -'!E46) -> 22189026 | H46: =G46/'- 3 -'!D46*100 -> 4.258827489 | I46: =G46/'- 7 -'!E46 -> 777.1280374
A48: PROVINCE | B48: =SUM(B11:B46) -> 21765935 | C48: =B48/'- 3 -'!D48*100 -> 0.6781624496 | D48: =SUM(D11:D46) -> 100876342 | E48: =D48/'- 3 -'!D48*100 -> 3.143009808 | F48: =D48/'- 7 -'!E48 -> 524.0740819 | G48: =SUM(G11:G46) -> 124263491 | H48: =G48/'- 3 -'!D48*100 -> 3.871684513 | I48: =G48/'- 7 -'!E48 -> 645.575302
A50: WHITESHELL | B50: =SUM('- 24 -'!H50,'- 24 -'!F50,'- 24 -'!D50,'- 24 -'!B50) -> 325600 | C50: =B50/'- 3 -'!D50*100 -> 7.565277236 | D50: =SUM('- 25 -'!B50,'- 25 -'!E50,'- 25 -'!H50,'- 26 -'!B50) -> 212400 | E50: =D50/'- 3 -'!D50*100 -> 4.935088713 | F50: =D50/'- 7 -'!E50 -> 1072.727273 | G50: =SUM('- 27 -'!B50,'- 27 -'!E50,'- 27 -'!H50,'- 28 -'!B50,'- 28 -'!E50) -> 87864 | H50: =G50/'- 3 -'!D50*100 -> 2.04150958 | I50: =G50/'- 7 -'!E50 -> 443.7575758

Sheet - 17 -
B2: =AEXP_BF -> ANALYSIS OF EXPENSE BY FUNCTION | J2: PAGE 3 OF 3
B3: =+'- 16 -'!B3 -> OPERATING FUND 2025/2026 BUDGET
B6: TRANSPORTATION OF PUPILS | E6: OPERATIONS AND MAINTENANCE | H6: FISCAL
D8: PER PUPIL | G8: PER PUPIL | J8: PER PUPIL
A9: DIVISION / DISTRICT | B9: AMOUNT | C9: % | E9: AMOUNT | F9: % | H9: AMOUNT | I9: %
A11: BEAUTIFUL PLAINS | B11: =SUM('- 30 -'!B11,'- 30 -'!D11,'- 29 -'!B11,'- 29 -'!D11,'- 29 -'!F11) -> 1726701 | C11: =B11/'- 3 -'!D11*100 -> 5.673095262 | D11: =B11/'- 7 -'!E11 -> 773.4382979 | E11: =SUM('- 32 -'!D11,'- 32 -'!B11,'- 31 -'!F11,'- 31 -'!D11,'- 31 -'!B11) -> 2839440 | F11: =E11/'- 3 -'!D11*100 -> 9.329011572 | G11: =E11/'- 7 -'!E11 -> 1271.865622 | H11: =SUM('- 33 -'!B11,'- 33 -'!D11) -> 519919 | I11: =H11/'- 3 -'!D11*100 -> 1.708199634 | J11: =H11/'- 7 -'!E11 -> 232.8864502
A12: BORDER LAND | B12: =SUM('- 30 -'!B12,'- 30 -'!D12,'- 29 -'!B12,'- 29 -'!D12,'- 29 -'!F12) -> 3097865 | C12: =B12/'- 3 -'!D12*100 -> 7.461447588 | D12: =B12/'- 7 -'!E12 -> 1521.171127 | E12: =SUM('- 32 -'!D12,'- 32 -'!B12,'- 31 -'!F12,'- 31 -'!D12,'- 31 -'!B12) -> 4431582 | F12: =E12/'- 3 -'!D12*100 -> 10.67380819 | G12: =E12/'- 7 -'!E12 -> 2176.077584 | H12: =SUM('- 33 -'!B12,'- 33 -'!D12) -> 735614 | I12: =H12/'- 3 -'!D12*100 -> 1.771783246 | J12: =H12/'- 7 -'!E12 -> 361.2148294
A13: BRANDON | B13: =SUM('- 30 -'!B13,'- 30 -'!D13,'- 29 -'!B13,'- 29 -'!D13,'- 29 -'!F13) -> 3294200 | C13: =B13/'- 3 -'!D13*100 -> 2.345996112 | D13: =B13/'- 7 -'!E13 -> 333.1176054 | E13: =SUM('- 32 -'!D13,'- 32 -'!B13,'- 31 -'!F13,'- 31 -'!D13,'- 31 -'!B13) -> 12265935 | F13: =E13/'- 3 -'!D13*100 -> 8.735303207 | G13: =E13/'- 7 -'!E13 -> 1240.361513 | H13: =SUM('- 33 -'!B13,'- 33 -'!D13) -> 2421214 | I13: =H13/'- 3 -'!D13*100 -> 1.724290763 | J13: =H13/'- 7 -'!E13 -> 244.8391142
A14: DSFM | B14: =SUM('- 30 -'!B14,'- 30 -'!D14,'- 29 -'!B14,'- 29 -'!D14,'- 29 -'!F14) -> 14289644 | C14: =B14/'- 3 -'!D14*100 -> 11.17622972 | D14: =B14/'- 7 -'!E14 -> 2205.8728 | E14: =SUM('- 32 -'!D14,'- 32 -'!B14,'- 31 -'!F14,'- 31 -'!D14,'- 31 -'!B14) -> 14409033 | F14: =E14/'- 3 -'!D14*100 -> 11.26960635 | G14: =E14/'- 7 -'!E14 -> 2224.302717 | H14: =SUM('- 33 -'!B14,'- 33 -'!D14) -> 1877656 | I14: =H14/'- 3 -'!D14*100 -> 1.468554065 | J14: =H14/'- 7 -'!E14 -> 289.8511886
A15: EVERGREEN | B15: =SUM('- 30 -'!B15,'- 30 -'!D15,'- 29 -'!B15,'- 29 -'!D15,'- 29 -'!F15) -> 2254350 | C15: =B15/'- 3 -'!D15*100 -> 8.579774856 | D15: =B15/'- 7 -'!E15 -> 1616.021505 | E15: =SUM('- 32 -'!D15,'- 32 -'!B15,'- 31 -'!F15,'- 31 -'!D15,'- 31 -'!B15) -> 3382120 | F15: =E15/'- 3 -'!D15*100 -> 12.87192678 | G15: =E15/'- 7 -'!E15 -> 2424.458781 | H15: =SUM('- 33 -'!B15,'- 33 -'!D15) -> 400000 | I15: =H15/'- 3 -'!D15*100 -> 1.522350098 | J15: =H15/'- 7 -'!E15 -> 286.7383513
A16: FLIN FLON | B16: =SUM('- 30 -'!B16,'- 30 -'!D16,'- 29 -'!B16,'- 29 -'!D16,'- 29 -'!F16) -> 637316 | C16: =B16/'- 3 -'!D16*100 -> 3.427590144 | D16: =B16/'- 7 -'!E16 -> 790.7146402 | E16: =SUM('- 32 -'!D16,'- 32 -'!B16,'- 31 -'!F16,'- 31 -'!D16,'- 31 -'!B16) -> 2570940 | F16: =E16/'- 3 -'!D16*100 -> 13.82693767 | G16: =E16/'- 7 -'!E16 -> 3189.751861 | H16: =SUM('- 33 -'!B16,'- 33 -'!D16) -> 223381 | I16: =H16/'- 3 -'!D16*100 -> 1.201379714 | J16: =H16/'- 7 -'!E16 -> 277.1476427
A17: FORT LA BOSSE | B17: =SUM('- 30 -'!B17,'- 30 -'!D17,'- 29 -'!B17,'- 29 -'!D17,'- 29 -'!F17) -> 1865257 | C17: =B17/'- 3 -'!D17*100 -> 7.928361461 | D17: =B17/'- 7 -'!E17 -> 1219.919555 | E17: =SUM('- 32 -'!D17,'- 32 -'!B17,'- 31 -'!F17,'- 31 -'!D17,'- 31 -'!B17) -> 2285328 | F17: =E17/'- 3 -'!D17*100 -> 9.713892745 | G17: =E17/'- 7 -'!E17 -> 1494.65533 | H17: =SUM('- 33 -'!B17,'- 33 -'!D17) -> 473000 | I17: =H17/'- 3 -'!D17*100 -> 2.010508456 | J17: =H17/'- 7 -'!E17 -> 309.352518
A18: FRONTIER | B18: =SUM('- 30 -'!B18,'- 30 -'!D18,'- 29 -'!B18,'- 29 -'!D18,'- 29 -'!F18) -> 14207128 | C18: =B18/'- 3 -'!D18*100 -> 8.146103882 | D18: =B18/'- 7 -'!E18 -> 2350.61681 | E18: =SUM('- 32 -'!D18,'- 32 -'!B18,'- 31 -'!F18,'- 31 -'!D18,'- 31 -'!B18) -> 31762722 | F18: =E18/'- 3 -'!D18*100 -> 18.21215611 | G18: =E18/'- 7 -'!E18 -> 5255.248511 | H18: =SUM('- 33 -'!B18,'- 33 -'!D18) -> 1524479 | I18: =H18/'- 3 -'!D18*100 -> 0.8741080041 | J18: =H18/'- 7 -'!E18 -> 252.2301456
A19: GARDEN VALLEY | B19: =SUM('- 30 -'!B19,'- 30 -'!D19,'- 29 -'!B19,'- 29 -'!D19,'- 29 -'!F19) -> 3237887 | C19: =B19/'- 3 -'!D19*100 -> 5.177127083 | D19: =B19/'- 7 -'!E19 -> 763.4725301 | E19: =SUM('- 32 -'!D19,'- 32 -'!B19,'- 31 -'!F19,'- 31 -'!D19,'- 31 -'!B19) -> 6392361 | F19: =E19/'- 3 -'!D19*100 -> 10.22088333 | G19: =E19/'- 7 -'!E19 -> 1507.276822 | H19: =SUM('- 33 -'!B19,'- 33 -'!D19) -> 1032500 | I19: =H19/'- 3 -'!D19*100 -> 1.650886431 | J19: =H19/'- 7 -'!E19 -> 243.4567319
A20: HANOVER | B20: =SUM('- 30 -'!B20,'- 30 -'!D20,'- 29 -'!B20,'- 29 -'!D20,'- 29 -'!F20) -> 5187400 | C20: =B20/'- 3 -'!D20*100 -> 4.395263615 | D20: =B20/'- 7 -'!E20 -> 599.5954459 | E20: =SUM('- 32 -'!D20,'- 32 -'!B20,'- 31 -'!F20,'- 31 -'!D20,'- 31 -'!B20) -> 11764500 | F20: =E20/'- 3 -'!D20*100 -> 9.968014573 | G20: =E20/'- 7 -'!E20 -> 1359.821996 | H20: =SUM('- 33 -'!B20,'- 33 -'!D20) -> 2184900 | I20: =H20/'- 3 -'!D20*100 -> 1.851257176 | J20: =H20/'- 7 -'!E20 -> 252.5458013
A21: INTERLAKE | B21: =SUM('- 30 -'!B21,'- 30 -'!D21,'- 29 -'!B21,'- 29 -'!D21,'- 29 -'!F21) -> 3303000 | C21: =B21/'- 3 -'!D21*100 -> 6.685879411 | D21: =B21/'- 7 -'!E21 -> 1169.20354 | E21: =SUM('- 32 -'!D21,'- 32 -'!B21,'- 31 -'!F21,'- 31 -'!D21,'- 31 -'!B21) -> 5019000 | F21: =E21/'- 3 -'!D21*100 -> 10.15937898 | G21: =E21/'- 7 -'!E21 -> 1776.637168 | H21: =SUM('- 33 -'!B21,'- 33 -'!D21) -> 893000 | I21: =H21/'- 3 -'!D21*100 -> 1.80759622 | J21: =H21/'- 7 -'!E21 -> 316.1061947
A22: KELSEY | B22: =SUM('- 30 -'!B22,'- 30 -'!D22,'- 29 -'!B22,'- 29 -'!D22,'- 29 -'!F22) -> 608135 | C22: =B22/'- 3 -'!D22*100 -> 2.435755197 | D22: =B22/'- 7 -'!E22 -> 424.6752793 | E22: =SUM('- 32 -'!D22,'- 32 -'!B22,'- 31 -'!F22,'- 31 -'!D22,'- 31 -'!B22) -> 3140315 | F22: =E22/'- 3 -'!D22*100 -> 12.57786278 | G22: =E22/'- 7 -'!E22 -> 2192.957402 | H22: =SUM('- 33 -'!B22,'- 33 -'!D22) -> 414554 | I22: =H22/'- 3 -'!D22*100 -> 1.660407738 | J22: =H22/'- 7 -'!E22 -> 289.4930168
A23: LAKESHORE | B23: =SUM('- 30 -'!B23,'- 30 -'!D23,'- 29 -'!B23,'- 29 -'!D23,'- 29 -'!F23) -> 2045400 | C23: =B23/'- 3 -'!D23*100 -> 10.9324555 | D23: =B23/'- 7 -'!E23 -> 2015.172414 | E23: =SUM('- 32 -'!D23,'- 32 -'!B23,'- 31 -'!F23,'- 31 -'!D23,'- 31 -'!B23) -> 1863732 | F23: =E23/'- 3 -'!D23*100 -> 9.961458471 | G23: =E23/'- 7 -'!E23 -> 1836.189163 | H23: =SUM('- 33 -'!B23,'- 33 -'!D23) -> 265000 | I23: =H23/'- 3 -'!D23*100 -> 1.416398117 | J23: =H23/'- 7 -'!E23 -> 261.0837438
A24: LORD SELKIRK | B24: =SUM('- 30 -'!B24,'- 30 -'!D24,'- 29 -'!B24,'- 29 -'!D24,'- 29 -'!F24) -> 3435622 | C24: =B24/'- 3 -'!D24*100 -> 4.60885628 | D24: =B24/'- 7 -'!E24 -> 863.8727684 | E24: =SUM('- 32 -'!D24,'- 32 -'!B24,'- 31 -'!F24,'- 31 -'!D24,'- 31 -'!B24) -> 7997408 | F24: =E24/'- 3 -'!D24*100 -> 10.72845152 | G24: =E24/'- 7 -'!E24 -> 2010.91476 | H24: =SUM('- 33 -'!B24,'- 33 -'!D24) -> 1447700 | I24: =H24/'- 3 -'!D24*100 -> 1.942076642 | J24: =H24/'- 7 -'!E24 -> 364.0181041
A25: LOUIS RIEL | B25: =SUM('- 30 -'!B25,'- 30 -'!D25,'- 29 -'!B25,'- 29 -'!D25,'- 29 -'!F25) -> 6927199 | C25: =B25/'- 3 -'!D25*100 -> 2.564146366 | D25: =B25/'- 7 -'!E25 -> 401.6000348 | E25: =SUM('- 32 -'!D25,'- 32 -'!B25,'- 31 -'!F25,'- 31 -'!D25,'- 31 -'!B25) -> 26567599 | F25: =E25/'- 3 -'!D25*100 -> 9.834164202 | G25: =E25/'- 7 -'!E25 -> 1540.239956 | H25: =SUM('- 33 -'!B25,'- 33 -'!D25) -> 4547314 | I25: =H25/'- 3 -'!D25*100 -> 1.683216935 | J25: =H25/'- 7 -'!E25 -> 263.6276886
A26: MOUNTAIN VIEW | B26: =SUM('- 30 -'!B26,'- 30 -'!D26,'- 29 -'!B26,'- 29 -'!D26,'- 29 -'!F26) -> 3633713 | C26: =B26/'- 3 -'!D26*100 -> 6.936575753 | D26: =B26/'- 7 -'!E26 -> 1188.458872 | E26: =SUM('- 32 -'!D26,'- 32 -'!B26,'- 31 -'!F26,'- 31 -'!D26,'- 31 -'!B26) -> 6759614 | F26: =E26/'- 3 -'!D26*100 -> 12.90376388 | G26: =E26/'- 7 -'!E26 -> 2210.830417 | H26: =SUM('- 33 -'!B26,'- 33 -'!D26) -> 979423 | I26: =H26/'- 3 -'!D26*100 -> 1.869669353 | J26: =H26/'- 7 -'!E26 -> 320.3345871
A27: MYSTERY LAKE | B27: =SUM('- 30 -'!B27,'- 30 -'!D27,'- 29 -'!B27,'- 29 -'!D27,'- 29 -'!F27) -> 741215 | C27: =B27/'- 3 -'!D27*100 -> 1.409772175 | D27: =B27/'- 7 -'!E27 -> 256.2107024 | E27: =SUM('- 32 -'!D27,'- 32 -'!B27,'- 31 -'!F27,'- 31 -'!D27,'- 31 -'!B27) -> 7048315 | F27: =E27/'- 3 -'!D27*100 -> 13.40571678 | G27: =E27/'- 7 -'!E27 -> 2436.342677 | H27: =SUM('- 33 -'!B27,'- 33 -'!D27) -> 845390 | I27: =H27/'- 3 -'!D27*100 -> 1.607910389 | J27: =H27/'- 7 -'!E27 -> 292.2201598
A28: PARK WEST | B28: =SUM('- 30 -'!B28,'- 30 -'!D28,'- 29 -'!B28,'- 29 -'!D28,'- 29 -'!F28) -> 2138831 | C28: =B28/'- 3 -'!D28*100 -> 5.826139861 | D28: =B28/'- 7 -'!E28 -> 961.0563918 | E28: =SUM('- 32 -'!D28,'- 32 -'!B28,'- 31 -'!F28,'- 31 -'!D28,'- 31 -'!B28) -> 4109437 | F28: =E28/'- 3 -'!D28*100 -> 11.19403764 | G28: =E28/'- 7 -'!E28 -> 1846.523029 | H28: =SUM('- 33 -'!B28,'- 33 -'!D28) -> 526600 | I28: =H28/'- 3 -'!D28*100 -> 1.43444959 | J28: =H28/'- 7 -'!E28 -> 236.620984
A29: PEMBINA TRAILS | B29: =SUM('- 30 -'!B29,'- 30 -'!D29,'- 29 -'!B29,'- 29 -'!D29,'- 29 -'!F29) -> 6069766 | C29: =B29/'- 3 -'!D29*100 -> 2.486028788 | D29: =B29/'- 7 -'!E29 -> 340.0238642 | E29: =SUM('- 32 -'!D29,'- 32 -'!B29,'- 31 -'!F29,'- 31 -'!D29,'- 31 -'!B29) -> 24543634 | F29: =E29/'- 3 -'!D29*100 -> 10.0524766 | G29: =E29/'- 7 -'!E29 -> 1374.916475 | H29: =SUM('- 33 -'!B29,'- 33 -'!D29) -> 4385000 | I29: =H29/'- 3 -'!D29*100 -> 1.795989539 | J29: =H29/'- 7 -'!E29 -> 245.6445017
A30: PINE CREEK | B30: =SUM('- 30 -'!B30,'- 30 -'!D30,'- 29 -'!B30,'- 29 -'!D30,'- 29 -'!F30) -> 2017632 | C30: =B30/'- 3 -'!D30*100 -> 9.443529562 | D30: =B30/'- 7 -'!E30 -> 1885.637383 | E30: =SUM('- 32 -'!D30,'- 32 -'!B30,'- 31 -'!F30,'- 31 -'!D30,'- 31 -'!B30) -> 2046399 | F30: =E30/'- 3 -'!D30*100 -> 9.578173549 | G30: =E30/'- 7 -'!E30 -> 1912.52243 | H30: =SUM('- 33 -'!B30,'- 33 -'!D30) -> 324864 | I30: =H30/'- 3 -'!D30*100 -> 1.520526433 | J30: =H30/'- 7 -'!E30 -> 303.611215
A31: PORTAGE LA PRAIRIE | B31: =SUM('- 30 -'!B31,'- 30 -'!D31,'- 29 -'!B31,'- 29 -'!D31,'- 29 -'!F31) -> 1445838 | C31: =B31/'- 3 -'!D31*100 -> 2.711665299 | D31: =B31/'- 7 -'!E31 -> 419.2657677 | E31: =SUM('- 32 -'!D31,'- 32 -'!B31,'- 31 -'!F31,'- 31 -'!D31,'- 31 -'!B31) -> 5663060 | F31: =E31/'- 3 -'!D31*100 -> 10.62105387 | G31: =E31/'- 7 -'!E31 -> 1642.180658 | H31: =SUM('- 33 -'!B31,'- 33 -'!D31) -> 832000 | I31: =H31/'- 3 -'!D31*100 -> 1.560413773 | J31: =H31/'- 7 -'!E31 -> 241.2643178
A32: PRAIRIE ROSE | B32: =SUM('- 30 -'!B32,'- 30 -'!D32,'- 29 -'!B32,'- 29 -'!D32,'- 29 -'!F32) -> 3060783 | C32: =B32/'- 3 -'!D32*100 -> 7.361307145 | D32: =B32/'- 7 -'!E32 -> 1322.152484 | E32: =SUM('- 32 -'!D32,'- 32 -'!B32,'- 31 -'!F32,'- 31 -'!D32,'- 31 -'!B32) -> 4467153 | F32: =E32/'- 3 -'!D32*100 -> 10.74368398 | G32: =E32/'- 7 -'!E32 -> 1929.655724 | H32: =SUM('- 33 -'!B32,'- 33 -'!D32) -> 875000 | I32: =H32/'- 3 -'!D32*100 -> 2.104410457 | J32: =H32/'- 7 -'!E32 -> 377.9697624
A33: PRAIRIE SPIRIT | B33: =SUM('- 30 -'!B33,'- 30 -'!D33,'- 29 -'!B33,'- 29 -'!D33,'- 29 -'!F33) -> 2891210 | C33: =B33/'- 3 -'!D33*100 -> 8.324056423 | D33: =B33/'- 7 -'!E33 -> 1325.939005 | E33: =SUM('- 32 -'!D33,'- 32 -'!B33,'- 31 -'!F33,'- 31 -'!D33,'- 31 -'!B33) -> 3811378 | F33: =E33/'- 3 -'!D33*100 -> 10.97330374 | G33: =E33/'- 7 -'!E33 -> 1747.937629 | H33: =SUM('- 33 -'!B33,'- 33 -'!D33) -> 595295 | I33: =H33/'- 3 -'!D33*100 -> 1.713908422 | J33: =H33/'- 7 -'!E33 -> 273.0084843
A34: RED RIVER VALLEY | B34: =SUM('- 30 -'!B34,'- 30 -'!D34,'- 29 -'!B34,'- 29 -'!D34,'- 29 -'!F34) -> 3556183 | C34: =B34/'- 3 -'!D34*100 -> 8.818095547 | D34: =B34/'- 7 -'!E34 -> 1522.990578 | E34: =SUM('- 32 -'!D34,'- 32 -'!B34,'- 31 -'!F34,'- 31 -'!D34,'- 31 -'!B34) -> 3742394 | F34: =E34/'- 3 -'!D34*100 -> 9.279833986 | G34: =E34/'- 7 -'!E34 -> 1602.73833 | H34: =SUM('- 33 -'!B34,'- 33 -'!D34) -> 790054 | I34: =H34/'- 3 -'!D34*100 -> 1.959058816 | J34: =H34/'- 7 -'!E34 -> 338.3528908
A35: RIVER EAST TRANSCONA | B35: =SUM('- 30 -'!B35,'- 30 -'!D35,'- 29 -'!B35,'- 29 -'!D35,'- 29 -'!F35) -> 6675444 | C35: =B35/'- 3 -'!D35*100 -> 2.496672932 | D35: =B35/'- 7 -'!E35 -> 360.8738242 | E35: =SUM('- 32 -'!D35,'- 32 -'!B35,'- 31 -'!F35,'- 31 -'!D35,'- 31 -'!B35) -> 26509348 | F35: =E35/'- 3 -'!D35*100 -> 9.914722018 | G35: =E35/'- 7 -'!E35 -> 1433.092659 | H35: =SUM('- 33 -'!B35,'- 33 -'!D35) -> 4004453 | I35: =H35/'- 3 -'!D35*100 -> 1.497699541 | J35: =H35/'- 7 -'!E35 -> 216.4803222
A36: ROLLING RIVER | B36: =SUM('- 30 -'!B36,'- 30 -'!D36,'- 29 -'!B36,'- 29 -'!D36,'- 29 -'!F36) -> 2164265 | C36: =B36/'- 3 -'!D36*100 -> 7.440438231 | D36: =B36/'- 7 -'!E36 -> 1205.047327 | E36: =SUM('- 32 -'!D36,'- 32 -'!B36,'- 31 -'!F36,'- 31 -'!D36,'- 31 -'!B36) -> 3539340 | F36: =E36/'- 3 -'!D36*100 -> 12.1677524 | G36: =E36/'- 7 -'!E36 -> 1970.679287 | H36: =SUM('- 33 -'!B36,'- 33 -'!D36) -> 774000 | I36: =H36/'- 3 -'!D36*100 -> 2.660902981 | J36: =H36/'- 7 -'!E36 -> 430.9576837
A37: SEINE RIVER | B37: =SUM('- 30 -'!B37,'- 30 -'!D37,'- 29 -'!B37,'- 29 -'!D37,'- 29 -'!F37) -> 4723950 | C37: =B37/'- 3 -'!D37*100 -> 6.175846891 | D37: =B37/'- 7 -'!E37 -> 965.6479967 | E37: =SUM('- 32 -'!D37,'- 32 -'!B37,'- 31 -'!F37,'- 31 -'!D37,'- 31 -'!B37) -> 7125300 | F37: =E37/'- 3 -'!D37*100 -> 9.315247166 | G37: =E37/'- 7 -'!E37 -> 1456.52085 | H37: =SUM('- 33 -'!B37,'- 33 -'!D37) -> 1242500 | I37: =H37/'- 3 -'!D37*100 -> 1.624379971 | J37: =H37/'- 7 -'!E37 -> 253.9860998
A38: SEVEN OAKS | B38: =SUM('- 30 -'!B38,'- 30 -'!D38,'- 29 -'!B38,'- 29 -'!D38,'- 29 -'!F38) -> 5797277 | C38: =B38/'- 3 -'!D38*100 -> 3.002061966 | D38: =B38/'- 7 -'!E38 -> 482.1100559 | E38: =SUM('- 32 -'!D38,'- 32 -'!B38,'- 31 -'!F38,'- 31 -'!D38,'- 31 -'!B38) -> 17430230 | F38: =E38/'- 3 -'!D38*100 -> 9.026070438 | G38: =E38/'- 7 -'!E38 -> 1449.523485 | H38: =SUM('- 33 -'!B38,'- 33 -'!D38) -> 3480240 | I38: =H38/'- 3 -'!D38*100 -> 1.802207508 | J38: =H38/'- 7 -'!E38 -> 289.4218615
A39: SOUTHWEST HORIZON | B39: =SUM('- 30 -'!B39,'- 30 -'!D39,'- 29 -'!B39,'- 29 -'!D39,'- 29 -'!F39) -> 2331400 | C39: =B39/'- 3 -'!D39*100 -> 8.769969794 | D39: =B39/'- 7 -'!E39 -> 1632.633053 | E39: =SUM('- 32 -'!D39,'- 32 -'!B39,'- 31 -'!F39,'- 31 -'!D39,'- 31 -'!B39) -> 2799900 | F39: =E39/'- 3 -'!D39*100 -> 10.53231467 | G39: =E39/'- 7 -'!E39 -> 1960.714286 | H39: =SUM('- 33 -'!B39,'- 33 -'!D39) -> 507600 | I39: =H39/'- 3 -'!D39*100 -> 1.909426382 | J39: =H39/'- 7 -'!E39 -> 355.4621849
A40: ST. JAMES-ASSINIBOIA | B40: =SUM('- 30 -'!B40,'- 30 -'!D40,'- 29 -'!B40,'- 29 -'!D40,'- 29 -'!F40) -> 3495268 | C40: =B40/'- 3 -'!D40*100 -> 2.469837942 | D40: =B40/'- 7 -'!E40 -> 420.0033646 | E40: =SUM('- 32 -'!D40,'- 32 -'!B40,'- 31 -'!F40,'- 31 -'!D40,'- 31 -'!B40) -> 13330341 | F40: =E40/'- 3 -'!D40*100 -> 9.419530056 | G40: =E40/'- 7 -'!E40 -> 1601.819394 | H40: =SUM('- 33 -'!B40,'- 33 -'!D40) -> 2505900 | I40: =H40/'- 3 -'!D40*100 -> 1.770727423 | J40: =H40/'- 7 -'!E40 -> 301.1175198
A41: SUNRISE | B41: =SUM('- 30 -'!B41,'- 30 -'!D41,'- 29 -'!B41,'- 29 -'!D41,'- 29 -'!F41) -> 6788328 | C41: =B41/'- 3 -'!D41*100 -> 7.902002857 | D41: =B41/'- 7 -'!E41 -> 1547.902862 | E41: =SUM('- 32 -'!D41,'- 32 -'!B41,'- 31 -'!F41,'- 31 -'!D41,'- 31 -'!B41) -> 8771814 | F41: =E41/'- 3 -'!D41*100 -> 10.21089424 | G41: =E41/'- 7 -'!E41 -> 2000.185612 | H41: =SUM('- 33 -'!B41,'- 33 -'!D41) -> 1878285 | I41: =H41/'- 3 -'!D41*100 -> 2.186431392 | J41: =H41/'- 7 -'!E41 -> 428.2943792
A42: SWAN VALLEY | B42: =SUM('- 30 -'!B42,'- 30 -'!D42,'- 29 -'!B42,'- 29 -'!D42,'- 29 -'!F42) -> 2195737 | C42: =B42/'- 3 -'!D42*100 -> 8.411191826 | D42: =B42/'- 7 -'!E42 -> 1603.312888 | E42: =SUM('- 32 -'!D42,'- 32 -'!B42,'- 31 -'!F42,'- 31 -'!D42,'- 31 -'!B42) -> 2982202 | F42: =E42/'- 3 -'!D42*100 -> 11.42389689 | G42: =E42/'- 7 -'!E42 -> 2177.58452 | H42: =SUM('- 33 -'!B42,'- 33 -'!D42) -> 444000 | I42: =H42/'- 3 -'!D42*100 -> 1.70082718 | J42: =H42/'- 7 -'!E42 -> 324.2059146
A43: TURTLE MOUNTAIN | B43: =SUM('- 30 -'!B43,'- 30 -'!D43,'- 29 -'!B43,'- 29 -'!D43,'- 29 -'!F43) -> 1494889 | C43: =B43/'- 3 -'!D43*100 -> 8.453819097 | D43: =B43/'- 7 -'!E43 -> 1379.048893 | E43: =SUM('- 32 -'!D43,'- 32 -'!B43,'- 31 -'!F43,'- 31 -'!D43,'- 31 -'!B43) -> 1321102 | F43: =E43/'- 3 -'!D43*100 -> 7.471027827 | G43: =E43/'- 7 -'!E43 -> 1218.728782 | H43: =SUM('- 33 -'!B43,'- 33 -'!D43) -> 413894 | I43: =H43/'- 3 -'!D43*100 -> 2.340631981 | J43: =H43/'- 7 -'!E43 -> 381.8210332
A44: TURTLE RIVER | B44: =SUM('- 30 -'!B44,'- 30 -'!D44,'- 29 -'!B44,'- 29 -'!D44,'- 29 -'!F44) -> 1500040 | C44: =B44/'- 3 -'!D44*100 -> 11.38791181 | D44: =B44/'- 7 -'!E44 -> 2564.17094 | E44: =SUM('- 32 -'!D44,'- 32 -'!B44,'- 31 -'!F44,'- 31 -'!D44,'- 31 -'!B44) -> 1527400 | F44: =E44/'- 3 -'!D44*100 -> 11.59562178 | G44: =E44/'- 7 -'!E44 -> 2610.940171 | H44: =SUM('- 33 -'!B44,'- 33 -'!D44) -> 210982 | I44: =H44/'- 3 -'!D44*100 -> 1.601720227 | J44: =H44/'- 7 -'!E44 -> 360.6529915
A45: WESTERN | B45: =SUM('- 30 -'!B45,'- 30 -'!D45,'- 29 -'!B45,'- 29 -'!D45,'- 29 -'!F45) -> 1424685 | C45: =B45/'- 3 -'!D45*100 -> 4.320324029 | D45: =B45/'- 7 -'!E45 -> 600.8793758 | E45: =SUM('- 32 -'!D45,'- 32 -'!B45,'- 31 -'!F45,'- 31 -'!D45,'- 31 -'!B45) -> 3281287 | F45: =E45/'- 3 -'!D45*100 -> 9.950426284 | G45: =E45/'- 7 -'!E45 -> 1383.925348 | H45: =SUM('- 33 -'!B45,'- 33 -'!D45) -> 610973 | I45: =H45/'- 3 -'!D45*100 -> 1.85276137 | J45: =H45/'- 7 -'!E45 -> 257.6857866
A46: WINNIPEG | B46: =SUM('- 30 -'!B46,'- 30 -'!D46,'- 29 -'!B46,'- 29 -'!D46,'- 29 -'!F46) -> 10077067 | C46: =B46/'- 3 -'!D46*100 -> 1.934131311 | D46: =B46/'- 7 -'!E46 -> 352.9299258 | E46: =SUM('- 32 -'!D46,'- 32 -'!B46,'- 31 -'!F46,'- 31 -'!D46,'- 31 -'!B46) -> 65823163 | F46: =E46/'- 3 -'!D46*100 -> 12.63369992 | G46: =E46/'- 7 -'!E46 -> 2305.329917 | H46: =SUM('- 33 -'!B46,'- 33 -'!D46) -> 9718486 | I46: =H46/'- 3 -'!D46*100 -> 1.865307442 | J46: =H46/'- 7 -'!E46 -> 340.3713147
A48: PROVINCE | B48: =SUM(B11:B46) -> 140340625 | C48: =B48/'- 3 -'!D48*100 -> 4.372600673 | D48: =B48/'- 7 -'!E48 -> 729.0994374 | E48: =SUM(E11:E46) -> 353324826 | F48: =E48/'- 3 -'!D48*100 -> 11.00856129 | G48: =E48/'- 7 -'!E48 -> 1835.597724 | H48: =SUM(H11:H46) -> 54905170 | I48: =H48/'- 3 -'!D48*100 -> 1.710683441 | J48: =H48/'- 7 -'!E48 -> 285.2440521
A50: WHITESHELL | B50: =SUM('- 30 -'!B50,'- 30 -'!D50,'- 29 -'!B50,'- 29 -'!D50,'- 29 -'!F50) -> 58350 | C50: =B50/'- 3 -'!D50*100 -> 1.355755303 | D50: =B50/'- 7 -'!E50 -> 294.6969697 | E50: =SUM('- 32 -'!D50,'- 32 -'!B50,'- 31 -'!F50,'- 31 -'!D50,'- 31 -'!B50) -> 640998 | F50: =E50/'- 3 -'!D50*100 -> 14.89351222 | G50: =E50/'- 7 -'!E50 -> 3237.363636 | H50: =SUM('- 33 -'!B50,'- 33 -'!D50) -> 0 | I50: =H50/'- 3 -'!D50*100 -> 0 | J50: =H50/'- 7 -'!E50 -> 0
B52: =B48-'- 10 -'!K17 -> 0

Sheet - 18 -
B2: =IF(Lang=1,BA2,BB2) -> ANALYSIS OF EXPENSE BY PROGRAM | G2: PAGE 1 OF 16 | BA2: ANALYSIS OF EXPENSE BY PROGRAM | BB2: ANALYSE DES DÉPENSES PAR PROGRAMME
B3: =OPYEAR -> OPERATING FUND 2025/2026 BUDGET
B5: FUNCTION 100: REGULAR INSTRUCTION
B6: ADMINISTRATION | E6: SENIOR YEARS TECHNOLOGY EDUCATION
D8: PER PUPIL | G8: PER PUPIL
A9: DIVISION / DISTRICT | B9: AMOUNT | C9: % | E9: AMOUNT | F9: %
A11: BEAUTIFUL PLAINS | B11: 2099403 | C11: =B11/'- 3 -'!$D11*100 -> 6.897611811 | D11: =B11/'- 7 -'!$C11 -> 940.3820829 | E11: 0 | F11: =E11/'- 3 -'!$D11*100 -> 0 | G11: =IF('- 7 -'!$B11=0,"",E11/'- 7 -'!$B11) -> 
A12: BORDER LAND | B12: 3494897 | C12: =B12/'- 3 -'!$D12*100 -> 8.417729885 | D12: =B12/'- 7 -'!$C12 -> 1716.129143 | E12: 1199533 | F12: =E12/'- 3 -'!$D12*100 -> 2.889168059 | G12: =IF('- 7 -'!$B12=0,"",E12/'- 7 -'!$B12) -> 8692.268116
A13: BRANDON | B13: 9802310 | C13: =B13/'- 3 -'!$D13*100 -> 6.980809044 | D13: =B13/'- 7 -'!$C13 -> 991.233694 | E13: 4349204 | F13: =E13/'- 3 -'!$D13*100 -> 3.097327326 | G13: =IF('- 7 -'!$B13=0,"",E13/'- 7 -'!$B13) -> 9496.078603
A14: DSFM | B14: 8983475 | C14: =B14/'- 3 -'!$D14*100 -> 7.026163861 | D14: =B14/'- 7 -'!$C14 -> 1386.766749 | E14: 312779 | F14: =E14/'- 3 -'!$D14*100 -> 0.2446310038 | G14: =IF('- 7 -'!$B14=0,"",E14/'- 7 -'!$B14) -> 8664.238227
A15: EVERGREEN | B15: 2092466 | C15: =B15/'- 3 -'!$D15*100 -> 7.963664548 | D15: =B15/'- 7 -'!$C15 -> 1499.975627 | E15: 227030 | F15: =E15/'- 3 -'!$D15*100 -> 0.8640478566 | G15: =IF('- 7 -'!$B15=0,"",E15/'- 7 -'!$B15) -> 11351.5
A16: FLIN FLON | B16: 1508733 | C16: =B16/'- 3 -'!$D16*100 -> 8.114213923 | D16: =B16/'- 7 -'!$C16 -> 1871.877171 | E16: 0 | F16: =E16/'- 3 -'!$D16*100 -> 0 | G16: =IF('- 7 -'!$B16=0,"",E16/'- 7 -'!$B16) -> 
A17: FORT LA BOSSE | B17: 1599960 | C17: =B17/'- 3 -'!$D17*100 -> 6.800704248 | D17: =B17/'- 7 -'!$C17 -> 1046.409418 | E17: 236600 | F17: =E17/'- 3 -'!$D17*100 -> 1.005679283 | G17: =IF('- 7 -'!$B17=0,"",E17/'- 7 -'!$B17) -> 3154.666667
A18: FRONTIER | B18: 8893928 | C18: =B18/'- 3 -'!$D18*100 -> 5.099613476 | D18: =B18/'- 7 -'!$C18 -> 1471.530113 | E18: 0 | F18: =E18/'- 3 -'!$D18*100 -> 0 | G18: =IF('- 7 -'!$B18=0,"",E18/'- 7 -'!$B18) -> 0
A19: GARDEN VALLEY | B19: 4026012 | C19: =B19/'- 3 -'!$D19*100 -> 6.437277076 | D19: =B19/'- 7 -'!$C19 -> 949.3072389 | E19: 1392968 | F19: =E19/'- 3 -'!$D19*100 -> 2.22724646 | G19: =IF('- 7 -'!$B19=0,"",E19/'- 7 -'!$B19) -> 13929.68
A20: HANOVER | B20: 8190800 | C20: =B20/'- 3 -'!$D20*100 -> 6.940032621 | D20: =B20/'- 7 -'!$C20 -> 946.7491186 | E20: 3783800 | F20: =E20/'- 3 -'!$D20*100 -> 3.205998856 | G20: =IF('- 7 -'!$B20=0,"",E20/'- 7 -'!$B20) -> 6339.085274
A21: INTERLAKE | B21: 3600333 | C21: =B21/'- 3 -'!$D21*100 -> 7.287736081 | D21: =B21/'- 7 -'!$C21 -> 1274.454159 | E21: 0 | F21: =E21/'- 3 -'!$D21*100 -> 0 | G21: =IF('- 7 -'!$B21=0,"",E21/'- 7 -'!$B21) -> 
A22: KELSEY | B22: 1745665 | C22: =B22/'- 3 -'!$D22*100 -> 6.991889294 | D22: =B22/'- 7 -'!$C22 -> 1219.039804 | E22: 80300 | F22: =E22/'- 3 -'!$D22*100 -> 0.3216245444 | G22: =IF('- 7 -'!$B22=0,"",E22/'- 7 -'!$B22) -> 5576.388889
A23: LAKESHORE | B23: 1344900 | C23: =B23/'- 3 -'!$D23*100 -> 7.188354065 | D23: =B23/'- 7 -'!$C23 -> 1325.024631 | E23: 177100 | F23: =E23/'- 3 -'!$D23*100 -> 0.9465815338 | G23: =IF('- 7 -'!$B23=0,"",E23/'- 7 -'!$B23) -> 11806.66667
A24: LORD SELKIRK | B24: 6191989 | C24: =B24/'- 3 -'!$D24*100 -> 8.306498034 | D24: =B24/'- 7 -'!$C24 -> 1556.949711 | E24: 2141888 | F24: =E24/'- 3 -'!$D24*100 -> 2.873323654 | G24: =IF('- 7 -'!$B24=0,"",E24/'- 7 -'!$B24) -> 10448.23415
A25: LOUIS RIEL | B25: 19306853 | C25: =B25/'- 3 -'!$D25*100 -> 7.146553312 | D25: =B25/'- 7 -'!$C25 -> 1119.302742 | E25: 2365867 | F25: =E25/'- 3 -'!$D25*100 -> 0.87574058 | G25: =IF('- 7 -'!$B25=0,"",E25/'- 7 -'!$B25) -> 14252.21084
A26: MOUNTAIN VIEW | B26: 4446879 | C26: =B26/'- 3 -'!$D26*100 -> 8.488868837 | D26: =B26/'- 7 -'!$C26 -> 1454.41668 | E26: 1242012 | F26: =E26/'- 3 -'!$D26*100 -> 2.370938576 | G26: =IF('- 7 -'!$B26=0,"",E26/'- 7 -'!$B26) -> 7573.243902
A27: MYSTERY LAKE | B27: 3429941 | C27: =B27/'- 3 -'!$D27*100 -> 6.523660993 | D27: =B27/'- 7 -'!$C27 -> 1185.604167 | E27: 1374917 | F27: =E27/'- 3 -'!$D27*100 -> 2.615057344 | G27: =IF('- 7 -'!$B27=0,"",E27/'- 7 -'!$B27) -> 9528.844688
A28: PARK WEST | B28: 2679672 | C28: =B28/'- 3 -'!$D28*100 -> 7.299381697 | D28: =B28/'- 7 -'!$C28 -> 1204.076387 | E28: 0 | F28: =E28/'- 3 -'!$D28*100 -> 0 | G28: =IF('- 7 -'!$B28=0,"",E28/'- 7 -'!$B28) -> 
A29: PEMBINA TRAILS | B29: 26471581 | C29: =B29/'- 3 -'!$D29*100 -> 10.84211689 | D29: =B29/'- 7 -'!$C29 -> 1482.91866 | E29: 0 | F29: =E29/'- 3 -'!$D29*100 -> 0 | G29: =IF('- 7 -'!$B29=0,"",E29/'- 7 -'!$B29) -> 
A30: PINE CREEK | B30: 1392317 | C30: =B30/'- 3 -'!$D30*100 -> 6.516741779 | D30: =B30/'- 7 -'!$C30 -> 1301.230841 | E30: 589965 | F30: =E30/'- 3 -'!$D30*100 -> 2.761332056 | G30: =IF('- 7 -'!$B30=0,"",E30/'- 7 -'!$B30) -> 7661.883117
A31: PORTAGE LA PRAIRIE | B31: 4087092 | C31: =B31/'- 3 -'!$D31*100 -> 7.665330106 | D31: =B31/'- 7 -'!$C31 -> 1185.179643 | E31: 972815 | F31: =E31/'- 3 -'!$D31*100 -> 1.824511929 | G31: =IF('- 7 -'!$B31=0,"",E31/'- 7 -'!$B31) -> 8843.772727
A32: PRAIRIE ROSE | B32: 3489193 | C32: =B32/'- 3 -'!$D32*100 -> 8.391650556 | D32: =B32/'- 7 -'!$C32 -> 1507.210799 | E32: 0 | F32: =E32/'- 3 -'!$D32*100 -> 0 | G32: =IF('- 7 -'!$B32=0,"",E32/'- 7 -'!$B32) -> 
A33: PRAIRIE SPIRIT | B33: 3672215 | C33: =B33/'- 3 -'!$D33*100 -> 10.57264082 | D33: =B33/'- 7 -'!$C33 -> 1684.116028 | E33: 0 | F33: =E33/'- 3 -'!$D33*100 -> 0 | G33: =IF('- 7 -'!$B33=0,"",E33/'- 7 -'!$B33) -> 
A34: RED RIVER VALLEY | B34: 3404715 | C34: =B34/'- 3 -'!$D34*100 -> 8.442507649 | D34: =B34/'- 7 -'!$C34 -> 1458.122056 | E34: 421305 | F34: =E34/'- 3 -'!$D34*100 -> 1.044689698 | G34: =IF('- 7 -'!$B34=0,"",E34/'- 7 -'!$B34) -> 21605.38462
A35: RIVER EAST TRANSCONA | B35: 20281653 | C35: =B35/'- 3 -'!$D35*100 -> 7.585511027 | D35: =B35/'- 7 -'!$C35 -> 1096.4241 | E35: 4750103 | F35: =E35/'- 3 -'!$D35*100 -> 1.776578994 | G35: =IF('- 7 -'!$B35=0,"",E35/'- 7 -'!$B35) -> 5140.804113
A36: ROLLING RIVER | B36: 2400885 | C36: =B36/'- 3 -'!$D36*100 -> 8.253904463 | D36: =B36/'- 7 -'!$C36 -> 1336.795657 | E36: 154695 | F36: =E36/'- 3 -'!$D36*100 -> 0.531819621 | G36: =IF('- 7 -'!$B36=0,"",E36/'- 7 -'!$B36) -> 30939
A37: SEINE RIVER | B37: 5853600 | C37: =B37/'- 3 -'!$D37*100 -> 7.652692632 | D37: =B37/'- 7 -'!$C37 -> 1196.565822 | E37: 0 | F37: =E37/'- 3 -'!$D37*100 -> 0 | G37: =IF('- 7 -'!$B37=0,"",E37/'- 7 -'!$B37) -> 
A38: SEVEN OAKS | B38: 14141120 | C38: =B38/'- 3 -'!$D38*100 -> 7.32283769 | D38: =B38/'- 7 -'!$C38 -> 1175.996274 | E38: 1826927 | F38: =E38/'- 3 -'!$D38*100 -> 0.9460558918 | G38: =IF('- 7 -'!$B38=0,"",E38/'- 7 -'!$B38) -> 8240.536761
A39: SOUTHWEST HORIZON | B39: 1905100 | C39: =B39/'- 3 -'!$D39*100 -> 7.166367613 | D39: =B39/'- 7 -'!$C39 -> 1334.103641 | E39: 0 | F39: =E39/'- 3 -'!$D39*100 -> 0 | G39: =IF('- 7 -'!$B39=0,"",E39/'- 7 -'!$B39) -> 
A40: ST. JAMES-ASSINIBOIA | B40: 10935135 | C40: =B40/'- 3 -'!$D40*100 -> 7.727021597 | D40: =B40/'- 7 -'!$C40 -> 1314.003244 | E40: 2112093 | F40: =E40/'- 3 -'!$D40*100 -> 1.492454206 | G40: =IF('- 7 -'!$B40=0,"",E40/'- 7 -'!$B40) -> 8222.740014
A41: SUNRISE | B41: 5858968 | C41: =B41/'- 3 -'!$D41*100 -> 6.820174552 | D41: =B41/'- 7 -'!$C41 -> 1335.986319 | E41: 12000 | F41: =E41/'- 3 -'!$D41*100 -> 0.01396868777 | G41: =IF('- 7 -'!$B41=0,"",E41/'- 7 -'!$B41) -> 
A42: SWAN VALLEY | B42: 2296699 | C42: =B42/'- 3 -'!$D42*100 -> 8.797946136 | D42: =B42/'- 7 -'!$C42 -> 1677.034684 | E42: 1344014 | F42: =E42/'- 3 -'!$D42*100 -> 5.148503473 | G42: =IF('- 7 -'!$B42=0,"",E42/'- 7 -'!$B42) -> 8479.583596
A43: TURTLE MOUNTAIN | B43: 1141749 | C43: =B43/'- 3 -'!$D43*100 -> 6.45676 | D43: =B43/'- 7 -'!$C43 -> 1053.273985 | E43: 106549 | F43: =E43/'- 3 -'!$D43*100 -> 0.6025504041 | G43: =IF('- 7 -'!$B43=0,"",E43/'- 7 -'!$B43) -> 2732.025641
A44: TURTLE RIVER | B44: 800161 | C44: =B44/'- 3 -'!$D44*100 -> 6.074613279 | D44: =B44/'- 7 -'!$C44 -> 1367.796581 | E44: 0 | F44: =E44/'- 3 -'!$D44*100 -> 0 | G44: =IF('- 7 -'!$B44=0,"",E44/'- 7 -'!$B44) -> 
A45: WESTERN | B45: 2660568 | C45: =B45/'- 3 -'!$D45*100 -> 8.068110396 | D45: =B45/'- 7 -'!$C45 -> 1122.129059 | E45: 327352 | F45: =E45/'- 3 -'!$D45*100 -> 0.9926873038 | G45: =IF('- 7 -'!$B45=0,"",E45/'- 7 -'!$B45) -> 11691.14286
A46: WINNIPEG | B46: 36422452 | C46: =B46/'- 3 -'!$D46*100 -> 6.990705216 | D46: =B46/'- 7 -'!$C46 -> 1275.626458 | E46: 5812060 | F46: =E46/'- 3 -'!$D46*100 -> 1.115531655 | G46: =IF('- 7 -'!$B46=0,"",E46/'- 7 -'!$B46) -> 8295.832144
A48: PROVINCE | B48: =SUM(B11:B46) -> 240653419 | C48: =B48/'- 3 -'!$D48*100 -> 7.498051985 | D48: =B48/'- 7 -'!$C48 -> 1250.245767 | E48: =SUM(E11:E46) -> 37313876 | F48: =E48/'- 3 -'!$D48*100 -> 1.162590514 | G48: =E48/'- 7 -'!$B48 -> 7644.954465
A50: WHITESHELL | B50: 337807 | C50: =B50/'- 3 -'!$D50*100 -> 7.848905428 | D50: =B50/'- 7 -'!$C50 -> 1706.09596 | E50: 0 | F50: =E50/'- 3 -'!$D50*100 -> 0 | G50: =IF('- 7 -'!$B50=0,"",E50/'- 7 -'!$B50) -> 

Sheet - 19 -
B2: =AEXP_BP -> ANALYSIS OF EXPENSE BY PROGRAM | J2: PAGE 2 OF 16
B3: =OPYEAR -> OPERATING FUND 2025/2026 BUDGET
B5: FUNCTION 100: REGULAR INSTRUCTION (CONT'D)
B6: SINGLE TRACK SCHOOLS (1)
B7: ENGLISH LANGUAGE | E7: FRANÇAIS | H7: FRENCH IMMERSION
D8: PER PUPIL | G8: PER PUPIL | J8: PER PUPIL
A9: DIVISION / DISTRICT | B9: AMOUNT | C9: % | E9: AMOUNT | F9: % | H9: AMOUNT | I9: %
A11: BEAUTIFUL PLAINS | B11: 17602152 | C11: =B11/'- 3 -'!$D11*100 -> 57.83206537 | D11: =B11/'- 6 -'!$B11 -> 7884.502576 | E11: 0 | F11: =E11/'- 3 -'!$D11*100 -> 0 | G11: =IF('- 6 -'!$C11=0,"",E11/'- 6 -'!$C11) ->  | H11: 0 | I11: =H11/'- 3 -'!$D11*100 -> 0 | J11: =IF('- 6 -'!$D11=0,"",H11/'- 6 -'!$D11) -> 
A12: BORDER LAND | B12: 14915335 | C12: =B12/'- 3 -'!$D12*100 -> 35.9247386 | D12: =B12/'- 6 -'!$B12 -> 11739.73632 | E12: 0 | F12: =E12/'- 3 -'!$D12*100 -> 0 | G12: =IF('- 6 -'!$C12=0,"",E12/'- 6 -'!$C12) ->  | H12: 0 | I12: =H12/'- 3 -'!$D12*100 -> 0 | J12: =IF('- 6 -'!$D12=0,"",H12/'- 6 -'!$D12) -> 
A13: BRANDON | B13: 59956481 | C13: =B13/'- 3 -'!$D13*100 -> 42.69858276 | D13: =B13/'- 6 -'!$B13 -> 7568.351553 | E13: 0 | F13: =E13/'- 3 -'!$D13*100 -> 0 | G13: =IF('- 6 -'!$C13=0,"",E13/'- 6 -'!$C13) ->  | H13: 2533093 | I13: =H13/'- 3 -'!$D13*100 -> 1.803966465 | J13: =IF('- 6 -'!$D13=0,"",H13/'- 6 -'!$D13) -> 8067.175159
A14: DSFM | B14: 0 | C14: =B14/'- 3 -'!$D14*100 -> 0 | E14: 60627414 | F14: =E14/'- 3 -'!$D14*100 -> 47.41796969 | G14: =IF('- 6 -'!$C14=0,"",E14/'- 6 -'!$C14) -> 9411.41806 | H14: 0 | I14: =H14/'- 3 -'!$D14*100 -> 0 | J14: =IF('- 6 -'!$D14=0,"",H14/'- 6 -'!$D14) -> 
A15: EVERGREEN | B15: 11833933 | C15: =B15/'- 3 -'!$D15*100 -> 45.03847264 | D15: =B15/'- 6 -'!$B15 -> 8606.496727 | E15: 0 | F15: =E15/'- 3 -'!$D15*100 -> 0 | G15: =IF('- 6 -'!$C15=0,"",E15/'- 6 -'!$C15) ->  | H15: 0 | I15: =H15/'- 3 -'!$D15*100 -> 0 | J15: =IF('- 6 -'!$D15=0,"",H15/'- 6 -'!$D15) -> 
A16: FLIN FLON | B16: 5953362 | C16: =B16/'- 3 -'!$D16*100 -> 32.01815883 | D16: =B16/'- 6 -'!$B16 -> 11673.25882 | E16: 0 | F16: =E16/'- 3 -'!$D16*100 -> 0 | G16: =IF('- 6 -'!$C16=0,"",E16/'- 6 -'!$C16) ->  | H16: 0 | I16: =H16/'- 3 -'!$D16*100 -> 0 | J16: =IF('- 6 -'!$D16=0,"",H16/'- 6 -'!$D16) -> 
A17: FORT LA BOSSE | B17: 12875380 | C17: =B17/'- 3 -'!$D17*100 -> 54.72740034 | D17: =B17/'- 6 -'!$B17 -> 8855.144429 | E17: 0 | F17: =E17/'- 3 -'!$D17*100 -> 0 | G17: =IF('- 6 -'!$C17=0,"",E17/'- 6 -'!$C17) ->  | H17: 0 | I17: =H17/'- 3 -'!$D17*100 -> 0 | J17: =IF('- 6 -'!$D17=0,"",H17/'- 6 -'!$D17) -> 
A18: FRONTIER | B18: 61119167 | C18: =B18/'- 3 -'!$D18*100 -> 35.04459758 | D18: =B18/'- 6 -'!$B18 -> 10472.78393 | E18: 0 | F18: =E18/'- 3 -'!$D18*100 -> 0 | G18: =IF('- 6 -'!$C18=0,"",E18/'- 6 -'!$C18) ->  | H18: 0 | I18: =H18/'- 3 -'!$D18*100 -> 0 | J18: =IF('- 6 -'!$D18=0,"",H18/'- 6 -'!$D18) -> 
A19: GARDEN VALLEY | B19: 30817211 | C19: =B19/'- 3 -'!$D19*100 -> 49.2743007 | D19: =B19/'- 6 -'!$B19 -> 7441.973195 | E19: 0 | F19: =E19/'- 3 -'!$D19*100 -> 0 | G19: =IF('- 6 -'!$C19=0,"",E19/'- 6 -'!$C19) ->  | H19: 0 | I19: =H19/'- 3 -'!$D19*100 -> 0 | J19: =IF('- 6 -'!$D19=0,"",H19/'- 6 -'!$D19) -> 
A20: HANOVER | B20: 59627200 | C20: =B20/'- 3 -'!$D20*100 -> 50.52189201 | D20: =B20/'- 6 -'!$B20 -> 7402.875376 | E20: 0 | F20: =E20/'- 3 -'!$D20*100 -> 0 | G20: =IF('- 6 -'!$C20=0,"",E20/'- 6 -'!$C20) ->  | H20: 0 | I20: =H20/'- 3 -'!$D20*100 -> 0 | J20: =IF('- 6 -'!$D20=0,"",H20/'- 6 -'!$D20) -> 
A21: INTERLAKE | B21: 14502340 | C21: =B21/'- 3 -'!$D21*100 -> 29.35540309 | D21: =B21/'- 6 -'!$B21 -> 9559.881345 | E21: 0 | F21: =E21/'- 3 -'!$D21*100 -> 0 | G21: =IF('- 6 -'!$C21=0,"",E21/'- 6 -'!$C21) ->  | H21: 0 | I21: =H21/'- 3 -'!$D21*100 -> 0 | J21: =IF('- 6 -'!$D21=0,"",H21/'- 6 -'!$D21) -> 
A22: KELSEY | B22: 5637413 | C22: =B22/'- 3 -'!$D22*100 -> 22.57945688 | D22: =B22/'- 6 -'!$B22 -> 6928.973697 | E22: 0 | F22: =E22/'- 3 -'!$D22*100 -> 0 | G22: =IF('- 6 -'!$C22=0,"",E22/'- 6 -'!$C22) ->  | H22: 0 | I22: =H22/'- 3 -'!$D22*100 -> 0 | J22: =IF('- 6 -'!$D22=0,"",H22/'- 6 -'!$D22) -> 
A23: LAKESHORE | B23: 8153173 | C23: =B23/'- 3 -'!$D23*100 -> 43.57788257 | D23: =B23/'- 6 -'!$B23 -> 8153.173 | E23: 0 | F23: =E23/'- 3 -'!$D23*100 -> 0 | G23: =IF('- 6 -'!$C23=0,"",E23/'- 6 -'!$C23) ->  | H23: 0 | I23: =H23/'- 3 -'!$D23*100 -> 0 | J23: =IF('- 6 -'!$D23=0,"",H23/'- 6 -'!$D23) -> 
A24: LORD SELKIRK | B24: 27617852 | C24: =B24/'- 3 -'!$D24*100 -> 37.04910221 | D24: =B24/'- 6 -'!$B24 -> 9930.906868 | E24: 0 | F24: =E24/'- 3 -'!$D24*100 -> 0 | G24: =IF('- 6 -'!$C24=0,"",E24/'- 6 -'!$C24) ->  | H24: 2210922 | I24: =H24/'- 3 -'!$D24*100 -> 2.96593215 | J24: =IF('- 6 -'!$D24=0,"",H24/'- 6 -'!$D24) -> 11110.1608
A25: LOUIS RIEL | B25: 86584098 | C25: =B25/'- 3 -'!$D25*100 -> 32.04964954 | D25: =B25/'- 6 -'!$B25 -> 7603.767278 | E25: 0 | F25: =E25/'- 3 -'!$D25*100 -> 0 | G25: =IF('- 6 -'!$C25=0,"",E25/'- 6 -'!$C25) ->  | H25: 40172903 | I25: =H25/'- 3 -'!$D25*100 -> 14.87025322 | J25: =IF('- 6 -'!$D25=0,"",H25/'- 6 -'!$D25) -> 7052.827072
A26: MOUNTAIN VIEW | B26: 19178573 | C26: =B26/'- 3 -'!$D26*100 -> 36.61093335 | D26: =B26/'- 6 -'!$B26 -> 8354.856458 | E26: 0 | F26: =E26/'- 3 -'!$D26*100 -> 0 | G26: =IF('- 6 -'!$C26=0,"",E26/'- 6 -'!$C26) ->  | H26: 1207405 | I26: =H26/'- 3 -'!$D26*100 -> 2.304875549 | J26: =IF('- 6 -'!$D26=0,"",H26/'- 6 -'!$D26) -> 9659.24
A27: MYSTERY LAKE | B27: 19544764 | C27: =B27/'- 3 -'!$D27*100 -> 37.17364658 | D27: =B27/'- 6 -'!$B27 -> 8178.752145 | E27: 0 | F27: =E27/'- 3 -'!$D27*100 -> 0 | G27: =IF('- 6 -'!$C27=0,"",E27/'- 6 -'!$C27) ->  | H27: 0 | I27: =H27/'- 3 -'!$D27*100 -> 0 | J27: =IF('- 6 -'!$D27=0,"",H27/'- 6 -'!$D27) -> 
A28: PARK WEST | B28: 19222037 | C28: =B28/'- 3 -'!$D28*100 -> 52.3605072 | D28: =B28/'- 6 -'!$B28 -> 8637.176814 | E28: 0 | F28: =E28/'- 3 -'!$D28*100 -> 0 | G28: =IF('- 6 -'!$C28=0,"",E28/'- 6 -'!$C28) ->  | H28: 0 | I28: =H28/'- 3 -'!$D28*100 -> 0 | J28: =IF('- 6 -'!$D28=0,"",H28/'- 6 -'!$D28) -> 
A29: PEMBINA TRAILS | B29: 75477667 | C29: =B29/'- 3 -'!$D29*100 -> 30.91381992 | D29: =B29/'- 6 -'!$B29 -> 5274.10153 | E29: 0 | F29: =E29/'- 3 -'!$D29*100 -> 0 | G29: =IF('- 6 -'!$C29=0,"",E29/'- 6 -'!$C29) ->  | H29: 10513459 | I29: =H29/'- 3 -'!$D29*100 -> 4.306057555 | J29: =IF('- 6 -'!$D29=0,"",H29/'- 6 -'!$D29) -> 2969.903672
A30: PINE CREEK | B30: 11091875 | C30: =B30/'- 3 -'!$D30*100 -> 51.91553736 | D30: =B30/'- 6 -'!$B30 -> 11170.06546 | E30: 0 | F30: =E30/'- 3 -'!$D30*100 -> 0 | G30: =IF('- 6 -'!$C30=0,"",E30/'- 6 -'!$C30) ->  | H30: 0 | I30: =H30/'- 3 -'!$D30*100 -> 0 | J30: =IF('- 6 -'!$D30=0,"",H30/'- 6 -'!$D30) -> 
A31: PORTAGE LA PRAIRIE | B31: 23617692 | C31: =B31/'- 3 -'!$D31*100 -> 44.29491813 | D31: =B31/'- 6 -'!$B31 -> 8091.021583 | E31: 0 | F31: =E31/'- 3 -'!$D31*100 -> 0 | G31: =IF('- 6 -'!$C31=0,"",E31/'- 6 -'!$C31) ->  | H31: 2525840 | I31: =H31/'- 3 -'!$D31*100 -> 4.737206159 | J31: =IF('- 6 -'!$D31=0,"",H31/'- 6 -'!$D31) -> 6021.072706
A32: PRAIRIE ROSE | B32: 14918816 | C32: =B32/'- 3 -'!$D32*100 -> 35.88035703 | D32: =B32/'- 6 -'!$B32 -> 8888.183497 | E32: 0 | F32: =E32/'- 3 -'!$D32*100 -> 0 | G32: =IF('- 6 -'!$C32=0,"",E32/'- 6 -'!$C32) ->  | H32: 846640 | I32: =H32/'- 3 -'!$D32*100 -> 2.036203508 | J32: =IF('- 6 -'!$D32=0,"",H32/'- 6 -'!$D32) -> 7144.64135
A33: PRAIRIE SPIRIT | B33: 12702570 | C33: =B33/'- 3 -'!$D33*100 -> 36.57185379 | D33: =B33/'- 6 -'!$B33 -> 7437.101874 | E33: 0 | F33: =E33/'- 3 -'!$D33*100 -> 0 | G33: =IF('- 6 -'!$C33=0,"",E33/'- 6 -'!$C33) ->  | H33: 0 | I33: =H33/'- 3 -'!$D33*100 -> 0 | J33: =IF('- 6 -'!$D33=0,"",H33/'- 6 -'!$D33) -> 
A34: RED RIVER VALLEY | B34: 14674380 | C34: =B34/'- 3 -'!$D34*100 -> 36.38735266 | D34: =B34/'- 6 -'!$B34 -> 8248.667791 | E34: 0 | F34: =E34/'- 3 -'!$D34*100 -> 0 | G34: =IF('- 6 -'!$C34=0,"",E34/'- 6 -'!$C34) ->  | H34: 2775494 | I34: =H34/'- 3 -'!$D34*100 -> 6.882258669 | J34: =IF('- 6 -'!$D34=0,"",H34/'- 6 -'!$D34) -> 8347.350376
A35: RIVER EAST TRANSCONA | B35: 83003468 | C35: =B35/'- 3 -'!$D35*100 -> 31.04400424 | D35: =B35/'- 6 -'!$B35 -> 9422.575548 | E35: 0 | F35: =E35/'- 3 -'!$D35*100 -> 0 | G35: =IF('- 6 -'!$C35=0,"",E35/'- 6 -'!$C35) ->  | H35: 11946999 | I35: =H35/'- 3 -'!$D35*100 -> 4.468279417 | J35: =IF('- 6 -'!$D35=0,"",H35/'- 6 -'!$D35) -> 7249.392597
A36: ROLLING RIVER | B36: 14064060 | C36: =B36/'- 3 -'!$D36*100 -> 48.35025734 | D36: =B36/'- 6 -'!$B36 -> 7852.629816 | E36: 0 | F36: =E36/'- 3 -'!$D36*100 -> 0 | G36: =IF('- 6 -'!$C36=0,"",E36/'- 6 -'!$C36) ->  | H36: 0 | I36: =H36/'- 3 -'!$D36*100 -> 0 | J36: =IF('- 6 -'!$D36=0,"",H36/'- 6 -'!$D36) -> 
A37: SEINE RIVER | B37: 19822406 | C37: =B37/'- 3 -'!$D37*100 -> 25.91478412 | D37: =B37/'- 6 -'!$B37 -> 8264.501147 | E37: 0 | F37: =E37/'- 3 -'!$D37*100 -> 0 | G37: =IF('- 6 -'!$C37=0,"",E37/'- 6 -'!$C37) ->  | H37: 5887391 | I37: =H37/'- 3 -'!$D37*100 -> 7.696869231 | J37: =IF('- 6 -'!$D37=0,"",H37/'- 6 -'!$D37) -> 6914.140928
A38: SEVEN OAKS | B38: 60308644 | C38: =B38/'- 3 -'!$D38*100 -> 31.23022867 | D38: =B38/'- 6 -'!$B38 -> 8264.854598 | E38: 0 | F38: =E38/'- 3 -'!$D38*100 -> 0 | G38: =IF('- 6 -'!$C38=0,"",E38/'- 6 -'!$C38) ->  | H38: 8706421 | I38: =H38/'- 3 -'!$D38*100 -> 4.508533118 | J38: =IF('- 6 -'!$D38=0,"",H38/'- 6 -'!$D38) -> 7296.087321
A39: SOUTHWEST HORIZON | B39: 12554600 | C39: =B39/'- 3 -'!$D39*100 -> 47.22632872 | D39: =B39/'- 6 -'!$B39 -> 8791.736695 | E39: 0 | F39: =E39/'- 3 -'!$D39*100 -> 0 | G39: =IF('- 6 -'!$C39=0,"",E39/'- 6 -'!$C39) ->  | H39: 0 | I39: =H39/'- 3 -'!$D39*100 -> 0 | J39: =IF('- 6 -'!$D39=0,"",H39/'- 6 -'!$D39) -> 
A40: ST. JAMES-ASSINIBOIA | B40: 48890633 | C40: =B40/'- 3 -'!$D40*100 -> 34.54726229 | D40: =B40/'- 6 -'!$B40 -> 8533.886019 | E40: 0 | F40: =E40/'- 3 -'!$D40*100 -> 0 | G40: =IF('- 6 -'!$C40=0,"",E40/'- 6 -'!$C40) ->  | H40: 9628374 | I40: =H40/'- 3 -'!$D40*100 -> 6.803633777 | J40: =IF('- 6 -'!$D40=0,"",H40/'- 6 -'!$D40) -> 7446.538283
A41: SUNRISE | B41: 20687343 | C41: =B41/'- 3 -'!$D41*100 -> 24.08125292 | D41: =B41/'- 6 -'!$B41 -> 13329.47358 | E41: 0 | F41: =E41/'- 3 -'!$D41*100 -> 0 | G41: =IF('- 6 -'!$C41=0,"",E41/'- 6 -'!$C41) ->  | H41: 0 | I41: =H41/'- 3 -'!$D41*100 -> 0 | J41: =IF('- 6 -'!$D41=0,"",H41/'- 6 -'!$D41) -> 
A42: SWAN VALLEY | B42: 7928641 | C42: =B42/'- 3 -'!$D42*100 -> 30.37218044 | D42: =B42/'- 6 -'!$B42 -> 8259.001042 | E42: 0 | F42: =E42/'- 3 -'!$D42*100 -> 0 | G42: =IF('- 6 -'!$C42=0,"",E42/'- 6 -'!$C42) ->  | H42: 0 | I42: =H42/'- 3 -'!$D42*100 -> 0 | J42: =IF('- 6 -'!$D42=0,"",H42/'- 6 -'!$D42) -> 
A43: TURTLE MOUNTAIN | B43: 8692794 | C43: =B43/'- 3 -'!$D43*100 -> 49.15903985 | D43: =B43/'- 6 -'!$B43 -> 8318.463158 | E43: 0 | F43: =E43/'- 3 -'!$D43*100 -> 0 | G43: =IF('- 6 -'!$C43=0,"",E43/'- 6 -'!$C43) ->  | H43: 0 | I43: =H43/'- 3 -'!$D43*100 -> 0 | J43: =IF('- 6 -'!$D43=0,"",H43/'- 6 -'!$D43) -> 
A44: TURTLE RIVER | B44: 6039854 | C44: =B44/'- 3 -'!$D44*100 -> 45.85299372 | D44: =B44/'- 6 -'!$B44 -> 10833.81883 | E44: 0 | F44: =E44/'- 3 -'!$D44*100 -> 0 | G44: =IF('- 6 -'!$C44=0,"",E44/'- 6 -'!$C44) ->  | H44: 367480 | I44: =H44/'- 3 -'!$D44*100 -> 2.78981216 | J44: =IF('- 6 -'!$D44=0,"",H44/'- 6 -'!$D44) -> 13362.90909
A45: WESTERN | B45: 7553755 | C45: =B45/'- 3 -'!$D45*100 -> 22.90658583 | D45: =B45/'- 6 -'!$B45 -> 17226.3512 | E45: 0 | F45: =E45/'- 3 -'!$D45*100 -> 0 | G45: =IF('- 6 -'!$C45=0,"",E45/'- 6 -'!$C45) ->  | H45: 0 | I45: =H45/'- 3 -'!$D45*100 -> 0 | J45: =IF('- 6 -'!$D45=0,"",H45/'- 6 -'!$D45) -> 
A46: WINNIPEG | B46: 163896516 | C46: =B46/'- 3 -'!$D46*100 -> 31.45730632 | D46: =B46/'- 6 -'!$B46 -> 9109.967595 | E46: 0 | F46: =E46/'- 3 -'!$D46*100 -> 0 | G46: =IF('- 6 -'!$C46=0,"",E46/'- 6 -'!$C46) ->  | H46: 14074930 | I46: =H46/'- 3 -'!$D46*100 -> 2.701456963 | J46: =IF('- 6 -'!$D46=0,"",H46/'- 6 -'!$D46) -> 10181.51765
A48: PROVINCE | B48: =SUM(B11:B46) -> 1081066185 | C48: =B48/'- 3 -'!$D48*100 -> 33.68283936 | D48: =B48/'- 6 -'!$B48 -> 8278.335559 | E48: =SUM(E11:E46) -> 60627414 | F48: =E48/'- 3 -'!$D48*100 -> 1.888971716 | G48: =E48/'- 6 -'!$C48 -> 9411.41806 | H48: =SUM(H11:H46) -> 113397351 | I48: =H48/'- 3 -'!$D48*100 -> 3.533127583 | J48: =H48/'- 6 -'!$D48 -> 6615.870935
A50: WHITESHELL | B50: 2063137 | C50: =B50/'- 3 -'!$D50*100 -> 47.93674257 | D50: =B50/'- 6 -'!$B50 -> 10419.88384 | E50: 0 | F50: =E50/'- 3 -'!$D50*100 -> 0 | G50: =IF('- 6 -'!$C50=0,"",E50/'- 6 -'!$C50) ->  | H50: 0 | I50: =H50/'- 3 -'!$D50*100 -> 0 | J50: =IF('- 6 -'!$D50=0,"",H50/'- 6 -'!$D50) -> 
A52: (1) 90% or more of Regular Instruction enrolment is in one language.

Sheet - 20 -
B2: =AEXP_BP -> ANALYSIS OF EXPENSE BY PROGRAM | I2: PAGE 3 OF 16
B3: =OPYEAR -> OPERATING FUND 2025/2026 BUDGET
B5: FUNCTION 100: REGULAR INSTRUCTION (CONT'D)
B6: DUAL TRACK SCHOOLS (1)
D7: PER PUPIL | E7: NO. OF FTE PUPILS | F7: % IN DUAL TRACK SCHOOLS
F8: ENGLISH | G8: FRANÇAIS | H8: FRENCH IMMERSION | I8: OTHER
A9: DIVISION / DISTRICT | B9: AMOUNT | C9: %
A11: BEAUTIFUL PLAINS | B11: 0 | C11: =B11/'- 3 -'!$D11*100 -> 0 | D11: =IF(E11=0,"",B11/E11) ->  | E11: =SUM('- 6 -'!$E11:H11) -> 0 | F11: =IF(E11=0,"",'- 6 -'!$E11/E11*100) ->  | G11: =IF(E11=0,"",'- 6 -'!$F11/E11*100) ->  | H11: =IF(E11=0,"",'- 6 -'!$G11/E11*100) ->  | I11: =IF(E11=0,"",'- 6 -'!$H11/E11*100) -> 
A12: BORDER LAND | B12: 4805214 | C12: =B12/'- 3 -'!$D12*100 -> 11.57372978 | D12: =IF(E12=0,"",B12/E12) -> 7651.61465 | E12: =SUM('- 6 -'!$E12:H12) -> 628 | F12: =IF(E12=0,"",'- 6 -'!$E12/E12*100) -> 79.61783439 | G12: =IF(E12=0,"",'- 6 -'!$F12/E12*100) -> 0 | H12: =IF(E12=0,"",'- 6 -'!$G12/E12*100) -> 20.38216561 | I12: =IF(E12=0,"",'- 6 -'!$H12/E12*100) -> 0
A13: BRANDON | B13: 8467326 | C13: =B13/'- 3 -'!$D13*100 -> 6.030087389 | D13: 7085.628452 | E13: =SUM('- 6 -'!$E13:H13) -> 1195 | F13: =IF(E13=0,"",'- 6 -'!$E13/E13*100) -> 66.82008368 | G13: =IF(E13=0,"",'- 6 -'!$F13/E13*100) -> 0 | H13: =IF(E13=0,"",'- 6 -'!$G13/E13*100) -> 33.17991632 | I13: =IF(E13=0,"",'- 6 -'!$H13/E13*100) -> 0
A14: DSFM | B14: 0 | C14: =B14/'- 3 -'!$D14*100 -> 0 | E14: =SUM('- 6 -'!$E14:H14) -> 0 | F14: =IF(E14=0,"",'- 6 -'!$E14/E14*100) ->  | G14: =IF(E14=0,"",'- 6 -'!$F14/E14*100) ->  | H14: =IF(E14=0,"",'- 6 -'!$G14/E14*100) ->  | I14: =IF(E14=0,"",'- 6 -'!$H14/E14*100) -> 
A15: EVERGREEN | B15: 0 | C15: =B15/'- 3 -'!$D15*100 -> 0 | E15: =SUM('- 6 -'!$E15:H15) -> 0 | F15: =IF(E15=0,"",'- 6 -'!$E15/E15*100) ->  | G15: =IF(E15=0,"",'- 6 -'!$F15/E15*100) ->  | H15: =IF(E15=0,"",'- 6 -'!$G15/E15*100) ->  | I15: =IF(E15=0,"",'- 6 -'!$H15/E15*100) -> 
A16: FLIN FLON | B16: 2927171 | C16: =B16/'- 3 -'!$D16*100 -> 15.7428065 | D16: 9889.091216 | E16: =SUM('- 6 -'!$E16:H16) -> 296 | F16: =IF(E16=0,"",'- 6 -'!$E16/E16*100) -> 73.64864865 | G16: =IF(E16=0,"",'- 6 -'!$F16/E16*100) -> 0 | H16: =IF(E16=0,"",'- 6 -'!$G16/E16*100) -> 26.35135135 | I16: =IF(E16=0,"",'- 6 -'!$H16/E16*100) -> 0
A17: FORT LA BOSSE | B17: 0 | C17: =B17/'- 3 -'!$D17*100 -> 0 | E17: =SUM('- 6 -'!$E17:H17) -> 0 | F17: =IF(E17=0,"",'- 6 -'!$E17/E17*100) ->  | G17: =IF(E17=0,"",'- 6 -'!$F17/E17*100) ->  | H17: =IF(E17=0,"",'- 6 -'!$G17/E17*100) ->  | I17: =IF(E17=0,"",'- 6 -'!$H17/E17*100) -> 
A18: FRONTIER | B18: 0 | C18: =B18/'- 3 -'!$D18*100 -> 0 | E18: =SUM('- 6 -'!$E18:H18) -> 0 | F18: =IF(E18=0,"",'- 6 -'!$E18/E18*100) ->  | G18: =IF(E18=0,"",'- 6 -'!$F18/E18*100) ->  | H18: =IF(E18=0,"",'- 6 -'!$G18/E18*100) ->  | I18: =IF(E18=0,"",'- 6 -'!$H18/E18*100) -> 
A19: GARDEN VALLEY | B19: 0 | C19: =B19/'- 3 -'!$D19*100 -> 0 | E19: =SUM('- 6 -'!$E19:H19) -> 0 | F19: =IF(E19=0,"",'- 6 -'!$E19/E19*100) ->  | G19: =IF(E19=0,"",'- 6 -'!$F19/E19*100) ->  | H19: =IF(E19=0,"",'- 6 -'!$G19/E19*100) ->  | I19: =IF(E19=0,"",'- 6 -'!$H19/E19*100) -> 
A20: HANOVER | B20: 0 | C20: =B20/'- 3 -'!$D20*100 -> 0 | E20: =SUM('- 6 -'!$E20:H20) -> 0 | F20: =IF(E20=0,"",'- 6 -'!$E20/E20*100) ->  | G20: =IF(E20=0,"",'- 6 -'!$F20/E20*100) ->  | H20: =IF(E20=0,"",'- 6 -'!$G20/E20*100) ->  | I20: =IF(E20=0,"",'- 6 -'!$H20/E20*100) -> 
A21: INTERLAKE | B21: 8983603 | C21: =B21/'- 3 -'!$D21*100 -> 18.18446453 | D21: 6868.198012 | E21: =SUM('- 6 -'!$E21:H21) -> 1308 | F21: =IF(E21=0,"",'- 6 -'!$E21/E21*100) -> 67.77522936 | G21: =IF(E21=0,"",'- 6 -'!$F21/E21*100) -> 0 | H21: =IF(E21=0,"",'- 6 -'!$G21/E21*100) -> 32.22477064 | I21: =IF(E21=0,"",'- 6 -'!$H21/E21*100) -> 0
A22: KELSEY | B22: 5102313 | C22: =B22/'- 3 -'!$D22*100 -> 20.43622782 | D22: 8447.538079 | E22: =SUM('- 6 -'!$E22:H22) -> 604 | F22: =IF(E22=0,"",'- 6 -'!$E22/E22*100) -> 72.18543046 | G22: =IF(E22=0,"",'- 6 -'!$F22/E22*100) -> 0 | H22: =IF(E22=0,"",'- 6 -'!$G22/E22*100) -> 27.81456954 | I22: =IF(E22=0,"",'- 6 -'!$H22/E22*100) -> 0
A23: LAKESHORE | B23: 0 | C23: =B23/'- 3 -'!$D23*100 -> 0 | E23: =SUM('- 6 -'!$E23:H23) -> 0 | F23: =IF(E23=0,"",'- 6 -'!$E23/E23*100) ->  | G23: =IF(E23=0,"",'- 6 -'!$F23/E23*100) ->  | H23: =IF(E23=0,"",'- 6 -'!$G23/E23*100) ->  | I23: =IF(E23=0,"",'- 6 -'!$H23/E23*100) -> 
A24: LORD SELKIRK | B24: 5781748 | C24: =B24/'- 3 -'!$D24*100 -> 7.75616339 | D24: 7300.186869 | E24: =SUM('- 6 -'!$E24:H24) -> 792 | F24: =IF(E24=0,"",'- 6 -'!$E24/E24*100) -> 77.84090909 | G24: =IF(E24=0,"",'- 6 -'!$F24/E24*100) -> 0 | H24: =IF(E24=0,"",'- 6 -'!$G24/E24*100) -> 12.24747475 | I24: =IF(E24=0,"",'- 6 -'!$H24/E24*100) -> 9.911616162
A25: LOUIS RIEL | B25: 0 | C25: =B25/'- 3 -'!$D25*100 -> 0 | E25: =SUM('- 6 -'!$E25:H25) -> 0 | F25: =IF(E25=0,"",'- 6 -'!$E25/E25*100) ->  | G25: =IF(E25=0,"",'- 6 -'!$F25/E25*100) ->  | H25: =IF(E25=0,"",'- 6 -'!$G25/E25*100) ->  | I25: =IF(E25=0,"",'- 6 -'!$H25/E25*100) -> 
A26: MOUNTAIN VIEW | B26: 3003534 | C26: =B26/'- 3 -'!$D26*100 -> 5.733595669 | D26: 6349.966173 | E26: =SUM('- 6 -'!$E26:H26) -> 473 | F26: =IF(E26=0,"",'- 6 -'!$E26/E26*100) -> 72.93868922 | G26: =IF(E26=0,"",'- 6 -'!$F26/E26*100) -> 0 | H26: =IF(E26=0,"",'- 6 -'!$G26/E26*100) -> 13.95348837 | I26: =IF(E26=0,"",'- 6 -'!$H26/E26*100) -> 13.10782241
A27: MYSTERY LAKE | B27: 2580659 | C27: =B27/'- 3 -'!$D27*100 -> 4.908348119 | D27: 7188.465181 | E27: =SUM('- 6 -'!$E27:H27) -> 359 | F27: =IF(E27=0,"",'- 6 -'!$E27/E27*100) -> 49.30362117 | G27: =IF(E27=0,"",'- 6 -'!$F27/E27*100) -> 0 | H27: =IF(E27=0,"",'- 6 -'!$G27/E27*100) -> 50.69637883 | I27: =IF(E27=0,"",'- 6 -'!$H27/E27*100) -> 0
A28: PARK WEST | B28: 0 | C28: =B28/'- 3 -'!$D28*100 -> 0 | E28: =SUM('- 6 -'!$E28:H28) -> 0 | F28: =IF(E28=0,"",'- 6 -'!$E28/E28*100) ->  | G28: =IF(E28=0,"",'- 6 -'!$F28/E28*100) ->  | H28: =IF(E28=0,"",'- 6 -'!$G28/E28*100) ->  | I28: =IF(E28=0,"",'- 6 -'!$H28/E28*100) -> 
A29: PEMBINA TRAILS | B29: 29607722 | C29: =B29/'- 3 -'!$D29*100 -> 12.1266041 | E29: =SUM('- 6 -'!$E29:H29) -> 0 | F29: =IF(E29=0,"",'- 6 -'!$E29/E29*100) ->  | G29: =IF(E29=0,"",'- 6 -'!$F29/E29*100) ->  | H29: =IF(E29=0,"",'- 6 -'!$G29/E29*100) ->  | I29: =IF(E29=0,"",'- 6 -'!$H29/E29*100) -> 
A30: PINE CREEK | B30: 0 | C30: =B30/'- 3 -'!$D30*100 -> 0 | E30: =SUM('- 6 -'!$E30:H30) -> 0 | F30: =IF(E30=0,"",'- 6 -'!$E30/E30*100) ->  | G30: =IF(E30=0,"",'- 6 -'!$F30/E30*100) ->  | H30: =IF(E30=0,"",'- 6 -'!$G30/E30*100) ->  | I30: =IF(E30=0,"",'- 6 -'!$H30/E30*100) -> 
A31: PORTAGE LA PRAIRIE | B31: 0 | C31: =B31/'- 3 -'!$D31*100 -> 0 | E31: =SUM('- 6 -'!$E31:H31) -> 0 | F31: =IF(E31=0,"",'- 6 -'!$E31/E31*100) ->  | G31: =IF(E31=0,"",'- 6 -'!$F31/E31*100) ->  | H31: =IF(E31=0,"",'- 6 -'!$G31/E31*100) ->  | I31: =IF(E31=0,"",'- 6 -'!$H31/E31*100) -> 
A32: PRAIRIE ROSE | B32: 3984108 | C32: =B32/'- 3 -'!$D32*100 -> 9.581941186 | D32: 7691.328185 | E32: =SUM('- 6 -'!$E32:H32) -> 518 | F32: =IF(E32=0,"",'- 6 -'!$E32/E32*100) -> 60.90733591 | G32: =IF(E32=0,"",'- 6 -'!$F32/E32*100) -> 0 | H32: =IF(E32=0,"",'- 6 -'!$G32/E32*100) -> 39.09266409 | I32: =IF(E32=0,"",'- 6 -'!$H32/E32*100) -> 0
A33: PRAIRIE SPIRIT | B33: 3305165 | C33: =B33/'- 3 -'!$D33*100 -> 9.515870499 | D33: 6995.058201 | E33: =SUM('- 6 -'!$E33:H33) -> 472.5 | F33: =IF(E33=0,"",'- 6 -'!$E33/E33*100) -> 51.64021164 | G33: =IF(E33=0,"",'- 6 -'!$F33/E33*100) -> 29.1005291 | H33: =IF(E33=0,"",'- 6 -'!$G33/E33*100) -> 19.25925926 | I33: =IF(E33=0,"",'- 6 -'!$H33/E33*100) -> 0
A34: RED RIVER VALLEY | B34: 1752196 | C34: =B34/'- 3 -'!$D34*100 -> 4.34483595 | D34: 8589.196078 | E34: =SUM('- 6 -'!$E34:H34) -> 204 | F34: =IF(E34=0,"",'- 6 -'!$E34/E34*100) -> 46.07843137 | G34: =IF(E34=0,"",'- 6 -'!$F34/E34*100) -> 53.92156863 | H34: =IF(E34=0,"",'- 6 -'!$G34/E34*100) -> 0 | I34: =IF(E34=0,"",'- 6 -'!$H34/E34*100) -> 0
A35: RIVER EAST TRANSCONA | B35: 35452613 | C35: =B35/'- 3 -'!$D35*100 -> 13.25957933 | D35: 4981.398483 | E35: =SUM('- 6 -'!$E35:H35) -> 7117 | F35: =IF(E35=0,"",'- 6 -'!$E35/E35*100) -> 64.66910215 | G35: =IF(E35=0,"",'- 6 -'!$F35/E35*100) -> 0 | H35: =IF(E35=0,"",'- 6 -'!$G35/E35*100) -> 27.63102431 | I35: =IF(E35=0,"",'- 6 -'!$H35/E35*100) -> 7.699873542
A36: ROLLING RIVER | B36: 0 | C36: =B36/'- 3 -'!$D36*100 -> 0 | E36: =SUM('- 6 -'!$E36:H36) -> 0 | F36: =IF(E36=0,"",'- 6 -'!$E36/E36*100) ->  | G36: =IF(E36=0,"",'- 6 -'!$F36/E36*100) ->  | H36: =IF(E36=0,"",'- 6 -'!$G36/E36*100) ->  | I36: =IF(E36=0,"",'- 6 -'!$H36/E36*100) -> 
A37: SEINE RIVER | B37: 11236019 | C37: =B37/'- 3 -'!$D37*100 -> 14.6893877 | D37: 6842.886114 | E37: =SUM('- 6 -'!$E37:H37) -> 1642 | F37: =IF(E37=0,"",'- 6 -'!$E37/E37*100) -> 55.02436054 | G37: =IF(E37=0,"",'- 6 -'!$F37/E37*100) -> 0 | H37: =IF(E37=0,"",'- 6 -'!$G37/E37*100) -> 44.97563946 | I37: =IF(E37=0,"",'- 6 -'!$H37/E37*100) -> 0
A38: SEVEN OAKS | B38: 26626860 | C38: =B38/'- 3 -'!$D38*100 -> 13.78845339 | D38: 8037.569428 | E38: =SUM('- 6 -'!$E38:H38) -> 3312.8 | F38: =IF(E38=0,"",'- 6 -'!$E38/E38*100) -> 53.47138372 | G38: =IF(E38=0,"",'- 6 -'!$F38/E38*100) -> 0 | H38: =IF(E38=0,"",'- 6 -'!$G38/E38*100) -> 39.70055542 | I38: =IF(E38=0,"",'- 6 -'!$H38/E38*100) -> 6.828060855
A39: SOUTHWEST HORIZON | B39: 0 | C39: =B39/'- 3 -'!$D39*100 -> 0 | E39: =SUM('- 6 -'!$E39:H39) -> 0 | F39: =IF(E39=0,"",'- 6 -'!$E39/E39*100) ->  | G39: =IF(E39=0,"",'- 6 -'!$F39/E39*100) ->  | H39: =IF(E39=0,"",'- 6 -'!$G39/E39*100) ->  | I39: =IF(E39=0,"",'- 6 -'!$H39/E39*100) -> 
A40: ST. JAMES-ASSINIBOIA | B40: 6381869 | C40: =B40/'- 3 -'!$D40*100 -> 4.509577576 | D40: 6117.941024 | E40: =SUM('- 6 -'!$E40:H40) -> 1043.14 | F40: =IF(E40=0,"",'- 6 -'!$E40/E40*100) -> 60.1204057 | G40: =IF(E40=0,"",'- 6 -'!$F40/E40*100) -> 0 | H40: =IF(E40=0,"",'- 6 -'!$G40/E40*100) -> 39.8795943 | I40: =IF(E40=0,"",'- 6 -'!$H40/E40*100) -> 0
A41: SUNRISE | B41: 19059110 | C41: =B41/'- 3 -'!$D41*100 -> 22.18589639 | D41: 6726.349038 | E41: =SUM('- 6 -'!$E41:H41) -> 2833.5 | F41: =IF(E41=0,"",'- 6 -'!$E41/E41*100) -> 67.7077819 | G41: =IF(E41=0,"",'- 6 -'!$F41/E41*100) -> 0 | H41: =IF(E41=0,"",'- 6 -'!$G41/E41*100) -> 29.22181048 | I41: =IF(E41=0,"",'- 6 -'!$H41/E41*100) -> 3.070407623
A42: SWAN VALLEY | B42: 1914477 | C42: =B42/'- 3 -'!$D42*100 -> 7.333771437 | D42: 7627.398406 | E42: =SUM('- 6 -'!$E42:H42) -> 251 | F42: =IF(E42=0,"",'- 6 -'!$E42/E42*100) -> 82.94820717 | G42: =IF(E42=0,"",'- 6 -'!$F42/E42*100) -> 0 | H42: =IF(E42=0,"",'- 6 -'!$G42/E42*100) -> 17.05179283 | I42: =IF(E42=0,"",'- 6 -'!$H42/E42*100) -> 0
A43: TURTLE MOUNTAIN | B43: 0 | C43: =B43/'- 3 -'!$D43*100 -> 0 | E43: =SUM('- 6 -'!$E43:H43) -> 0 | F43: =IF(E43=0,"",'- 6 -'!$E43/E43*100) ->  | G43: =IF(E43=0,"",'- 6 -'!$F43/E43*100) ->  | H43: =IF(E43=0,"",'- 6 -'!$G43/E43*100) ->  | I43: =IF(E43=0,"",'- 6 -'!$H43/E43*100) -> 
A44: TURTLE RIVER | B44: 0 | C44: =B44/'- 3 -'!$D44*100 -> 0 | E44: =SUM('- 6 -'!$E44:H44) -> 0 | F44: =IF(E44=0,"",'- 6 -'!$E44/E44*100) ->  | G44: =IF(E44=0,"",'- 6 -'!$F44/E44*100) ->  | H44: =IF(E44=0,"",'- 6 -'!$G44/E44*100) ->  | I44: =IF(E44=0,"",'- 6 -'!$H44/E44*100) -> 
A45: WESTERN | B45: 9062956 | C45: =B45/'- 3 -'!$D45*100 -> 27.48320266 | D45: 4758.706222 | E45: =SUM('- 6 -'!$E45:H45) -> 1904.5 | F45: =IF(E45=0,"",'- 6 -'!$E45/E45*100) -> 75.89918614 | G45: =IF(E45=0,"",'- 6 -'!$F45/E45*100) -> 0 | H45: =IF(E45=0,"",'- 6 -'!$G45/E45*100) -> 24.10081386 | I45: =IF(E45=0,"",'- 6 -'!$H45/E45*100) -> 0
A46: WINNIPEG | B46: 55695975 | C46: =B46/'- 3 -'!$D46*100 -> 10.68994869 | D46: 6568.928609 | E46: =SUM('- 6 -'!$E46:H46) -> 8478.7 | F46: =IF(E46=0,"",'- 6 -'!$E46/E46*100) -> 59.0951443 | G46: =IF(E46=0,"",'- 6 -'!$F46/E46*100) -> 0 | H46: =IF(E46=0,"",'- 6 -'!$G46/E46*100) -> 33.83183743 | I46: =IF(E46=0,"",'- 6 -'!$H46/E46*100) -> 7.073018269
A48: PROVINCE | B48: =SUM(B11:B46) -> 245730638 | C48: =B48/'- 3 -'!$D48*100 -> 7.65624318 | D48: =B48/E48 -> 7350.131879 | E48: =SUM(E11:E46) -> 33432.14 | F48: =IF(E48=0,"",'- 6 -'!$E48/E48*100) -> 63.16747896 | G48: =IF(E48=0,"",'- 6 -'!$F48/E48*100) -> 0.7403055862 | H48: =IF(E48=0,"",'- 6 -'!$G48/E48*100) -> 31.30221398 | I48: =IF(E48=0,"",'- 6 -'!$H48/E48*100) -> 4.790001478
A50: WHITESHELL | B50: 0 | C50: =B50/'- 3 -'!$D50*100 -> 0 | D50: =IF(E50=0,"",B50/E50) ->  | E50: =SUM('- 6 -'!$E50:H50) -> 0 | F50: =IF(E50=0,"",'- 6 -'!$E50/E50*100) ->  | G50: =IF(E50=0,"",'- 6 -'!$F50/E50*100) ->  | H50: =IF(E50=0,"",'- 6 -'!$G50/E50*100) ->  | I50: =IF(E50=0,"",'- 6 -'!$H50/E50*100) -> 
A52: (1) No one language program comprises 90% or more of Regular Instruction enrolment.

Sheet - 21 -
B2: =AEXP_BP -> ANALYSIS OF EXPENSE BY PROGRAM | I2: PAGE 4 OF 16
B3: =OPYEAR -> OPERATING FUND 2025/2026 BUDGET
B5: FUNCTION 200: STUDENT SUPPORT SERVICES
B6: ADMINISTRATION / COORDINATION | E6: CLINICAL AND RELATED SERVICES | H6: SPECIAL PLACEMENT
D8: PER PUPIL | G8: PER PUPIL | I8: %
A9: DIVISION / DISTRICT | B9: AMOUNT | C9: % | E9: AMOUNT | F9: % | H9: AMOUNT
A11: BEAUTIFUL PLAINS | B11: 216930 | C11: =B11/'- 3 -'!$D11*100 -> 0.7127259179 | D11: =B11/'- 7 -'!$E11 -> 97.16909295 | E11: 413672 | F11: =E11/'- 3 -'!$D11*100 -> 1.359123938 | G11: =E11/'- 7 -'!$E11 -> 185.2954087 | H11: 297769 | I11: =H11/'- 3 -'!$D11*100 -> 0.9783233478
A12: BORDER LAND | B12: 212810 | C12: =B12/'- 3 -'!$D12*100 -> 0.5125693538 | D12: =B12/'- 7 -'!$E12 -> 104.4979131 | E12: 879806 | F12: =E12/'- 3 -'!$D12*100 -> 2.119080837 | G12: =E12/'- 7 -'!$E12 -> 432.0186595 | H12: 0 | I12: =H12/'- 3 -'!$D12*100 -> 0
A13: BRANDON | B13: 250070 | C13: =B13/'- 3 -'!$D13*100 -> 0.178089748 | D13: =B13/'- 7 -'!$E13 -> 25.2876934 | E13: 3779685 | F13: =E13/'- 3 -'!$D13*100 -> 2.69173891 | G13: =E13/'- 7 -'!$E13 -> 382.2110426 | H13: 674465 | I13: =H13/'- 3 -'!$D13*100 -> 0.480326716
A14: DSFM | B14: 591033 | C14: =B14/'- 3 -'!$D14*100 -> 0.4622592822 | D14: =B14/'- 7 -'!$E14 -> 91.23695585 | E14: 1898883 | F14: =E14/'- 3 -'!$D14*100 -> 1.485156146 | G14: =E14/'- 7 -'!$E14 -> 293.1279716 | H14: 984184 | I14: =H14/'- 3 -'!$D14*100 -> 0.7697509097
A15: EVERGREEN | B15: 163274 | C15: =B15/'- 3 -'!$D15*100 -> 0.6214004746 | D15: =B15/'- 7 -'!$E15 -> 117.0422939 | E15: 603706 | F15: =E15/'- 3 -'!$D15*100 -> 2.29762972 | G15: =E15/'- 7 -'!$E15 -> 432.7641577 | H15: 20000 | I15: =H15/'- 3 -'!$D15*100 -> 0.07611750488
A16: FLIN FLON | B16: 181589 | C16: =B16/'- 3 -'!$D16*100 -> 0.9766154728 | D16: =B16/'- 7 -'!$E16 -> 225.2965261 | E16: 404402 | F16: =E16/'- 3 -'!$D16*100 -> 2.17494039 | G16: =E16/'- 7 -'!$E16 -> 501.7394541 | H16: 252359 | I16: =H16/'- 3 -'!$D16*100 -> 1.357228159
A17: FORT LA BOSSE | B17: 156520 | C17: =B17/'- 3 -'!$D17*100 -> 0.6652955254 | D17: =B17/'- 7 -'!$E17 -> 102.3675605 | E17: 388180 | F17: =E17/'- 3 -'!$D17*100 -> 1.649977109 | G17: =E17/'- 7 -'!$E17 -> 253.8783519 | H17: 0 | I17: =H17/'- 3 -'!$D17*100 -> 0
A18: FRONTIER | B18: 751352 | C18: =B18/'- 3 -'!$D18*100 -> 0.4308113113 | D18: =B18/'- 7 -'!$E18 -> 124.3136995 | E18: 3245695 | F18: =E18/'- 3 -'!$D18*100 -> 1.861021358 | G18: =E18/'- 7 -'!$E18 -> 537.0110854 | H18: 0 | I18: =H18/'- 3 -'!$D18*100 -> 0
A19: GARDEN VALLEY | B19: 179775 | C19: =B19/'- 3 -'!$D19*100 -> 0.2874461096 | D19: =B19/'- 7 -'!$E19 -> 42.38976656 | E19: 1519028 | F19: =E19/'- 3 -'!$D19*100 -> 2.428806502 | G19: =E19/'- 7 -'!$E19 -> 358.1768451 | H19: 1515708 | I19: =H19/'- 3 -'!$D19*100 -> 2.423498083
A20: HANOVER | B20: 750800 | C20: =B20/'- 3 -'!$D20*100 -> 0.6361498867 | D20: =B20/'- 7 -'!$E20 -> 86.78263885 | E20: 3613600 | F20: =E20/'- 3 -'!$D20*100 -> 3.061789066 | G20: =E20/'- 7 -'!$E20 -> 417.6847945 | H20: 1030200 | I20: =H20/'- 3 -'!$D20*100 -> 0.8728844076
A21: INTERLAKE | B21: 203915 | C21: =B21/'- 3 -'!$D21*100 -> 0.4127614593 | D21: =B21/'- 7 -'!$E21 -> 72.18230088 | E21: 1026845 | F21: =E21/'- 3 -'!$D21*100 -> 2.078523113 | G21: =E21/'- 7 -'!$E21 -> 363.4849558 | H21: 254410 | I21: =H21/'- 3 -'!$D21*100 -> 0.5149726251
A22: KELSEY | B22: 159676 | C22: =B22/'- 3 -'!$D22*100 -> 0.6395482036 | D22: =B22/'- 7 -'!$E22 -> 111.5055866 | E22: 144507 | F22: =E22/'- 3 -'!$D22*100 -> 0.5787920054 | G22: =E22/'- 7 -'!$E22 -> 100.9127095 | H22: 1403377 | I22: =H22/'- 3 -'!$D22*100 -> 5.620927624
A23: LAKESHORE | B23: 108500 | C23: =B23/'- 3 -'!$D23*100 -> 0.5799214931 | D23: =B23/'- 7 -'!$E23 -> 106.8965517 | E23: 350000 | F23: =E23/'- 3 -'!$D23*100 -> 1.870714494 | G23: =E23/'- 7 -'!$E23 -> 344.8275862 | H23: 0 | I23: =H23/'- 3 -'!$D23*100 -> 0
A24: LORD SELKIRK | B24: 359343 | C24: =B24/'- 3 -'!$D24*100 -> 0.4820554305 | D24: =B24/'- 7 -'!$E24 -> 90.35529293 | E24: 2644441 | F24: =E24/'- 3 -'!$D24*100 -> 3.547494023 | G24: =E24/'- 7 -'!$E24 -> 664.9336183 | H24: 396378 | I24: =H24/'- 3 -'!$D24*100 -> 0.5317375528
A25: LOUIS RIEL | B25: 1128429 | C25: =B25/'- 3 -'!$D25*100 -> 0.4176951059 | D25: =B25/'- 7 -'!$E25 -> 65.41996637 | E25: 5845122 | F25: =E25/'- 3 -'!$D25*100 -> 2.163608745 | G25: =E25/'- 7 -'!$E25 -> 338.8672967 | H25: 9093720 | I25: =H25/'- 3 -'!$D25*100 -> 3.366097768
A26: MOUNTAIN VIEW | B26: 161211 | C26: =B26/'- 3 -'!$D26*100 -> 0.3077437084 | D26: =B26/'- 7 -'!$E26 -> 52.72641047 | E26: 982793 | F26: =E26/'- 3 -'!$D26*100 -> 1.876102514 | G26: =E26/'- 7 -'!$E26 -> 321.4367948 | H26: 5000 | I26: =H26/'- 3 -'!$D26*100 -> 0.009544749067
A27: MYSTERY LAKE | B27: 264758 | C27: =B27/'- 3 -'!$D27*100 -> 0.5035630167 | D27: =B27/'- 7 -'!$E27 -> 91.51708094 | E27: 536732 | F27: =E27/'- 3 -'!$D27*100 -> 1.020850683 | G27: =E27/'- 7 -'!$E27 -> 185.5284671 | H27: 4090837 | I27: =H27/'- 3 -'!$D27*100 -> 7.780668462
A28: PARK WEST | B28: 156877 | C28: =B28/'- 3 -'!$D28*100 -> 0.4273303234 | D28: =B28/'- 7 -'!$E28 -> 70.49067625 | E28: 584533 | F28: =E28/'- 3 -'!$D28*100 -> 1.592258113 | G28: =E28/'- 7 -'!$E28 -> 262.6524377 | H28: 0 | I28: =H28/'- 3 -'!$D28*100 -> 0
A29: PEMBINA TRAILS | B29: 662546 | C29: =B29/'- 3 -'!$D29*100 -> 0.2713627559 | D29: =B29/'- 7 -'!$E29 -> 37.11534368 | E29: 4591763 | F29: =E29/'- 3 -'!$D29*100 -> 1.880674643 | G29: =E29/'- 7 -'!$E29 -> 257.2272142 | H29: 739000 | I29: =H29/'- 3 -'!$D29*100 -> 0.3026764582
A30: PINE CREEK | B30: 213924 | C30: =B30/'- 3 -'!$D30*100 -> 1.001271599 | D30: =B30/'- 7 -'!$E30 -> 199.928972 | E30: 627468 | F30: =E30/'- 3 -'!$D30*100 -> 2.936864903 | G30: =E30/'- 7 -'!$E30 -> 586.4186916 | H30: 0 | I30: =H30/'- 3 -'!$D30*100 -> 0
A31: PORTAGE LA PRAIRIE | B31: 252920 | C31: =B31/'- 3 -'!$D31*100 -> 0.474350783 | D31: =B31/'- 7 -'!$E31 -> 73.34203277 | E31: 1353772 | F31: =E31/'- 3 -'!$D31*100 -> 2.538995762 | G31: =E31/'- 7 -'!$E31 -> 392.5683631 | H31: 841185 | I31: =H31/'- 3 -'!$D31*100 -> 1.577640216
A32: PRAIRIE ROSE | B32: 168288 | C32: =B32/'- 3 -'!$D32*100 -> 0.4047394594 | D32: =B32/'- 7 -'!$E32 -> 72.69460043 | E32: 765000 | F32: =E32/'- 3 -'!$D32*100 -> 1.839856 | G32: =E32/'- 7 -'!$E32 -> 330.4535637 | H32: 0 | I32: =H32/'- 3 -'!$D32*100 -> 0
A33: PRAIRIE SPIRIT | B33: 247565 | C33: =B33/'- 3 -'!$D33*100 -> 0.7127621405 | D33: =B33/'- 7 -'!$E33 -> 113.5358863 | E33: 633115 | F33: =E33/'- 3 -'!$D33*100 -> 1.82279564 | G33: =E33/'- 7 -'!$E33 -> 290.35313 | H33: 0 | I33: =H33/'- 3 -'!$D33*100 -> 0
A34: RED RIVER VALLEY | B34: 279312 | C34: =B34/'- 3 -'!$D34*100 -> 0.6925965012 | D34: =B34/'- 7 -'!$E34 -> 119.6197002 | E34: 712576 | F34: =E34/'- 3 -'!$D34*100 -> 1.766940355 | G34: =E34/'- 7 -'!$E34 -> 305.1717345 | H34: 649074 | I34: =H34/'- 3 -'!$D34*100 -> 1.609477507
A35: RIVER EAST TRANSCONA | B35: 1315108 | C35: =B35/'- 3 -'!$D35*100 -> 0.491861597 | D35: =B35/'- 7 -'!$E35 -> 71.09460482 | E35: 5299435 | F35: =E35/'- 3 -'!$D35*100 -> 1.982033842 | G35: =E35/'- 7 -'!$E35 -> 286.4869175 | H35: 4001650 | I35: =H35/'- 3 -'!$D35*100 -> 1.496651195
A36: ROLLING RIVER | B36: 207190 | C36: =B36/'- 3 -'!$D36*100 -> 0.712290037 | D36: =B36/'- 7 -'!$E36 -> 115.3619154 | E36: 678795 | F36: =E36/'- 3 -'!$D36*100 -> 2.333601601 | G36: =E36/'- 7 -'!$E36 -> 377.9482183 | H36: 0 | I36: =H36/'- 3 -'!$D36*100 -> 0
A37: SEINE RIVER | B37: 411600 | C37: =B37/'- 3 -'!$D37*100 -> 0.5381044635 | D37: =B37/'- 7 -'!$E37 -> 84.13736713 | E37: 2715100 | F37: =E37/'- 3 -'!$D37*100 -> 3.549580731 | G37: =E37/'- 7 -'!$E37 -> 555.0081766 | H37: 0 | I37: =H37/'- 3 -'!$D37*100 -> 0
A38: SEVEN OAKS | B38: 585140 | C38: =B38/'- 3 -'!$D38*100 -> 0.3030089021 | D38: =B38/'- 7 -'!$E38 -> 48.66110039 | E38: 2260590 | F38: =E38/'- 3 -'!$D38*100 -> 1.170623943 | G38: =E38/'- 7 -'!$E38 -> 187.9939791 | H38: 83500 | I38: =H38/'- 3 -'!$D38*100 -> 0.04323964064
A39: SOUTHWEST HORIZON | B39: 243600 | C39: =B39/'- 3 -'!$D39*100 -> 0.916344103 | D39: =B39/'- 7 -'!$E39 -> 170.5882353 | E39: 393600 | F39: =E39/'- 3 -'!$D39*100 -> 1.480595398 | G39: =E39/'- 7 -'!$E39 -> 275.6302521 | H39: 0 | I39: =H39/'- 3 -'!$D39*100 -> 0
A40: ST. JAMES-ASSINIBOIA | B40: 259916 | C40: =B40/'- 3 -'!$D40*100 -> 0.1836627116 | D40: =B40/'- 7 -'!$E40 -> 31.23239606 | E40: 3778917 | F40: =E40/'- 3 -'!$D40*100 -> 2.670270945 | G40: =E40/'- 7 -'!$E40 -> 454.0875991 | H40: 390000 | I40: =H40/'- 3 -'!$D40*100 -> 0.2755831019
A41: SUNRISE | B41: 325838 | C41: =B41/'- 3 -'!$D41*100 -> 0.379294107 | D41: =B41/'- 7 -'!$E41 -> 74.29893969 | E41: 2398429 | F41: =E41/'- 3 -'!$D41*100 -> 2.791908819 | G41: =E41/'- 7 -'!$E41 -> 546.8997834 | H41: 847215 | I41: =H41/'- 3 -'!$D41*100 -> 0.9862068172
A42: SWAN VALLEY | B42: 233154 | C42: =B42/'- 3 -'!$D42*100 -> 0.8931411271 | D42: =B42/'- 7 -'!$E42 -> 170.2475356 | E42: 376813 | F42: =E42/'- 3 -'!$D42*100 -> 1.443454487 | G42: =E42/'- 7 -'!$E42 -> 275.1464038 | H42: 0 | I42: =H42/'- 3 -'!$D42*100 -> 0
A43: TURTLE MOUNTAIN | B43: 117628 | C43: =B43/'- 3 -'!$D43*100 -> 0.6652037929 | D43: =B43/'- 7 -'!$E43 -> 108.5129151 | E43: 469869 | F43: =E43/'- 3 -'!$D43*100 -> 2.657178911 | G43: =E43/'- 7 -'!$E43 -> 433.4584871 | H43: 0 | I43: =H43/'- 3 -'!$D43*100 -> 0
A44: TURTLE RIVER | B44: 113869 | C44: =B44/'- 3 -'!$D44*100 -> 0.864463701 | D44: =B44/'- 7 -'!$E44 -> 194.6478632 | E44: 187017 | F44: =E44/'- 3 -'!$D44*100 -> 1.419784208 | G44: =E44/'- 7 -'!$E44 -> 319.6871795 | H44: 0 | I44: =H44/'- 3 -'!$D44*100 -> 0
A45: WESTERN | B45: 180529 | C45: =B45/'- 3 -'!$D45*100 -> 0.5474499813 | D45: =B45/'- 7 -'!$E45 -> 76.14044707 | E45: 604395 | F45: =E45/'- 3 -'!$D45*100 -> 1.832813739 | G45: =E45/'- 7 -'!$E45 -> 254.9114298 | H45: 382458 | I45: =H45/'- 3 -'!$D45*100 -> 1.159794963
A46: WINNIPEG | B46: 746773 | C46: =B46/'- 3 -'!$D46*100 -> 0.1433310944 | D46: =B46/'- 7 -'!$E46 -> 26.15429068 | E46: 18172622 | F46: =E46/'- 3 -'!$D46*100 -> 3.48794319 | G46: =E46/'- 7 -'!$E46 -> 636.4611979 | H46: 32280765 | I46: =H46/'- 3 -'!$D46*100 -> 6.195774855
A48: PROVINCE | B48: =SUM(B11:B46) -> 12561762 | C48: =B48/'- 3 -'!$D48*100 -> 0.3913875186 | D48: =B48/'- 7 -'!$E48 -> 65.26102906 | E48: =SUM(E11:E46) -> 74880906 | F48: =E48/'- 3 -'!$D48*100 -> 2.33306856 | G48: =E48/'- 7 -'!$E48 -> 389.0222552 | H48: =SUM(H11:H46) -> 60233254 | I48: =H48/'- 3 -'!$D48*100 -> 1.876690851
A50: WHITESHELL | B50: 89500 | C50: =B50/'- 3 -'!$D50*100 -> 2.079521845 | D50: =B50/'- 7 -'!$E50 -> 452.020202 | E50: 80272 | F50: =E50/'- 3 -'!$D50*100 -> 1.865110363 | G50: =E50/'- 7 -'!$E50 -> 405.4141414 | H50: 0 | I50: =H50/'- 3 -'!$D50*100 -> 0

Sheet - 22 -
B2: =AEXP_BP -> ANALYSIS OF EXPENSE BY PROGRAM | J2: PAGE 5 OF 16
B3: =OPYEAR -> OPERATING FUND 2025/2026 BUDGET
B5: FUNCTION 200: STUDENT SUPPORT SERVICES (CONT'D)
B6: REGULAR PLACEMENT (1) | E6: OTHER RESOURCE SERVICES | H6: COUNSELLING AND GUIDANCE
D8: PER PUPIL | G8: PER PUPIL | J8: PER PUPIL
A9: DIVISION / DISTRICT | B9: AMOUNT | C9: % | E9: AMOUNT | F9: % | H9: AMOUNT | I9: %
A11: BEAUTIFUL PLAINS | B11: 1243581 | C11: =B11/'- 3 -'!$D11*100 -> 4.08579915 | D11: =B11/'- 7 -'!$E11 -> 557.0351624 | E11: 1247479 | F11: =E11/'- 3 -'!$D11*100 -> 4.098606073 | G11: =E11/'- 7 -'!$E11 -> 558.781187 | H11: 443247 | I11: =H11/'- 3 -'!$D11*100 -> 1.456292928 | J11: =H11/'- 7 -'!$E11 -> 198.5428891
A12: BORDER LAND | B12: 2924795 | C12: =B12/'- 3 -'!$D12*100 -> 7.044595099 | D12: =B12/'- 7 -'!$E12 -> 1436.187086 | E12: 1704900 | F12: =E12/'- 3 -'!$D12*100 -> 4.106383588 | G12: =E12/'- 7 -'!$E12 -> 837.171618 | H12: 629349 | I12: =H12/'- 3 -'!$D12*100 -> 1.51583577 | J12: =H12/'- 7 -'!$E12 -> 309.0346182
A13: BRANDON | B13: 14079390 | C13: =B13/'- 3 -'!$D13*100 -> 10.02677257 | D13: =B13/'- 7 -'!$E13 -> 1423.742542 | E13: 5764750 | F13: =E13/'- 3 -'!$D13*100 -> 4.105421981 | G13: =E13/'- 7 -'!$E13 -> 582.9456972 | H13: 4016240 | I13: =H13/'- 3 -'!$D13*100 -> 2.860203821 | J13: =H13/'- 7 -'!$E13 -> 406.1320659
A14: DSFM | B14: 6910302 | C14: =B14/'- 3 -'!$D14*100 -> 5.404691857 | D14: =B14/'- 7 -'!$E14 -> 1066.733868 | E14: 4298321 | F14: =E14/'- 3 -'!$D14*100 -> 3.361806837 | G14: =E14/'- 7 -'!$E14 -> 663.5259339 | H14: 2251255 | I14: =H14/'- 3 -'!$D14*100 -> 1.760753664 | J14: =H14/'- 7 -'!$E14 -> 347.5231553
A15: EVERGREEN | B15: 2178309 | C15: =B15/'- 3 -'!$D15*100 -> 8.290372296 | D15: =B15/'- 7 -'!$E15 -> 1561.511828 | E15: 1009963 | F15: =E15/'- 3 -'!$D15*100 -> 3.843793179 | G15: =E15/'- 7 -'!$E15 -> 723.9878136 | H15: 506530 | I15: =H15/'- 3 -'!$D15*100 -> 1.927789987 | J15: =H15/'- 7 -'!$E15 -> 363.1039427
A16: FLIN FLON | B16: 1644693 | C16: =B16/'- 3 -'!$D16*100 -> 8.845429139 | D16: =B16/'- 7 -'!$E16 -> 2040.562035 | E16: 816076 | F16: =E16/'- 3 -'!$D16*100 -> 4.38899079 | G16: =E16/'- 7 -'!$E16 -> 1012.501241 | H16: 296651 | I16: =H16/'- 3 -'!$D16*100 -> 1.595437811 | J16: =H16/'- 7 -'!$E16 -> 368.0533499
A17: FORT LA BOSSE | B17: 1089380 | C17: =B17/'- 3 -'!$D17*100 -> 4.630460257 | D17: =B17/'- 7 -'!$E17 -> 712.4787443 | E17: 637800 | F17: =E17/'- 3 -'!$D17*100 -> 2.710998506 | G17: =E17/'- 7 -'!$E17 -> 417.1353826 | H17: 209020 | I17: =H17/'- 3 -'!$D17*100 -> 0.8884492124 | J17: =H17/'- 7 -'!$E17 -> 136.7037279
A18: FRONTIER | B18: 14464005 | C18: =B18/'- 3 -'!$D18*100 -> 8.293392393 | D18: =B18/'- 7 -'!$E18 -> 2393.117968 | E18: 7257265 | F18: =E18/'- 3 -'!$D18*100 -> 4.161181246 | G18: =E18/'- 7 -'!$E18 -> 1200.738749 | H18: 3920308 | I18: =H18/'- 3 -'!$D18*100 -> 2.247831949 | J18: =H18/'- 7 -'!$E18 -> 648.6280609
A19: GARDEN VALLEY | B19: 4373106 | C19: =B19/'- 3 -'!$D19*100 -> 6.992253129 | D19: =B19/'- 7 -'!$E19 -> 1031.149729 | E19: 2690407 | F19: =E19/'- 3 -'!$D19*100 -> 4.301749549 | G19: =E19/'- 7 -'!$E19 -> 634.3803348 | H19: 1091577 | I19: =H19/'- 3 -'!$D19*100 -> 1.745345915 | J19: =H19/'- 7 -'!$E19 -> 257.3867012
A20: HANOVER | B20: 5929800 | C20: =B20/'- 3 -'!$D20*100 -> 5.024296215 | D20: =B20/'- 7 -'!$E20 -> 685.4071548 | E20: 7738900 | F20: =E20/'- 3 -'!$D20*100 -> 6.557139528 | G20: =E20/'- 7 -'!$E20 -> 894.515402 | H20: 2812200 | I20: =H20/'- 3 -'!$D20*100 -> 2.382765998 | J20: =H20/'- 7 -'!$E20 -> 325.0534589
A21: INTERLAKE | B21: 4264085 | C21: =B21/'- 3 -'!$D21*100 -> 8.631292191 | D21: =B21/'- 7 -'!$E21 -> 1509.410619 | E21: 2673055 | F21: =E21/'- 3 -'!$D21*100 -> 5.410754886 | G21: =E21/'- 7 -'!$E21 -> 946.2141593 | H21: 1529690 | I21: =H21/'- 3 -'!$D21*100 -> 3.096373865 | J21: =H21/'- 7 -'!$E21 -> 541.4831858
A22: KELSEY | B22: 1268280 | C22: =B22/'- 3 -'!$D22*100 -> 5.079825369 | D22: =B22/'- 7 -'!$E22 -> 885.6703911 | E22: 1653149 | F22: =E22/'- 3 -'!$D22*100 -> 6.621336164 | G22: =E22/'- 7 -'!$E22 -> 1154.433659 | H22: 751743 | I22: =H22/'- 3 -'!$D22*100 -> 3.010946449 | J22: =H22/'- 7 -'!$E22 -> 524.9601955
A23: LAKESHORE | B23: 2030000 | C23: =B23/'- 3 -'!$D23*100 -> 10.85014406 | D23: =B23/'- 7 -'!$E23 -> 2000 | E23: 428500 | F23: =E23/'- 3 -'!$D23*100 -> 2.29028903 | G23: =E23/'- 7 -'!$E23 -> 422.1674877 | H23: 296000 | I23: =H23/'- 3 -'!$D23*100 -> 1.582089972 | J23: =H23/'- 7 -'!$E23 -> 291.6256158
A24: LORD SELKIRK | B24: 4795531 | C24: =B24/'- 3 -'!$D24*100 -> 6.433162078 | D24: =B24/'- 7 -'!$E24 -> 1205.816193 | E24: 2700452 | F24: =E24/'- 3 -'!$D24*100 -> 3.62263228 | G24: =E24/'- 7 -'!$E24 -> 679.0173498 | H24: 2040803 | I24: =H24/'- 3 -'!$D24*100 -> 2.737719028 | J24: =H24/'- 7 -'!$E24 -> 513.1513704
A25: LOUIS RIEL | B25: 22468353 | C25: =B25/'- 3 -'!$D25*100 -> 8.316802461 | D25: =B25/'- 7 -'!$E25 -> 1302.58873 | E25: 15852848 | F25: =E25/'- 3 -'!$D25*100 -> 5.868031594 | G25: =E25/'- 7 -'!$E25 -> 919.0589599 | H25: 5037857 | I25: =H25/'- 3 -'!$D25*100 -> 1.864794518 | J25: =H25/'- 7 -'!$E25 -> 292.0666126
A26: MOUNTAIN VIEW | B26: 3126480 | C26: =B26/'- 3 -'!$D26*100 -> 5.968293413 | D26: =B26/'- 7 -'!$E26 -> 1022.560916 | E26: 2447213 | F26: =E26/'- 3 -'!$D26*100 -> 4.6716068 | G26: =E26/'- 7 -'!$E26 -> 800.3967294 | H26: 1452655 | I26: =H26/'- 3 -'!$D26*100 -> 2.773045491 | J26: =H26/'- 7 -'!$E26 -> 475.1120196
A27: MYSTERY LAKE | B27: 2504663 | C27: =B27/'- 3 -'!$D27*100 -> 4.76380565 | D27: =B27/'- 7 -'!$E27 -> 865.7696708 | E27: 2704089 | F27: =E27/'- 3 -'!$D27*100 -> 5.143108856 | G27: =E27/'- 7 -'!$E27 -> 934.7038877 | H27: 1635658 | I27: =H27/'- 3 -'!$D27*100 -> 3.110980128 | J27: =H27/'- 7 -'!$E27 -> 565.3866761
A28: PARK WEST | B28: 1747238 | C28: =B28/'- 3 -'!$D28*100 -> 4.75944708 | D28: =B28/'- 7 -'!$E28 -> 785.0990789 | E28: 2048325 | F28: =E28/'- 3 -'!$D28*100 -> 5.579603031 | G28: =E28/'- 7 -'!$E28 -> 920.3886767 | H28: 680250 | I28: =H28/'- 3 -'!$D28*100 -> 1.852989619 | J28: =H28/'- 7 -'!$E28 -> 305.6616491
A29: PEMBINA TRAILS | B29: 27669370 | C29: =B29/'- 3 -'!$D29*100 -> 11.33270218 | D29: =B29/'- 7 -'!$E29 -> 1550.017926 | E29: 10767562 | F29: =E29/'- 3 -'!$D29*100 -> 4.410131974 | G29: =E29/'- 7 -'!$E29 -> 603.1909697 | H29: 5068192 | I29: =H29/'- 3 -'!$D29*100 -> 2.075808395 | J29: =H29/'- 7 -'!$E29 -> 283.9164192
A30: PINE CREEK | B30: 809839 | C30: =B30/'- 3 -'!$D30*100 -> 3.790452638 | D30: =B30/'- 7 -'!$E30 -> 756.8588785 | E30: 949540 | F30: =E30/'- 3 -'!$D30*100 -> 4.444323375 | G30: =E30/'- 7 -'!$E30 -> 887.4205607 | H30: 68712 | I30: =H30/'- 3 -'!$D30*100 -> 0.3216066177 | J30: =H30/'- 7 -'!$E30 -> 64.21682243
A31: PORTAGE LA PRAIRIE | B31: 3656418 | C31: =B31/'- 3 -'!$D31*100 -> 6.857602172 | D31: =B31/'- 7 -'!$E31 -> 1060.292301 | E31: 2286565 | F31: =E31/'- 3 -'!$D31*100 -> 4.288446537 | G31: =E31/'- 7 -'!$E31 -> 663.0607511 | H31: 1944110 | I31: =H31/'- 3 -'!$D31*100 -> 3.646173101 | J31: =H31/'- 7 -'!$E31 -> 563.7552559
A32: PRAIRIE ROSE | B32: 2094719 | C32: =B32/'- 3 -'!$D32*100 -> 5.037884078 | D32: =B32/'- 7 -'!$E32 -> 904.8462203 | E32: 2693750 | F32: =E32/'- 3 -'!$D32*100 -> 6.478577907 | G32: =E32/'- 7 -'!$E32 -> 1163.606911 | H32: 1267286 | I32: =H32/'- 3 -'!$D32*100 -> 3.047874183 | J32: =H32/'- 7 -'!$E32 -> 547.4237581
A33: PRAIRIE SPIRIT | B33: 1638456 | C33: =B33/'- 3 -'!$D33*100 -> 4.717263772 | D33: =B33/'- 7 -'!$E33 -> 751.4129787 | E33: 2339199 | F33: =E33/'- 3 -'!$D33*100 -> 6.734766572 | G33: =E33/'- 7 -'!$E33 -> 1072.781014 | H33: 723710 | I33: =H33/'- 3 -'!$D33*100 -> 2.083626881 | J33: =H33/'- 7 -'!$E33 -> 331.9009402
A34: RED RIVER VALLEY | B34: 2266402 | C34: =B34/'- 3 -'!$D34*100 -> 5.619887779 | D34: =B34/'- 7 -'!$E34 -> 970.6218415 | E34: 1711514 | F34: =E34/'- 3 -'!$D34*100 -> 4.243958756 | G34: =E34/'- 7 -'!$E34 -> 732.9824411 | H34: 1176285 | I34: =H34/'- 3 -'!$D34*100 -> 2.916777207 | J34: =H34/'- 7 -'!$E34 -> 503.7623126
A35: RIVER EAST TRANSCONA | B35: 24504800 | C35: =B35/'- 3 -'!$D35*100 -> 9.165003987 | D35: =B35/'- 7 -'!$E35 -> 1324.726998 | E35: 16124904 | F35: =E35/'- 3 -'!$D35*100 -> 6.030851484 | G35: =E35/'- 7 -'!$E35 -> 871.7106714 | H35: 3806000 | I35: =H35/'- 3 -'!$D35*100 -> 1.423476428 | J35: =H35/'- 7 -'!$E35 -> 205.7519732
A36: ROLLING RIVER | B36: 892050 | C36: =B36/'- 3 -'!$D36*100 -> 3.066742254 | D36: =B36/'- 7 -'!$E36 -> 496.6870824 | E36: 1728670 | F36: =E36/'- 3 -'!$D36*100 -> 5.942923975 | G36: =E36/'- 7 -'!$E36 -> 962.5111359 | H36: 574625 | I36: =H36/'- 3 -'!$D36*100 -> 1.975479813 | J36: =H36/'- 7 -'!$E36 -> 319.9471047
A37: SEINE RIVER | B37: 7491200 | C37: =B37/'- 3 -'!$D37*100 -> 9.793605823 | D37: =B37/'- 7 -'!$E37 -> 1531.316435 | E37: 3084000 | F37: =E37/'- 3 -'!$D37*100 -> 4.031861432 | G37: =E37/'- 7 -'!$E37 -> 630.4170074 | H37: 1624000 | I37: =H37/'- 3 -'!$D37*100 -> 2.123133257 | J37: =H37/'- 7 -'!$E37 -> 331.9705642
A38: SEVEN OAKS | B38: 21304702 | C38: =B38/'- 3 -'!$D38*100 -> 11.03242705 | D38: =B38/'- 7 -'!$E38 -> 1771.730257 | E38: 10247450 | F38: =E38/'- 3 -'!$D38*100 -> 5.306539587 | G38: =E38/'- 7 -'!$E38 -> 852.1929679 | H38: 1329920 | I38: =H38/'- 3 -'!$D38*100 -> 0.6886857831 | J38: =H38/'- 7 -'!$E38 -> 110.5980973
A39: SOUTHWEST HORIZON | B39: 2438450 | C39: =B39/'- 3 -'!$D39*100 -> 9.172657135 | D39: =B39/'- 7 -'!$E39 -> 1707.598039 | E39: 937200 | F39: =E39/'- 3 -'!$D39*100 -> 3.525442091 | G39: =E39/'- 7 -'!$E39 -> 656.302521 | H39: 761300 | I39: =H39/'- 3 -'!$D39*100 -> 2.863763406 | J39: =H39/'- 7 -'!$E39 -> 533.1232493
A40: ST. JAMES-ASSINIBOIA | B40: 18548220 | C40: =B40/'- 3 -'!$D40*100 -> 13.10660513 | D40: =B40/'- 7 -'!$E40 -> 2228.817592 | E40: 6461110 | F40: =E40/'- 3 -'!$D40*100 -> 4.565571116 | G40: =E40/'- 7 -'!$E40 -> 776.3890892 | H40: 3833480 | I40: =H40/'- 3 -'!$D40*100 -> 2.708826434 | J40: =H40/'- 7 -'!$E40 -> 460.6440759
A41: SUNRISE | B41: 7633789 | C41: =B41/'- 3 -'!$D41*100 -> 8.886167918 | D41: =B41/'- 7 -'!$E41 -> 1740.688405 | E41: 4773902 | F41: =E41/'- 3 -'!$D41*100 -> 5.557095539 | G41: =E41/'- 7 -'!$E41 -> 1088.565044 | H41: 1167765 | I41: =H41/'- 3 -'!$D41*100 -> 1.359345389 | J41: =H41/'- 7 -'!$E41 -> 266.2786455
A42: SWAN VALLEY | B42: 2991410 | C42: =B42/'- 3 -'!$D42*100 -> 11.4591699 | D42: =B42/'- 7 -'!$E42 -> 2184.308142 | E42: 1057613 | F42: =E42/'- 3 -'!$D42*100 -> 4.051389497 | G42: =E42/'- 7 -'!$E42 -> 772.2621395 | H42: 697851 | I42: =H42/'- 3 -'!$D42*100 -> 2.673252137 | J42: =H42/'- 7 -'!$E42 -> 509.5662651
A43: TURTLE MOUNTAIN | B43: 262758 | C43: =B43/'- 3 -'!$D43*100 -> 1.485935476 | D43: =B43/'- 7 -'!$E43 -> 242.396679 | E43: 1936239 | F43: =E43/'- 3 -'!$D43*100 -> 10.94971883 | G43: =E43/'- 7 -'!$E43 -> 1786.198339 | H43: 240712 | I43: =H43/'- 3 -'!$D43*100 -> 1.361262075 | J43: =H43/'- 7 -'!$E43 -> 222.0590406
A44: TURTLE RIVER | B44: 1119721 | C44: =B44/'- 3 -'!$D44*100 -> 8.500629317 | D44: =B44/'- 7 -'!$E44 -> 1914.052991 | E44: 444599 | F44: =E44/'- 3 -'!$D44*100 -> 3.375279461 | G44: =E44/'- 7 -'!$E44 -> 759.9982906 | H44: 84906 | I44: =H44/'- 3 -'!$D44*100 -> 0.6445841712 | J44: =H44/'- 7 -'!$E44 -> 145.1384615
A45: WESTERN | B45: 1696491 | C45: =B45/'- 3 -'!$D45*100 -> 5.144569383 | D45: =B45/'- 7 -'!$E45 -> 715.5170814 | E45: 1782702 | F45: =E45/'- 3 -'!$D45*100 -> 5.40600223 | G45: =E45/'- 7 -'!$E45 -> 751.8776887 | H45: 1136706 | I45: =H45/'- 3 -'!$D45*100 -> 3.447034429 | J45: =H45/'- 7 -'!$E45 -> 479.4204977
A46: WINNIPEG | B46: 28895287 | C46: =B46/'- 3 -'!$D46*100 -> 5.545986678 | D46: =B46/'- 7 -'!$E46 -> 1012.001954 | E46: 26147065 | F46: =E46/'- 3 -'!$D46*100 -> 5.018509563 | G46: =E46/'- 7 -'!$E46 -> 915.7507547 | H46: 7346920 | I46: =H46/'- 3 -'!$D46*100 -> 1.410123403 | J46: =H46/'- 7 -'!$E46 -> 257.3117685
A48: PROVINCE | B48: =SUM(B11:B46) -> 252956073 | C48: =B48/'- 3 -'!$D48*100 -> 7.881366461 | D48: =B48/'- 7 -'!$E48 -> 1314.160675 | E48: =SUM(E11:E46) -> 159147076 | F48: =E48/'- 3 -'!$D48*100 -> 4.958554314 | G48: =E48/'- 7 -'!$E48 -> 826.8029558 | H48: =SUM(H11:H46) -> 62453513 | I48: =H48/'- 3 -'!$D48*100 -> 1.945867584 | J48: =H48/'- 7 -'!$E48 -> 324.4593017
A50: WHITESHELL | B50: 252620 | C50: =B50/'- 3 -'!$D50*100 -> 5.869595625 | D50: =B50/'- 7 -'!$E50 -> 1275.858586 | E50: 31000 | F50: =E50/'- 3 -'!$D50*100 -> 0.7202813094 | G50: =E50/'- 7 -'!$E50 -> 156.5656566 | H50: 124326 | I50: =H50/'- 3 -'!$D50*100 -> 2.888699809 | J50: =H50/'- 7 -'!$E50 -> 627.9090909
A52: (1) Expenses shown are extra costs associated with special needs students in regular classes, not the total cost of educating those students.

Sheet - 23 -
B2: =AEXP_BP -> ANALYSIS OF EXPENSE BY PROGRAM | F2: PAGE 6 OF 16
B3: =OPYEAR -> OPERATING FUND 2025/2026 BUDGET
B5: FUNCTION 300: ADULT LEARNING CENTRES
B6: ADMINISTRATION AND OTHER | D6: INSTRUCTION
A9: DIVISION / DISTRICT | B9: AMOUNT | C9: % | D9: AMOUNT | E9: %
A11: BEAUTIFUL PLAINS | B11: 0 | C11: =B11/'- 3 -'!$D11*100 -> 0 | D11: 0 | E11: =D11/'- 3 -'!$D11*100 -> 0
A12: BORDER LAND | B12: 96140 | C12: =B12/'- 3 -'!$D12*100 -> 0.23156063 | D12: 263860 | E12: =D12/'- 3 -'!$D12*100 -> 0.6355272294
A13: BRANDON | B13: 0 | C13: =B13/'- 3 -'!$D13*100 -> 0 | D13: 0 | E13: =D13/'- 3 -'!$D13*100 -> 0
A14: DSFM | B14: 100302 | C14: =B14/'- 3 -'!$D14*100 -> 0.07844829397 | D14: 194740 | E14: =D14/'- 3 -'!$D14*100 -> 0.1523102308
A15: EVERGREEN | B15: 0 | C15: =B15/'- 3 -'!$D15*100 -> 0 | D15: 0 | E15: =D15/'- 3 -'!$D15*100 -> 0
A16: FLIN FLON | B16: 13796 | C16: =B16/'- 3 -'!$D16*100 -> 0.07419715436 | D16: 87037 | E16: =D16/'- 3 -'!$D16*100 -> 0.4680992841
A17: FORT LA BOSSE | B17: 0 | C17: =B17/'- 3 -'!$D17*100 -> 0 | D17: 0 | E17: =D17/'- 3 -'!$D17*100 -> 0
A18: FRONTIER | B18: 90934 | C18: =B18/'- 3 -'!$D18*100 -> 0.05213987024 | D18: 2447651 | E18: =D18/'- 3 -'!$D18*100 -> 1.403437719
A19: GARDEN VALLEY | B19: 0 | C19: =B19/'- 3 -'!$D19*100 -> 0 | D19: 0 | E19: =D19/'- 3 -'!$D19*100 -> 0
A20: HANOVER | B20: 0 | C20: =B20/'- 3 -'!$D20*100 -> 0 | D20: 0 | E20: =D20/'- 3 -'!$D20*100 -> 0
A21: INTERLAKE | B21: 0 | C21: =B21/'- 3 -'!$D21*100 -> 0 | D21: 0 | E21: =D21/'- 3 -'!$D21*100 -> 0
A22: KELSEY | B22: 206642 | C22: =B22/'- 3 -'!$D22*100 -> 0.8276605119 | D22: 477488 | E22: =D22/'- 3 -'!$D22*100 -> 1.912476469
A23: LAKESHORE | B23: 78392 | C23: =B23/'- 3 -'!$D23*100 -> 0.4189972874 | D23: 244195 | E23: =D23/'- 3 -'!$D23*100 -> 1.305197502
A24: LORD SELKIRK | B24: 77705 | C24: =B24/'- 3 -'!$D24*100 -> 0.1042405647 | D24: 297419 | E24: =D24/'- 3 -'!$D24*100 -> 0.3989849366
A25: LOUIS RIEL | B25: 0 | C25: =B25/'- 3 -'!$D25*100 -> 0 | D25: 375204 | E25: =D25/'- 3 -'!$D25*100 -> 0.1388841252
A26: MOUNTAIN VIEW | B26: 0 | C26: =B26/'- 3 -'!$D26*100 -> 0 | D26: 0 | E26: =D26/'- 3 -'!$D26*100 -> 0
A27: MYSTERY LAKE | B27: 0 | C27: =B27/'- 3 -'!$D27*100 -> 0 | D27: 0 | E27: =D27/'- 3 -'!$D27*100 -> 0
A28: PARK WEST | B28: 0 | C28: =B28/'- 3 -'!$D28*100 -> 0 | D28: 193119 | E28: =D28/'- 3 -'!$D28*100 -> 0.5260529251
A29: PEMBINA TRAILS | B29: 0 | C29: =B29/'- 3 -'!$D29*100 -> 0 | D29: 0 | E29: =D29/'- 3 -'!$D29*100 -> 0
A30: PINE CREEK | B30: 0 | C30: =B30/'- 3 -'!$D30*100 -> 0 | D30: 0 | E30: =D30/'- 3 -'!$D30*100 -> 0
A31: PORTAGE LA PRAIRIE | B31: 0 | C31: =B31/'- 3 -'!$D31*100 -> 0 | D31: 0 | E31: =D31/'- 3 -'!$D31*100 -> 0
A32: PRAIRIE ROSE | B32: 61960 | C32: =B32/'- 3 -'!$D32*100 -> 0.1490163108 | D32: 304147 | E32: =D32/'- 3 -'!$D32*100 -> 0.7314858598
A33: PRAIRIE SPIRIT | B33: 0 | C33: =B33/'- 3 -'!$D33*100 -> 0 | D33: 0 | E33: =D33/'- 3 -'!$D33*100 -> 0
A34: RED RIVER VALLEY | B34: 0 | C34: =B34/'- 3 -'!$D34*100 -> 0 | D34: 0 | E34: =D34/'- 3 -'!$D34*100 -> 0
A35: RIVER EAST TRANSCONA | B35: 364702 | C35: =B35/'- 3 -'!$D35*100 -> 0.1364016553 | D35: 1523241 | E35: =D35/'- 3 -'!$D35*100 -> 0.5697051124
A36: ROLLING RIVER | B36: 0 | C36: =B36/'- 3 -'!$D36*100 -> 0 | D36: 0 | E36: =D36/'- 3 -'!$D36*100 -> 0
A37: SEINE RIVER | B37: 118110 | C37: =B37/'- 3 -'!$D37*100 -> 0.1544108799 | D37: 245350 | E37: =D37/'- 3 -'!$D37*100 -> 0.3207578477
A38: SEVEN OAKS | B38: 828634 | C38: =B38/'- 3 -'!$D38*100 -> 0.429099837 | D38: 1695091 | E38: =D38/'- 3 -'!$D38*100 -> 0.8777859365
A39: SOUTHWEST HORIZON | B39: 0 | C39: =B39/'- 3 -'!$D39*100 -> 0 | D39: 0 | E39: =D39/'- 3 -'!$D39*100 -> 0
A40: ST. JAMES-ASSINIBOIA | B40: 0 | C40: =B40/'- 3 -'!$D40*100 -> 0 | D40: 0 | E40: =D40/'- 3 -'!$D40*100 -> 0
A41: SUNRISE | B41: 366881 | C41: =B41/'- 3 -'!$D41*100 -> 0.4270705114 | D41: 786682 | E41: =D41/'- 3 -'!$D41*100 -> 0.9157429358
A42: SWAN VALLEY | B42: 0 | C42: =B42/'- 3 -'!$D42*100 -> 0 | D42: 0 | E42: =D42/'- 3 -'!$D42*100 -> 0
A43: TURTLE MOUNTAIN | B43: 0 | C43: =B43/'- 3 -'!$D43*100 -> 0 | D43: 216412 | E43: =D43/'- 3 -'!$D43*100 -> 1.22384197
A44: TURTLE RIVER | B44: 0 | C44: =B44/'- 3 -'!$D44*100 -> 0 | D44: 0 | E44: =D44/'- 3 -'!$D44*100 -> 0
A45: WESTERN | B45: 216794 | C45: =B45/'- 3 -'!$D45*100 -> 0.6574227478 | D45: 255769 | E45: =D45/'- 3 -'!$D45*100 -> 0.7756135261
A46: WINNIPEG | B46: 102296 | C46: =B46/'- 3 -'!$D46*100 -> 0.01963407573 | D46: 717337 | E46: =D46/'- 3 -'!$D46*100 -> 0.1376813266
A48: PROVINCE | B48: =SUM(B11:B46) -> 2723288 | C48: =B48/'- 3 -'!$D48*100 -> 0.08484963595 | D48: =SUM(D11:D46) -> 10324742 | E48: =D48/'- 3 -'!$D48*100 -> 0.3216885618
A50: WHITESHELL | B50: 0 | C50: =B50/'- 3 -'!$D50*100 -> 0 | D50: 0 | E50: =D50/'- 3 -'!$D50*100 -> 0

Sheet - 24 -
B2: =AEXP_BP -> ANALYSIS OF EXPENSE BY PROGRAM | I2: PAGE 7 OF 16
B3: =OPYEAR -> OPERATING FUND 2025/2026 BUDGET
B5: FUNCTION 400: COMMUNITY EDUCATION AND SERVICES
D6: ENGLISH AS AN ADDITIONAL LANGUAGE FOR ADULTS
B7: CONTINUING EDUCATION | F7: COMMUNITY SERVICES & RECREATION | H7: PRE-KINDERGARTEN EDUCATION
A9: DIVISION / DISTRICT | B9: AMOUNT | C9: % | D9: AMOUNT | E9: % | F9: AMOUNT | G9: % | H9: AMOUNT | I9: %
A11: BEAUTIFUL PLAINS | B11: 0 | C11: =B11/'- 3 -'!$D11*100 -> 0 | D11: 0 | E11: =D11/'- 3 -'!$D11*100 -> 0 | F11: 0 | G11: =F11/'- 3 -'!$D11*100 -> 0 | H11: 24310 | I11: =H11/'- 3 -'!$D11*100 -> 0.07987077428
A12: BORDER LAND | B12: 0 | C12: =B12/'- 3 -'!$D12*100 -> 0 | D12: 0 | E12: =D12/'- 3 -'!$D12*100 -> 0 | F12: 0 | G12: =F12/'- 3 -'!$D12*100 -> 0 | H12: 52690 | I12: =H12/'- 3 -'!$D12*100 -> 0.1269079425
A13: BRANDON | B13: 0 | C13: =B13/'- 3 -'!$D13*100 -> 0 | D13: 0 | E13: =D13/'- 3 -'!$D13*100 -> 0 | F13: 375525 | G13: =F13/'- 3 -'!$D13*100 -> 0.267433729 | H13: 210770 | I13: =H13/'- 3 -'!$D13*100 -> 0.1501018762
A14: DSFM | B14: 0 | C14: =B14/'- 3 -'!$D14*100 -> 0 | D14: 0 | E14: =D14/'- 3 -'!$D14*100 -> 0 | F14: 0 | G14: =F14/'- 3 -'!$D14*100 -> 0 | H14: 738946 | I14: =H14/'- 3 -'!$D14*100 -> 0.577945136
A15: EVERGREEN | B15: 0 | C15: =B15/'- 3 -'!$D15*100 -> 0 | D15: 0 | E15: =D15/'- 3 -'!$D15*100 -> 0 | F15: 0 | G15: =F15/'- 3 -'!$D15*100 -> 0 | H15: 0 | I15: =H15/'- 3 -'!$D15*100 -> 0
A16: FLIN FLON | B16: 0 | C16: =B16/'- 3 -'!$D16*100 -> 0 | D16: 0 | E16: =D16/'- 3 -'!$D16*100 -> 0 | F16: 0 | G16: =F16/'- 3 -'!$D16*100 -> 0 | H16: 12169 | I16: =H16/'- 3 -'!$D16*100 -> 0.06544688108
A17: FORT LA BOSSE | B17: 85800 | C17: =B17/'- 3 -'!$D17*100 -> 0.3646968827 | D17: 0 | E17: =D17/'- 3 -'!$D17*100 -> 0 | F17: 0 | G17: =F17/'- 3 -'!$D17*100 -> 0 | H17: 91890 | I17: =H17/'- 3 -'!$D17*100 -> 0.3905827104
A18: FRONTIER | B18: 0 | C18: =B18/'- 3 -'!$D18*100 -> 0 | D18: 0 | E18: =D18/'- 3 -'!$D18*100 -> 0 | F18: 903704 | G18: =F18/'- 3 -'!$D18*100 -> 0.5181671244 | H18: 1625460 | I18: =H18/'- 3 -'!$D18*100 -> 0.9320086379
A19: GARDEN VALLEY | B19: 0 | C19: =B19/'- 3 -'!$D19*100 -> 0 | D19: 0 | E19: =D19/'- 3 -'!$D19*100 -> 0 | F19: 107792 | G19: =F19/'- 3 -'!$D19*100 -> 0.1723509445 | H19: 52437 | I19: =H19/'- 3 -'!$D19*100 -> 0.08384264579
A20: HANOVER | B20: 0 | C20: =B20/'- 3 -'!$D20*100 -> 0 | D20: 0 | E20: =D20/'- 3 -'!$D20*100 -> 0 | F20: 0 | G20: =F20/'- 3 -'!$D20*100 -> 0 | H20: 128200 | I20: =H20/'- 3 -'!$D20*100 -> 0.1086233557
A21: INTERLAKE | B21: 0 | C21: =B21/'- 3 -'!$D21*100 -> 0 | D21: 0 | E21: =D21/'- 3 -'!$D21*100 -> 0 | F21: 0 | G21: =F21/'- 3 -'!$D21*100 -> 0 | H21: 0 | I21: =H21/'- 3 -'!$D21*100 -> 0
A22: KELSEY | B22: 0 | C22: =B22/'- 3 -'!$D22*100 -> 0 | D22: 0 | E22: =D22/'- 3 -'!$D22*100 -> 0 | F22: 54249 | G22: =F22/'- 3 -'!$D22*100 -> 0.2172828133 | H22: 0 | I22: =H22/'- 3 -'!$D22*100 -> 0
A23: LAKESHORE | B23: 121987 | C23: =B23/'- 3 -'!$D23*100 -> 0.6520081399 | D23: 0 | E23: =D23/'- 3 -'!$D23*100 -> 0 | F23: 0 | G23: =F23/'- 3 -'!$D23*100 -> 0 | H23: 0 | I23: =H23/'- 3 -'!$D23*100 -> 0
A24: LORD SELKIRK | B24: 0 | C24: =B24/'- 3 -'!$D24*100 -> 0 | D24: 0 | E24: =D24/'- 3 -'!$D24*100 -> 0 | F24: 251001 | G24: =F24/'- 3 -'!$D24*100 -> 0.3367156035 | H24: 0 | I24: =H24/'- 3 -'!$D24*100 -> 0
A25: LOUIS RIEL | B25: 0 | C25: =B25/'- 3 -'!$D25*100 -> 0 | D25: 147493 | E25: =D25/'- 3 -'!$D25*100 -> 0.05459546347 | F25: 1425267 | G25: =F25/'- 3 -'!$D25*100 -> 0.5275715623 | H25: 1004761 | I25: =H25/'- 3 -'!$D25*100 -> 0.3719186163
A26: MOUNTAIN VIEW | B26: 0 | C26: =B26/'- 3 -'!$D26*100 -> 0 | D26: 0 | E26: =D26/'- 3 -'!$D26*100 -> 0 | F26: 0 | G26: =F26/'- 3 -'!$D26*100 -> 0 | H26: 121662 | I26: =H26/'- 3 -'!$D26*100 -> 0.2322466522
A27: MYSTERY LAKE | B27: 0 | C27: =B27/'- 3 -'!$D27*100 -> 0 | D27: 0 | E27: =D27/'- 3 -'!$D27*100 -> 0 | F27: 0 | G27: =F27/'- 3 -'!$D27*100 -> 0 | H27: 41968 | I27: =H27/'- 3 -'!$D27*100 -> 0.07982207407
A28: PARK WEST | B28: 0 | C28: =B28/'- 3 -'!$D28*100 -> 0 | D28: 0 | E28: =D28/'- 3 -'!$D28*100 -> 0 | F28: 0 | G28: =F28/'- 3 -'!$D28*100 -> 0 | H28: 129444 | I28: =H28/'- 3 -'!$D28*100 -> 0.3526032904
A29: PEMBINA TRAILS | B29: 0 | C29: =B29/'- 3 -'!$D29*100 -> 0 | D29: 0 | E29: =D29/'- 3 -'!$D29*100 -> 0 | F29: 182879 | G29: =F29/'- 3 -'!$D29*100 -> 0.07490279836 | H29: 0 | I29: =H29/'- 3 -'!$D29*100 -> 0
A30: PINE CREEK | B30: 0 | C30: =B30/'- 3 -'!$D30*100 -> 0 | D30: 0 | E30: =D30/'- 3 -'!$D30*100 -> 0 | F30: 0 | G30: =F30/'- 3 -'!$D30*100 -> 0 | H30: 14790 | I30: =H30/'- 3 -'!$D30*100 -> 0.06922461689
A31: PORTAGE LA PRAIRIE | B31: 0 | C31: =B31/'- 3 -'!$D31*100 -> 0 | D31: 0 | E31: =D31/'- 3 -'!$D31*100 -> 0 | F31: 0 | G31: =F31/'- 3 -'!$D31*100 -> 0 | H31: 51260 | I31: =H31/'- 3 -'!$D31*100 -> 0.09613799279
A32: PRAIRIE ROSE | B32: 0 | C32: =B32/'- 3 -'!$D32*100 -> 0 | D32: 0 | E32: =D32/'- 3 -'!$D32*100 -> 0 | F32: 0 | G32: =F32/'- 3 -'!$D32*100 -> 0 | H32: 28077 | I32: =H32/'- 3 -'!$D32*100 -> 0.06752632275
A33: PRAIRIE SPIRIT | B33: 0 | C33: =B33/'- 3 -'!$D33*100 -> 0 | D33: 0 | E33: =D33/'- 3 -'!$D33*100 -> 0 | F33: 0 | G33: =F33/'- 3 -'!$D33*100 -> 0 | H33: 34617 | I33: =H33/'- 3 -'!$D33*100 -> 0.09966548994
A34: RED RIVER VALLEY | B34: 0 | C34: =B34/'- 3 -'!$D34*100 -> 0 | D34: 0 | E34: =D34/'- 3 -'!$D34*100 -> 0 | F34: 0 | G34: =F34/'- 3 -'!$D34*100 -> 0 | H34: 61325 | I34: =H34/'- 3 -'!$D34*100 -> 0.1520646461
A35: RIVER EAST TRANSCONA | B35: 369100 | C35: =B35/'- 3 -'!$D35*100 -> 0.1380465448 | D35: 0 | E35: =D35/'- 3 -'!$D35*100 -> 0 | F35: 0 | G35: =F35/'- 3 -'!$D35*100 -> 0 | H35: 230481 | I35: =H35/'- 3 -'!$D35*100 -> 0.08620185775
A36: ROLLING RIVER | B36: 0 | C36: =B36/'- 3 -'!$D36*100 -> 0 | D36: 0 | E36: =D36/'- 3 -'!$D36*100 -> 0 | F36: 0 | G36: =F36/'- 3 -'!$D36*100 -> 0 | H36: 23475 | I36: =H36/'- 3 -'!$D36*100 -> 0.08070374352
A37: SEINE RIVER | B37: 0 | C37: =B37/'- 3 -'!$D37*100 -> 0 | D37: 0 | E37: =D37/'- 3 -'!$D37*100 -> 0 | F37: 0 | G37: =F37/'- 3 -'!$D37*100 -> 0 | H37: 0 | I37: =H37/'- 3 -'!$D37*100 -> 0
A38: SEVEN OAKS | B38: 0 | C38: =B38/'- 3 -'!$D38*100 -> 0 | D38: 912270 | E38: =D38/'- 3 -'!$D38*100 -> 0.4724099038 | F38: 1464744 | G38: =F38/'- 3 -'!$D38*100 -> 0.7585030443 | H38: 594430 | I38: =H38/'- 3 -'!$D38*100 -> 0.3078196358
A39: SOUTHWEST HORIZON | B39: 0 | C39: =B39/'- 3 -'!$D39*100 -> 0 | D39: 0 | E39: =D39/'- 3 -'!$D39*100 -> 0 | F39: 0 | G39: =F39/'- 3 -'!$D39*100 -> 0 | H39: 200100 | I39: =H39/'- 3 -'!$D39*100 -> 0.7527112275
A40: ST. JAMES-ASSINIBOIA | B40: 0 | C40: =B40/'- 3 -'!$D40*100 -> 0 | D40: 536923 | E40: =D40/'- 3 -'!$D40*100 -> 0.3794023226 | F40: 154927 | G40: =F40/'- 3 -'!$D40*100 -> 0.1094750339 | H40: 501278 | I40: =H40/'- 3 -'!$D40*100 -> 0.3542147337
A41: SUNRISE | B41: 0 | C41: =B41/'- 3 -'!$D41*100 -> 0 | D41: 0 | E41: =D41/'- 3 -'!$D41*100 -> 0 | F41: 0 | G41: =F41/'- 3 -'!$D41*100 -> 0 | H41: 61718 | I41: =H41/'- 3 -'!$D41*100 -> 0.0718432893
A42: SWAN VALLEY | B42: 0 | C42: =B42/'- 3 -'!$D42*100 -> 0 | D42: 0 | E42: =D42/'- 3 -'!$D42*100 -> 0 | F42: 0 | G42: =F42/'- 3 -'!$D42*100 -> 0 | H42: 43741 | I42: =H42/'- 3 -'!$D42*100 -> 0.1675582921
A43: TURTLE MOUNTAIN | B43: 0 | C43: =B43/'- 3 -'!$D43*100 -> 0 | D43: 0 | E43: =D43/'- 3 -'!$D43*100 -> 0 | F43: 0 | G43: =F43/'- 3 -'!$D43*100 -> 0 | H43: 16876 | I43: =H43/'- 3 -'!$D43*100 -> 0.09543628395
A44: TURTLE RIVER | B44: 0 | C44: =B44/'- 3 -'!$D44*100 -> 0 | D44: 0 | E44: =D44/'- 3 -'!$D44*100 -> 0 | F44: 0 | G44: =F44/'- 3 -'!$D44*100 -> 0 | H44: 35161 | I44: =H44/'- 3 -'!$D44*100 -> 0.2669331266
A45: WESTERN | B45: 0 | C45: =B45/'- 3 -'!$D45*100 -> 0 | D45: 0 | E45: =D45/'- 3 -'!$D45*100 -> 0 | F45: 0 | G45: =F45/'- 3 -'!$D45*100 -> 0 | H45: 70793 | I45: =H45/'- 3 -'!$D45*100 -> 0.2146781211
A46: WINNIPEG | B46: 0 | C46: =B46/'- 3 -'!$D46*100 -> 0 | D46: 3399140 | E46: =D46/'- 3 -'!$D46*100 -> 0.6524103794 | F46: 145991 | G46: =F46/'- 3 -'!$D46*100 -> 0.02802062984 | H46: 4924314 | I46: =H46/'- 3 -'!$D46*100 -> 0.9451430554
A48: PROVINCE | B48: =SUM(B11:B46) -> 576887 | C48: =B48/'- 3 -'!$D48*100 -> 0.0179741004 | D48: =SUM(D11:D46) -> 4995826 | E48: =D48/'- 3 -'!$D48*100 -> 0.155655229 | F48: =SUM(F11:F46) -> 5066079 | G48: =F48/'- 3 -'!$D48*100 -> 0.1578441057 | H48: =SUM(H11:H46) -> 11127143 | I48: =H48/'- 3 -'!$D48*100 -> 0.3466890144
A50: WHITESHELL | B50: 0 | C50: =B50/'- 3 -'!$D50*100 -> 0 | D50: 0 | E50: =D50/'- 3 -'!$D50*100 -> 0 | F50: 99500 | G50: =F50/'- 3 -'!$D50*100 -> 2.311870654 | H50: 226100 | I50: =H50/'- 3 -'!$D50*100 -> 5.253406582

Sheet - 25 -
B2: =AEXP_BP -> ANALYSIS OF EXPENSE BY PROGRAM | J2: PAGE 8 OF 16
B3: =OPYEAR -> OPERATING FUND 2025/2026 BUDGET
B5: FUNCTION 500: DIVISIONAL ADMINISTRATION
E6: INSTRUCTIONAL MGMT. AND ADMINISTRATION | H6: BUSINESS AND ADMIN. SERVICES
B7: BOARD OF TRUSTEES
D8: PER PUPIL | G8: PER PUPIL | J8: PER PUPIL
A9: DIVISION / DISTRICT | B9: AMOUNT | C9: % | E9: AMOUNT | F9: % | H9: AMOUNT | I9: %
A11: BEAUTIFUL PLAINS | B11: 169987 | C11: =B11/'- 3 -'!$D11*100 -> 0.5584941714 | D11: =B11/'- 7 -'!$E11 -> 76.14199328 | E11: 195433 | F11: =E11/'- 3 -'!$D11*100 -> 0.6420972863 | G11: =E11/'- 7 -'!$E11 -> 87.5399776 | H11: 518548 | I11: =H11/'- 3 -'!$D11*100 -> 1.703695198 | J11: =H11/'- 7 -'!$E11 -> 232.2723404
A12: BORDER LAND | B12: 187573 | C12: =B12/'- 3 -'!$D12*100 -> 0.4517840863 | D12: =B12/'- 7 -'!$E12 -> 92.10557329 | E12: 213040 | F12: =E12/'- 3 -'!$D12*100 -> 0.5131233266 | G12: =E12/'- 7 -'!$E12 -> 104.610852 | H12: 810925 | I12: =H12/'- 3 -'!$D12*100 -> 1.953175618 | J12: =H12/'- 7 -'!$E12 -> 398.1954333
A13: BRANDON | B13: 383750 | C13: =B13/'- 3 -'!$D13*100 -> 0.2732912416 | D13: =B13/'- 7 -'!$E13 -> 38.80574376 | E13: 724350 | F13: =E13/'- 3 -'!$D13*100 -> 0.515852797 | G13: =E13/'- 7 -'!$E13 -> 73.24805339 | H13: 2178010 | I13: =H13/'- 3 -'!$D13*100 -> 1.551090703 | J13: =H13/'- 7 -'!$E13 -> 220.2457276
A14: DSFM | B14: 1014422 | C14: =B14/'- 3 -'!$D14*100 -> 0.7934006825 | D14: =B14/'- 7 -'!$E14 -> 156.5949367 | E14: 1685932 | F14: =E14/'- 3 -'!$D14*100 -> 1.318602711 | G14: =E14/'- 7 -'!$E14 -> 260.255017 | H14: 1601350 | I14: =H14/'- 3 -'!$D14*100 -> 1.252449358 | J14: =H14/'- 7 -'!$E14 -> 247.1982093
A15: EVERGREEN | B15: 184181 | C15: =B15/'- 3 -'!$D15*100 -> 0.7009699083 | D15: =B15/'- 7 -'!$E15 -> 132.0293907 | E15: 146750 | F15: =E15/'- 3 -'!$D15*100 -> 0.558512192 | G15: =E15/'- 7 -'!$E15 -> 105.1971326 | H15: 577850 | I15: =H15/'- 3 -'!$D15*100 -> 2.19922501 | J15: =H15/'- 7 -'!$E15 -> 414.2293907
A16: FLIN FLON | B16: 139178 | C16: =B16/'- 3 -'!$D16*100 -> 0.7485221477 | D16: =B16/'- 7 -'!$E16 -> 172.6774194 | E16: 119687 | F16: =E16/'- 3 -'!$D16*100 -> 0.6436963478 | G16: =E16/'- 7 -'!$E16 -> 148.4950372 | H16: 415981 | I16: =H16/'- 3 -'!$D16*100 -> 2.237214154 | J16: =H16/'- 7 -'!$E16 -> 516.1054591
A17: FORT LA BOSSE | B17: 147400 | C17: =B17/'- 3 -'!$D17*100 -> 0.6265305421 | D17: =B17/'- 7 -'!$E17 -> 96.4028777 | E17: 218820 | F17: =E17/'- 3 -'!$D17*100 -> 0.9301045673 | G17: =E17/'- 7 -'!$E17 -> 143.1131458 | H17: 424122 | I17: =H17/'- 3 -'!$D17*100 -> 1.802750248 | J17: =H17/'- 7 -'!$E17 -> 277.3852191
A18: FRONTIER | B18: 1498375 | C18: =B18/'- 3 -'!$D18*100 -> 0.8591404543 | D18: =B18/'- 7 -'!$E18 -> 247.9111516 | E18: 3028161 | F18: =E18/'- 3 -'!$D18*100 -> 1.736291394 | G18: =E18/'- 7 -'!$E18 -> 501.019358 | H18: 3845916 | I18: =H18/'- 3 -'!$D18*100 -> 2.205176955 | J18: =H18/'- 7 -'!$E18 -> 636.3196559
A19: GARDEN VALLEY | B19: 260200 | C19: =B19/'- 3 -'!$D19*100 -> 0.4160393698 | D19: =B19/'- 7 -'!$E19 -> 61.35345437 | E19: 432947 | F19: =E19/'- 3 -'!$D19*100 -> 0.6922482592 | G19: =E19/'- 7 -'!$E19 -> 102.0860646 | H19: 1102104 | I19: =H19/'- 3 -'!$D19*100 -> 1.762177762 | J19: =H19/'- 7 -'!$E19 -> 259.8688988
A20: HANOVER | B20: 317300 | C20: =B20/'- 3 -'!$D20*100 -> 0.2688470419 | D20: =B20/'- 7 -'!$E20 -> 36.67572097 | E20: 713300 | F20: =E20/'- 3 -'!$D20*100 -> 0.6043762842 | G20: =E20/'- 7 -'!$E20 -> 82.44813038 | H20: 1532000 | I20: =H20/'- 3 -'!$D20*100 -> 1.298057574 | J20: =H20/'- 7 -'!$E20 -> 177.0791192
A21: INTERLAKE | B21: 222500 | C21: =B21/'- 3 -'!$D21*100 -> 0.450380917 | D21: =B21/'- 7 -'!$E21 -> 78.76106195 | E21: 479665 | F21: =E21/'- 3 -'!$D21*100 -> 0.9709301688 | G21: =E21/'- 7 -'!$E21 -> 169.7929204 | H21: 783835 | I21: =H21/'- 3 -'!$D21*100 -> 1.586626185 | J21: =H21/'- 7 -'!$E21 -> 277.4637168
A22: KELSEY | B22: 107015 | C22: =B22/'- 3 -'!$D22*100 -> 0.428625786 | D22: =B22/'- 7 -'!$E22 -> 74.73114525 | E22: 170788 | F22: =E22/'- 3 -'!$D22*100 -> 0.6840549525 | G22: =E22/'- 7 -'!$E22 -> 119.2653631 | H22: 622854 | I22: =H22/'- 3 -'!$D22*100 -> 2.494709016 | J22: =H22/'- 7 -'!$E22 -> 434.9539106
A23: LAKESHORE | B23: 114000 | C23: =B23/'- 3 -'!$D23*100 -> 0.6093184351 | D23: =B23/'- 7 -'!$E23 -> 112.3152709 | E23: 172000 | F23: =E23/'- 3 -'!$D23*100 -> 0.9193225512 | G23: =E23/'- 7 -'!$E23 -> 169.4581281 | H23: 420050 | I23: =H23/'- 3 -'!$D23*100 -> 2.245124637 | J23: =H23/'- 7 -'!$E23 -> 413.8423645
A24: LORD SELKIRK | B24: 360818 | C24: =B24/'- 3 -'!$D24*100 -> 0.4840341298 | D24: =B24/'- 7 -'!$E24 -> 90.72617551 | E24: 419969 | F24: =E24/'- 3 -'!$D24*100 -> 0.5633846689 | G24: =E24/'- 7 -'!$E24 -> 105.5994468 | H24: 1265684 | I24: =H24/'- 3 -'!$D24*100 -> 1.697903801 | J24: =H24/'- 7 -'!$E24 -> 318.2509429
A25: LOUIS RIEL | B25: 645673 | C25: =B25/'- 3 -'!$D25*100 -> 0.2389999301 | D25: =B25/'- 7 -'!$E25 -> 37.43248884 | E25: 755407 | F25: =E25/'- 3 -'!$D25*100 -> 0.2796186617 | G25: =E25/'- 7 -'!$E25 -> 43.79424894 | H25: 5900139 | I25: =H25/'- 3 -'!$D25*100 -> 2.183973634 | J25: =H25/'- 7 -'!$E25 -> 342.0568729
A26: MOUNTAIN VIEW | B26: 229036 | C26: =B26/'- 3 -'!$D26*100 -> 0.4372182295 | D26: =B26/'- 7 -'!$E26 -> 74.90956664 | E26: 447350 | F26: =E26/'- 3 -'!$D26*100 -> 0.853968699 | G26: =E26/'- 7 -'!$E26 -> 146.3123467 | H26: 917808 | I26: =H26/'- 3 -'!$D26*100 -> 1.75204941 | J26: =H26/'- 7 -'!$E26 -> 300.182502
A27: MYSTERY LAKE | B27: 329959 | C27: =B27/'- 3 -'!$D27*100 -> 0.6275736689 | D27: =B27/'- 7 -'!$E27 -> 114.0546632 | E27: 560371 | F27: =E27/'- 3 -'!$D27*100 -> 1.065811463 | G27: =E27/'- 7 -'!$E27 -> 193.699598 | H27: 992366 | I27: =H27/'- 3 -'!$D27*100 -> 1.887455022 | J27: =H27/'- 7 -'!$E27 -> 343.0243451
A28: PARK WEST | B28: 157657 | C28: =B28/'- 3 -'!$D28*100 -> 0.4294550304 | D28: =B28/'- 7 -'!$E28 -> 70.84115929 | E28: 509268 | F28: =E28/'- 3 -'!$D28*100 -> 1.387237512 | G28: =E28/'- 7 -'!$E28 -> 228.8330712 | H28: 534736 | I28: =H28/'- 3 -'!$D28*100 -> 1.456611918 | J28: =H28/'- 7 -'!$E28 -> 240.2767917
A29: PEMBINA TRAILS | B29: 578749 | C29: =B29/'- 3 -'!$D29*100 -> 0.2370415392 | D29: =B29/'- 7 -'!$E29 -> 32.42109686 | E29: 3108796 | F29: =E29/'- 3 -'!$D29*100 -> 1.273287365 | G29: =E29/'- 7 -'!$E29 -> 174.1524845 | H29: 2547594 | I29: =H29/'- 3 -'!$D29*100 -> 1.043432651 | J29: =H29/'- 7 -'!$E29 -> 142.7143577
A30: PINE CREEK | B30: 164849 | C30: =B30/'- 3 -'!$D30*100 -> 0.7715759885 | D30: =B30/'- 7 -'!$E30 -> 154.064486 | E30: 147344 | F30: =E30/'- 3 -'!$D30*100 -> 0.6896438101 | G30: =E30/'- 7 -'!$E30 -> 137.7046729 | H30: 332739 | I30: =H30/'- 3 -'!$D30*100 -> 1.557385382 | J30: =H30/'- 7 -'!$E30 -> 310.971028
A31: PORTAGE LA PRAIRIE | B31: 196090 | C31: =B31/'- 3 -'!$D31*100 -> 0.3677662701 | D31: =B31/'- 7 -'!$E31 -> 56.86240394 | E31: 292060 | F31: =E31/'- 3 -'!$D31*100 -> 0.5477577482 | G31: =E31/'- 7 -'!$E31 -> 84.69189503 | H31: 828100 | I31: =H31/'- 3 -'!$D31*100 -> 1.553099333 | J31: =H31/'- 7 -'!$E31 -> 240.1333913
A32: PRAIRIE ROSE | B32: 284650 | C32: =B32/'- 3 -'!$D32*100 -> 0.6845947847 | D32: =B32/'- 7 -'!$E32 -> 122.9589633 | E32: 200262 | F32: =E32/'- 3 -'!$D32*100 -> 0.4816382251 | G32: =E32/'- 7 -'!$E32 -> 86.5062635 | H32: 731850 | I32: =H32/'- 3 -'!$D32*100 -> 1.760128906 | J32: =H32/'- 7 -'!$E32 -> 316.1339093
A33: PRAIRIE SPIRIT | B33: 191480 | C33: =B33/'- 3 -'!$D33*100 -> 0.551288327 | D33: =B33/'- 7 -'!$E33 -> 87.81472139 | E33: 264365 | F33: =E33/'- 3 -'!$D33*100 -> 0.7611308678 | G33: =E33/'- 7 -'!$E33 -> 121.2405412 | H33: 502725 | I33: =H33/'- 3 -'!$D33*100 -> 1.447390976 | J33: =H33/'- 7 -'!$E33 -> 230.5549186
A34: RED RIVER VALLEY | B34: 239035 | C34: =B34/'- 3 -'!$D34*100 -> 0.592723566 | D34: =B34/'- 7 -'!$E34 -> 102.3704497 | E34: 375584 | F34: =E34/'- 3 -'!$D34*100 -> 0.9313175384 | G34: =E34/'- 7 -'!$E34 -> 160.8496788 | H34: 726449 | I34: =H34/'- 3 -'!$D34*100 -> 1.801340564 | J34: =H34/'- 7 -'!$E34 -> 311.1130621
A35: RIVER EAST TRANSCONA | B35: 530544 | C35: =B35/'- 3 -'!$D35*100 -> 0.1984279764 | D35: =B35/'- 7 -'!$E35 -> 28.68115472 | E35: 1637380 | F35: =E35/'- 3 -'!$D35*100 -> 0.6123940709 | G35: =E35/'- 7 -'!$E35 -> 88.51659639 | H35: 3214153 | I35: =H35/'- 3 -'!$D35*100 -> 1.202120607 | J35: =H35/'- 7 -'!$E35 -> 173.7567845
A36: ROLLING RIVER | B36: 153000 | C36: =B36/'- 3 -'!$D36*100 -> 0.5259924498 | D36: =B36/'- 7 -'!$E36 -> 85.18930958 | E36: 218105 | F36: =E36/'- 3 -'!$D36*100 -> 0.7498142697 | G36: =E36/'- 7 -'!$E36 -> 121.4393096 | H36: 622160 | I36: =H36/'- 3 -'!$D36*100 -> 2.138898448 | J36: =H36/'- 7 -'!$E36 -> 346.4142539
A37: SEINE RIVER | B37: 279178 | C37: =B37/'- 3 -'!$D37*100 -> 0.364982818 | D37: =B37/'- 7 -'!$E37 -> 57.06827473 | E37: 481700 | F37: =E37/'- 3 -'!$D37*100 -> 0.6297495628 | G37: =E37/'- 7 -'!$E37 -> 98.46688471 | H37: 1367250 | I37: =H37/'- 3 -'!$D37*100 -> 1.787471642 | J37: =H37/'- 7 -'!$E37 -> 279.4869174
A38: SEVEN OAKS | B38: 531880 | C38: =B38/'- 3 -'!$D38*100 -> 0.2754287433 | D38: =B38/'- 7 -'!$E38 -> 44.2319207 | E38: 1568490 | F38: =E38/'- 3 -'!$D38*100 -> 0.8122268737 | G38: =E38/'- 7 -'!$E38 -> 130.4379283 | H38: 2393150 | I38: =H38/'- 3 -'!$D38*100 -> 1.239268814 | J38: =H38/'- 7 -'!$E38 -> 199.0178631
A39: SOUTHWEST HORIZON | B39: 155400 | C39: =B39/'- 3 -'!$D39*100 -> 0.5845643416 | D39: =B39/'- 7 -'!$E39 -> 108.8235294 | E39: 250400 | F39: =E39/'- 3 -'!$D39*100 -> 0.941923495 | G39: =E39/'- 7 -'!$E39 -> 175.3501401 | H39: 503400 | I39: =H39/'- 3 -'!$D39*100 -> 1.893627346 | J39: =H39/'- 7 -'!$E39 -> 352.5210084
A40: ST. JAMES-ASSINIBOIA | B40: 468558 | C40: =B40/'- 3 -'!$D40*100 -> 0.3310940181 | D40: =B40/'- 7 -'!$E40 -> 56.3035328 | E40: 1408534 | F40: =E40/'- 3 -'!$D40*100 -> 0.9953029969 | G40: =E40/'- 7 -'!$E40 -> 169.2542658 | H40: 2038803 | I40: =H40/'- 3 -'!$D40*100 -> 1.440665782 | J40: =H40/'- 7 -'!$E40 -> 244.9895458
A41: SUNRISE | B41: 379940 | C41: =B41/'- 3 -'!$D41*100 -> 0.4422719358 | D41: =B41/'- 7 -'!$E41 -> 86.63550336 | E41: 446875 | F41: =E41/'- 3 -'!$D41*100 -> 0.5201881121 | G41: =E41/'- 7 -'!$E41 -> 101.8983012 | H41: 1668729 | I41: =H41/'- 3 -'!$D41*100 -> 1.942496197 | J41: =H41/'- 7 -'!$E41 -> 380.5105461
A42: SWAN VALLEY | B42: 187022 | C42: =B42/'- 3 -'!$D42*100 -> 0.7164236508 | D42: =B42/'- 7 -'!$E42 -> 136.562249 | E42: 257385 | F42: =E42/'- 3 -'!$D42*100 -> 0.9859626213 | G42: =E42/'- 7 -'!$E42 -> 187.9408543 | H42: 444579 | I42: =H42/'- 3 -'!$D42*100 -> 1.703045151 | J42: =H42/'- 7 -'!$E42 -> 324.6286966
A43: TURTLE MOUNTAIN | B43: 87664 | C43: =B43/'- 3 -'!$D43*100 -> 0.495752927 | D43: =B43/'- 7 -'!$E43 -> 80.87084871 | E43: 125728 | F43: =E43/'- 3 -'!$D43*100 -> 0.7110104947 | G43: =E43/'- 7 -'!$E43 -> 115.9852399 | H43: 343225 | I43: =H43/'- 3 -'!$D43*100 -> 1.940988301 | J43: =H43/'- 7 -'!$E43 -> 316.6282288
A44: TURTLE RIVER | B44: 106720 | C44: =B44/'- 3 -'!$D44*100 -> 0.8101903606 | D44: =B44/'- 7 -'!$E44 -> 182.4273504 | E44: 63407 | F44: =E44/'- 3 -'!$D44*100 -> 0.4813693796 | G44: =E44/'- 7 -'!$E44 -> 108.3880342 | H44: 316641 | I44: =H44/'- 3 -'!$D44*100 -> 2.403855753 | J44: =H44/'- 7 -'!$E44 -> 541.2666667
A45: WESTERN | B45: 184062 | C45: =B45/'- 3 -'!$D45*100 -> 0.5581637214 | D45: =B45/'- 7 -'!$E45 -> 77.63053564 | E45: 214902 | F45: =E45/'- 3 -'!$D45*100 -> 0.6516853019 | G45: =E45/'- 7 -'!$E45 -> 90.63770561 | H45: 411403 | I45: =H45/'- 3 -'!$D45*100 -> 1.247570001 | J45: =H45/'- 7 -'!$E45 -> 173.5145508
A46: WINNIPEG | B46: 1215534 | C46: =B46/'- 3 -'!$D46*100 -> 0.2333022465 | D46: =B46/'- 7 -'!$E46 -> 42.57174478 | E46: 3832333 | F46: =E46/'- 3 -'!$D46*100 -> 0.7355548246 | G46: =E46/'- 7 -'!$E46 -> 134.220106 | H46: 7813760 | I46: =H46/'- 3 -'!$D46*100 -> 1.49972585 | J46: =H46/'- 7 -'!$E46 -> 273.6619432
A48: PROVINCE | B48: =SUM(B11:B46) -> 12403379 | C48: =B48/'- 3 -'!$D48*100 -> 0.3864527706 | D48: =B48/'- 7 -'!$E48 -> 64.43819564 | E48: =SUM(E11:E46) -> 25886888 | F48: =E48/'- 3 -'!$D48*100 -> 0.8065592118 | G48: =E48/'- 7 -'!$E48 -> 134.4878967 | H48: =SUM(H11:H46) -> 51250988 | I48: =H48/'- 3 -'!$D48*100 -> 1.596829889 | J48: =H48/'- 7 -'!$E48 -> 266.2597984
A50: WHITESHELL | B50: 65800 | C50: =B50/'- 3 -'!$D50*100 -> 1.528855166 | D50: =B50/'- 7 -'!$E50 -> 332.3232323 | E50: 41250 | F50: =E50/'- 3 -'!$D50*100 -> 0.9584388391 | G50: =E50/'- 7 -'!$E50 -> 208.3333333 | H50: 95750 | I50: =H50/'- 3 -'!$D50*100 -> 2.224739851 | J50: =H50/'- 7 -'!$E50 -> 483.5858586

Sheet - 26 -
B2: =AEXP_BP -> ANALYSIS OF EXPENSE BY PROGRAM | E2: PAGE 9 OF 16
B3: =OPYEAR -> OPERATING FUND 2025/2026 BUDGET
B5: FUNCTION 500: (CONT'D)
B6: MANAGEMENT INFORMATION SERVICES
D8: PER PUPIL
A9: DIVISION / DISTRICT | B9: AMOUNT | C9: %
A11: BEAUTIFUL PLAINS | B11: 17710 | C11: =B11/'- 3 -'!$D11*100 -> 0.05818640117 | D11: =B11/'- 7 -'!$E11 -> 7.93281075
A12: BORDER LAND | B12: 5950 | C12: =B12/'- 3 -'!$D12*100 -> 0.01433103545 | D12: =B12/'- 7 -'!$E12 -> 2.921679352
A13: BRANDON | B13: 369260 | C13: =B13/'- 3 -'!$D13*100 -> 0.2629720492 | D13: =B13/'- 7 -'!$E13 -> 37.34047932
A14: DSFM | B14: 162453 | C14: =B14/'- 3 -'!$D14*100 -> 0.1270578922 | D14: =B14/'- 7 -'!$E14 -> 25.07764742
A15: EVERGREEN | B15: 0 | C15: =B15/'- 3 -'!$D15*100 -> 0 | D15: =B15/'- 7 -'!$E15 -> 0
A16: FLIN FLON | B16: 41544 | C16: =B16/'- 3 -'!$D16*100 -> 0.2234304567 | D16: =B16/'- 7 -'!$E16 -> 51.54342432
A17: FORT LA BOSSE | B17: 106990 | C17: =B17/'- 3 -'!$D17*100 -> 0.4547659613 | D17: =B17/'- 7 -'!$E17 -> 69.97383911
A18: FRONTIER | B18: 1019167 | C18: =B18/'- 3 -'!$D18*100 -> 0.5843714687 | D18: =B18/'- 7 -'!$E18 -> 168.6245864
A19: GARDEN VALLEY | B19: 167460 | C19: =B19/'- 3 -'!$D19*100 -> 0.2677553915 | D19: =B19/'- 7 -'!$E19 -> 39.48597029
A20: HANOVER | B20: 106700 | C20: =B20/'- 3 -'!$D20*100 -> 0.09040649029 | D20: =B20/'- 7 -'!$E20 -> 12.33312142
A21: INTERLAKE | B21: 65000 | C21: =B21/'- 3 -'!$D21*100 -> 0.1315719533 | D21: =B21/'- 7 -'!$E21 -> 23.00884956
A22: KELSEY | B22: 40000 | C22: =B22/'- 3 -'!$D22*100 -> 0.1602114792 | D22: =B22/'- 7 -'!$E22 -> 27.93296089
A23: LAKESHORE | B23: 20000 | C23: =B23/'- 3 -'!$D23*100 -> 0.1068979711 | D23: =B23/'- 7 -'!$E23 -> 19.7044335
A24: LORD SELKIRK | B24: 179829 | C24: =B24/'- 3 -'!$D24*100 -> 0.2412390001 | D24: =B24/'- 7 -'!$E24 -> 45.21724918
A25: LOUIS RIEL | B25: 1555482 | C25: =B25/'- 3 -'!$D25*100 -> 0.5757714651 | D25: =B25/'- 7 -'!$E25 -> 90.17809728
A26: MOUNTAIN VIEW | B26: 34000 | C26: =B26/'- 3 -'!$D26*100 -> 0.06490429366 | D26: =B26/'- 7 -'!$E26 -> 11.12019624
A27: MYSTERY LAKE | B27: 227342 | C27: =B27/'- 3 -'!$D27*100 -> 0.4323987315 | D27: =B27/'- 7 -'!$E27 -> 78.58374899
A28: PARK WEST | B28: 85050 | C28: =B28/'- 3 -'!$D28*100 -> 0.2316747771 | D28: =B28/'- 7 -'!$E28 -> 38.21613121
A29: PEMBINA TRAILS | B29: 1254043 | C29: =B29/'- 3 -'!$D29*100 -> 0.5136255665 | D29: =B29/'- 7 -'!$E29 -> 70.2505742
A30: PINE CREEK | B30: 23968 | C30: =B30/'- 3 -'!$D30*100 -> 0.1121822595 | D30: =B30/'- 7 -'!$E30 -> 22.4
A31: PORTAGE LA PRAIRIE | B31: 106090 | C31: =B31/'- 3 -'!$D31*100 -> 0.198971511 | D31: =B31/'- 7 -'!$E31 -> 30.76410033
A32: PRAIRIE ROSE | B32: 65000 | C32: =B32/'- 3 -'!$D32*100 -> 0.156327634 | D32: =B32/'- 7 -'!$E32 -> 28.07775378
A33: PRAIRIE SPIRIT | B33: 42300 | C33: =B33/'- 3 -'!$D33*100 -> 0.1217855454 | D33: =B33/'- 7 -'!$E33 -> 19.39922036
A34: RED RIVER VALLEY | B34: 66954 | C34: =B34/'- 3 -'!$D34*100 -> 0.166022606 | D34: =B34/'- 7 -'!$E34 -> 28.67408994
A35: RIVER EAST TRANSCONA | B35: 1862945 | C35: =B35/'- 3 -'!$D35*100 -> 0.6967573027 | D35: =B35/'- 7 -'!$E35 -> 100.7106174
A36: ROLLING RIVER | B36: 43500 | C36: =B36/'- 3 -'!$D36*100 -> 0.149546873 | D36: =B36/'- 7 -'!$E36 -> 24.22048998
A37: SEINE RIVER | B37: 255800 | C37: =B37/'- 3 -'!$D37*100 -> 0.334419635 | D37: =B37/'- 7 -'!$E37 -> 52.28945217
A38: SEVEN OAKS | B38: 883010 | C38: =B38/'- 3 -'!$D38*100 -> 0.4572579052 | D38: =B38/'- 7 -'!$E38 -> 73.43240636
A39: SOUTHWEST HORIZON | B39: 64000 | C39: =B39/'- 3 -'!$D39*100 -> 0.2407472192 | D39: =B39/'- 7 -'!$E39 -> 44.81792717
A40: ST. JAMES-ASSINIBOIA | B40: 640977 | C40: =B40/'- 3 -'!$D40*100 -> 0.4529293074 | D40: =B40/'- 7 -'!$E40 -> 77.02198991
A41: SUNRISE | B41: 147236 | C41: =B41/'- 3 -'!$D41*100 -> 0.1713911427 | D41: =B41/'- 7 -'!$E41 -> 33.57336678
A42: SWAN VALLEY | B42: 23000 | C42: =B42/'- 3 -'!$D42*100 -> 0.0881059125 | D42: =B42/'- 7 -'!$E42 -> 16.79445053
A43: TURTLE MOUNTAIN | B43: 21582 | C43: =B43/'- 3 -'!$D43*100 -> 0.1220494122 | D43: =B43/'- 7 -'!$E43 -> 19.9095941
A44: TURTLE RIVER | B44: 10000 | C44: =B44/'- 3 -'!$D44*100 -> 0.07591738761 | D44: =B44/'- 7 -'!$E44 -> 17.09401709
A45: WESTERN | B45: 58000 | C45: =B45/'- 3 -'!$D45*100 -> 0.175883647 | D45: =B45/'- 7 -'!$E45 -> 24.46225221
A46: WINNIPEG | B46: 1562745 | C46: =B46/'- 3 -'!$D46*100 -> 0.2999438265 | D46: =B46/'- 7 -'!$E46 -> 54.73214348
A48: PROVINCE | B48: =SUM(B11:B46) -> 11335087 | C48: =B48/'- 3 -'!$D48*100 -> 0.3531679372 | D48: =B48/'- 7 -'!$E48 -> 58.88819117
A50: WHITESHELL | B50: 9600 | C50: =B50/'- 3 -'!$D50*100 -> 0.2230548571 | D50: =B50/'- 7 -'!$E50 -> 48.48484848

Sheet - 27 -
B2: =AEXP_BP -> ANALYSIS OF EXPENSE BY PROGRAM | J2: PAGE 10 OF 16
B3: =OPYEAR -> OPERATING FUND 2025/2026 BUDGET
B5: FUNCTION 600: INSTRUCTIONAL & OTHER SUPPORT SERVICES
B6: CURRICULUM CONSULTING AND DEVELOPMENT ADMINISTRATION | E6: CURRICULUM CONSULTING AND DEVELOPMENT | H6: LIBRARY / MEDIA CENTRE
D8: PER PUPIL | G8: PER PUPIL | J8: PER PUPIL
A9: DIVISION / DISTRICT | B9: AMOUNT | C9: % | E9: AMOUNT | F9: % | H9: AMOUNT | I9: %
A11: BEAUTIFUL PLAINS | B11: 2150 | C11: =B11/'- 3 -'!$D11*100 -> 0.007063848815 | D11: =B11/'- 7 -'!$C11 -> 0.9630459127 | E11: 146338 | F11: =E11/'- 3 -'!$D11*100 -> 0.48079512 | G11: =E11/'- 7 -'!$E11 -> 65.54893617 | H11: 315012 | I11: =H11/'- 3 -'!$D11*100 -> 1.034975415 | J11: =H11/'- 7 -'!$E11 -> 141.1027996
A12: BORDER LAND | B12: 0 | C12: =B12/'- 3 -'!$D12*100 -> 0 | D12: =B12/'- 7 -'!$C12 -> 0 | E12: 0 | F12: =E12/'- 3 -'!$D12*100 -> 0 | G12: =E12/'- 7 -'!$E12 -> 0 | H12: 308115 | I12: =H12/'- 3 -'!$D12*100 -> 0.7421188217 | J12: =H12/'- 7 -'!$E12 -> 151.2963418
A13: BRANDON | B13: 153190 | C13: =B13/'- 3 -'!$D13*100 -> 0.1090957272 | D13: =B13/'- 7 -'!$C13 -> 15.49094954 | E13: 539196 | F13: =E13/'- 3 -'!$D13*100 -> 0.3839936008 | G13: =E13/'- 7 -'!$E13 -> 54.52482556 | H13: 954653 | I13: =H13/'- 3 -'!$D13*100 -> 0.6798652865 | J13: =H13/'- 7 -'!$E13 -> 96.53685914
A14: DSFM | B14: 225582 | C14: =B14/'- 3 -'!$D14*100 -> 0.1764324046 | D14: =B14/'- 7 -'!$C14 -> 34.82278481 | E14: 2374583 | F14: =E14/'- 3 -'!$D14*100 -> 1.857211075 | G14: =E14/'- 7 -'!$E14 -> 366.56113 | H14: 973338 | I14: =H14/'- 3 -'!$D14*100 -> 0.7612680261 | J14: =H14/'- 7 -'!$E14 -> 150.2528558
A15: EVERGREEN | B15: 45700 | C15: =B15/'- 3 -'!$D15*100 -> 0.1739284986 | D15: =B15/'- 7 -'!$C15 -> 32.75985663 | E15: 285430 | F15: =E15/'- 3 -'!$D15*100 -> 1.086310971 | G15: =E15/'- 7 -'!$E15 -> 204.609319 | H15: 133900 | I15: =H15/'- 3 -'!$D15*100 -> 0.5096066951 | J15: =H15/'- 7 -'!$E15 -> 95.98566308
A16: FLIN FLON | B16: 0 | C16: =B16/'- 3 -'!$D16*100 -> 0 | D16: =B16/'- 7 -'!$C16 -> 0 | E16: 0 | F16: =E16/'- 3 -'!$D16*100 -> 0 | G16: =E16/'- 7 -'!$E16 -> 0 | H16: 197897 | I16: =H16/'- 3 -'!$D16*100 -> 1.064322576 | J16: =H16/'- 7 -'!$E16 -> 245.5297767
A17: FORT LA BOSSE | B17: 0 | C17: =B17/'- 3 -'!$D17*100 -> 0 | D17: =B17/'- 7 -'!$C17 -> 0 | E17: 70900 | F17: =E17/'- 3 -'!$D17*100 -> 0.3013637411 | G17: =E17/'- 7 -'!$E17 -> 46.37017659 | H17: 244200 | I17: =H17/'- 3 -'!$D17*100 -> 1.037983435 | J17: =H17/'- 7 -'!$E17 -> 159.7122302
A18: FRONTIER | B18: 0 | C18: =B18/'- 3 -'!$D18*100 -> 0 | D18: =B18/'- 7 -'!$C18 -> 0 | E18: 6832362 | F18: =E18/'- 3 -'!$D18*100 -> 3.917549741 | G18: =E18/'- 7 -'!$E18 -> 1130.437128 | H18: 2328834 | I18: =H18/'- 3 -'!$D18*100 -> 1.335310253 | J18: =H18/'- 7 -'!$E18 -> 385.3133686
A19: GARDEN VALLEY | B19: 61436 | C19: =B19/'- 3 -'!$D19*100 -> 0.09823134021 | D19: =B19/'- 7 -'!$C19 -> 14.48620608 | E19: 310585 | F19: =E19/'- 3 -'!$D19*100 -> 0.4966010287 | G19: =E19/'- 7 -'!$E19 -> 73.2339071 | H19: 480787 | I19: =H19/'- 3 -'!$D19*100 -> 0.7687406629 | J19: =H19/'- 7 -'!$E19 -> 113.366423
A20: HANOVER | B20: 0 | C20: =B20/'- 3 -'!$D20*100 -> 0 | D20: =B20/'- 7 -'!$C20 -> 0 | E20: 331700 | F20: =E20/'- 3 -'!$D20*100 -> 0.2810481052 | G20: =E20/'- 7 -'!$E20 -> 38.34017222 | H20: 1112200 | I20: =H20/'- 3 -'!$D20*100 -> 0.9423626851 | J20: =H20/'- 7 -'!$E20 -> 128.5557418
A21: INTERLAKE | B21: 0 | C21: =B21/'- 3 -'!$D21*100 -> 0 | D21: =B21/'- 7 -'!$C21 -> 0 | E21: 0 | F21: =E21/'- 3 -'!$D21*100 -> 0 | G21: =E21/'- 7 -'!$E21 -> 0 | H21: 508842 | I21: =H21/'- 3 -'!$D21*100 -> 1.029989782 | J21: =H21/'- 7 -'!$E21 -> 180.1210619
A22: KELSEY | B22: 28759 | C22: =B22/'- 3 -'!$D22*100 -> 0.1151880482 | D22: =B22/'- 7 -'!$C22 -> 20.08310056 | E22: 201764 | F22: =E22/'- 3 -'!$D22*100 -> 0.808122722 | G22: =E22/'- 7 -'!$E22 -> 140.896648 | H22: 228014 | I22: =H22/'- 3 -'!$D22*100 -> 0.9132615052 | J22: =H22/'- 7 -'!$E22 -> 159.2276536
A23: LAKESHORE | B23: 0 | C23: =B23/'- 3 -'!$D23*100 -> 0 | D23: =B23/'- 7 -'!$C23 -> 0 | E23: 38750 | F23: =E23/'- 3 -'!$D23*100 -> 0.207114819 | G23: =E23/'- 7 -'!$E23 -> 38.1773399 | H23: 100000 | I23: =H23/'- 3 -'!$D23*100 -> 0.5344898554 | J23: =H23/'- 7 -'!$E23 -> 98.52216749
A24: LORD SELKIRK | B24: 290289 | C24: =B24/'- 3 -'!$D24*100 -> 0.3894201052 | D24: =B24/'- 7 -'!$C24 -> 72.99195373 | E24: 132242 | F24: =E24/'- 3 -'!$D24*100 -> 0.1774014639 | G24: =E24/'- 7 -'!$E24 -> 33.25169726 | H24: 665871 | I24: =H24/'- 3 -'!$D24*100 -> 0.8932600094 | J24: =H24/'- 7 -'!$E24 -> 167.4304752
A25: LOUIS RIEL | B25: 456790 | C25: =B25/'- 3 -'!$D25*100 -> 0.1690836972 | D25: =B25/'- 7 -'!$C25 -> 26.48211491 | E25: 2157538 | F25: =E25/'- 3 -'!$D25*100 -> 0.7986262878 | G25: =E25/'- 7 -'!$E25 -> 125.0819178 | H25: 5879697 | I25: =H25/'- 3 -'!$D25*100 -> 2.176406899 | J25: =H25/'- 7 -'!$E25 -> 340.8717607
A26: MOUNTAIN VIEW | B26: 23577 | C26: =B26/'- 3 -'!$D26*100 -> 0.04500730975 | D26: =B26/'- 7 -'!$C26 -> 7.711201962 | E26: 344591 | F26: =E26/'- 3 -'!$D26*100 -> 0.6578069252 | G26: =E26/'- 7 -'!$E26 -> 112.7035159 | H26: 640017 | I26: =H26/'- 3 -'!$D26*100 -> 1.221760333 | J26: =H26/'- 7 -'!$E26 -> 209.3269011
A27: MYSTERY LAKE | B27: 0 | C27: =B27/'- 3 -'!$D27*100 -> 0 | D27: =B27/'- 7 -'!$C27 -> 0 | E27: 762171 | F27: =E27/'- 3 -'!$D27*100 -> 1.449629957 | G27: =E27/'- 7 -'!$E27 -> 263.4544191 | H27: 1027433 | I27: =H27/'- 3 -'!$D27*100 -> 1.954151569 | J27: =H27/'- 7 -'!$E27 -> 355.1457143
A28: PARK WEST | B28: 104995 | C28: =B28/'- 3 -'!$D28*100 -> 0.2860046234 | D28: =B28/'- 7 -'!$C28 -> 47.17816221 | E28: 1206 | F28: =E28/'- 3 -'!$D28*100 -> 0.003285123823 | G28: =E28/'- 7 -'!$E28 -> 0.5419006965 | H28: 361725 | I28: =H28/'- 3 -'!$D28*100 -> 0.9853328483 | J28: =H28/'- 7 -'!$E28 -> 162.5365086
A29: PEMBINA TRAILS | B29: 443249 | C29: =B29/'- 3 -'!$D29*100 -> 0.181544029 | D29: =B29/'- 7 -'!$C29 -> 24.83048569 | E29: 556241 | F29: =E29/'- 3 -'!$D29*100 -> 0.2278228089 | G29: =E29/'- 7 -'!$E29 -> 31.16021511 | H29: 4877784 | I29: =H29/'- 3 -'!$D29*100 -> 1.997821901 | J29: =H29/'- 7 -'!$E29 -> 273.249902
A30: PINE CREEK | B30: 0 | C30: =B30/'- 3 -'!$D30*100 -> 0 | D30: =B30/'- 7 -'!$C30 -> 0 | E30: 0 | F30: =E30/'- 3 -'!$D30*100 -> 0 | G30: =E30/'- 7 -'!$E30 -> 0 | H30: 363765 | I30: =H30/'- 3 -'!$D30*100 -> 1.702602621 | J30: =H30/'- 7 -'!$E30 -> 339.9672897
A31: PORTAGE LA PRAIRIE | B31: 0 | C31: =B31/'- 3 -'!$D31*100 -> 0 | D31: =B31/'- 7 -'!$C31 -> 0 | E31: 137395 | F31: =E31/'- 3 -'!$D31*100 -> 0.2576839547 | G31: =E31/'- 7 -'!$E31 -> 39.84196027 | H31: 387500 | I31: =H31/'- 3 -'!$D31*100 -> 0.7267552128 | J31: =H31/'- 7 -'!$E31 -> 112.3676961
A32: PRAIRIE ROSE | B32: 0 | C32: =B32/'- 3 -'!$D32*100 -> 0 | D32: =B32/'- 7 -'!$C32 -> 0 | E32: 171166 | F32: =E32/'- 3 -'!$D32*100 -> 0.4116611661 | G32: =E32/'- 7 -'!$E32 -> 73.93779698 | H32: 428693 | I32: =H32/'- 3 -'!$D32*100 -> 1.031024037 | J32: =H32/'- 7 -'!$E32 -> 185.1805616
A33: PRAIRIE SPIRIT | B33: 0 | C33: =B33/'- 3 -'!$D33*100 -> 0 | D33: =B33/'- 7 -'!$C33 -> 0 | E33: 233825 | F33: =E33/'- 3 -'!$D33*100 -> 0.6732034314 | G33: =E33/'- 7 -'!$E33 -> 107.2345792 | H33: 485250 | I33: =H33/'- 3 -'!$D33*100 -> 1.397078863 | J33: =H33/'- 7 -'!$E33 -> 222.5407017
A34: RED RIVER VALLEY | B34: 10755 | C34: =B34/'- 3 -'!$D34*100 -> 0.02666865502 | D34: =B34/'- 7 -'!$C34 -> 4.605995717 | E34: 167116 | F34: =E34/'- 3 -'!$D34*100 -> 0.4143894888 | G34: =E34/'- 7 -'!$E34 -> 71.57002141 | H34: 243729 | I34: =H34/'- 3 -'!$D34*100 -> 0.6043630515 | J34: =H34/'- 7 -'!$E34 -> 104.3807281
A35: RIVER EAST TRANSCONA | B35: 481955 | C35: =B35/'- 3 -'!$D35*100 -> 0.1802552764 | D35: =B35/'- 7 -'!$C35 -> 26.05443832 | E35: 1515708 | F35: =E35/'- 3 -'!$D35*100 -> 0.5668877062 | G35: =E35/'- 7 -'!$E35 -> 81.93902043 | H35: 5072450 | I35: =H35/'- 3 -'!$D35*100 -> 1.897139519 | J35: =H35/'- 7 -'!$E35 -> 274.2161315
A36: ROLLING RIVER | B36: 25230 | C36: =B36/'- 3 -'!$D36*100 -> 0.08673718633 | D36: =B36/'- 7 -'!$C36 -> 14.04788419 | E36: 227475 | F36: =E36/'- 3 -'!$D36*100 -> 0.7820270099 | G36: =E36/'- 7 -'!$E36 -> 126.6564588 | H36: 261500 | I36: =H36/'- 3 -'!$D36*100 -> 0.8990001674 | J36: =H36/'- 7 -'!$E36 -> 145.6013363
A37: SEINE RIVER | B37: 141400 | C37: =B37/'- 3 -'!$D37*100 -> 0.1848590164 | D37: =B37/'- 7 -'!$C37 -> 28.90433361 | E37: 387600 | F37: =E37/'- 3 -'!$D37*100 -> 0.5067281099 | G37: =E37/'- 7 -'!$E37 -> 79.2313982 | H37: 721300 | I37: =H37/'- 3 -'!$D37*100 -> 0.9429901592 | J37: =H37/'- 7 -'!$E37 -> 147.4448078
A38: SEVEN OAKS | B38: 199120 | C38: =B38/'- 3 -'!$D38*100 -> 0.1031123023 | D38: =B38/'- 7 -'!$C38 -> 16.55911117 | E38: 1154460 | F38: =E38/'- 3 -'!$D38*100 -> 0.5978255753 | G38: =E38/'- 7 -'!$E38 -> 96.00658639 | H38: 2046810 | I38: =H38/'- 3 -'!$D38*100 -> 1.059920106 | J38: =H38/'- 7 -'!$E38 -> 170.2157208
A39: SOUTHWEST HORIZON | B39: 0 | C39: =B39/'- 3 -'!$D39*100 -> 0 | D39: =B39/'- 7 -'!$C39 -> 0 | E39: 157150 | F39: =E39/'- 3 -'!$D39*100 -> 0.5911472733 | G39: =E39/'- 7 -'!$E39 -> 110.0490196 | H39: 276300 | I39: =H39/'- 3 -'!$D39*100 -> 1.039350885 | J39: =H39/'- 7 -'!$E39 -> 193.487395
A40: ST. JAMES-ASSINIBOIA | B40: 48991 | C40: =B40/'- 3 -'!$D40*100 -> 0.03461818396 | D40: =B40/'- 7 -'!$C40 -> 5.88692622 | E40: 1311670 | F40: =E40/'- 3 -'!$D40*100 -> 0.9268566339 | G40: =E40/'- 7 -'!$E40 -> 157.6147561 | H40: 1369942 | I40: =H40/'- 3 -'!$D40*100 -> 0.9680329891 | J40: =H40/'- 7 -'!$E40 -> 164.616919
A41: SUNRISE | B41: 0 | C41: =B41/'- 3 -'!$D41*100 -> 0 | D41: =B41/'- 7 -'!$C41 -> 0 | E41: 632076 | F41: =E41/'- 3 -'!$D41*100 -> 0.7357726907 | G41: =E41/'- 7 -'!$E41 -> 144.1286056 | H41: 747400 | I41: =H41/'- 3 -'!$D41*100 -> 0.8700164364 | J41: =H41/'- 7 -'!$E41 -> 170.4252651
A42: SWAN VALLEY | B42: 19293 | C42: =B42/'- 3 -'!$D42*100 -> 0.07390553782 | D42: =B42/'- 7 -'!$C42 -> 14.08762322 | E42: 273520 | F42: =E42/'- 3 -'!$D42*100 -> 1.047770834 | G42: =E42/'- 7 -'!$E42 -> 199.7225265 | H42: 0 | I42: =H42/'- 3 -'!$D42*100 -> 0 | J42: =H42/'- 7 -'!$E42 -> 0
A43: TURTLE MOUNTAIN | B43: 72800 | C43: =B43/'- 3 -'!$D43*100 -> 0.4116948016 | D43: =B43/'- 7 -'!$C43 -> 67.15867159 | E43: 72926 | F43: =E43/'- 3 -'!$D43*100 -> 0.4124073503 | G43: =E43/'- 7 -'!$E43 -> 67.27490775 | H43: 255879 | I43: =H43/'- 3 -'!$D43*100 -> 1.447033711 | J43: =H43/'- 7 -'!$E43 -> 236.050738
A44: TURTLE RIVER | B44: 0 | C44: =B44/'- 3 -'!$D44*100 -> 0 | D44: =B44/'- 7 -'!$C44 -> 0 | E44: 0 | F44: =E44/'- 3 -'!$D44*100 -> 0 | G44: =E44/'- 7 -'!$E44 -> 0 | H44: 126126 | I44: =H44/'- 3 -'!$D44*100 -> 0.957515643 | J44: =H44/'- 7 -'!$E44 -> 215.6
A45: WESTERN | B45: 0 | C45: =B45/'- 3 -'!$D45*100 -> 0 | D45: =B45/'- 7 -'!$C45 -> 0 | E45: 0 | F45: =E45/'- 3 -'!$D45*100 -> 0 | G45: =E45/'- 7 -'!$E45 -> 0 | H45: 372197 | I45: =H45/'- 3 -'!$D45*100 -> 1.12867872 | J45: =H45/'- 7 -'!$E45 -> 156.9789119
A46: WINNIPEG | B46: 1509523 | C46: =B46/'- 3 -'!$D46*100 -> 0.2897287176 | D46: =B46/'- 7 -'!$C46 -> 52.86814511 | E46: 4481752 | F46: =E46/'- 3 -'!$D46*100 -> 0.8602003809 | G46: =E46/'- 7 -'!$E46 -> 156.9647598 | H46: 4602945 | I46: =H46/'- 3 -'!$D46*100 -> 0.8834614326 | J46: =H46/'- 7 -'!$E46 -> 161.2093119
A48: PROVINCE | B48: =SUM(B11:B46) -> 4344784 | C48: =B48/'- 3 -'!$D48*100 -> 0.1353706772 | D48: =B48/'- 7 -'!$C48 -> 22.57207826 | E48: =SUM(E11:E46) -> 26009436 | F48: =E48/'- 3 -'!$D48*100 -> 0.8103774466 | G48: =E48/'- 7 -'!$E48 -> 135.1245596 | H48: =SUM(H11:H46) -> 39100105 | I48: =H48/'- 3 -'!$D48*100 -> 1.21824415 | J48: =H48/'- 7 -'!$E48 -> 203.1333732
A50: WHITESHELL | B50: 3500 | C50: =B50/'- 3 -'!$D50*100 -> 0.08132208331 | D50: =B50/'- 7 -'!$C50 -> 17.67676768 | E50: 0 | F50: =E50/'- 3 -'!$D50*100 -> 0 | G50: =E50/'- 7 -'!$E50 -> 0 | H50: 18200 | I50: =H50/'- 3 -'!$D50*100 -> 0.4228748332 | J50: =H50/'- 7 -'!$E50 -> 91.91919192

Sheet - 28 -
B2: =AEXP_BP -> ANALYSIS OF EXPENSE BY PROGRAM | G2: PAGE 11 OF 16
B3: =OPYEAR -> OPERATING FUND 2025/2026 BUDGET
B5: FUNCTION 600: INSTRUCTIONAL & OTHER SUPPORT SERVICES
B6: PROFESSIONAL AND STAFF DEVELOPMENT
E7: OTHER (1)
D8: PER PUPIL | G8: PER PUPIL
A9: DIVISION / DISTRICT | B9: AMOUNT | C9: % | E9: AMOUNT | F9: %
A11: BEAUTIFUL PLAINS | B11: 177740 | C11: =B11/'- 3 -'!$D11*100 -> 0.5839667388 | D11: =B11/'- 7 -'!$E11 -> 79.61478163 | E11: 219144 | F11: =E11/'- 3 -'!$D11*100 -> 0.7200000394 | G11: =E11/'- 7 -'!$E11 -> 98.16080627
A12: BORDER LAND | B12: 312331 | C12: =B12/'- 3 -'!$D12*100 -> 0.7522733839 | D12: =B12/'- 7 -'!$E12 -> 153.3665603 | E12: 235960 | F12: =E12/'- 3 -'!$D12*100 -> 0.5683279203 | G12: =E12/'- 7 -'!$E12 -> 115.8654554
A13: BRANDON | B13: 1640188 | C13: =B13/'- 3 -'!$D13*100 -> 1.168075609 | D13: =B13/'- 7 -'!$E13 -> 165.8598443 | E13: 1234710 | F13: =E13/'- 3 -'!$D13*100 -> 0.879310564 | G13: =E13/'- 7 -'!$E13 -> 124.8569117
A14: DSFM | B14: 510685 | C14: =B14/'- 3 -'!$D14*100 -> 0.3994174294 | D14: =B14/'- 7 -'!$E14 -> 78.83374498 | E14: 841153 | F14: =E14/'- 3 -'!$D14*100 -> 0.6578833704 | G14: =E14/'- 7 -'!$E14 -> 129.8476382
A15: EVERGREEN | B15: 220873 | C15: =B15/'- 3 -'!$D15*100 -> 0.8406150827 | D15: =B15/'- 7 -'!$E15 -> 158.3318996 | E15: 8800 | F15: =E15/'- 3 -'!$D15*100 -> 0.03349170215 | G15: =E15/'- 7 -'!$E15 -> 6.308243728
A16: FLIN FLON | B16: 108921 | C16: =B16/'- 3 -'!$D16*100 -> 0.5857950312 | D16: =B16/'- 7 -'!$E16 -> 135.1377171 | E16: 40822 | F16: =E16/'- 3 -'!$D16*100 -> 0.2195474221 | G16: =E16/'- 7 -'!$E16 -> 50.64764268
A17: FORT LA BOSSE | B17: 107340 | C17: =B17/'- 3 -'!$D17*100 -> 0.4562536525 | D17: =B17/'- 7 -'!$E17 -> 70.20274689 | E17: 212500 | F17: =E17/'- 3 -'!$D17*100 -> 0.9032411139 | G17: =E17/'- 7 -'!$E17 -> 138.9797253
A18: FRONTIER | B18: 1754756 | C18: =B18/'- 3 -'!$D18*100 -> 1.006144568 | D18: =B18/'- 7 -'!$E18 -> 290.3302449 | E18: 1882594 | F18: =E18/'- 3 -'!$D18*100 -> 1.079444508 | G18: =E18/'- 7 -'!$E18 -> 311.4814692
A19: GARDEN VALLEY | B19: 472236 | C19: =B19/'- 3 -'!$D19*100 -> 0.7550682853 | D19: =B19/'- 7 -'!$E19 -> 111.3501533 | E19: 825634 | F19: =E19/'- 3 -'!$D19*100 -> 1.320123939 | G19: =E19/'- 7 -'!$E19 -> 194.6790851
A20: HANOVER | B20: 790200 | C20: =B20/'- 3 -'!$D20*100 -> 0.6695333517 | D20: =B20/'- 7 -'!$E20 -> 91.33676241 | E20: 376800 | F20: =E20/'- 3 -'!$D20*100 -> 0.3192611578 | G20: =E20/'- 7 -'!$E20 -> 43.55314107
A21: INTERLAKE | B21: 681138 | C21: =B21/'- 3 -'!$D21*100 -> 1.378748571 | D21: =B21/'- 7 -'!$E21 -> 241.1107965 | E21: 408370 | F21: =E21/'- 3 -'!$D21*100 -> 0.8266159779 | G21: =E21/'- 7 -'!$E21 -> 144.5557522
A22: KELSEY | B22: 100000 | C22: =B22/'- 3 -'!$D22*100 -> 0.4005286979 | D22: =B22/'- 7 -'!$E22 -> 69.83240223 | E22: 620000 | F22: =E22/'- 3 -'!$D22*100 -> 2.483277927 | G22: =E22/'- 7 -'!$E22 -> 432.9608939
A23: LAKESHORE | B23: 143750 | C23: =B23/'- 3 -'!$D23*100 -> 0.7683291671 | D23: =B23/'- 7 -'!$E23 -> 141.6256158 | E23: 194000 | F23: =E23/'- 3 -'!$D23*100 -> 1.036910319 | G23: =E23/'- 7 -'!$E23 -> 191.1330049
A24: LORD SELKIRK | B24: 358435 | C24: =B24/'- 3 -'!$D24*100 -> 0.4808373566 | D24: =B24/'- 7 -'!$E24 -> 90.12698014 | E24: 482578 | F24: =E24/'- 3 -'!$D24*100 -> 0.6473740842 | G24: =E24/'- 7 -'!$E24 -> 121.3422178
A25: LOUIS RIEL | B25: 1700339 | C25: =B25/'- 3 -'!$D25*100 -> 0.6293911966 | D25: =B25/'- 7 -'!$E25 -> 98.57609137 | E25: 2254194 | F25: =E25/'- 3 -'!$D25*100 -> 0.8344041153 | G25: =E25/'- 7 -'!$E25 -> 130.685489
A26: MOUNTAIN VIEW | B26: 642278 | C26: =B26/'- 3 -'!$D26*100 -> 1.226076468 | D26: =B26/'- 7 -'!$E26 -> 210.0663941 | E26: 358000 | F26: =E26/'- 3 -'!$D26*100 -> 0.6834040332 | G26: =E26/'- 7 -'!$E26 -> 117.0891251
A27: MYSTERY LAKE | B27: 160000 | C27: =B27/'- 3 -'!$D27*100 -> 0.3043159515 | D27: =B27/'- 7 -'!$E27 -> 55.30610199 | E27: 1173387 | F27: =E27/'- 3 -'!$D27*100 -> 2.231752383 | G27: =E27/'- 7 -'!$E27 -> 405.5966319
A28: PARK WEST | B28: 482945 | C28: =B28/'- 3 -'!$D28*100 -> 1.3155341 | D28: =B28/'- 7 -'!$E28 -> 217.0051674 | E28: 257000 | F28: =E28/'- 3 -'!$D28*100 -> 0.7000637003 | G28: =E28/'- 7 -'!$E28 -> 115.4796675
A29: PEMBINA TRAILS | B29: 1964122 | C29: =B29/'- 3 -'!$D29*100 -> 0.8044566852 | D29: =B29/'- 7 -'!$E29 -> 110.0286819 | E29: 2074378 | F29: =E29/'- 3 -'!$D29*100 -> 0.8496148659 | G29: =E29/'- 7 -'!$E29 -> 116.2051426
A30: PINE CREEK | B30: 101333 | C30: =B30/'- 3 -'!$D30*100 -> 0.4742892565 | D30: =B30/'- 7 -'!$E30 -> 94.70373832 | E30: 83909 | F30: =E30/'- 3 -'!$D30*100 -> 0.3927361987 | G30: =E30/'- 7 -'!$E30 -> 78.41962617
A31: PORTAGE LA PRAIRIE | B31: 320845 | C31: =B31/'- 3 -'!$D31*100 -> 0.6017439387 | D31: =B31/'- 7 -'!$E31 -> 93.03900246 | E31: 1520544 | F31: =E31/'- 3 -'!$D31*100 -> 2.851776202 | G31: =E31/'- 7 -'!$E31 -> 440.9290996
A32: PRAIRIE ROSE | B32: 446800 | C32: =B32/'- 3 -'!$D32*100 -> 1.074572105 | D32: =B32/'- 7 -'!$E32 -> 193.0021598 | E32: 226000 | F32: =E32/'- 3 -'!$D32*100 -> 0.5435391581 | G32: =E32/'- 7 -'!$E32 -> 97.62419006
A33: PRAIRIE SPIRIT | B33: 190746 | C33: =B33/'- 3 -'!$D33*100 -> 0.5491750742 | D33: =B33/'- 7 -'!$E33 -> 87.47810135 | E33: 228000 | F33: =E33/'- 3 -'!$D33*100 -> 0.6564327269 | G33: =E33/'- 7 -'!$E33 -> 104.5631736
A34: RED RIVER VALLEY | B34: 251711 | C34: =B34/'- 3 -'!$D34*100 -> 0.6241556321 | D34: =B34/'- 7 -'!$E34 -> 107.7991435 | E34: 273701 | F34: =E34/'- 3 -'!$D34*100 -> 0.678683175 | G34: =E34/'- 7 -'!$E34 -> 117.2167024
A35: RIVER EAST TRANSCONA | B35: 2024021 | C35: =B35/'- 3 -'!$D35*100 -> 0.7570010992 | D35: =B35/'- 7 -'!$E35 -> 109.4183696 | E35: 870930 | F35: =E35/'- 3 -'!$D35*100 -> 0.3257352405 | G35: =E35/'- 7 -'!$E35 -> 47.08238729
A36: ROLLING RIVER | B36: 126000 | C36: =B36/'- 3 -'!$D36*100 -> 0.4331702528 | D36: =B36/'- 7 -'!$E36 -> 70.155902 | E36: 208850 | F36: =E36/'- 3 -'!$D36*100 -> 0.7179968832 | G36: =E36/'- 7 -'!$E36 -> 116.2861915
A37: SEINE RIVER | B37: 758570 | C37: =B37/'- 3 -'!$D37*100 -> 0.9917150215 | D37: =B37/'- 7 -'!$E37 -> 155.0633688 | E37: 517400 | F37: =E37/'- 3 -'!$D37*100 -> 0.6764218888 | G37: =E37/'- 7 -'!$E37 -> 105.7645135
A38: SEVEN OAKS | B38: 1306230 | C38: =B38/'- 3 -'!$D38*100 -> 0.6764181533 | D38: =B38/'- 7 -'!$E38 -> 108.6280021 | E38: 3402498 | F38: =E38/'- 3 -'!$D38*100 -> 1.761949591 | G38: =E38/'- 7 -'!$E38 -> 282.9567228
A39: SOUTHWEST HORIZON | B39: 78700 | C39: =B39/'- 3 -'!$D39*100 -> 0.2960438461 | D39: =B39/'- 7 -'!$E39 -> 55.11204482 | E39: 25700 | F39: =E39/'- 3 -'!$D39*100 -> 0.0966750552 | G39: =E39/'- 7 -'!$E39 -> 17.99719888
A40: ST. JAMES-ASSINIBOIA | B40: 1938331 | C40: =B40/'- 3 -'!$D40*100 -> 1.369669922 | D40: =B40/'- 7 -'!$E40 -> 232.9164864 | E40: 547921 | F40: =E40/'- 3 -'!$D40*100 -> 0.387173766 | G40: =E40/'- 7 -'!$E40 -> 65.84006248
A41: SUNRISE | B41: 421690 | C41: =B41/'- 3 -'!$D41*100 -> 0.4908713287 | D41: =B41/'- 7 -'!$E41 -> 96.15551248 | E41: 44410 | F41: =E41/'- 3 -'!$D41*100 -> 0.05169578531 | G41: =E41/'- 7 -'!$E41 -> 10.12655341
A42: SWAN VALLEY | B42: 176755 | C42: =B42/'- 3 -'!$D42*100 -> 0.6770939376 | D42: =B42/'- 7 -'!$E42 -> 129.0653523 | E42: 217039 | F42: =E42/'- 3 -'!$D42*100 -> 0.831409528 | G42: =E42/'- 7 -'!$E42 -> 158.4804673
A43: TURTLE MOUNTAIN | B43: 75601 | C43: =B43/'- 3 -'!$D43*100 -> 0.4275348722 | D43: =B43/'- 7 -'!$E43 -> 69.74261993 | E43: 196126 | F43: =E43/'- 3 -'!$D43*100 -> 1.10912163 | G43: =E43/'- 7 -'!$E43 -> 180.9280443
A44: TURTLE RIVER | B44: 38129 | C44: =B44/'- 3 -'!$D44*100 -> 0.2894654072 | D44: =B44/'- 7 -'!$E44 -> 65.17777778 | E44: 80000 | F44: =E44/'- 3 -'!$D44*100 -> 0.6073391009 | G44: =E44/'- 7 -'!$E44 -> 136.7521368
A45: WESTERN | B45: 194970 | C45: =B45/'- 3 -'!$D45*100 -> 0.5912419769 | D45: =B45/'- 7 -'!$E45 -> 82.23112611 | E45: 292599 | F45: =E45/'- 3 -'!$D45*100 -> 0.887299642 | G45: =E45/'- 7 -'!$E45 -> 123.407423
A46: WINNIPEG | B46: 3882115 | C46: =B46/'- 3 -'!$D46*100 -> 0.7451096807 | D46: =B46/'- 7 -'!$E46 -> 135.963625 | E46: 7712691 | F46: =E46/'- 3 -'!$D46*100 -> 1.480327277 | G46: =E46/'- 7 -'!$E46 -> 270.1221955
A48: PROVINCE | B48: =SUM(B11:B46) -> 24660824 | C48: =B48/'- 3 -'!$D48*100 -> 0.7683586674 | D48: =B48/'- 7 -'!$E48 -> 128.1182331 | E48: =SUM(E11:E46) -> 30148342 | F48: =E48/'- 3 -'!$D48*100 -> 0.9393335715 | G48: =E48/'- 7 -'!$E48 -> 156.6270578
A50: WHITESHELL | B50: 26300 | C50: =B50/'- 3 -'!$D50*100 -> 0.6110773689 | D50: =B50/'- 7 -'!$E50 -> 132.8282828 | E50: 39864 | F50: =E50/'- 3 -'!$D50*100 -> 0.9262352941 | G50: =E50/'- 7 -'!$E50 -> 201.3333333
A52: (1) Includes nutritional programs and other food services, health services, and other activities related to instructional and other support not included. in previous programs.

Sheet - 29 -
B2: =AEXP_BP -> ANALYSIS OF EXPENSE BY PROGRAM | G2: PAGE 12 OF 16
B3: =OPYEAR -> OPERATING FUND 2025/2026 BUDGET
B6: FUNCTION 700: TRANSPORTATION OF PUPILS
F7: ALLOWANCES IN LIEU OF TRANSPORTATION
B8: ADMINISTRATION | D8: REGULAR
A9: DIVISION / DISTRICT | B9: AMOUNT | C9: % | D9: AMOUNT | E9: % | F9: AMOUNT | G9: %
A11: BEAUTIFUL PLAINS | B11: 110987 | C11: =B11/'- 3 -'!$D11*100 -> 0.3646490179 | D11: 1413654 | E11: =D11/'- 3 -'!$D11*100 -> 4.644575876 | F11: 12060 | G11: =F11/'- 3 -'!$D11*100 -> 0.03962326359
A12: BORDER LAND | B12: 161345 | C12: =B12/'- 3 -'!$D12*100 -> 0.3886119185 | D12: 2602895 | E12: =D12/'- 3 -'!$D12*100 -> 6.269274038 | F12: 0 | G12: =F12/'- 3 -'!$D12*100 -> 0
A13: BRANDON | B13: 263490 | C13: =B13/'- 3 -'!$D13*100 -> 0.1876469297 | D13: 2941220 | E13: =D13/'- 3 -'!$D13*100 -> 2.094618021 | F13: 1850 | G13: =F13/'- 3 -'!$D13*100 -> 0.001317495236
A14: DSFM | B14: 304760 | C14: =B14/'- 3 -'!$D14*100 -> 0.238359176 | D14: 12724824 | E14: =D14/'- 3 -'!$D14*100 -> 9.952351237 | F14: 342346 | G14: =F14/'- 3 -'!$D14*100 -> 0.2677559734
A15: EVERGREEN | B15: 271150 | C15: =B15/'- 3 -'!$D15*100 -> 1.031963072 | D15: 1874300 | E15: =D15/'- 3 -'!$D15*100 -> 7.133351969 | F15: 10000 | G15: =F15/'- 3 -'!$D15*100 -> 0.03805875244
A16: FLIN FLON | B16: 0 | C16: =B16/'- 3 -'!$D16*100 -> 0 | D16: 439001 | E16: =D16/'- 3 -'!$D16*100 -> 2.361019496 | F16: 375 | G16: =F16/'- 3 -'!$D16*100 -> 0.002016811604
A17: FORT LA BOSSE | B17: 86615 | C17: =B17/'- 3 -'!$D17*100 -> 0.368161078 | D17: 1777142 | E17: =D17/'- 3 -'!$D17*100 -> 7.553824563 | F17: 1500 | G17: =F17/'- 3 -'!$D17*100 -> 0.006375819628
A18: FRONTIER | B18: 645745 | C18: =B18/'- 3 -'!$D18*100 -> 0.3702582148 | D18: 9135383 | E18: =D18/'- 3 -'!$D18*100 -> 5.238059298 | F18: 95957 | G18: =F18/'- 3 -'!$D18*100 -> 0.05501996534
A19: GARDEN VALLEY | B19: 176982 | C19: =B19/'- 3 -'!$D19*100 -> 0.2829803218 | D19: 3035905 | E19: =D19/'- 3 -'!$D19*100 -> 4.854173724 | F19: 18000 | G19: =F19/'- 3 -'!$D19*100 -> 0.02878058669
A20: HANOVER | B20: 332100 | C20: =B20/'- 3 -'!$D20*100 -> 0.2813870237 | D20: 4350200 | E20: =D20/'- 3 -'!$D20*100 -> 3.685907348 | F20: 2000 | G20: =F20/'- 3 -'!$D20*100 -> 0.001694592133
A21: INTERLAKE | B21: 177100 | C21: =B21/'- 3 -'!$D21*100 -> 0.3584829681 | D21: 2925900 | E21: =D21/'- 3 -'!$D21*100 -> 5.922559663 | F21: 0 | G21: =F21/'- 3 -'!$D21*100 -> 0
A22: KELSEY | B22: 89412 | C22: =B22/'- 3 -'!$D22*100 -> 0.3581207193 | D22: 455223 | E22: =D22/'- 3 -'!$D22*100 -> 1.823298754 | F22: 3500 | G22: =F22/'- 3 -'!$D22*100 -> 0.01401850443
A23: LAKESHORE | B23: 87300 | C23: =B23/'- 3 -'!$D23*100 -> 0.4666096437 | D23: 1898600 | E23: =D23/'- 3 -'!$D23*100 -> 10.14782439 | F23: 4500 | G23: =F23/'- 3 -'!$D23*100 -> 0.02405204349
A24: LORD SELKIRK | B24: 257060 | C24: =B24/'- 3 -'!$D24*100 -> 0.344843698 | D24: 3066562 | E24: =D24/'- 3 -'!$D24*100 -> 4.113765581 | F24: 5000 | G24: =F24/'- 3 -'!$D24*100 -> 0.006707455419
A25: LOUIS RIEL | B25: 467138 | C25: =B25/'- 3 -'!$D25*100 -> 0.1729140747 | D25: 6299423 | E25: =D25/'- 3 -'!$D25*100 -> 2.331771123 | F25: 0 | G25: =F25/'- 3 -'!$D25*100 -> 0
A26: MOUNTAIN VIEW | B26: 209557 | C26: =B26/'- 3 -'!$D26*100 -> 0.400033796 | D26: 3236049 | E26: =D26/'- 3 -'!$D26*100 -> 6.177455135 | F26: 10500 | G26: =F26/'- 3 -'!$D26*100 -> 0.02004397304
A27: MYSTERY LAKE | B27: 35000 | C27: =B27/'- 3 -'!$D27*100 -> 0.06656911438 | D27: 170015 | E27: =D27/'- 3 -'!$D27*100 -> 0.3233642281 | F27: 250000 | G27: =F27/'- 3 -'!$D27*100 -> 0.4754936742
A28: PARK WEST | B28: 65198 | C28: =B28/'- 3 -'!$D28*100 -> 0.1775982612 | D28: 1867418 | E28: =D28/'- 3 -'!$D28*100 -> 5.08681539 | F28: 0 | G28: =F28/'- 3 -'!$D28*100 -> 0
A29: PEMBINA TRAILS | B29: 712677 | C29: =B29/'- 3 -'!$D29*100 -> 0.2918951964 | D29: 5077089 | E29: =D29/'- 3 -'!$D29*100 -> 2.07945239 | F29: 30000 | G29: =F29/'- 3 -'!$D29*100 -> 0.01228727164
A30: PINE CREEK | B30: 203663 | C30: =B30/'- 3 -'!$D30*100 -> 0.953244973 | D30: 1704076 | E30: =D30/'- 3 -'!$D30*100 -> 7.97593024 | F30: 0 | G30: =F30/'- 3 -'!$D30*100 -> 0
A31: PORTAGE LA PRAIRIE | B31: 179055 | C31: =B31/'- 3 -'!$D31*100 -> 0.3358171732 | D31: 1223783 | E31: =D31/'- 3 -'!$D31*100 -> 2.295201741 | F31: 5000 | G31: =F31/'- 3 -'!$D31*100 -> 0.009377486616
A32: PRAIRIE ROSE | B32: 182895 | C32: =B32/'- 3 -'!$D32*100 -> 0.4398698863 | D32: 2794767 | E32: =D32/'- 3 -'!$D32*100 -> 6.721527886 | F32: 0 | G32: =F32/'- 3 -'!$D32*100 -> 0
A33: PRAIRIE SPIRIT | B33: 149735 | C33: =B33/'- 3 -'!$D33*100 -> 0.431100677 | D33: 2649700 | E33: =D33/'- 3 -'!$D33*100 -> 7.628727178 | F33: 0 | G33: =F33/'- 3 -'!$D33*100 -> 0
A34: RED RIVER VALLEY | B34: 199606 | C34: =B34/'- 3 -'!$D34*100 -> 0.4949533755 | D34: 3076980 | E34: =D34/'- 3 -'!$D34*100 -> 7.629838969 | F34: 120000 | G34: =F34/'- 3 -'!$D34*100 -> 0.297558215
A35: RIVER EAST TRANSCONA | B35: 627064 | C35: =B35/'- 3 -'!$D35*100 -> 0.2345272787 | D35: 5666672 | E35: =D35/'- 3 -'!$D35*100 -> 2.119383609 | F35: 72500 | G35: =F35/'- 3 -'!$D35*100 -> 0.02711561772
A36: ROLLING RIVER | B36: 74880 | C36: =B36/'- 3 -'!$D36*100 -> 0.2574268931 | D36: 1991885 | E36: =D36/'- 3 -'!$D36*100 -> 6.847820071 | F36: 0 | G36: =F36/'- 3 -'!$D36*100 -> 0
A37: SEINE RIVER | B37: 266750 | C37: =B37/'- 3 -'!$D37*100 -> 0.3487350963 | D37: 4455200 | E37: =D37/'- 3 -'!$D37*100 -> 5.824497098 | F37: 2000 | G37: =F37/'- 3 -'!$D37*100 -> 0.00261469613
A38: SEVEN OAKS | B38: 407680 | C38: =B38/'- 3 -'!$D38*100 -> 0.2111130143 | D38: 4952097 | E38: =D38/'- 3 -'!$D38*100 -> 2.564393949 | F38: 0 | G38: =F38/'- 3 -'!$D38*100 -> 0
A39: SOUTHWEST HORIZON | B39: 141700 | C39: =B39/'- 3 -'!$D39*100 -> 0.53302939 | D39: 2172900 | E39: =D39/'- 3 -'!$D39*100 -> 8.173744259 | F39: 900 | G39: =F39/'- 3 -'!$D39*100 -> 0.00338550777
A40: ST. JAMES-ASSINIBOIA | B40: 196464 | C40: =B40/'- 3 -'!$D40*100 -> 0.1388260475 | D40: 3169225 | E40: =D40/'- 3 -'!$D40*100 -> 2.239448349 | F40: 2400 | G40: =F40/'- 3 -'!$D40*100 -> 0.001695896012
A41: SUNRISE | B41: 501807 | C41: =B41/'- 3 -'!$D41*100 -> 0.5841321085 | D41: 6050521 | E41: =D41/'- 3 -'!$D41*100 -> 7.043153223 | F41: 38000 | G41: =F41/'- 3 -'!$D41*100 -> 0.04423417793
A42: SWAN VALLEY | B42: 153126 | C42: =B42/'- 3 -'!$D42*100 -> 0.5865785199 | D42: 1924452 | E42: =D42/'- 3 -'!$D42*100 -> 7.371982588 | F42: 0 | G42: =F42/'- 3 -'!$D42*100 -> 0
A43: TURTLE MOUNTAIN | B43: 189231 | C43: =B43/'- 3 -'!$D43*100 -> 1.070129382 | D43: 1275658 | E43: =D43/'- 3 -'!$D43*100 -> 7.214035264 | F43: 0 | G43: =F43/'- 3 -'!$D43*100 -> 0
A44: TURTLE RIVER | B44: 72030 | C44: =B44/'- 3 -'!$D44*100 -> 0.546832943 | D44: 1383510 | E44: =D44/'- 3 -'!$D44*100 -> 10.50324649 | F44: 0 | G44: =F44/'- 3 -'!$D44*100 -> 0
A45: WESTERN | B45: 106636 | C45: =B45/'- 3 -'!$D45*100 -> 0.3233711825 | D45: 1194908 | E45: =D45/'- 3 -'!$D45*100 -> 3.623530636 | F45: 15000 | G45: =F45/'- 3 -'!$D45*100 -> 0.04548715009
A46: WINNIPEG | B46: 799612 | C46: =B46/'- 3 -'!$D46*100 -> 0.1534726926 | D46: 7757252 | E46: =D46/'- 3 -'!$D46*100 -> 1.488880046 | F46: 0 | G46: =F46/'- 3 -'!$D46*100 -> 0
A48: PROVINCE | B48: =SUM(B11:B46) -> 8905550 | C48: =B48/'- 3 -'!$D48*100 -> 0.2774707176 | D48: =SUM(D11:D46) -> 118734389 | E48: =D48/'- 3 -'!$D48*100 -> 3.699413974 | F48: =SUM(F11:F46) -> 1043388 | G48: =F48/'- 3 -'!$D48*100 -> 0.03250889805
A50: WHITESHELL | B50: 0 | C50: =B50/'- 3 -'!$D50*100 -> 0 | D50: 0 | E50: =D50/'- 3 -'!$D50*100 -> 0 | F50: 4000 | G50: =F50/'- 3 -'!$D50*100 -> 0.09293952379

Sheet - 30 -
B2: =AEXP_BP -> ANALYSIS OF EXPENSE BY PROGRAM | F2: PAGE 13 OF 16
B3: =OPYEAR -> OPERATING FUND 2025/2026 BUDGET
B6: FUNCTION 700: TRANSPORTATION (CONT'D)
B7: BOARDING OF STUDENTS | D7: FIELD TRIPS AND OTHER
A9: DIVISION / DISTRICT | B9: AMOUNT | C9: % | D9: AMOUNT | E9: %
A11: BEAUTIFUL PLAINS | B11: 0 | C11: =B11/'- 3 -'!$D11*100 -> 0 | D11: 190000 | E11: =D11/'- 3 -'!$D11*100 -> 0.6242471046
A12: BORDER LAND | B12: 0 | C12: =B12/'- 3 -'!$D12*100 -> 0 | D12: 333625 | E12: =D12/'- 3 -'!$D12*100 -> 0.8035616308
A13: BRANDON | B13: 0 | C13: =B13/'- 3 -'!$D13*100 -> 0 | D13: 87640 | E13: =D13/'- 3 -'!$D13*100 -> 0.06241366623
A14: DSFM | B14: 0 | C14: =B14/'- 3 -'!$D14*100 -> 0 | D14: 917714 | E14: =D14/'- 3 -'!$D14*100 -> 0.7177633312
A15: EVERGREEN | B15: 0 | C15: =B15/'- 3 -'!$D15*100 -> 0 | D15: 98900 | E15: =D15/'- 3 -'!$D15*100 -> 0.3764010616
A16: FLIN FLON | B16: 0 | C16: =B16/'- 3 -'!$D16*100 -> 0 | D16: 197940 | E16: =D16/'- 3 -'!$D16*100 -> 1.064553837
A17: FORT LA BOSSE | B17: 0 | C17: =B17/'- 3 -'!$D17*100 -> 0 | D17: 0 | E17: =D17/'- 3 -'!$D17*100 -> 0
A18: FRONTIER | B18: 3074464 | C18: =B18/'- 3 -'!$D18*100 -> 1.762840676 | D18: 1255579 | E18: =D18/'- 3 -'!$D18*100 -> 0.7199257278
A19: GARDEN VALLEY | B19: 0 | C19: =B19/'- 3 -'!$D19*100 -> 0 | D19: 7000 | E19: =D19/'- 3 -'!$D19*100 -> 0.01119245038
A20: HANOVER | B20: 0 | C20: =B20/'- 3 -'!$D20*100 -> 0 | D20: 503100 | E20: =D20/'- 3 -'!$D20*100 -> 0.426274651
A21: INTERLAKE | B21: 0 | C21: =B21/'- 3 -'!$D21*100 -> 0 | D21: 200000 | E21: =D21/'- 3 -'!$D21*100 -> 0.4048367793
A22: KELSEY | B22: 0 | C22: =B22/'- 3 -'!$D22*100 -> 0 | D22: 60000 | E22: =D22/'- 3 -'!$D22*100 -> 0.2403172187
A23: LAKESHORE | B23: 0 | C23: =B23/'- 3 -'!$D23*100 -> 0 | D23: 55000 | E23: =D23/'- 3 -'!$D23*100 -> 0.2939694204
A24: LORD SELKIRK | B24: 0 | C24: =B24/'- 3 -'!$D24*100 -> 0 | D24: 107000 | E24: =D24/'- 3 -'!$D24*100 -> 0.143539546
A25: LOUIS RIEL | B25: 0 | C25: =B25/'- 3 -'!$D25*100 -> 0 | D25: 160638 | E25: =D25/'- 3 -'!$D25*100 -> 0.05946116806
A26: MOUNTAIN VIEW | B26: 0 | C26: =B26/'- 3 -'!$D26*100 -> 0 | D26: 177607 | E26: =D26/'- 3 -'!$D26*100 -> 0.3390428495
A27: MYSTERY LAKE | B27: 0 | C27: =B27/'- 3 -'!$D27*100 -> 0 | D27: 286200 | E27: =D27/'- 3 -'!$D27*100 -> 0.5443451582
A28: PARK WEST | B28: 0 | C28: =B28/'- 3 -'!$D28*100 -> 0 | D28: 206215 | E28: =D28/'- 3 -'!$D28*100 -> 0.56172621
A29: PEMBINA TRAILS | B29: 0 | C29: =B29/'- 3 -'!$D29*100 -> 0 | D29: 250000 | E29: =D29/'- 3 -'!$D29*100 -> 0.1023939304
A30: PINE CREEK | B30: 0 | C30: =B30/'- 3 -'!$D30*100 -> 0 | D30: 109893 | E30: =D30/'- 3 -'!$D30*100 -> 0.5143543492
A31: PORTAGE LA PRAIRIE | B31: 0 | C31: =B31/'- 3 -'!$D31*100 -> 0 | D31: 38000 | E31: =D31/'- 3 -'!$D31*100 -> 0.07126889828
A32: PRAIRIE ROSE | B32: 0 | C32: =B32/'- 3 -'!$D32*100 -> 0 | D32: 83121 | E32: =D32/'- 3 -'!$D32*100 -> 0.1999093733
A33: PRAIRIE SPIRIT | B33: 0 | C33: =B33/'- 3 -'!$D33*100 -> 0 | D33: 91775 | E33: =D33/'- 3 -'!$D33*100 -> 0.264228568
A34: RED RIVER VALLEY | B34: 0 | C34: =B34/'- 3 -'!$D34*100 -> 0 | D34: 159597 | E34: =D34/'- 3 -'!$D34*100 -> 0.395744987
A35: RIVER EAST TRANSCONA | B35: 0 | C35: =B35/'- 3 -'!$D35*100 -> 0 | D35: 309208 | E35: =D35/'- 3 -'!$D35*100 -> 0.1156464265
A36: ROLLING RIVER | B36: 0 | C36: =B36/'- 3 -'!$D36*100 -> 0 | D36: 97500 | E36: =D36/'- 3 -'!$D36*100 -> 0.335191267
A37: SEINE RIVER | B37: 0 | C37: =B37/'- 3 -'!$D37*100 -> 0 | D37: 0 | E37: =D37/'- 3 -'!$D37*100 -> 0
A38: SEVEN OAKS | B38: 0 | C38: =B38/'- 3 -'!$D38*100 -> 0 | D38: 437500 | E38: =D38/'- 3 -'!$D38*100 -> 0.2265550034
A39: SOUTHWEST HORIZON | B39: 0 | C39: =B39/'- 3 -'!$D39*100 -> 0 | D39: 15900 | E39: =D39/'- 3 -'!$D39*100 -> 0.05981063727
A40: ST. JAMES-ASSINIBOIA | B40: 0 | C40: =B40/'- 3 -'!$D40*100 -> 0 | D40: 127179 | E40: =D40/'- 3 -'!$D40*100 -> 0.08986764952
A41: SUNRISE | B41: 0 | C41: =B41/'- 3 -'!$D41*100 -> 0 | D41: 198000 | E41: =D41/'- 3 -'!$D41*100 -> 0.2304833481
A42: SWAN VALLEY | B42: 0 | C42: =B42/'- 3 -'!$D42*100 -> 0 | D42: 118159 | E42: =D42/'- 3 -'!$D42*100 -> 0.452630718
A43: TURTLE MOUNTAIN | B43: 0 | C43: =B43/'- 3 -'!$D43*100 -> 0 | D43: 30000 | E43: =D43/'- 3 -'!$D43*100 -> 0.1696544512
A44: TURTLE RIVER | B44: 0 | C44: =B44/'- 3 -'!$D44*100 -> 0 | D44: 44500 | E44: =D44/'- 3 -'!$D44*100 -> 0.3378323749
A45: WESTERN | B45: 0 | C45: =B45/'- 3 -'!$D45*100 -> 0 | D45: 108141 | E45: =D45/'- 3 -'!$D45*100 -> 0.3279350599
A46: WINNIPEG | B46: 0 | C46: =B46/'- 3 -'!$D46*100 -> 0 | D46: 1520203 | E46: =D46/'- 3 -'!$D46*100 -> 0.2917785722
A48: PROVINCE | B48: =SUM(B11:B46) -> 3074464 | C48: =B48/'- 3 -'!$D48*100 -> 0.09579124615 | D48: =SUM(D11:D46) -> 8582834 | E48: =D48/'- 3 -'!$D48*100 -> 0.2674158372
A50: WHITESHELL | B50: 0 | C50: =B50/'- 3 -'!$D50*100 -> 0 | D50: 54350 | E50: =D50/'- 3 -'!$D50*100 -> 1.262815779

Sheet - 31 -
B2: =AEXP_BP -> ANALYSIS OF EXPENSE BY PROGRAM | G2: PAGE 14 OF 16
B3: =OPYEAR -> OPERATING FUND 2025/2026 BUDGET
B6: FUNCTION 800: OPERATIONS AND MAINTENANCE
D7: SCHOOL BUILDINGS
B8: ADMINISTRATION | D8: MAINTENANCE | F8: REPAIRS
A9: DIVISION / DISTRICT | B9: AMOUNT | C9: % | D9: AMOUNT | E9: % | F9: AMOUNT | G9: %
A11: BEAUTIFUL PLAINS | B11: 106462 | C11: =B11/'- 3 -'!$D11*100 -> 0.3497820803 | D11: 2278624 | E11: =D11/'- 3 -'!$D11*100 -> 7.486444392 | F11: 332530 | G11: =F11/'- 3 -'!$D11*100 -> 1.092530998
A12: BORDER LAND | B12: 148220 | C12: =B12/'- 3 -'!$D12*100 -> 0.3569993403 | D12: 3456452 | E12: =D12/'- 3 -'!$D12*100 -> 8.325132127 | F12: 328400 | G12: =F12/'- 3 -'!$D12*100 -> 0.790976814
A13: BRANDON | B13: 632470 | C13: =B13/'- 3 -'!$D13*100 -> 0.4504195742 | D13: 9943568 | E13: =D13/'- 3 -'!$D13*100 -> 7.081407283 | F13: 1002149 | G13: =F13/'- 3 -'!$D13*100 -> 0.7136900182
A14: DSFM | B14: 327769 | C14: =B14/'- 3 -'!$D14*100 -> 0.2563549966 | D14: 12430227 | E14: =D14/'- 3 -'!$D14*100 -> 9.721940756 | F14: 300000 | G14: =F14/'- 3 -'!$D14*100 -> 0.2346362803
A15: EVERGREEN | B15: 50909 | C15: =B15/'- 3 -'!$D15*100 -> 0.1937533028 | D15: 2787511 | E15: =D15/'- 3 -'!$D15*100 -> 10.60891911 | F15: 250000 | G15: =F15/'- 3 -'!$D15*100 -> 0.9514688109
A16: FLIN FLON | B16: 119412 | C16: =B16/'- 3 -'!$D16*100 -> 0.6422173526 | D16: 2296982 | E16: =D16/'- 3 -'!$D16*100 -> 12.35354654 | F16: 100000 | G16: =F16/'- 3 -'!$D16*100 -> 0.5378164277
A17: FORT LA BOSSE | B17: 86315 | C17: =B17/'- 3 -'!$D17*100 -> 0.3668859141 | D17: 1964728 | E17: =D17/'- 3 -'!$D17*100 -> 8.351167563 | F17: 70000 | G17: =F17/'- 3 -'!$D17*100 -> 0.2975382493
A18: FRONTIER | B18: 1403578 | C18: =B18/'- 3 -'!$D18*100 -> 0.8047856114 | D18: 23219153 | E18: =D18/'- 3 -'!$D18*100 -> 13.31343199 | F18: 2181327 | G18: =F18/'- 3 -'!$D18*100 -> 1.250732473
A19: GARDEN VALLEY | B19: 236352 | C19: =B19/'- 3 -'!$D19*100 -> 0.3779082903 | D19: 5449009 | E19: =D19/'- 3 -'!$D19*100 -> 8.712537549 | F19: 398000 | G19: =F19/'- 3 -'!$D19*100 -> 0.6363707501
A20: HANOVER | B20: 261500 | C20: =B20/'- 3 -'!$D20*100 -> 0.2215679214 | D20: 8186700 | E20: =D20/'- 3 -'!$D20*100 -> 6.936558707 | F20: 977000 | G20: =F20/'- 3 -'!$D20*100 -> 0.8278082569
A21: INTERLAKE | B21: 199681 | C21: =B21/'- 3 -'!$D21*100 -> 0.4041910647 | D21: 3860999 | E21: =D21/'- 3 -'!$D21*100 -> 7.815372001 | F21: 500000 | G21: =F21/'- 3 -'!$D21*100 -> 1.012091948
A22: KELSEY | B22: 82828 | C22: =B22/'- 3 -'!$D22*100 -> 0.3317499099 | D22: 2872292 | E22: =D22/'- 3 -'!$D22*100 -> 11.50435375 | F22: 57120 | G22: =F22/'- 3 -'!$D22*100 -> 0.2287819922
A23: LAKESHORE | B23: 66595 | C23: =B23/'- 3 -'!$D23*100 -> 0.3559435192 | D23: 1582855 | E23: =D23/'- 3 -'!$D23*100 -> 8.4601994 | F23: 135000 | G23: =F23/'- 3 -'!$D23*100 -> 0.7215613047
A24: LORD SELKIRK | B24: 150357 | C24: =B24/'- 3 -'!$D24*100 -> 0.2017025749 | D24: 6642457 | E24: =D24/'- 3 -'!$D24*100 -> 8.910796839 | F24: 855800 | G24: =F24/'- 3 -'!$D24*100 -> 1.148048069
A25: LOUIS RIEL | B25: 995922 | C25: =B25/'- 3 -'!$D25*100 -> 0.3686468047 | D25: 23207277 | E25: =D25/'- 3 -'!$D25*100 -> 8.590319837 | F25: 428400 | G25: =F25/'- 3 -'!$D25*100 -> 0.1585749598
A26: MOUNTAIN VIEW | B26: 177655 | C26: =B26/'- 3 -'!$D26*100 -> 0.3391344791 | D26: 5909949 | E26: =D26/'- 3 -'!$D26*100 -> 11.28179604 | F26: 305306 | G26: =F26/'- 3 -'!$D26*100 -> 0.5828138317
A27: MYSTERY LAKE | B27: 242908 | C27: =B27/'- 3 -'!$D27*100 -> 0.4620048696 | D27: 5658065 | E27: =D27/'- 3 -'!$D27*100 -> 10.76149646 | F27: 750000 | G27: =F27/'- 3 -'!$D27*100 -> 1.426481023
A28: PARK WEST | B28: 85526 | C28: =B28/'- 3 -'!$D28*100 -> 0.2329713931 | D28: 3689944 | E28: =D28/'- 3 -'!$D28*100 -> 10.05134572 | F28: 156017 | G28: =F28/'- 3 -'!$D28*100 -> 0.4249876978
A29: PEMBINA TRAILS | B29: 1500198 | C29: =B29/'- 3 -'!$D29*100 -> 0.6144446782 | D29: 20176032 | E29: =D29/'- 3 -'!$D29*100 -> 8.263612862 | F29: 1299000 | G29: =F29/'- 3 -'!$D29*100 -> 0.5320388622
A30: PINE CREEK | B30: 180610 | C30: =B30/'- 3 -'!$D30*100 -> 0.8453453723 | D30: 1589157 | E30: =D30/'- 3 -'!$D30*100 -> 7.438051691 | F30: 148000 | G30: =F30/'- 3 -'!$D30*100 -> 0.6927142191
A31: PORTAGE LA PRAIRIE | B31: 207245 | C31: =B31/'- 3 -'!$D31*100 -> 0.3886874428 | D31: 4419735 | E31: =D31/'- 3 -'!$D31*100 -> 8.289201162 | F31: 638000 | G31: =F31/'- 3 -'!$D31*100 -> 1.196567292
A32: PRAIRIE ROSE | B32: 175753 | C32: =B32/'- 3 -'!$D32*100 -> 0.4226930869 | D32: 3455785 | E32: =D32/'- 3 -'!$D32*100 -> 8.311302962 | F32: 522340 | G32: =F32/'- 3 -'!$D32*100 -> 1.256248866
A33: PRAIRIE SPIRIT | B33: 143278 | C33: =B33/'- 3 -'!$D33*100 -> 0.412510387 | D33: 3219240 | E33: =D33/'- 3 -'!$D33*100 -> 9.268484613 | F33: 287495 | G33: =F33/'- 3 -'!$D33*100 -> 0.8277242404
A34: RED RIVER VALLEY | B34: 82999 | C34: =B34/'- 3 -'!$D34*100 -> 0.205808619 | D34: 3004765 | E34: =D34/'- 3 -'!$D34*100 -> 7.450770915 | F34: 386754 | G34: =F34/'- 3 -'!$D34*100 -> 0.9590152489
A35: RIVER EAST TRANSCONA | B35: 1286194 | C35: =B35/'- 3 -'!$D35*100 -> 0.4810475147 | D35: 24806238 | E35: =D35/'- 3 -'!$D35*100 -> 9.277744367 | F35: 84000 | G35: =F35/'- 3 -'!$D35*100 -> 0.0314167157
A36: ROLLING RIVER | B36: 80870 | C36: =B36/'- 3 -'!$D36*100 -> 0.2780196694 | D36: 3097220 | E36: =D36/'- 3 -'!$D36*100 -> 10.64780611 | F36: 110000 | G36: =F36/'- 3 -'!$D36*100 -> 0.3781645064
A37: SEINE RIVER | B37: 148500 | C37: =B37/'- 3 -'!$D37*100 -> 0.1941411876 | D37: 5594200 | E37: =D37/'- 3 -'!$D37*100 -> 7.313566544 | F37: 1090500 | G37: =F37/'- 3 -'!$D37*100 -> 1.425663065
A38: SEVEN OAKS | B38: 910040 | C38: =B38/'- 3 -'!$D38*100 -> 0.4712551206 | D38: 13775260 | E38: =D38/'- 3 -'!$D38*100 -> 7.133380745 | F38: 1199000 | G38: =F38/'- 3 -'!$D38*100 -> 0.6208901693
A39: SOUTHWEST HORIZON | B39: 129800 | C39: =B39/'- 3 -'!$D39*100 -> 0.4882654539 | D39: 2336400 | E39: =D39/'- 3 -'!$D39*100 -> 8.78877817 | F39: 162000 | G39: =F39/'- 3 -'!$D39*100 -> 0.6093913986
A40: ST. JAMES-ASSINIBOIA | B40: 590412 | C40: =B40/'- 3 -'!$D40*100 -> 0.4171988983 | D40: 10561544 | E40: =D40/'- 3 -'!$D40*100 -> 7.463033477 | F40: 1083080 | G40: =F40/'- 3 -'!$D40*100 -> 0.7653296051
A41: SUNRISE | B41: 221237 | C41: =B41/'- 3 -'!$D41*100 -> 0.2575325479 | D41: 6575220 | E41: =D41/'- 3 -'!$D41*100 -> 7.653932931 | F41: 650000 | G41: =F41/'- 3 -'!$D41*100 -> 0.756637254
A42: SWAN VALLEY | B42: 121160 | C42: =B42/'- 3 -'!$D42*100 -> 0.4641266243 | D42: 2358541 | E42: =D42/'- 3 -'!$D42*100 -> 9.034843782 | F42: 193716 | G42: =F42/'- 3 -'!$D42*100 -> 0.742066302
A43: TURTLE MOUNTAIN | B43: 78695 | C43: =B43/'- 3 -'!$D43*100 -> 0.4450319013 | D43: 908342 | E43: =D43/'- 3 -'!$D43*100 -> 5.136808784 | F43: 130283 | G43: =F43/'- 3 -'!$D43*100 -> 0.7367696956
A44: TURTLE RIVER | B44: 69168 | C44: =B44/'- 3 -'!$D44*100 -> 0.5251053866 | D44: 1316860 | E44: =D44/'- 3 -'!$D44*100 -> 9.997257105 | F44: 50000 | G44: =F44/'- 3 -'!$D44*100 -> 0.379586938
A45: WESTERN | B45: 112783 | C45: =B45/'- 3 -'!$D45*100 -> 0.3420118166 | D45: 2687432 | E45: =D45/'- 3 -'!$D45*100 -> 8.14957485 | F45: 284480 | G45: =F45/'- 3 -'!$D45*100 -> 0.8626789639
A46: WINNIPEG | B46: 1564610 | C46: =B46/'- 3 -'!$D46*100 -> 0.3003017833 | D46: 51027677 | E46: =D46/'- 3 -'!$D46*100 -> 9.793943795 | F46: 8321283 | G46: =F46/'- 3 -'!$D46*100 -> 1.597136746
A48: PROVINCE | B48: =SUM(B11:B46) -> 12978011 | C48: =B48/'- 3 -'!$D48*100 -> 0.4043566118 | D48: =SUM(D11:D46) -> 286346440 | E48: =D48/'- 3 -'!$D48*100 -> 8.921711986 | F48: =SUM(F11:F46) -> 25766980 | G48: =F48/'- 3 -'!$D48*100 -> 0.8028232315
A50: WHITESHELL | B50: 39700 | C50: =B50/'- 3 -'!$D50*100 -> 0.9224247736 | D50: 565700 | E50: =D50/'- 3 -'!$D50*100 -> 13.14397215 | F50: 14000 | G50: =F50/'- 3 -'!$D50*100 -> 0.3252883333

Sheet - 32 -
B2: =AEXP_BP -> ANALYSIS OF EXPENSE BY PROGRAM | F2: PAGE 15 OF 16
B3: =OPYEAR -> OPERATING FUND 2025/2026 BUDGET
B6: FUNCTION 800: (CONT'D)
B8: OTHER BUILDINGS | D8: GROUNDS
A9: DIVISION / DISTRICT | B9: AMOUNT | C9: % | D9: AMOUNT | E9: %
A11: BEAUTIFUL PLAINS | B11: 84734 | C11: =B11/'- 3 -'!$D11*100 -> 0.2783944956 | D11: 37090 | E11: =D11/'- 3 -'!$D11*100 -> 0.1218596058
A12: BORDER LAND | B12: 329075 | C12: =B12/'- 3 -'!$D12*100 -> 0.7926026037 | D12: 169435 | E12: =D12/'- 3 -'!$D12*100 -> 0.4080973096
A13: BRANDON | B13: 358888 | C13: =B13/'- 3 -'!$D13*100 -> 0.25558553 | D13: 328860 | E13: =D13/'- 3 -'!$D13*100 -> 0.2342008019
A14: DSFM | B14: 506037 | C14: =B14/'- 3 -'!$D14*100 -> 0.3957821313 | D14: 845000 | E14: =D14/'- 3 -'!$D14*100 -> 0.6608921896
A15: EVERGREEN | B15: 157000 | C15: =B15/'- 3 -'!$D15*100 -> 0.5975224133 | D15: 136700 | E15: =D15/'- 3 -'!$D15*100 -> 0.5202631458
A16: FLIN FLON | B16: 19615 | C16: =B16/'- 3 -'!$D16*100 -> 0.1054926923 | D16: 34931 | E16: =D16/'- 3 -'!$D16*100 -> 0.1878646563
A17: FORT LA BOSSE | B17: 107285 | C17: =B17/'- 3 -'!$D17*100 -> 0.4560198725 | D17: 57000 | E17: =D17/'- 3 -'!$D17*100 -> 0.2422811458
A18: FRONTIER | B18: 4913969 | C18: =B18/'- 3 -'!$D18*100 -> 2.81757875 | D18: 44695 | E18: =D18/'- 3 -'!$D18*100 -> 0.02562728463
A19: GARDEN VALLEY | B19: 119000 | C19: =B19/'- 3 -'!$D19*100 -> 0.1902716564 | D19: 190000 | E19: =D19/'- 3 -'!$D19*100 -> 0.3037950817
A20: HANOVER | B20: 1761400 | C20: =B20/'- 3 -'!$D20*100 -> 1.492427291 | D20: 577900 | E20: =D20/'- 3 -'!$D20*100 -> 0.4896523968
A21: INTERLAKE | B21: 162320 | C21: =B21/'- 3 -'!$D21*100 -> 0.3285655301 | D21: 296000 | E21: =D21/'- 3 -'!$D21*100 -> 0.5991584334
A22: KELSEY | B22: 88075 | C22: =B22/'- 3 -'!$D22*100 -> 0.3527656507 | D22: 40000 | E22: =D22/'- 3 -'!$D22*100 -> 0.1602114792
A23: LAKESHORE | B23: 60200 | C23: =B23/'- 3 -'!$D23*100 -> 0.3217628929 | D23: 19082 | E23: =D23/'- 3 -'!$D23*100 -> 0.1019913542
A24: LORD SELKIRK | B24: 177294 | C24: =B24/'- 3 -'!$D24*100 -> 0.2378383202 | D24: 171500 | E24: =D24/'- 3 -'!$D24*100 -> 0.2300657209
A25: LOUIS RIEL | B25: 626000 | C25: =B25/'- 3 -'!$D25*100 -> 0.2317178451 | D25: 1310000 | E25: =D25/'- 3 -'!$D25*100 -> 0.4849047558
A26: MOUNTAIN VIEW | B26: 250060 | C26: =B26/'- 3 -'!$D26*100 -> 0.4773519903 | D26: 116644 | E26: =D26/'- 3 -'!$D26*100 -> 0.222667542
A27: MYSTERY LAKE | B27: 217703 | C27: =B27/'- 3 -'!$D27*100 -> 0.4140655974 | D27: 179639 | E27: =D27/'- 3 -'!$D27*100 -> 0.3416688325
A28: PARK WEST | B28: 80950 | C28: =B28/'- 3 -'!$D28*100 -> 0.2205064457 | D28: 97000 | E28: =D28/'- 3 -'!$D28*100 -> 0.2642263772
A29: PEMBINA TRAILS | B29: 305960 | C29: =B29/'- 3 -'!$D29*100 -> 0.1253137877 | D29: 1262444 | E29: =D29/'- 3 -'!$D29*100 -> 0.5170664121
A30: PINE CREEK | B30: 58632 | C30: =B30/'- 3 -'!$D30*100 -> 0.2744271628 | D30: 70000 | E30: =D30/'- 3 -'!$D30*100 -> 0.3276351036
A31: PORTAGE LA PRAIRIE | B31: 156080 | C31: =B31/'- 3 -'!$D31*100 -> 0.2927276222 | D31: 242000 | E31: =D31/'- 3 -'!$D31*100 -> 0.4538703522
A32: PRAIRIE ROSE | B32: 147625 | C32: =B32/'- 3 -'!$D32*100 -> 0.3550441071 | D32: 165650 | E32: =D32/'- 3 -'!$D32*100 -> 0.3983949625
A33: PRAIRIE SPIRIT | B33: 117015 | C33: =B33/'- 3 -'!$D33*100 -> 0.3368968225 | D33: 44350 | E33: =D33/'- 3 -'!$D33*100 -> 0.1276876817
A34: RED RIVER VALLEY | B34: 125211 | C34: =B34/'- 3 -'!$D34*100 -> 0.3104796805 | D34: 142665 | E34: =D34/'- 3 -'!$D34*100 -> 0.3537595228
A35: RIVER EAST TRANSCONA | B35: 332916 | C35: =B35/'- 3 -'!$D35*100 -> 0.1245134205 | D35: 0 | E35: =D35/'- 3 -'!$D35*100 -> 0
A36: ROLLING RIVER | B36: 160250 | C36: =B36/'- 3 -'!$D36*100 -> 0.5509169286 | D36: 91000 | E36: =D36/'- 3 -'!$D36*100 -> 0.3128451825
A37: SEINE RIVER | B37: 154600 | C37: =B37/'- 3 -'!$D37*100 -> 0.2021160108 | D37: 137500 | E37: =D37/'- 3 -'!$D37*100 -> 0.1797603589
A38: SEVEN OAKS | B38: 981730 | C38: =B38/'- 3 -'!$D38*100 -> 0.5083790708 | D38: 564200 | E38: =D38/'- 3 -'!$D38*100 -> 0.2921653324
A39: SOUTHWEST HORIZON | B39: 92400 | C39: =B39/'- 3 -'!$D39*100 -> 0.3475787977 | D39: 79300 | E39: =D39/'- 3 -'!$D39*100 -> 0.2983008513
A40: ST. JAMES-ASSINIBOIA | B40: 618379 | C40: =B40/'- 3 -'!$D40*100 -> 0.4369610332 | D40: 476926 | E40: =D40/'- 3 -'!$D40*100 -> 0.3370070422
A41: SUNRISE | B41: 794557 | C41: =B41/'- 3 -'!$D41*100 -> 0.9249098871 | D41: 530800 | E41: =D41/'- 3 -'!$D41*100 -> 0.6178816222
A42: SWAN VALLEY | B42: 164742 | C42: =B42/'- 3 -'!$D42*100 -> 0.6310758364 | D42: 144043 | E42: =D42/'- 3 -'!$D42*100 -> 0.5517843458
A43: TURTLE MOUNTAIN | B43: 166350 | C43: =B43/'- 3 -'!$D43*100 -> 0.9407339319 | D43: 37432 | E43: =D43/'- 3 -'!$D43*100 -> 0.2116835139
A44: TURTLE RIVER | B44: 46372 | C44: =B44/'- 3 -'!$D44*100 -> 0.3520441098 | D44: 45000 | E44: =D44/'- 3 -'!$D44*100 -> 0.3416282442
A45: WESTERN | B45: 67092 | C45: =B45/'- 3 -'!$D45*100 -> 0.2034549249 | D45: 129500 | E45: =D45/'- 3 -'!$D45*100 -> 0.3927057291
A46: WINNIPEG | B46: 3016687 | C46: =B46/'- 3 -'!$D46*100 -> 0.579004663 | D46: 1892906 | E46: =D46/'- 3 -'!$D46*100 -> 0.3633129326
A48: PROVINCE | B48: =SUM(B11:B46) -> 17526203 | C48: =B48/'- 3 -'!$D48*100 -> 0.5460648834 | D48: =SUM(D11:D46) -> 10707192 | E48: =D48/'- 3 -'!$D48*100 -> 0.3336045777
A50: WHITESHELL | B50: 5000 | C50: =B50/'- 3 -'!$D50*100 -> 0.1161744047 | D50: 16598 | E50: =D50/'- 3 -'!$D50*100 -> 0.385652554

Sheet - 33 -
B2: =AEXP_BP -> ANALYSIS OF EXPENSE BY PROGRAM | F2: PAGE 16 OF 16
B3: =OPYEAR -> OPERATING FUND 2025/2026 BUDGET
B6: FUNCTION 900: FISCAL
D7: HEALTH AND EDUCATION LEVY
B8: DEBT SERVICES
A9: DIVISION / DISTRICT | B9: AMOUNT | C9: % | D9: AMOUNT | E9: %
A11: BEAUTIFUL PLAINS | B11: 15000 | C11: =B11/'- 3 -'!$D11*100 -> 0.04928266615 | D11: 504919 | E11: =D11/'- 3 -'!$D11*100 -> 1.658916967
A12: BORDER LAND | B12: 95000 | C12: =B12/'- 3 -'!$D12*100 -> 0.2288148518 | D12: 640614 | E12: =D12/'- 3 -'!$D12*100 -> 1.542968394
A13: BRANDON | B13: 25390 | C13: =B13/'- 3 -'!$D13*100 -> 0.01808173192 | D13: 2395824 | E13: =D13/'- 3 -'!$D13*100 -> 1.706209031
A14: DSFM | B14: 5000 | C14: =B14/'- 3 -'!$D14*100 -> 0.003910604672 | D14: 1872656 | E14: =D14/'- 3 -'!$D14*100 -> 1.464643461
A15: EVERGREEN | B15: 0 | C15: =B15/'- 3 -'!$D15*100 -> 0 | D15: 400000 | E15: =D15/'- 3 -'!$D15*100 -> 1.522350098
A16: FLIN FLON | B16: 15000 | C16: =B16/'- 3 -'!$D16*100 -> 0.08067246415 | D16: 208381 | E16: =D16/'- 3 -'!$D16*100 -> 1.12070725
A17: FORT LA BOSSE | B17: 80000 | C17: =B17/'- 3 -'!$D17*100 -> 0.3400437135 | D17: 393000 | E17: =D17/'- 3 -'!$D17*100 -> 1.670464742
A18: FRONTIER | B18: 0 | C18: =B18/'- 3 -'!$D18*100 -> 0 | D18: 1524479 | E18: =D18/'- 3 -'!$D18*100 -> 0.8741080041
A19: GARDEN VALLEY | B19: 0 | C19: =B19/'- 3 -'!$D19*100 -> 0 | D19: 1032500 | E19: =D19/'- 3 -'!$D19*100 -> 1.650886431
A20: HANOVER | B20: 191300 | C20: =B20/'- 3 -'!$D20*100 -> 0.1620877375 | D20: 1993600 | E20: =D20/'- 3 -'!$D20*100 -> 1.689169438
A21: INTERLAKE | B21: 90000 | C21: =B21/'- 3 -'!$D21*100 -> 0.1821765507 | D21: 803000 | E21: =D21/'- 3 -'!$D21*100 -> 1.625419669
A22: KELSEY | B22: 10000 | C22: =B22/'- 3 -'!$D22*100 -> 0.04005286979 | D22: 404554 | E22: =D22/'- 3 -'!$D22*100 -> 1.620354868
A23: LAKESHORE | B23: 5000 | C23: =B23/'- 3 -'!$D23*100 -> 0.02672449277 | D23: 260000 | E23: =D23/'- 3 -'!$D23*100 -> 1.389673624
A24: LORD SELKIRK | B24: 200000 | C24: =B24/'- 3 -'!$D24*100 -> 0.2682982167 | D24: 1247700 | E24: =D24/'- 3 -'!$D24*100 -> 1.673778425
A25: LOUIS RIEL | B25: 277250 | C25: =B25/'- 3 -'!$D25*100 -> 0.1026258348 | D25: 4270064 | E25: =D25/'- 3 -'!$D25*100 -> 1.5805911
A26: MOUNTAIN VIEW | B26: 161600 | C26: =B26/'- 3 -'!$D26*100 -> 0.3084862898 | D26: 817823 | E26: =D26/'- 3 -'!$D26*100 -> 1.561183063
A27: MYSTERY LAKE | B27: 10000 | C27: =B27/'- 3 -'!$D27*100 -> 0.01901974697 | D27: 835390 | E27: =D27/'- 3 -'!$D27*100 -> 1.588890642
A28: PARK WEST | B28: 92600 | C28: =B28/'- 3 -'!$D28*100 -> 0.2522408508 | D28: 434000 | E28: =D28/'- 3 -'!$D28*100 -> 1.182208739
A29: PEMBINA TRAILS | B29: 220000 | C29: =B29/'- 3 -'!$D29*100 -> 0.09010665872 | D29: 4165000 | E29: =D29/'- 3 -'!$D29*100 -> 1.70588288
A30: PINE CREEK | B30: 0 | C30: =B30/'- 3 -'!$D30*100 -> 0 | D30: 324864 | E30: =D30/'- 3 -'!$D30*100 -> 1.520526433
A31: PORTAGE LA PRAIRIE | B31: 15000 | C31: =B31/'- 3 -'!$D31*100 -> 0.02813245985 | D31: 817000 | E31: =D31/'- 3 -'!$D31*100 -> 1.532281313
A32: PRAIRIE ROSE | B32: 170000 | C32: =B32/'- 3 -'!$D32*100 -> 0.4088568888 | D32: 705000 | E32: =D32/'- 3 -'!$D32*100 -> 1.695553568
A33: PRAIRIE SPIRIT | B33: 49295 | C33: =B33/'- 3 -'!$D33*100 -> 0.1419247863 | D33: 546000 | E33: =D33/'- 3 -'!$D33*100 -> 1.571983635
A34: RED RIVER VALLEY | B34: 130000 | C34: =B34/'- 3 -'!$D34*100 -> 0.3223547329 | D34: 660054 | E34: =D34/'- 3 -'!$D34*100 -> 1.636704084
A35: RIVER EAST TRANSCONA | B35: 59000 | C35: =B35/'- 3 -'!$D35*100 -> 0.02206650269 | D35: 3945453 | E35: =D35/'- 3 -'!$D35*100 -> 1.475633038
A36: ROLLING RIVER | B36: 309000 | C36: =B36/'- 3 -'!$D36*100 -> 1.062298477 | D36: 465000 | E36: =D36/'- 3 -'!$D36*100 -> 1.598604504
A37: SEINE RIVER | B37: 60000 | C37: =B37/'- 3 -'!$D37*100 -> 0.07844088389 | D37: 1182500 | E37: =D37/'- 3 -'!$D37*100 -> 1.545939087
A38: SEVEN OAKS | B38: 320000 | C38: =B38/'- 3 -'!$D38*100 -> 0.1657088025 | D38: 3160240 | E38: =D38/'- 3 -'!$D38*100 -> 1.636498706
A39: SOUTHWEST HORIZON | B39: 82600 | C39: =B39/'- 3 -'!$D39*100 -> 0.3107143798 | D39: 425000 | E39: =D39/'- 3 -'!$D39*100 -> 1.598712002
A40: ST. JAMES-ASSINIBOIA | B40: 2505900 | C40: =B40/'- 3 -'!$D40*100 -> 1.770727423 | D40: 0 | E40: =D40/'- 3 -'!$D40*100 -> 0
A41: SUNRISE | B41: 1875285 | C41: =B41/'- 3 -'!$D41*100 -> 2.18293922 | D41: 3000 | E41: =D41/'- 3 -'!$D41*100 -> 0.003492171942
A42: SWAN VALLEY | B42: 5000 | C42: =B42/'- 3 -'!$D42*100 -> 0.01915345924 | D42: 439000 | E42: =D42/'- 3 -'!$D42*100 -> 1.681673721
A43: TURTLE MOUNTAIN | B43: 150000 | C43: =B43/'- 3 -'!$D43*100 -> 0.848272256 | D43: 263894 | E43: =D43/'- 3 -'!$D43*100 -> 1.492359725
A44: TURTLE RIVER | B44: 3000 | C44: =B44/'- 3 -'!$D44*100 -> 0.02277521628 | D44: 207982 | E44: =D44/'- 3 -'!$D44*100 -> 1.578945011
A45: WESTERN | B45: 60000 | C45: =B45/'- 3 -'!$D45*100 -> 0.1819486004 | D45: 550973 | E45: =D45/'- 3 -'!$D45*100 -> 1.67081277
A46: WINNIPEG | B46: 542781 | C46: =B46/'- 3 -'!$D46*100 -> 0.1041781033 | D46: 9175705 | E46: =D46/'- 3 -'!$D46*100 -> 1.761129339
A48: PROVINCE | B48: =SUM(B11:B46) -> 7830001 | C48: =B48/'- 3 -'!$D48*100 -> 0.2439597774 | D48: =SUM(D11:D46) -> 47075169 | E48: =D48/'- 3 -'!$D48*100 -> 1.466723663
A50: WHITESHELL | B50: 0 | C50: =B50/'- 3 -'!$D50*100 -> 0 | D50: 0 | E50: =D50/'- 3 -'!$D50*100 -> 0

Sheet - 34 -
D2: =IF(Lang=1,BA2,BB2) -> ANALYSIS OF TRANSPORTATION EXPENSES | BA2: ANALYSIS OF TRANSPORTATION EXPENSES | BB2: ANALYSE DES DÉPENSES DE TRANSPORT
D3: =OPYEAR -> OPERATING FUND 2025/2026 BUDGET
B6: REGULAR TRANSPORTATION
B7: (PROGRAM 720)
C8: TRANSPORTED PUPILS | D8: PER PUPIL | E8: TOTAL KM (ROUTES) | F8: COST PER KM | G8: LOADED KM | H8: COST PER KM
A9: DIVISION / DISTRICT | B9: AMOUNT
A11: BEAUTIFUL PLAINS | B11: ='- 29 -'!$D11 -> 1413654 | C11: 719 | D11: =IF(AND(CELL("type",C11)="v",C11>0),B11/C11,"") -> 1966.139082 | E11: 609336 | F11: =IF(AND(CELL("type",E11)="v",E11>0),B11/E11,"") -> 2.319990941 | G11: 370884 | H11: =IF(AND(CELL("type",G11)="v",G11>0),B11/G11,"") -> 3.811579901
A12: BORDER LAND | B12: ='- 29 -'!$D12 -> 2602895 | C12: 1485 | D12: =IF(AND(CELL("type",C12)="v",C12>0),B12/C12,"") -> 1752.791246 | E12: 1148736 | F12: =IF(AND(CELL("type",E12)="v",E12>0),B12/E12,"") -> 2.265877451 | G12: 728914 | H12: =IF(AND(CELL("type",G12)="v",G12>0),B12/G12,"") -> 3.570921947
A13: BRANDON | B13: ='- 29 -'!$D13 -> 2941220 | C13: 3799 | D13: 774.2090024 | E13: 869992 | F13: 3.380743731 | G13: 552992 | H13: 5.318738788
A14: DSFM | B14: ='- 29 -'!$D14 -> 12724824 | C14: 4885 | D14: 2604.87697 | E14: 3418494 | F14: 3.722347911 | G14: 1744494 | H14: 7.294277882
A15: EVERGREEN | B15: ='- 29 -'!$D15 -> 1874300 | C15: 981 | D15: 1910.601427 | E15: 881083 | F15: 2.127268373 | G15: 462428 | H15: 4.053171521
A16: FLIN FLON | B16: ='- 29 -'!$D16 -> 439001 | C16: 209 | D16: 2100.483254 | E16: 50220 | F16: 8.741557149 | G16: 33852 | H16: 12.96824412
A17: FORT LA BOSSE | B17: ='- 29 -'!$D17 -> 1777142 | C17: 774 | D17: 2296.049096 | E17: 979476 | F17: 1.814380342 | G17: 629610 | H17: 2.822607646
A18: FRONTIER | B18: ='- 29 -'!$D18 -> 9135383 | C18: 0 | E18: 1405135 | F18: 6.501427265 | G18: 880000 | H18: 10.38111705
A19: GARDEN VALLEY | B19: ='- 29 -'!$D19 -> 3035905 | C19: 2978 | D19: 1019.444258 | E19: 809827 | F19: 3.748831541 | G19: 467888 | H19: 6.488529306
A20: HANOVER | B20: ='- 29 -'!$D20 -> 4350200 | C20: 5029 | D20: 865.0228674 | E20: 1603625 | F20: 2.712728973 | G20: 813397 | H20: 5.348187908
A21: INTERLAKE | B21: ='- 29 -'!$D21 -> 2925900 | C21: 1865 | D21: 1568.847185 | E21: 694405 | F21: 4.213535329 | G21: 509120 | H21: 5.746975173
A22: KELSEY | B22: ='- 29 -'!$D22 -> 455223 | C22: 380 | D22: 1197.955263 | E22: 160000 | F22: 2.84514375 | G22: 110000 | H22: 4.138390909
A23: LAKESHORE | B23: ='- 29 -'!$D23 -> 1898600 | C23: 665 | D23: 2855.037594 | E23: 865000 | F23: 2.194913295 | G23: 518000 | H23: 3.665250965
A24: LORD SELKIRK | B24: ='- 29 -'!$D24 -> 3066562 | C24: 2649 | D24: 1157.630049 | E24: 1021320 | F24: 3.002547683 | G24: 676260 | H24: 4.534590246
A25: LOUIS RIEL | B25: ='- 29 -'!$D25 -> 6299423 | C25: 3501 | D25: 1799.321051 | E25: 906315 | F25: 6.950588923 | G25: 466385 | H25: 13.50691596
A26: MOUNTAIN VIEW | B26: ='- 29 -'!$D26 -> 3236049 | C26: 1509 | D26: 2144.499006 | E26: 1149172 | F26: 2.81598316 | G26: 883979 | H26: 3.660775878
A27: MYSTERY LAKE | B27: ='- 29 -'!$D27 -> 170015 | C27: N/A | D27: =IF(AND(CELL("type",C27)="v",C27>0),B27/C27,"") ->  | E27: N/A | F27: =IF(AND(CELL("type",E27)="v",E27>0),B27/E27,"") ->  | G27: N/A
A28: PARK WEST | B28: ='- 29 -'!$D28 -> 1867418 | C28: 840 | D28: 2223.116667 | E28: 1039219 | F28: 1.796943666 | G28: 682657 | H28: 2.735514321
A29: PEMBINA TRAILS | B29: ='- 29 -'!$D29 -> 5077089 | C29: 0 | E29: 0 | G29: 0
A30: PINE CREEK | B30: ='- 29 -'!$D30 -> 1704076 | C30: 710 | D30: 2400.107042 | E30: 610229 | F30: 2.792518874 | G30: 462929 | H30: 3.681074204
A31: PORTAGE LA PRAIRIE | B31: ='- 29 -'!$D31 -> 1223783 | C31: 1586 | D31: 771.6160151 | E31: 563286 | F31: 2.172578406 | G31: 378519 | H31: 3.233082091
A32: PRAIRIE ROSE | B32: ='- 29 -'!$D32 -> 2794767 | C32: 1523 | D32: 1835.040709 | E32: 1144665 | F32: 2.441558884 | G32: 724000 | H32: 3.860175414
A33: PRAIRIE SPIRIT | B33: ='- 29 -'!$D33 -> 2649700 | C33: 1160 | D33: 2284.224138 | E33: 1427830 | F33: 1.855753136 | G33: 884300 | H33: 2.996381319
A34: RED RIVER VALLEY | B34: ='- 29 -'!$D34 -> 3076980 | C34: 1376 | D34: 2236.177326 | E34: 1360341 | F34: 2.261918151 | G34: 926887 | H34: 3.319692692
A35: RIVER EAST TRANSCONA | B35: ='- 29 -'!$D35 -> 5666672 | C35: 4051 | D35: 1398.832881 | E35: 1139810 | F35: 4.971593511 | G35: 521550 | H35: 10.86505992
A36: ROLLING RIVER | B36: ='- 29 -'!$D36 -> 1991885 | C36: 930 | D36: 2141.811828 | E36: 841650 | F36: 2.366642904 | G36: 558000 | H36: 3.56968638
A37: SEINE RIVER | B37: ='- 29 -'!$D37 -> 4455200 | C37: 2772 | D37: 1607.215007 | E37: 1390221 | F37: 3.204670337 | G37: 817564 | H37: 5.449359316
A38: SEVEN OAKS | B38: ='- 29 -'!$D38 -> 4952097 | C38: 3282 | D38: 1508.865631 | E38: 895916 | F38: 5.527412168 | G38: 485100 | H38: 10.20840445
A39: SOUTHWEST HORIZON | B39: ='- 29 -'!$D39 -> 2172900 | C39: 680 | D39: 3195.441176 | E39: 923700 | F39: 2.352387139 | G39: 557300 | H39: 3.898977212
A40: ST. JAMES-ASSINIBOIA | B40: ='- 29 -'!$D40 -> 3169225 | C40: 1731 | D40: 1830.863663 | E40: 614400 | F40: 5.158243815 | G40: 282360 | H40: 11.22405794
A41: SUNRISE | B41: ='- 29 -'!$D41 -> 6050521 | C41: 3667 | D41: 1649.992092 | E41: 2208724 | F41: 2.739373955 | G41: 1369279 | H41: 4.418764182
A42: SWAN VALLEY | B42: ='- 29 -'!$D42 -> 1924452 | C42: 1230 | D42: 1564.595122 | E42: 750082 | F42: 2.565655488 | G42: 644174 | H42: 2.987472329
A43: TURTLE MOUNTAIN | B43: ='- 29 -'!$D43 -> 1275658 | C43: 484 | D43: 2635.657025 | E43: 599329 | F43: 2.128477013 | G43: 406112 | H43: 3.141148255
A44: TURTLE RIVER | B44: ='- 29 -'!$D44 -> 1383510 | C44: 341 | D44: 4057.214076 | E44: 637980 | F44: 2.168578952 | G44: 464246 | H44: 2.980122607
A45: WESTERN | B45: ='- 29 -'!$D45 -> 1194908 | C45: 1257 | D45: 950.6030231 | E45: 296740 | F45: 4.02678439 | G45: 187220 | H45: 6.382373678
A46: WINNIPEG | B46: ='- 29 -'!$D46 -> 7757252 | C46: 1884 | D46: 4117.437367 | E46: 949975 | F46: 8.165743309 | G46: 572575 | H46: 13.5480103
A48: PROVINCE | B48: =SUM(B11:B46) -> 118734389 | C48: =SUM(C11:C46) -> 60932 | D48: =B48/C48 -> 1948.637645 | E48: =SUM(E11:E46) -> 33966233 | F48: =B48/E48 -> 3.495659616 | G48: =SUM(G11:G46) -> 20772975 | H48: =B48/G48 -> 5.715810518
A50: WHITESHELL | B50: ='- 29 -'!$D50 -> 0 | C50: N/A | D50: =IF(AND(CELL("type",C50)="v",C50>0),B50/C50,"") ->  | E50: N/A | F50: =IF(AND(CELL("type",E50)="v",E50>0),B50/E50,"") ->  | G50: N/A | H50: =IF(AND(CELL("type",G50)="v",G50>0),B50/G50,"") -> 

Sheet - 35 -
B2: =IF(Lang=1,BA2,BB2) -> ANALYSIS OF TRANSPORTATION EXPENSES (CONT'D) | BA2: ANALYSIS OF TRANSPORTATION EXPENSES (CONT'D) | BB2: ANALYSE DES DÉPENSES DE TRANSPORT (SUITE)
B3: =OPYEAR -> OPERATING FUND 2025/2026 BUDGET
B6: ADMINISTRATION, REGULAR AND OTHER
B7: (PROGRAMS 710, 720 AND 790)
C8: TOTAL KM (LOG BOOK) | D8: COST PER KM
A9: DIVISION / DISTRICT | B9: AMOUNT
A11: BEAUTIFUL PLAINS | B11: =SUM('- 29 -'!$B11,'- 29 -'!$D11,'- 30 -'!$D11) -> 1714641 | C11: 679259 | D11: =IF(AND(CELL("type",C11)="v",C11>0),B11/C11,"") -> 2.524281607
A12: BORDER LAND | B12: =SUM('- 29 -'!$B12,'- 29 -'!$D12,'- 30 -'!$D12) -> 3097865 | C12: 1275496 | D12: =IF(AND(CELL("type",C12)="v",C12>0),B12/C12,"") -> 2.428753207
A13: BRANDON | B13: =SUM('- 29 -'!$B13,'- 29 -'!$D13,'- 30 -'!$D13) -> 3292350 | C13: 939992 | D13: 3.502529809
A14: DSFM | B14: =SUM('- 29 -'!$B14,'- 29 -'!$D14,'- 30 -'!$D14) -> 13947298 | C14: N/A
A15: EVERGREEN | B15: =SUM('- 29 -'!$B15,'- 29 -'!$D15,'- 30 -'!$D15) -> 2244350 | C15: 881083 | D15: 2.547262857
A16: FLIN FLON | B16: =SUM('- 29 -'!$B16,'- 29 -'!$D16,'- 30 -'!$D16) -> 636941 | C16: 104540 | D16: 6.092797015
A17: FORT LA BOSSE | B17: =SUM('- 29 -'!$B17,'- 29 -'!$D17,'- 30 -'!$D17) -> 1863757 | C17: 1028320 | D17: 1.81242901
A18: FRONTIER | B18: =SUM('- 29 -'!$B18,'- 29 -'!$D18,'- 30 -'!$D18) -> 11036707 | C18: 1520568 | D18: 7.258279143
A19: GARDEN VALLEY | B19: =SUM('- 29 -'!$B19,'- 29 -'!$D19,'- 30 -'!$D19) -> 3219887 | C19: 863954 | D19: 3.726919489
A20: HANOVER | B20: =SUM('- 29 -'!$B20,'- 29 -'!$D20,'- 30 -'!$D20) -> 5185400 | C20: 1378148 | D20: 3.762585731
A21: INTERLAKE | B21: =SUM('- 29 -'!$B21,'- 29 -'!$D21,'- 30 -'!$D21) -> 3303000 | C21: 981615 | D21: 3.364863006
A22: KELSEY | B22: =SUM('- 29 -'!$B22,'- 29 -'!$D22,'- 30 -'!$D22) -> 604635 | C22: 136000 | D22: 4.445845588
A23: LAKESHORE | B23: =SUM('- 29 -'!$B23,'- 29 -'!$D23,'- 30 -'!$D23) -> 2040900 | C23: 771000 | D23: 2.647081712
A24: LORD SELKIRK | B24: =SUM('- 29 -'!$B24,'- 29 -'!$D24,'- 30 -'!$D24) -> 3430622 | C24: 1021320 | D24: 3.35900795
A25: LOUIS RIEL | B25: =SUM('- 29 -'!$B25,'- 29 -'!$D25,'- 30 -'!$D25) -> 6927199 | C25: 1147496 | D25: 6.036795771
A26: MOUNTAIN VIEW | B26: =SUM('- 29 -'!$B26,'- 29 -'!$D26,'- 30 -'!$D26) -> 3623213 | C26: 1224172 | D26: 2.959725431
A27: MYSTERY LAKE | B27: =SUM('- 29 -'!$B27,'- 29 -'!$D27,'- 30 -'!$D27) -> 491215 | C27: N/A
A28: PARK WEST | B28: =SUM('- 29 -'!$B28,'- 29 -'!$D28,'- 30 -'!$D28) -> 2138831 | C28: 979590 | D28: 2.183394073
A29: PEMBINA TRAILS | B29: =SUM('- 29 -'!$B29,'- 29 -'!$D29,'- 30 -'!$D29) -> 6039766 | C29: 0
A30: PINE CREEK | B30: =SUM('- 29 -'!$B30,'- 29 -'!$D30,'- 30 -'!$D30) -> 2017632 | C30: 654415 | D30: 3.083107814
A31: PORTAGE LA PRAIRIE | B31: =SUM('- 29 -'!$B31,'- 29 -'!$D31,'- 30 -'!$D31) -> 1440838 | C31: 506302 | D31: 2.845807443
A32: PRAIRIE ROSE | B32: =SUM('- 29 -'!$B32,'- 29 -'!$D32,'- 30 -'!$D32) -> 3060783 | C32: 1070000 | D32: 2.86054486
A33: PRAIRIE SPIRIT | B33: =SUM('- 29 -'!$B33,'- 29 -'!$D33,'- 30 -'!$D33) -> 2891210 | C33: 1472830 | D33: 1.963030357
A34: RED RIVER VALLEY | B34: =SUM('- 29 -'!$B34,'- 29 -'!$D34,'- 30 -'!$D34) -> 3436183 | C34: 1407896 | D34: 2.440651156
A35: RIVER EAST TRANSCONA | B35: =SUM('- 29 -'!$B35,'- 29 -'!$D35,'- 30 -'!$D35) -> 6602944 | C35: 1249270 | D35: 5.285441898
A36: ROLLING RIVER | B36: =SUM('- 29 -'!$B36,'- 29 -'!$D36,'- 30 -'!$D36) -> 2164265 | C36: 879525 | D36: 2.460720275
A37: SEINE RIVER | B37: =SUM('- 29 -'!$B37,'- 29 -'!$D37,'- 30 -'!$D37) -> 4721950 | C37: 1454206 | D37: 3.247098417
A38: SEVEN OAKS | B38: =SUM('- 29 -'!$B38,'- 29 -'!$D38,'- 30 -'!$D38) -> 5797277 | C38: 1155655 | D38: 5.016442623
A39: SOUTHWEST HORIZON | B39: =SUM('- 29 -'!$B39,'- 29 -'!$D39,'- 30 -'!$D39) -> 2330500 | C39: 955300 | D39: 2.439547786
A40: ST. JAMES-ASSINIBOIA | B40: =SUM('- 29 -'!$B40,'- 29 -'!$D40,'- 30 -'!$D40) -> 3492868 | C40: 622752 | D40: 5.608762397
A41: SUNRISE | B41: =SUM('- 29 -'!$B41,'- 29 -'!$D41,'- 30 -'!$D41) -> 6750328 | C41: 2274557 | D41: 2.96775504
A42: SWAN VALLEY | B42: =SUM('- 29 -'!$B42,'- 29 -'!$D42,'- 30 -'!$D42) -> 2195737 | C42: 675074 | D42: 3.252587124
A43: TURTLE MOUNTAIN | B43: =SUM('- 29 -'!$B43,'- 29 -'!$D43,'- 30 -'!$D43) -> 1494889 | C43: 504567 | D43: 2.962716547
A44: TURTLE RIVER | B44: =SUM('- 29 -'!$B44,'- 29 -'!$D44,'- 30 -'!$D44) -> 1500040 | C44: 708364 | D44: 2.117611849
A45: WESTERN | B45: =SUM('- 29 -'!$B45,'- 29 -'!$D45,'- 30 -'!$D45) -> 1409685 | C45: 352106 | D45: 4.003581308
A46: WINNIPEG | B46: =SUM('- 29 -'!$B46,'- 29 -'!$D46,'- 30 -'!$D46) -> 10077067 | C46: 1522550 | D46: 6.618545861
A48: PROVINCE | B48: =SUM(B11:B46) -> 136222773 | C48: =SUM(C11:C46) -> 32397922 | D48: =B48/C48 -> 4.204676244
A50: WHITESHELL | B50: =SUM('- 29 -'!$B50,'- 29 -'!$D50,'- 30 -'!$D50) -> 54350 | C50: N/A | D50: =IF(AND(CELL("type",C50)="v",C50>0),B50/C50,"") -> 

Sheet - 36 -
A2: =IF(Lang=1,BA2,BB2) -> ANALYSIS OF OPERATIONS AND MAINTENANCE EXPENSES FOR SCHOOL BUILDINGS | BA2: ANALYSIS OF OPERATIONS AND MAINTENANCE EXPENSES FOR SCHOOL BUILDINGS | BB2: ANALYSE DES DÉPENSES DE FONCTIONNEMENT ET D'ENTRETIEN DES BÂTIMENTS SCOLAIRES
A3: =OPYEAR -> OPERATING FUND 2025/2026 BUDGET
F6: REPAIRS AND REPLACEMENTS
B7: MAINTENANCE | I7: TOTAL
C8: COST PER PUPIL | D8: COST PER SQ FT (1) | E8: SQ FT PER PUPIL (2) | G8: COST PER SQ FT (1) | I8: AREA
A9: DIVISION / DISTRICT | B9: AMOUNT | F9: AMOUNT | I9: at September 30, 2024 | J9: 0 | K9: 0 | L9: 0 | M9: 0
A11: BEAUTIFUL PLAINS | B11: ='- 31 -'!D11 -> 2278624 | C11: =B11/'- 7 -'!E11 -> 1020.660246 | D11: =B11/I11 -> 7.433026481 | E11: =I11/'- 7 -'!E11 -> 137.3142217 | F11: ='- 31 -'!F11 -> 332530 | G11: =F11/I11 -> 1.084735479 | I11: 306554
A12: BORDER LAND | B12: ='- 31 -'!D12 -> 3456452 | C12: =B12/'- 7 -'!E12 -> 1697.251166 | D12: 8.107171422 | E12: =I12/'- 7 -'!E12 -> 209.3518291 | F12: ='- 31 -'!F12 -> 328400 | G12: 0.77026821 | I12: 426345
A13: BRANDON | B13: ='- 31 -'!D13 -> 9943568 | C13: =B13/'- 7 -'!E13 -> 1005.51805 | D13: 8.761593932 | E13: =I13/'- 7 -'!E13 -> 114.7642835 | F13: ='- 31 -'!F13 -> 1002149 | G13: 0.8830253484 | I13: 1134904
A14: DSFM | B14: ='- 31 -'!D14 -> 12430227 | C14: =B14/'- 7 -'!E14 -> 1918.837141 | D14: 11.01129989 | E14: =I14/'- 7 -'!E14 -> 174.2607286 | F14: ='- 31 -'!F14 -> 300000 | G14: 0.2657545969 | I14: 1128861
A15: EVERGREEN | B15: ='- 31 -'!D15 -> 2787511 | C15: =B15/'- 7 -'!E15 -> 1998.215771 | D15: 9.570721775 | E15: =I15/'- 7 -'!E15 -> 208.7842294 | F15: ='- 31 -'!F15 -> 250000 | G15: 0.8583573101 | I15: 291254
A16: FLIN FLON | B16: ='- 31 -'!D16 -> 2296982 | C16: =B16/'- 7 -'!E16 -> 2849.853598 | D16: 10.95130754 | E16: =I16/'- 7 -'!E16 -> 260.2295285 | F16: ='- 31 -'!F16 -> 100000 | G16: 0.4767694105 | I16: 209745
A17: FORT LA BOSSE | B17: ='- 31 -'!D17 -> 1964728 | C17: =B17/'- 7 -'!E17 -> 1284.975801 | D17: 7.44060139 | E17: =I17/'- 7 -'!E17 -> 172.6978417 | F17: ='- 31 -'!F17 -> 70000 | G17: 0.2650962868 | I17: 264055
A18: FRONTIER | B18: ='- 31 -'!D18 -> 23219153 | C18: =B18/'- 7 -'!E18 -> 3841.686466 | D18: 15.76309753 | E18: =I18/'- 7 -'!E18 -> 243.7139312 | F18: ='- 31 -'!F18 -> 2181327 | G18: 1.48086669 | I18: 1473007
A19: GARDEN VALLEY | B19: ='- 31 -'!D19 -> 5449009 | C19: =B19/'- 7 -'!E19 -> 1284.840604 | D19: 7.584469471 | E19: =I19/'- 7 -'!E19 -> 169.40415 | F19: ='- 31 -'!F19 -> 398000 | G19: 0.5539757503 | I19: 718443
A20: HANOVER | B20: ='- 31 -'!D20 -> 8186700 | C20: =B20/'- 7 -'!E20 -> 946.2752124 | D20: 7.27911776 | E20: =I20/'- 7 -'!E20 -> 129.998613 | F20: ='- 31 -'!F20 -> 977000 | G20: 0.8686892218 | I20: 1124683
A21: INTERLAKE | B21: ='- 31 -'!D21 -> 3860999 | C21: =B21/'- 7 -'!E21 -> 1366.72531 | D21: 8.514267632 | E21: =I21/'- 7 -'!E21 -> 160.5217699 | F21: ='- 31 -'!F21 -> 500000 | G21: 1.102599046 | I21: 453474
A22: KELSEY | B22: ='- 31 -'!D22 -> 2872292 | C22: =B22/'- 7 -'!E22 -> 2005.790503 | D22: 8.42591115 | E22: =I22/'- 7 -'!E22 -> 238.0502793 | F22: ='- 31 -'!F22 -> 57120 | G22: 0.1675623665 | I22: 340888
A23: LAKESHORE | B23: ='- 31 -'!D23 -> 1582855 | C23: =B23/'- 7 -'!E23 -> 1559.463054 | D23: 6.785913331 | E23: =I23/'- 7 -'!E23 -> 229.808867 | F23: ='- 31 -'!F23 -> 135000 | G23: 0.5787632472 | I23: 233256
A24: LORD SELKIRK | B24: ='- 31 -'!D24 -> 6642457 | C24: =B24/'- 7 -'!E24 -> 1670.218004 | D24: 9.34354507 | E24: =I24/'- 7 -'!E24 -> 178.756349 | F24: ='- 31 -'!F24 -> 855800 | G24: 1.203802429 | I24: 710914
A25: LOUIS RIEL | B25: ='- 31 -'!D25 -> 23207277 | C25: =B25/'- 7 -'!E25 -> 1345.427387 | D25: 10.00248993 | E25: =I25/'- 7 -'!E25 -> 134.5092469 | F25: ='- 31 -'!F25 -> 428400 | G25: 0.1846432343 | I25: 2320150
A26: MOUNTAIN VIEW | B26: ='- 31 -'!D26 -> 5909949 | C26: =B26/'- 7 -'!E26 -> 1932.935078 | D26: 7.677222614 | E26: =I26/'- 7 -'!E26 -> 251.7753066 | F26: ='- 31 -'!F26 -> 305306 | G26: 0.3966027672 | I26: 769803
A27: MYSTERY LAKE | B27: ='- 31 -'!D27 -> 5658065 | C27: =B27/'- 7 -'!E27 -> 1955.7845 | D27: 12.05174437 | E27: =I27/'- 7 -'!E27 -> 162.2822754 | F27: ='- 31 -'!F27 -> 750000 | G27: 1.597508738 | I27: 469481 | L27: AREA
A28: PARK WEST | B28: ='- 31 -'!D28 -> 3689944 | C28: =B28/'- 7 -'!E28 -> 1658.029207 | D28: 8.306811914 | E28: =I28/'- 7 -'!E28 -> 199.5987419 | F28: ='- 31 -'!F28 -> 156017 | G28: 0.3512258924 | I28: 444207 | K28: 50000 | L28: Waywayseecapo Included | N28: 50000
A29: PEMBINA TRAILS | B29: ='- 31 -'!D29 -> 20176032 | C29: =B29/'- 7 -'!E29 -> 1130.246597 | D29: 10.87252875 | E29: =I29/'- 7 -'!E29 -> 103.9543443 | F29: ='- 31 -'!F29 -> 1299000 | G29: 0.7000095382 | I29: 1855689
A30: PINE CREEK | B30: ='- 31 -'!D30 -> 1589157 | C30: =B30/'- 7 -'!E30 -> 1485.193458 | D30: 7.474657347 | E30: =I30/'- 7 -'!E30 -> 198.6971963 | F30: ='- 31 -'!F30 -> 148000 | G30: 0.6961233455 | I30: 212606
A31: PORTAGE LA PRAIRIE | B31: ='- 31 -'!D31 -> 4419735 | C31: =B31/'- 7 -'!E31 -> 1281.639843 | D31: 7.438076822 | E31: =I31/'- 7 -'!E31 -> 172.30796 | F31: ='- 31 -'!F31 -> 638000 | G31: 1.073705327 | I31: 594204
A32: PRAIRIE ROSE | B32: ='- 31 -'!D32 -> 3455785 | C32: =B32/'- 7 -'!E32 -> 1492.779698 | D32: 9.015404884 | E32: =I32/'- 7 -'!E32 -> 165.5809935 | F32: ='- 31 -'!F32 -> 522340 | G32: 1.362673484 | I32: 383320
A33: PRAIRIE SPIRIT | B33: ='- 31 -'!D33 -> 3219240 | C33: =B33/'- 7 -'!E33 -> 1476.376978 | D33: 6.53134263 | E33: =I33/'- 7 -'!E33 -> 226.0449438 | F33: ='- 31 -'!F33 -> 287495 | G33: 0.5832831194 | I33: 492891
A34: RED RIVER VALLEY | B34: ='- 31 -'!D34 -> 3004765 | C34: =B34/'- 7 -'!E34 -> 1286.837259 | D34: 7.775834027 | E34: =I34/'- 7 -'!E34 -> 165.491863 | F34: ='- 31 -'!F34 -> 386754 | G34: 1.000855279 | I34: 386423.5
A35: RIVER EAST TRANSCONA | B35: ='- 31 -'!D35 -> 24806238 | C35: =B35/'- 7 -'!E35 -> 1341.022705 | D35: 10.00006369 | E35: =I35/'- 7 -'!E35 -> 134.1014164 | F35: ='- 31 -'!F35 -> 84000 | G35: 0.03386266593 | I35: 2480608
A36: ROLLING RIVER | B36: ='- 31 -'!D36 -> 3097220 | C36: =B36/'- 7 -'!E36 -> 1724.510022 | D36: 9.646887332 | E36: =I36/'- 7 -'!E36 -> 178.763363 | F36: ='- 31 -'!F36 -> 110000 | G36: 0.3426161547 | I36: 321059
A37: SEINE RIVER | B37: ='- 31 -'!D37 -> 5594200 | C37: =B37/'- 7 -'!E37 -> 1143.540474 | D37: 9.182923066 | E37: =I37/'- 7 -'!E37 -> 124.529027 | F37: ='- 31 -'!F37 -> 1090500 | G37: 1.790064281 | I37: 609196
A38: SEVEN OAKS | B38: ='- 31 -'!D38 -> 13775260 | C38: =B38/'- 7 -'!E38 -> 1145.57082 | D38: 9.43139517 | E38: =I38/'- 7 -'!E38 -> 121.4635586 | F38: ='- 31 -'!F38 -> 1199000 | G38: 0.8209095733 | I38: 1460575
A39: SOUTHWEST HORIZON | B39: ='- 31 -'!D39 -> 2336400 | C39: =B39/'- 7 -'!E39 -> 1636.134454 | D39: 7.367256009 | E39: =I39/'- 7 -'!E39 -> 222.0819328 | F39: ='- 31 -'!F39 -> 162000 | G39: 0.5108266879 | I39: 317133
A40: ST. JAMES-ASSINIBOIA | B40: ='- 31 -'!D40 -> 10561544 | C40: =B40/'- 7 -'!E40 -> 1269.111271 | D40: 7.204533827 | E40: =I40/'- 7 -'!E40 -> 176.1545302 | F40: ='- 31 -'!F40 -> 1083080 | G40: 0.7388206211 | I40: 1465958
A41: SUNRISE | B41: ='- 31 -'!D41 -> 6575220 | C41: =B41/'- 7 -'!E41 -> 1499.309087 | D41: 8.599150445 | E41: =I41/'- 7 -'!E41 -> 174.3554897 | F41: ='- 31 -'!F41 -> 650000 | G41: 0.850077684 | I41: 764636
A42: SWAN VALLEY | B42: ='- 31 -'!D42 -> 2358541 | C42: =B42/'- 7 -'!E42 -> 1722.191311 | D42: 8.113120771 | E42: =I42/'- 7 -'!E42 -> 212.2723622 | F42: ='- 31 -'!F42 -> 193716 | G42: 0.6663616631 | I42: 290707
A43: TURTLE MOUNTAIN | B43: ='- 31 -'!D43 -> 908342 | C43: =B43/'- 7 -'!E43 -> 837.9538745 | D43: =B43/I43 -> 4.974545176 | E43: =I43/'- 7 -'!E43 -> 168.4483395 | F43: ='- 31 -'!F43 -> 130283 | G43: =F43/I43 -> 0.7134963143 | I43: 182598
A44: TURTLE RIVER | B44: ='- 31 -'!D44 -> 1316860 | C44: =B44/'- 7 -'!E44 -> 2251.042735 | D44: =B44/I44 -> 7.191751271 | E44: =I44/'- 7 -'!E44 -> 313.0034188 | F44: ='- 31 -'!F44 -> 50000 | G44: =F44/I44 -> 0.2730643831 | I44: 183107
A45: WESTERN | B45: ='- 31 -'!D45 -> 2687432 | C45: =B45/'- 7 -'!E45 -> 1133.4593 | D45: =B45/I45 -> 11.74304903 | E45: =I45/'- 7 -'!E45 -> 96.52172079 | F45: ='- 31 -'!F45 -> 284480 | G45: =F45/I45 -> 1.243068695 | I45: 228853
A46: WINNIPEG | B46: ='- 31 -'!D46 -> 51027677 | C46: =B46/'- 7 -'!E46 -> 1787.146424 | D46: =B46/I46 -> 9.878943457 | E46: =I46/'- 7 -'!E46 -> 180.9046111 | F46: ='- 31 -'!F46 -> 8321283 | G46: =F46/I46 -> 1.610997974 | I46: 5165297
A48: PROVINCE | B48: =SUM(B11:B46) -> 286346440 | C48: =B48/'- 7 -'!E48 -> 1487.630743 | D48: =B48/I48 -> 9.476999325 | E48: =I48/'- 7 -'!E48 -> 156.9727603 | F48: =SUM(F11:F46) -> 25766980 | G48: =F48/I48 -> 0.8527909481 | I48: =SUM(I11:I46) -> 30214884.5
A50: WHITESHELL | B50: ='- 31 -'!D50 -> 565700 | C50: =B50/'- 7 -'!E50 -> 2857.070707 | D50: =B50/I50 -> 7.633659893 | E50: =I50/'- 7 -'!E50 -> 374.2727273 | F50: ='- 31 -'!F50 -> 14000 | G50: N/A | I50: 74106
A52: ="(1) Based on area (square footage) of active school buildings as at September 29, "&FAllYR-1&". Includes rented and leased space." -> (1) Based on area (square footage) of active school buildings as at September 29, 2024. Includes rented and leased space.
A53: (2) Square footage (as per note above) divided by total FTE enrolment (from page 7).

Sheet - 37 -
E2: =IF(Lang=1,BA2,BB2) -> ANALYSIS OF INFORMATION TECHNOLOGY EXPENSES | BA2: ANALYSIS OF INFORMATION TECHNOLOGY EXPENSES | BB2: ANALYSE DES DÉPENSES DE TECHNOLOGIE DE L'INFORMATION
E3: =OPYEAR -> OPERATING FUND 2025/2026 BUDGET
B6: INFORMATION TECHNOLOGY EXPENSES (1)
B7: SALARIES | E7: SERVICES | H7: EQUIPMENT
D8: PER PUPIL | G8: PER PUPIL | J8: PER PUPIL
A9: DIVISION / DISTRICT | B9: AMOUNT | C9: % | E9: AMOUNT | F9: % | H9: AMOUNT | I9: %
A11: BEAUTIFUL PLAINS | B11: 221333 | C11: =B11/'- 3 -'!$D11*100 -> 0.7271920232 | D11: =B11/'- 7 -'!$E11 -> 99.14132139 | E11: 202193 | F11: =E11/'- 3 -'!$D11*100 -> 0.6643073412 | G11: =E11/'- 7 -'!$E11 -> 90.56797312 | H11: 322871 | I11: =H11/'- 3 -'!$D11*100 -> 1.060796247 | J11: =H11/'- 7 -'!$E11 -> 144.6230683
A12: BORDER LAND | B12: 451426 | C12: =B12/'- 3 -'!$D12*100 -> 1.087294456 | D12: =B12/'- 7 -'!$E12 -> 221.6675669 | E12: 355590 | F12: =E12/'- 3 -'!$D12*100 -> 0.8564660331 | G12: =E12/'- 7 -'!$E12 -> 174.6083968 | H12: 601745 | I12: =H12/'- 3 -'!$D12*100 -> 1.4493494 | J12: =H12/'- 7 -'!$E12 -> 295.4799902
A13: BRANDON | B13: 659390 | C13: =B13/'- 3 -'!$D13*100 -> 0.4695909103 | D13: =B13/'- 7 -'!$E13 -> 66.67913844 | E13: 868650 | F13: =E13/'- 3 -'!$D13*100 -> 0.6186174255 | G13: =E13/'- 7 -'!$E13 -> 87.84002427 | H13: 1161476 | I13: =H13/'- 3 -'!$D13*100 -> 0.8271562688 | J13: =H13/'- 7 -'!$E13 -> 117.4513095
A14: DSFM | B14: 456634 | C14: =B14/'- 3 -'!$D14*100 -> 0.3571430108 | D14: =B14/'- 7 -'!$E14 -> 70.48996604 | E14: 1008697 | F14: =E14/'- 3 -'!$D14*100 -> 0.7889230402 | G14: =E14/'- 7 -'!$E14 -> 155.7111763 | H14: 565500 | I14: =H14/'- 3 -'!$D14*100 -> 0.4422893884 | J14: =H14/'- 7 -'!$E14 -> 87.29546156
A15: EVERGREEN | B15: 175000 | C15: =B15/'- 3 -'!$D15*100 -> 0.6660281677 | D15: =B15/'- 7 -'!$E15 -> 125.4480287 | E15: 274550 | F15: =E15/'- 3 -'!$D15*100 -> 1.044903048 | G15: =E15/'- 7 -'!$E15 -> 196.8100358 | H15: 245000 | I15: =H15/'- 3 -'!$D15*100 -> 0.9324394347 | J15: =H15/'- 7 -'!$E15 -> 175.6272401
A16: FLIN FLON | B16: 57891 | C16: =B16/'- 3 -'!$D16*100 -> 0.3113473081 | D16: =B16/'- 7 -'!$E16 -> 71.82506203 | E16: 199989 | F16: =E16/'- 3 -'!$D16*100 -> 1.075573696 | G16: =E16/'- 7 -'!$E16 -> 248.1253102 | H16: 190463 | I16: =H16/'- 3 -'!$D16*100 -> 1.024341303 | J16: =H16/'- 7 -'!$E16 -> 236.3064516
A17: FORT LA BOSSE | B17: 77400 | C17: =B17/'- 3 -'!$D17*100 -> 0.3289922928 | D17: =B17/'- 7 -'!$E17 -> 50.62132112 | E17: 166510 | F17: =E17/'- 3 -'!$D17*100 -> 0.7077584841 | G17: =E17/'- 7 -'!$E17 -> 108.9012426 | H17: 165300 | I17: =H17/'- 3 -'!$D17*100 -> 0.702615323 | J17: =H17/'- 7 -'!$E17 -> 108.1098757
A18: FRONTIER | B18: 587217 | C18: =B18/'- 3 -'!$D18*100 -> 0.3366993444 | D18: =B18/'- 7 -'!$E18 -> 97.15701522 | E18: 42661 | F18: =E18/'- 3 -'!$D18*100 -> 0.02446102673 | G18: =E18/'- 7 -'!$E18 -> 7.05840503 | H18: 1913636 | I18: =H18/'- 3 -'!$D18*100 -> 1.097243415 | J18: =H18/'- 7 -'!$E18 -> 316.6174719
A19: GARDEN VALLEY | B19: 644130 | C19: =B19/'- 3 -'!$D19*100 -> 1.029913295 | D19: =B19/'- 7 -'!$E19 -> 151.8816317 | E19: 350000 | F19: =E19/'- 3 -'!$D19*100 -> 0.5596225189 | G19: =E19/'- 7 -'!$E19 -> 82.52770573 | H19: 617000 | I19: =H19/'- 3 -'!$D19*100 -> 0.9865345548 | J19: =H19/'- 7 -'!$E19 -> 145.4845555
A20: HANOVER | B20: 903800 | C20: =B20/'- 3 -'!$D20*100 -> 0.7657861848 | D20: =B20/'- 7 -'!$E20 -> 104.4674334 | E20: 502900 | F20: =E20/'- 3 -'!$D20*100 -> 0.4261051918 | G20: =E20/'- 7 -'!$E20 -> 58.12864821 | H20: 1868850 | I20: =H20/'- 3 -'!$D20*100 -> 1.583469254 | J20: =H20/'- 7 -'!$E20 -> 216.0145639
A21: INTERLAKE | B21: 356295 | C21: =B21/'- 3 -'!$D21*100 -> 0.7212066014 | D21: =B21/'- 7 -'!$E21 -> 126.1221239 | E21: 173100 | F21: =E21/'- 3 -'!$D21*100 -> 0.3503862325 | G21: =E21/'- 7 -'!$E21 -> 61.27433628 | H21: 430305 | I21: =H21/'- 3 -'!$D21*100 -> 0.8710164516 | J21: =H21/'- 7 -'!$E21 -> 152.320354
A22: KELSEY | B22: 100786 | C22: =B22/'- 3 -'!$D22*100 -> 0.4036768534 | D22: =B22/'- 7 -'!$E22 -> 70.38128492 | E22: 98000 | F22: =E22/'- 3 -'!$D22*100 -> 0.3925181239 | G22: =E22/'- 7 -'!$E22 -> 68.43575419 | H22: 94500 | I22: =H22/'- 3 -'!$D22*100 -> 0.3784996195 | J22: =H22/'- 7 -'!$E22 -> 65.99162011
A23: LAKESHORE | B23: 125800 | C23: =B23/'- 3 -'!$D23*100 -> 0.672388238 | D23: =B23/'- 7 -'!$E23 -> 123.9408867 | E23: 111400 | F23: =E23/'- 3 -'!$D23*100 -> 0.5954216989 | G23: =E23/'- 7 -'!$E23 -> 109.7536946 | H23: 150000 | I23: =H23/'- 3 -'!$D23*100 -> 0.801734783 | J23: =H23/'- 7 -'!$E23 -> 147.7832512
A24: LORD SELKIRK | B24: 496450 | C24: =B24/'- 3 -'!$D24*100 -> 0.6659832485 | D24: =B24/'- 7 -'!$E24 -> 124.8302741 | E24: 611805 | F24: =E24/'- 3 -'!$D24*100 -> 0.8207309525 | G24: =E24/'- 7 -'!$E24 -> 153.8358059 | H24: 816956 | I24: =H24/'- 3 -'!$D24*100 -> 1.09593919 | J24: =H24/'- 7 -'!$E24 -> 205.420166
A25: LOUIS RIEL | B25: 1233804 | C25: =B25/'- 3 -'!$D25*100 -> 0.4567003262 | D25: =B25/'- 7 -'!$E25 -> 71.52901617 | E25: 2601289 | F25: =E25/'- 3 -'!$D25*100 -> 0.962883517 | G25: =E25/'- 7 -'!$E25 -> 150.8081048 | H25: 2415667 | I25: =H25/'- 3 -'!$D25*100 -> 0.8941743639 | J25: =H25/'- 7 -'!$E25 -> 140.0467853
A26: MOUNTAIN VIEW | B26: 504060 | C26: =B26/'- 3 -'!$D26*100 -> 0.9622252429 | D26: =B26/'- 7 -'!$E26 -> 164.8601799 | E26: 611122 | F26: =E26/'- 3 -'!$D26*100 -> 1.166601228 | G26: =E26/'- 7 -'!$E26 -> 199.8763696 | H26: 394765 | I26: =H26/'- 3 -'!$D26*100 -> 0.7535865731 | J26: =H26/'- 7 -'!$E26 -> 129.1136549
A27: MYSTERY LAKE | B27: 149746 | C27: =B27/'- 3 -'!$D27*100 -> 0.2848131029 | D27: =B27/'- 7 -'!$E27 -> 51.76167218 | E27: 265100 | F27: =E27/'- 3 -'!$D27*100 -> 0.5042134921 | G27: =E27/'- 7 -'!$E27 -> 91.63529774 | H27: 198000 | I27: =H27/'- 3 -'!$D27*100 -> 0.3765909899 | J27: =H27/'- 7 -'!$E27 -> 68.44130121
A28: PARK WEST | B28: 317981 | C28: =B28/'- 3 -'!$D28*100 -> 0.8661749241 | D28: =B28/'- 7 -'!$E28 -> 142.880701 | E28: 238700 | F28: =E28/'- 3 -'!$D28*100 -> 0.6502148065 | G28: =E28/'- 7 -'!$E28 -> 107.2567962 | H28: 492141 | I28: =H28/'- 3 -'!$D28*100 -> 1.34058385 | J28: =H28/'- 7 -'!$E28 -> 221.1372725
A29: PEMBINA TRAILS | B29: 2307650 | C29: =B29/'- 3 -'!$D29*100 -> 0.9451574136 | D29: =B29/'- 7 -'!$E29 -> 129.2728699 | E29: 1886467 | F29: =E29/'- 3 -'!$D29*100 -> 0.7726510825 | G29: =E29/'- 7 -'!$E29 -> 105.6785054 | H29: 2313292 | I29: =H29/'- 3 -'!$D29*100 -> 0.9474682398 | J29: =H29/'- 7 -'!$E29 -> 129.5889306
